Workbook

Sheet Contacts
A1: 2015 SWSP ACCOUNTING SPREADSHEET
B3: Case No. 12CW073, 11CW280, 10CW312, 10CW313, 11CW285, 09CW283. 10CW306, 84CW090, 88CW264(B), 2002CW105-A, 02CW403, 02CW404 and 03CW442 - 2015 SWSP Accounting Spreadsheet
B8: East Cherry Creek Valley Water and Sanitation District
B9: Dave Kaunisto
B10: phone: (303) 693-3800
B12: Arapahoe County Water and Wastewater Authority
B13: Steve Witter
B14: phone: (303) 790-4830
B16: United Water and Sanitation District
B17: Andrew Daminao
B18: phone: (303) 785-3581
B20: DiNatale Water Consultants
B21: Brian Macpherson
B22: phone: (303) 709-7044
B24: Farmer's Reservoir and Irrigation Company
B25: Scott Edgar
B26: phone: (303) 659-7373

Sheet Control Sheet
A1: Accounting Control Variables
A2: Input data in yellow highlighted cells only. If yellow cells contain a formula, at the end of the accounting year, copy and paste the data for the year that just ended as values and remove the yellow shading.
A3: Sheets that require input have purple tabs.
A4: Accounting is administrated from 12 am to 12 am and the most senior call of the day will be used for the entire day.
A5: Year NHF Accounting Started | D5: 1995
A6: Current Accounting Year | D6: 2015
A7: Year Case 02CW404 and 03CW442 Accounting Started | D7: 2011
A8: Capacities | G8: Month | H8: No. of Days
A9: Max Rate of Diversion at United No. 1 | D9: 100 | E9: cfs | G9: Apr | H9: 30
A10: Max Rate of Diversion at United No. 2 | D10: 24 | E10: cfs | G10: Aug | H10: 31
A11: Max Rate of Diversion at United No. 3 | D11: 100 | E11: cfs | G11: Dec | H11: 31
A12: Div Capacity at United No. 4 | D12: 11.58 | E12: cfs | G12: Feb | H12: =IF(MOD(D6+1,4)=0,29,28) -> 29
A13: Gilcrest Reservoir Intake (Jay Thomas Ditch) | D13: 100 | E13: cfs | G13: Jan | H13: 31
A14: Beebe Pipeline Capacity | D14: 50 | E14: cfs | G14: Jul | H14: 31
A15: Burlington/FRICO HID share of Beebe Pipeline Capacity | D15: =0.5*D14 -> 25 | E15: cfs | G15: Jun | H15: 30
G16: Mar | H16: 31
A17: United Reservoir #3 Capacity (non-jurisdictional) | D17: 3180 | E17: AF | G17: May | H17: 31
A18: United Reservoir #3 Capacity (jurisdictional) | D18: 4611 | E18: AF | G18: Nov | H18: 30
G19: Oct | H19: 31
G20: Sep | H20: 30
A21: Div Capacity at Platte Valley Canal | D21: 350 | E21: cfs
A22: Div Capacity at Burlington Headgate | D22: 900 | E22: cfs
A23: Metro Pumping Plant | D23: 105 | E23: cfs
A25: Barr Lake Canal Characteristics
A27: Canal | B27: Length (ft) | C27: Canal Width (ft) | D27: Surface Area (ac) | E27: Capacity (cfs)
A28: Speer I | B28: 96440 | C28: 20 | D28: =(C28*B28)/43560 -> 44.27915519 | E28: 150
A29: West Burlington | B29: 48050 | C29: 10 | D29: 11.03076217 | E29: 20
A30: East Burlington | B30: 47870 | C30: 10 | D30: 10.98943985 | E30: 45
A31: Neres | B31: 89000 | C31: 20 | D31: 40.86317723 | E31: 120
A32: Bowles Seep | B32: 39310 | C32: 10 | D32: 9.024334252 | E32: 30
A33: East Neres | B33: 104860 | C33: 10 | D33: 24.07254362 | E33: 40
A35: 70 Ranch Canal Characteristics
A37: Canal | B37: Length (ft) | C37: Canal Width (ft) | D37: Surface Area (ac)
A38: Canal 11b to 8c | B38: 4850 | C38: 10 | D38: =(C38*B38)/43560 -> 1.113406795
A39: Canal 8a to 4/5 | B39: 6700 | C39: 10 | D39: =(C39*B39)/43560 -> 1.538108356
A40: Canal 8a to 9a | B40: 10670 | C40: 15 | D40: =(C40*B40)/43560 -> 3.674242424
A42: Barr Lake Evaporation Rates (From Operational Study Developed in Connection with Case No. 02CW105A): These values are used for the Projection Tool.
B43: Gross Evaporation | C43: Precipitation | D43: Net Evap
B44: Inches Per | C44: Inches Per | D44: Inches Per | E44: Percent
A45: Month | B45: Month | C45: Month | D45: Month | E45: Per Month
A46: Jan | B46: 0 | C46: 0.44 | D46: =IF(B46-C46<0,0,B46-C46) -> 0 | E46: =D46/$D$58 -> 0
A47: Feb | B47: 0 | C47: 0.37 | D47: =IF(B47-C47<0,0,B47-C47) -> 0 | E47: =D47/$D$58 -> 0
A48: Mar | B48: 2.48 | C48: 1.15 | D48: 1.33 | E48: 0.04763610315
A49: Apr | B49: 4.05 | C49: 1.76 | D49: 2.29 | E49: 0.08202005731
A50: May | B50: 5.4 | C50: 2.29 | D50: 3.11 | E50: 0.1113896848
A51: Jun | B51: 6.53 | C51: 1.63 | D51: 4.9 | E51: 0.1755014327
A52: Jul | B52: 6.75 | C52: 1.58 | D52: 5.17 | E52: 0.1851719198
A53: Aug | B53: 6.08 | C53: 1.75 | D53: 4.33 | E53: 0.1550859599
A54: Sep | B54: 4.5 | C54: 0.99 | D54: 3.51 | E54: 0.1257163324
A55: Oct | B55: 3.15 | C55: 0.89 | D55: 2.26 | E55: 0.08094555874
A56: Nov | B56: 1.8 | C56: 0.78 | D56: 1.02 | E56: 0.03653295129
A57: Dec | B57: 0 | C57: 0.52 | D57: 0 | E57: 0
A58: Total | B58: =SUM(B46:B57) -> 40.74 | C58: =SUM(C46:C57) -> 14.15 | D58: =SUM(D46:D57) -> 27.92 | E58: =SUM(E46:E57) -> 1
A61: Facility | B61: WDID
A62: Residential Well No. 1 | B62: 0107656
A63: Residential Well No. 2 | B63: 0107657
A64: Peterson Well No. 1 | B64: 0107968
A65: Peterson Well No. 2 | B65: 0107969
A66: NFC-W1 | B66: 0109961
A67: NFC-W2 | B67: 0109962
A68: NFC-W3 | B68: 0109963
A69: NFC-W4 | B69: 0109964
A70: Lower Latham Aug Station | B70: 0102917
A71: Illinois Ditch Aug Station | B71: 0102907
A72: Illinois Ditch Irrigation Pump No. 1 | B72: 0107520
A73: Illinois Ditch Irrigation Pump No. 2 | B73: 0109719
A74: Barr Lake | B74: 0203837
A75: United No. 1 | B75: 0100587
A76: United No. 2, Well #1 | B76: 0110707
A77: United No. 2, Well #3 | B77: 0110708
A78: United No. 2, Well #4 | B78: 0110709
A79: United No. 3 | B79: 0201511
A80: United No. 6 | B80: Not Yet Constructed
A81: Milton Lake | B81: 0203876
A82: Speer Canal | B82: 0200916
A83: Bowles Seep Canal | B83: 0200918
A84: E. Burlington Canal | B84: 0200920
A85: W. Burlington Canal | B85: 0200917
A86: Neres Canal | B86: 0200921
A87: E. Neres Canal | B87: 0200919
A88: Moser | B88: 0202058
A89: Gilcrest Reservoir | B89: 0203388
A90: Tu Pit | B90: 0202070
A91: Mile High Lakes | B91: Not Yet Constructed
A92: Bromley Lane | B92: Not Yet Constructed
A93: Schupman | B93: Not Yet Constructed
A94: Pettinger East | B94: Not Yet Constructed
A95: Pettinger West | B95: Not Yet Constructed
A96: Artese | B96: Not Yet Constructed
A97: Dechant | B97: Not Yet Constructed
A98: Carlin | B98: Not Yet Constructed
A99: Klug | B99: Not Yet Constructed
A100: Sater | B100: Not Yet Constructed
A101: Riverside Pond No. 1 | B101: 0102048
A102: Riverside Pond No. 2 | B102: 0102069
A103: Recharge Pond 4/5 | B103: Not Yet Constructed
A104: Recharge Pond 8a | B104: Not Yet Constructed
A105: Recharge Pond 8b | B105: Not Yet Constructed
A106: Recharge Pond 8c | B106: Not Yet Constructed
A107: Recharge Pond 9a | B107: Not Yet Constructed
A108: Recharge Pond 11a | B108: Not Yet Constructed
A109: Recharge Pond 11b | B109: Not Yet Constructed
A110: Recharge Canal 8a to 9a | B110: Not Yet Constructed
A111: Recharge Canal 11b to 8c | B111: Not Yet Constructed
A112: Recharge Canal 8a to 4/5 | B112: Not Yet Constructed
A113: ECCV Well No. P-2
A114: ECCV Well No. P-3
A115: ECCV Well No. P-4
A116: ECCV Well No. P-5
A117: ECCV Well No. P-6 | B117: 0210020
A118: ECCV Well No. P-8 | B118: 0209886
A119: ECCV Well No. P-11 | B119: 0209885
A120: ECCV Well No. P-12 | B120: 0209882
A121: ECCV Well No. P-13 | B121: 0209884
A122: ECCV Well No. P-18
A123: ECCV Well No. E-7 | B123: 0210019
A124: ECCV Well No. P-15
A125: ECCV Well No. E-1 | B125: Not Yet Constructed | C125: 0210385
A126: ECCV Well No. P-14 | B126: Not Yet Constructed | C126: 0210386
A127: ECCV Well No. P-19 | B127: Not Yet Constructed | C127: 0210387
A128: ECCV Well No. P-20 | B128: Not Yet Constructed | C128: 0210388
A129: ECCV Well No. P-21 | B129: Not Yet Constructed | C129: 0210389

Sheet ECCV Daily Replacement Summary
A1: 2015 SWSP Accounting - Case 02CW404 and 03CW442
A2: Year | B2: ='Control Sheet'!D6 -> 2015 | AS2: REPLACEMENT SUMMARY FOR SOUTH PLATTE RIVER REACH 5 (BELOW BIJOU CANAL) | BV2: REPLACEMENT SUMMARY FOR SOUTH PLATTE RIVER REACH 4 (EMPIRE CANAL TO BIJOU CANAL) | DF2: REPLACEMENT SUMMARY FOR CACHE LA POUDRE RIVER (CONNECTED TO REACH 3) | EQ2: REPLACEMENT SUMMARY FOR SOUTH PLATTE RIVER REACH 3 (LOWER LATHAM CANAL TO EMPIRE CANAL) | FT2: REPLACEMENT SUMMARY FOR SOUTH PLATTE RIVER REACH 2 (WESTERN MUTUAL DITCH TO LOWER LATHAM CANAL) | HR2: REPLACEMENT SUMMARY FOR SOUTH PLATTE RIVER REACH 1 (ABOVE WESTERN MUTUAL DITCH) | IN2: REPLACEMENT SUMMARY FOR BEEBE DRAW ABOVE MILTON | JX2: REPLACEMENT SUMMARY FOR BEEBE DRAW BELOW MILTON | KI2: REPLACEMENT SUMMARY FOR BOX ELDER CREEK
LK3: SOUTH PLATTE RIVER EXCHANGES | QB3: Used to Check Releases on Reservoir Sheets
C4: District 2 Call Information | K4: District 1 & 64 Call Information | S4: 70 Ranch Diversions and Well Pumping | AG4: 2003 One Time Diversion Right | AI4: Replacement Summary For Riverside | AN4: Replacement Summary for South Platte River Reach 5 | BV4: Replacement Summary for South Platte River Reach 4 | DF4: Replacement Summary for Cache La Poudre River | EQ4: Replacement Summary for South Platte River Reach 3 | FT4: Replacement Summary for South Platte River Reach 2 | HR4: Replacement Summary for South Platte River Reach 1 | IN4: Replacement Summary for Beebe Draw Above Milton | JX4: Replacement Summary for Beebe Draw below Milton | KI4: Replacement Summary for Box Elder Ck | KP4: OVERALL REPLACEMENT SUMMARY | LF4: Minimum Rates of Flow | LK4: MAXIMUM EXCHANGE RATE FROM BEAVER CREEK=12.2 CFS | LO4: MAXIMUM EXCHANGE RATE FROM FT. MORGAN CANAL=12.2 CFS | MB4: MAXIMUM EXCHANGE RATE FROM WELDON VALLEY CANAL= 14.2 CFS | MN4: MAXIMUM EXCHANGE RATE FROM 70 RANCH EXCHANGE QUANTIFICATION POINT= 11.0 CFS | MZ4: MAXIMUM EXCHANGE RATE FROM SOUTH PLATTE AND CACHE LA POUDRE CONFLUENCE=5.2 CFS | NN4: MAXIMUM EXCHANGE RATE FROM WESTERN MUTUAL DITCH=5.5 CFS | NX4: MAXIMUM EXCHANGE RATE FROM GILCREST RESERVOIR OUTLET STRUCTURE=260.0 CFS | OG4: MAXIMUM EXCHANGE RATE FROM SOUTH PLATTE AND ST VRAIN CONFLUENCE=50 CFS | OK4: MAXIMUM EXCHANGE RATE FROM ST VRAIN PIPELINE OUTLET EXCHANGE QUANTIFICATION POINT= 50 CFS | OP4: MAXIMUM EXCHANGE RATE FROM FARMERS INDEPENDENT DITCH=1.5 CFS | PB4: AGGREGATE OF EXCHANGES | PF4: Retiming of ECCV's Surplus Beebe Draw Recharge Accretions | PS4: Retiming of FRICO's Surplus Beebe Draw Recharge Accretions | QB4: Reservoir Replacement Release Summary
A5: Month | B5: Day | C5: Primary River Call Name (Structure Calling) | D5: Primary River Call Appropriation Date | E5: Primary River Call Location | F5: Primary River Call Admin Number | G5: Secondary River Call Name (Structure Calling) | H5: Secondary River Call Appropriation Date | I5: Secondary River Call Location | J5: Secondary River Call Admin Number | K5: Primary River Call Name (Structure Calling) | L5: Primary River Call Appropriation Date | M5: Primary River Call Location | N5: Primary River Call Admin Number | O5: Secondary River Call Name (Structure Calling) | P5: Secondary River Call Appropriation Date | Q5: Secondary River Call Location | R5: Secondary River Call Admin Number | S5: Surplus CU Water Available for Diversion by Exchange at United No. 1 | T5: United No. 1 Diversion of C.U. Water by Exchange | U5: United No. 1 Diversion of the 2003 Right | V5: Other Water Diverted at United No. 1 | W5: Source of Other Water | X5: United No. 1 Total Diversion | Y5: NFC-W1, W3 and W4 Pumping | Z5: 88CW264(B) Pumping, Peterson Well Nos. 1 and 2, Residential Well Nos.1 and 2, Illinois Irrigation Pump No.1 and 2 | AA5: Surplus C.U. Water in SPR-Reaches 4 and 5 Available for Diversion at United No. 2 | AB5: United Diversion Facility No. 2 Well Pumping of ECCV C.U. Water | AC5: United Diversion Facility No. 2 Well Pumping of the 2003 Right | AD5: Other Water Pumped at United No. 2 | AE5: Source of Other Water | AF5: Total Pumping | AG5: Total Diversion of the 2003 One Time Diversion Right | AH5: Maximum Total Rate of Diversion | AI5: NFC Well Depletions to Riverside | AJ5: Other Approved Water to Replace NFC Well Depletions to Riverside | AK5: Source of Other Water | AL5: ECCV 70 Ranch Recharge Accretions to Riverside | AM5: Remaining Requirement to Riverside | AN5: OOP NFC Well Depletions | AO5: Leased Credits from Riverside Irrigation District | AP5: Other Approved Water used to Replace NFC Well Depletions in SPR Reach 5 | AQ5: Source of Other Water | AR5: Weldon Valley RF Obligation | AS5: ECCV's Riverside Recharge Accretions in SPR Reach 5 | AT5: Weldon Valley Recharge Accretions in SPR Reach 5 | AU5: ECCV 70 Ranch Recharge Accretions to SPR Reach 5 | AV5: Weldon Valley Ditch Delivery Measured at ECCV Aug Station | AW5: Weldon Valley Ditch CU Credit | AX5: ECCV's Weldon Valley Aug Station Delivery Used to Meet RF Obligations | AY5: ECCV's Riverside Recharge Accrtns used to Replace Obligation in SPR Reach 5 | AZ5: Weldon Valley Recharge Accrtns used to Replace Obligation in SPR Reach 5 | BA5: 70 Ranch Recharge Accrtns used to Replace Obligation in SPR Reach 5 | BB5: Transit Loss on Riverside and 70 Ranch Recharge Accretions Used for Replacement | BC5: United Res #3 Release to Satisfy Requirement in SPR Reach 5 | BD5: Transit Loss on United Res Release | BE5: Gilcrest Release to Satisfy Requirement in SPR Reach 5 | BF5: Transit Loss on Gilcrest Release | BG5: Other Approved Water used to Replace Requirement in SPR Reach 5 | BH5: Source of Other Water | BI5: Is Jackson or Ft. Morgan Canal the Calling Right and Drying up the River (Yes or No) | BJ5: Is Bijou Canal the Calling Right and Drying up the River (Yes or No) | BK5: Available Bypassed at Bijou, Jackson or Ft. Morgan | BL5: Requested Bypassed at Bijou, Jackson or Ft. Morgan | BM5: Actual Amount Bypassed at Bijou, Jackson or Ft. Morgan | BN5: Source of Water Bypassed at Bijou, Jackson or Ft. Morgan | BO5: Riverside and 70 Ranch Accrtns used to Replace Obligation in SPR Reach 4 | BP5: 70 Ranch Recharge Accrtns in SPR Reach 5 used to Replace Obligation in SPR Reach 4 | BQ5: Weldon Valley CU in SPR Reach 5 used to Replace Obligation in SPR Reach 4 | BR5: Riverside Accrtns Used to Augment OOP Storage under 2003 Right in Milton | BS5: Recharge Accrtns in SPR 5 Used to Augment OOP Storage under 2003 Right in Milton | BT5: Obligation in SPR Reach 5 | BU5: Surplus CU in SPR Reach 5 Available for Upstream Replacement and/or Exchange | BV5: OOP NFC Well Depletions | BW5: OOP 88CW264(B) Pumping, Peterson Well Nos. 1 and 2, Residential Well Nos.1 and 2, Illinois Irrigation Pump No.1 and 2 | BX5: United's Total OOP Stream Depletion due to Pumping | BY5: Leased Credits from Riverside Irrigation District | BZ5: Other Approved Water used to Replace NFC & Peterson Well Obligation in SPR Reach 4 | CA5: Source of Other Approved Water | CB5: OOP United Diversion Facility No. 2 Depletions | CC5: ECCV's Total OOP Stream Depletion due to Pumping | CD5: Return Flow Obligation Associated with 70 Ranch Water Rights (Lower Latham and Illinois) | CE5: ECCV's Total OOP Replacement Requirement to SPR Reach 4 | CF5: ECCV's 70 Ranch Recharge Accretions to SPR Reach 4 | CG5: Lower Latham Delivery Measured at ECCV Aug Station | CH5: Lower Latham CU Credit | CI5: ECCV's Lower Latham Aug Station Delivery Used to Meet RF Obligations | CJ5: Illinois Ditch Delivery Measured at ECCV Aug Station | CK5: Illinois Ditch CU Credit | CL5: Hardin Ditch CU Credit | CM5: Other Approved Water used to Replace Obligation in SPR Reach 4 | CN5: Source of Other Approved Water | CO5: Total Consumptive Use Credit in SPR Reach 4 | CP5: Consumptive Use Credit Used to Satisfy ECCV's Obligation in SPR Reach 4 | CQ5: Consumptive Use Credit Used to Replace Longmont obligation | CR5: Transit loss to Longmont Obligation | CS5: Recharge Accrtns used to Replace ECCV's Obligation in SPR Reach 4 | CT5: Consumptive Use Credit Used to Augment OOP Storage under 2003 Right in Milton | CU5: Recharge Accrtns Used to Augment OOP Storage under 2003 Right in Milton | CV5: Remaining Requirement in SPR Reach 4 | CW5: Riverside Accrtns used to Replace Obligation in SPR Reach 4 | CX5: Recharge Accrtns in SPR Reach 5 used to Replace Obligation in SPR Reach 4 | CY5: Weldon Valley Accrtns used to Replace Obligation in SPR Reach 4 | CZ5: NFC Well Pumping Delivered to the South Platte for Replacement | DA5: United Res #3 Release to Satisfy Remaining Requirement in SPR Reach 4 | DB5: Transit Loss on United Res Release | DC5: Gilcrest Release to Satisfy Remaining Requirement in SPR Reach 4 | DD5: Transit Loss on Gilcrest Release | DE5: Surplus CU in SPR Reach 4 Available for Upstream Replacement and/or Exchange | DF5: New Cache RF Obligation abv Greeley No. 3 | DG5: New Cache Delivery Measured at John Law Aug Station | DH5: Transit Loss on John Law Release to CLP | DI5: Other Approved Water used to Replace Obligation abv Greeley No. 3 | DJ5: Source of Other Approved Water | DK5: Is the Greeley No. 3 drying up the river (Yes or No) | DL5: Is there a live stream for the John Law Seep (Yes or No) | DM5: Net Effect Above Greeley No. 3 | DN5: New Cache Delivery from the John Law Aug Station available above Ogilvy | DO5: Transit Loss on John Law Release to Ogilvy | DP5: New Cache RF Obligation abv Ogilvy Ditch | DQ5: GIC RF Obligation abv the Ogilvy Ditch | DR5: Total RF Obligation | DS5: New Cache Delivery from the John Law Aug Station used | DT5: GIC Delivery Measured at F Street Release Structure | DU5: Transit Loss on F Street Release to Ogilvy | DV5: GIC Delivery Measured at 23rd Avenue Release Structure | DW5: Transit Loss on 23rd Ave Release to Ogilvy | DX5: Other Approved Water used to Replace Obligation abv the Ogilvy Ditch | DY5: Source of Other Approved Water | DZ5: Is the Ogilvy Ditch drying up the river (Yes or No) | EA5: Net Effect between GIC and Ogilvy Ditch | EB5: New Cache RF Obligation that can be met by SPR 3 | EC5: GIC RF Obligation that can be met by SPR 3 | ED5: CU above Ogilvy available to SPR | EE5: Transit Loss on CU above Ogilvy to SPR | EF5: Is there a live stream for Sand Creek (Yes or No) | EG5: New Cache Delivery Measured at Upper Sand Creek Aug Station | EH5: Transit Loss on Upper Sand Creek Releases to SPR | EI5: New Cache Delivery Measured at Lower Sand Creek Aug Station | EJ5: Transit Loss on Lower Sand Creek Releases to SPR | EK5: GIC Delivery Measured at 16th Street Release Structure | EL5: Transit Loss on 16th Street Releases to SPR | EM5: Net Effect on CLP | EN5: Total GIC Delivery at all Structures | EO5: Total Greeley No. 3 Portion of GIC Delivery | EP5: Total Fossil Creek Portion of GIC Delivery | EQ5: OOP Historic RF Obligation to SPR Reach 3 | ER5: CLP RF Obligation to SPR Reach 3 | ES5: Total RF Obligation | ET5: Is there a call between Lower Latham and Bijou that is drying up the river (Yes or No) | EU5: Available Bypassed at the Lower Latham | EV5: Requested Bypassed at Lower Latham | EW5: Actual Amount Bypassed at Lower Latham | EX5: Source of Water Bypassed at Lower Latham | EY5: 70 Ranch CU Water in SPR Reach 4 Substituted to Replace RF Obligation to SPR Reach 3 | EZ5: 70 Ranch CU Water in SPR Reach 5 Substituted to Replace RF Obligation to SPR Reach 3 | FA5: United Res #3 Release to Replace Remaining RF Obligation to SPR Reach 3 | FB5: Transit Loss on United #3 Release | FC5: Gilcrest Res Release to Replace Remaining RF Obligation to SPR Reach 3 | FD5: Transit Loss on Gilcrest Release | FE5: Other Approved Water used to Replace Obligation in SPR Reach 3 | FF5: Source of Other Approved Water | FG5: CLP Excess CU to SPR Reach 3 | FH5: Is there a live stream for Lone Tree Creek (Yes or No) | FI5: New Cache Delivery Measured at Lone Tree Creek Aug Station | FJ5: Transit Loss on Lone Tree Creek Releases to SPR | FK5: Is there a live stream for Crow Creek (Yes or No) | FL5: New Cache Delivery Measured at Upper Crow Creek Aug Station | FM5: Transit Loss on Upper Crow Creek Releases to SPR | FN5: New Cache Delivery Measured at Lower Crow Creek Aug Station | FO5: Transit Loss on Lower Crow Creek Releases to SPR | FP5: Obligation in SPR Reach 3 | FQ5: Surplus CU in SPR Reach 3 Available for Replacement and/or Exchange | FR5: ECCV's Surplus Consumable Water in SPR Reach 4 | FS5: ECCV's Surplus Consumable Water in SPR Reach 5 | FT5: OOP Barr Share Historic RF Obligation to SPR Reach 2 | FU5: FIDCO RF Obligation to SPR Reach 2 | FV5: Western RF Obligation to Reach 2 | FW5: Total RF Obligation | FX5: FIDCO Lower Aug Station deliveries for replacement of RF obligation | FY5: Haren Pond Recharge Accretions in SPR Reach 2 | FZ5: Haren Pond Recharge Accrtns used to Replace Obligation in SPR Reach 2 | GA5: Haren Recharge Accretions Used to Augment Well Depletions abv Milton | GB5: Is there a call between the Western and Bijou that is drying up the river (Yes or No) | GC5: Is the Western (Jay Thomas) the Calling Right and Drying up the River (Yes or No) | GD5: Available Bypassed at Western | GE5: Requested Bypassed at Western | GF5: Actual Amount Bypassed at Western | GG5: Source of Water Bypassed at Western | GH5: 70 Ranch CU Water in SPR-Reach 4 Substituted to Replace RF Obligation to SPR Reach 2 | GI5: 70 Ranch CU Water in SPR-Reach 5 Substituted to Replace RF Obligation to SPR Reach 2 | GJ5: Remaining Historic RF Obligation to SPR Reach 2 | GK5: United Res #3 Release to Replace Remaining RF Obligation to SPR Reach 2 | GL5: Transit Loss on United #3 Release | GM5: Gilcrest Res Release to Replace RF Obligations | GN5: Gilcrest Res Release to Replace RF Obligation to SPR Reach 2 | GO5: Transit Loss on Gilcrest Release | GP5: Other Approved Water used to Replace Obligation in SPR Reach 2 | GQ5: Source of Other Approved Water | GR5: Remaining Historic RF Obligation to SPR Reach 2 | GS5: Western Ditch Delivery Measured at Aug Station | GT5: Western CU Credit | GU5: FIDCO Delivery Measured at Lower Aug Station | GV5: FIDCO CU Credit | GW5: FIDCO CU used to Replace Obligation to Beebe abv Milton | GX5: Western CU used to Replace Obligation to Beebe abv Milton | GY5: FIDCO CU used to Replace Longmont Obligation | GZ5: Western CU used to Replace Longmont Obligation | HA5: Gilcrest Release used to Replace Longmont Obligation | HB5: Transit Loss on Gilcrest Release | HC5: Western CU Available for Exchange to Gilcrest and United | HD5: Western CU Exchanged to Gilcrest Res | HE5: Western CU Exchanged to United Res | HF5: FIDCO CU Available for Exchange to Gilcrest and United | HG5: FIDCO SPR Reach 2 CU Exchanged to Gilcrest | HH5: FIDCO SPR Reach 2 CU Exchanged to United Res | HI5: CU Water from SPR Reach 5 Available for Exchange to Gilcrest | HJ5: CU Water from SPR Reach 5 Exchanged to Gilcrest Res | HK5: CU Water from SPR Reach 4 Available for Exchange to Gilcrest | HL5: CU Water from SPR Reach 4 Exchanged to Gilcrest Res | HM5: FIDCO CU Diverted to Gilcrest Res | HN5: Total Diversion to Gilcrest Res | HO5: ECCV's Surplus Consumable Water in SPR Reach 2 | HP5: ECCV's Surplus Consumable Water in SPR Reach 4 | HQ5: ECCV's Surplus Consumable Water in SPR Reach 5 | HR5: OOP Barr Share Historic RF Obligation to SPR Reach 1 | HS5: Is there a call between the Farmers Independent and Bijou that is drying up the river (Yes or No) | HT5: CU Water in SPR-Reach 4 Substituted to Replace RF Obligation to SPR Reach 1 | HU5: CU Water in SPR-Reach 5 Substituted to Replace RF Obligation to SPR Reach 1 | HV5: CU Water in SPR-Reach 2 Substituted to Replace RF Obligation to SPR Reach 1 | HW5: Remaining Historic RF Obligation to SPR Reach 1 | HX5: United Res #3 Release to Replace RF Obligations | HY5: United Res #3 Release to Replace Remaining RF Obligation to SPR Reach 1 | HZ5: Transit Loss on United Res Release | IA5: Gilcrest Release to Replace Remaining RF Obligation to SPR Reach 1 | IB5: Other Approved Water used to Replace Obligation in SPR Reach 1 | IC5: Source of Other Approved Water | ID5: Remaining Requirement in SPR Reach 1 | IE5: CU Water from SPR Reach 5 Available for Exchange to United Res | IF5: CU Water from SPR Reach 5 Exchanged to United Res | IG5: CU Water from SPR Reach 4 Available for Exchange to United Res | IH5: CU Water from SPR Reach 4 Exchanged to United Res | II5: Western CU Water from SPR Reach 2 Exchanged to United Res | IJ5: FIDCO CU Water from SPR Reach 2 Exchanged to United Res | IK5: Total Diversion to United Res | IL5: ECCV's Surplus Consumable Water in SPR Reach 4 | IM5: ECCV's Surplus Consumable Water in SPR Reach 5 | IN5: OOP ECCV Well Depletion to Beebe abv Milton | IO5: OOP Historic RF Obligation to Beebe abv Milton | IP5: Total Ditch Loss Obligation for ECCV's Changed Barr Shares | IQ5: ECCV Recharge Accretions to Beebe above Milton Lake | IR5: 84CW090 Recharge Accretions to Beebe above Milton Lake | IS5: Lochbuie 84CW090 Accretions used for Replacement to Beebe above Milton Lake | IT5: ECCV's Share Allocation of 84CW090 Accretions | IU5: ECCV Recharge Accretions Used to Augment Well Depletions abv Milton | IV5: ECCV's 84CW090 Accretions Used to Augment Well Depletions abv Milton | IW5: Is there a call on Beebe Draw or SPR between Powell Spillway and Bijou Canal that is drying up the river (Yes or No) | IX5: Milton Lake Net Loss Based on Mass Balance | IY5: CU Water in SPR-Reach 4 Substituted to Replace RF Obligation abv Milton | IZ5: CU Water in SPR-Reach 4 Used to Augment Well Depletions abv Milton | JA5: CU Water in SPR-Reach 5 Substituted to Replace RF Obligation abv Milton | JB5: CU Water in SPR-Reach 5 Used to Augment Well Depletions abv Milton | JC5: Remaining Well Depletion to Beebe abv Milton | JD5: Remaining Historic RF Obligation to Beebe abv Milton | JE5: Barr Release to Replace Well Depletion to Beebe abv Milton | JF5: Transit Loss on Barr Release | JG5: Barr Release to Replace RF Obligation to Beebe abv Milton | JH5: Barr Release to Replace Ditch Loss Obligation to Beebe abv Milton | JI5: Milton Bookover to Replace Well Depletion to Beebe abv Milton | JJ5: FIDCO CU in SPR-Reach 2 Substituted to Replace RF Obligation abv Milton | JK5: FIDCO CU in SPR-Reach 2 Used to Augment Well Depletions abv Milton | JL5: Western CU in SPR-Reach 2 Substituted to Replace RF Obligation abv Milton | JM5: Western CU in SPR-Reach 2 Used to Augment Well Depletions abv Milton | JN5: Haren Recharge Accretions in SPR- Reach 2 Used to Augment Well Depletions abv Milton | JO5: ECCV's Gilcrest Release to Replace Remaining Obligation to abv Milton | JP5: Transit Loss on Gilcrest Res Release | JQ5: ECCV's Other Approved Water used to Replace Obligation above Milton | JR5: Source of ECCV's Other Approved Water | JS5: Remaining Obligation to Beebe abv Milton | JT5: ECCV's Surplus Recharge Accretions to Beebe above Milton Lake | JU5: ECCV's Surplus 84CW090 Recharge Accretions to Beebe above Milton Lake | JV5: ECCV's Surplus Consumable Water in SPR-Reach 4 | JW5: ECCV's Surplus Consumable Water in SPR-Reach 5 | JX5: OOP Historic RF Obligation to Beebe blw Milton | JY5: Is there a call on Beebe Draw blw Milton or SPR btwn Powell Spillway and Bijou Canal drying up the river (Yes or No) | JZ5: 70 Ranch CU Water in SPR Reach 4 Substituted to Replace RF Obligation blw Milton | KA5: 70 Ranch CU Water in SPR Reach 5 Substituted to Replace RF Obligation blw Milton | KB5: Remaining Historic RF Obligation to Beebe blw Milton | KC5: Milton Release to meet RF Obligation to Beebe blw Milton | KD5: Transit Loss on Milton Release | KE5: Other Approved Water used to Replace Obligation below Milton | KF5: Source of Other Approved Water | KG5: ECCV's Surplus Consumable Water in SPR-Reach 4 | KH5: ECCV's Surplus Consumable Water in SPR-Reach 5 | KI5: OOP Historic RF Obligation to Box Elder Creek | KJ5: ECCV Recharge Accretions to Box Elder Creek | KK5: ECCV Recharge Accretions Used to Augment Box Elder Creek Obligation | KL5: Milton Release to meet RF Obligation to Box Elder Ck | KM5: Transit Loss on Milton Release | KN5: Other Approved Water used to Replace Obligation to Box Elder | KO5: Source of Other Approved Water | KP5: Total Out of Priority Replacement Requirement | KQ5: Total Replacement to Beebe abv Milton | KR5: Total Replacement to Beebe blw Milton | KS5: Total Replacement to Box Elder Ck | KT5: Total Replacement to SPR-Reach 1 | KU5: Total Replacement to SPR-Reach 2 | KV5: Total Replacement to SPR-Reach 3 | KW5: Total Replacement to CLP | KX5: Total Replacement to SPR-Reach 4 | KY5: Total Replacement to SPR-Reach 5 | KZ5: Total Replacement | LA5: Total Remaining Replacement Requirement | LB5: ECCV's Surplus Recharge Accretions in Beebe abv Milton | LC5: ECCV's Surplus Consumable Water in SPR-Reach 4 | LD5: ECCV's Surplus Consumable Water in SPR-Reach 5 | LF5: Minimum Flow within Reach 5 | LG5: Minimum Flow within Reach 4 | LH5: Minimum Flow within Reach 3 | LI5: Minimum Flow within Reach 2 | LJ5: Minimum Flow within Reach 1 | LK5: Measured flow at Beaver Creek | LL5: Exchange from Beaver Creek to Ft. Morgan Headgate | LM5: Total Exchanged from Beaver Creek under 12/29/2011 Appropriation Date | LN5: Source of Substitute Supply Used for Exchanges from Beaver Creek | LO5: Measured flow at all Ft. Morgan Canal Aug Stations | LP5: Exchange from all Ft. Morgan Canal Aug Stations to Ft Morgan Canal Headgate | LQ5: Exchange from all Ft. Morgan Canal Aug Stations to United Div Facility No. 1 | LR5: Total exchange from all Ft. Morgan Canal Aug Stations to either Gilcrest Res Diversion | LS5: Exchange from all Ft. Morgan Canal Aug Stations to St Vrain Pipeline | LT5: Exchange from all Ft. Morgan Canal Aug Stations to Jay Thomas Ditch | LU5: Exchange from all Ft. Morgan Canal Aug Stations to Platte Valley Canal | LV5: Exchange from all Ft. Morgan Canal Aug Stations to United Div Facility No. 3 | LW5: Exchange from all Ft. Morgan Canal Aug Stations to Burlington Canal | LX5: Total Exchanged from all Ft. Morgan Canal Aug Stations under 12/31/2003 Appropriation Date | LY5: Total Exchanged from all Ft. Morgan Canal Aug Stations under 5/31/2007 Appropriation Date | LZ5: Total Exchanged from all Ft. Morgan Canal Aug Stations under 12/29/2011 Appropriation Date | MA5: Source of Substitute Supply Used for Exchanges from all Ft. Morgan Canal Aug Stations | MB5: Measured flow at all Weldon Valley Canal Aug Stations | MC5: Exchange from all Weldon Valley Canal Aug Stations to United Div Facility No. 1 | MD5: Exchange from all Weldon Valley Canal Aug Stations to either Gilcrest Res Diversion | ME5: Exchange from all Weldon Valley Canal Aug Stations to St Vrain Pipeline | MF5: Exchange from all Weldon Valley Canal Aug Stations to Jay Thomas Ditch | MG5: Exchange from all Weldon Valley Canal Aug Stations to Platte Valley Canal | MH5: Exchange from all Weldon Valley Canal Aug Stations to United Div Facility No. 3 | MI5: Exchange from all Weldon Valley Canal Aug Stations to Burlington Canal | MJ5: Total Exchanged from all Weldon Valley Aug Stations under 12/31/2003 Appropriation Date | MK5: Total Exchanged from all Weldon Valley Aug Stations under 5/31/2007 Appropriation Date | ML5: Total Exchanged from all Weldon Valley Aug Stations under 12/29/2011 Appropriation Date | MM5: Source of Substitute Supply Used for Exchanges from Weldon Valley Canal | MN5: ECCV's Surplus Consumable Water in SPR-Reaches 4 and 5 Available for Exchanges from 70 Ranch | MO5: Exchange from 70 Ranch Exchange Quantification Point to United Div Facility No. 1 | MP5: Exchange from 70 Ranch Exchange Quantification Point to either Gilcrest Res Diversion | MQ5: Exchange from 70 Ranch Exchange Quantification Point to St Vrain Pipeline | MR5: Exchange from 70 Ranch Exchange Quantification Point to Jay Thomas Ditch | MS5: Exchange from 70 Ranch Exchange Quantification Point to Platte Valley Canal | MT5: Exchange from 70 Ranch Exchange Quantification Point to United Div Facility No. 3 | MU5: Exchange from 70 Ranch Exchange Quantification Point to Burlington Canal | MV5: Total Exchanged from 70 Ranch under 12/31/2003 Appropriation Date | MW5: Total Exchanged from 70 Ranch under 5/31/2007 Appropriation Date | MX5: Total Exchanged from 70 Ranch under 12/29/2011 Appropriation Date | MY5: Source of Substitute Supply Used for Exchanges from 70 Ranch | MZ5: Amount Available at South Platte and Cache la Poudre Confluence for Exchange | NA5: Amount Available at Sand Creek Aug Station for Exchange | NB5: Amount Available at Lone Tree Creek Aug Station for Exchange | NC5: Amount Available at Crow Creek Aug Station for Exchange | ND5: Total exchange from all Cache la Poudre Rights on the South Platte to either Gilcrest Res Diversion | NE5: Exchange from all Cache la Poudre Rights on the South Platte to St Vrain Pipeline | NF5: Exchange from all Cache la Poudre Rights on the South Platte to Jay Thomas Ditch | NG5: Exchange from all Cache la Poudre Rights on the South Platte to Platte Valley Canal | NH5: Exchange from all Cache la Poudre Rights on the South Platte to United Div Facility No. 3 | NI5: Exchange from all Cache la Poudre Rights on the South Platte to Burlington Canal | NJ5: Total Exchanged from all Cache la Poudre Rights on the South Platte under 12/31/2003 Appropriation Date | NK5: Total Exchanged from all Cache la Poudre Rights on the South Platte under 5/31/2007 Appropriation Date | NL5: Total Exchanged from all Cache la Poudre Rights on the South Platte under 12/29/2011 Appropriation Date | NM5: Source of Substitute Supply Used for Exchanges from all Cache la Poudre Rights on the South Platte | NN5: Measured flow at Western Mutual Ditch Aug Station | NO5: Total exchange from downstream and mid Western Mutual Ditch Aug Station to either Gilcrest Res Diversion | NP5: Exchange from downstream and mid Western Mutual Ditch Aug Station to St Vrain Pipeline (United Div Facility No. 5) | NQ5: Exchange from all Western Mutual Ditch Aug Station to Platte Valley Canal | NR5: Exchange from all Western Mutual Ditch Aug Station to United Div Facility No. 3 | NS5: Exchange from all Western Mutual Ditch Aug Station to Burlington Canal | NT5: Total Exchanged from Western Mutual under 12/31/2003 Appropriation Date | NU5: Total Exchanged from Western Mutual under 5/31/2007 Appropriation Date | NV5: Total Exchanged from Western Mutual under 12/29/2011 Appropriation Date | NW5: Source of Substitute Supply Used for Exchanges from Western Mutual Ditch Aug Station | NX5: Total Measured flow at all Gilcrest Res Outlet Structures | NY5: Exchange from all Gilcrest Res Outlet Structures to St Vrain Pipeline | NZ5: Exchange from all Gilcrest Res Outlet Structures to Platte Valley Canal | OA5: Exchange from all Gilcrest Res Outlet Structures to United Div Facility No. 3 | OB5: Exchange from all Gilcrest Res Outlet Structures to Burlington Canal | OC5: Total Exchanged from Gilcrest Res Outlets under 12/31/2003 Appropriation Date | OD5: Total Exchanged from Gilcrest Res Outlets under 5/31/2007 Appropriation Date | OE5: Total Exchanged from Gilcrest Res Outlets under 12/29/2011 Appropriation Date | OF5: Source of Substitute Supply Used for Exchanges from all Gilcrest Res Outlet Structures | OG5: Amount Available at South Platte and St Vrain Confluence for Exchange | OH5: Exchange from Confluence of South Platte and St Vrain Rivers to St Vrain Pipeline | OI5: Total Exchanged from Confluence of South Platte and St Vrain Rivers to St Vrain Pipeline under 12/29/2011 Appropriation Date | OJ5: Source of Substitute Supply Used for Exchanges from South Platte and St Vrain Confluence | OK5: Measured flow at St. Vrain Pipeline Outlet | OL5: Exchange from St. Vrain Pipeline to United Div Facility No. 3 | OM5: Exchange from St. Vrain Pipeline to Burlington Canal | ON5: Total Exchanged from the St Vrain Pipeline under 12/29/2011 Appropriation Date | OO5: Source of Substitute Supply Used for Exchanges from St. Vrain Pipeline | OP5: Measured flow at Farmers Independent Ditch Aug Station | OQ5: Exchange from Farmers Independent Aug Station to St Vrain Pipeline | OR5: Exchange from Farmers Independent Ditch Aug Station to Platte Valley Canal | OS5: Exchange from Farmers Independent Ditch Aug Station to United Div Facility No. 3 | OT5: Exchange from Farmers Independent Ditch Aug Station to Burlington Canal | OU5: Total Exchanged from Farmers Independent under 12/31/2003 Appropriation Date | OV5: Total Exchanged from Farmers Independent under 5/31/2007 Appropriation Date | OW5: Total Exchanged from Farmers Independent under 12/29/2011 Appropriation Date | OX5: Source of Substitute Supply Used for Exchanges from Farmers Independent Ditch Aug Station | OY5: Total Exchanged under 12/31/2003 Appropriation Date, Decree 02CW404 | OZ5: Total Exchanged under 5/31/2007 Appropriation Date, Decree 11CW285 | PA5: Total Exchanged under 12/29/2011 Appropriation Date, Decree 11CW285 | PB5: Total Aggregate Rate of Exchange | PC5: Cumulative Total | PD5: Maximum Allowable Total Aggregate Rate of Exchange | PF5: Surplus ECCV Beebe Recharge Accretions abv Milton | PG5: Surplus Recharge Accretions Delivered to Milton Lake | PH5: Surplus ECCV Beebe Recharge Accretions Diverted to Bowles Seep | PI5: Surplus ECCV Beebe Recharge Accretions Diverted to East Neres | PJ5: Surplus ECCV Beebe Recharge Accretions Diverted to Speer | PK5: Surplus ECCV Beebe Recharge Accretions Diverted to West Burl. | PL5: Surplus ECCV Beebe Recharge Accretions Diverted to East Burl. | PM5: Surplus ECCV Beebe Recharge Accretions Diverted to Neres | PN5: Surplus ECCV Recharge Accretions Diverted to the Tu Site | PO5: Surplus ECCV Recharge Accretions Diverted to the Mile High Lakes Site | PP5: Surplus ECCV Recharge Accretions Diverted to the Bromley Site | PQ5: Surplus ECCV Recharge Accretions Diverted to the Schupman Site | PR5: Surplus ECCV Recharge Accretions Diverted to the Moser Site | PS5: Surplus ECCV Recharge Accretions Diverted to the Pettinger East Site | PT5: Surplus ECCV Recharge Accretions Diverted to the Pettinger West Site | PU5: Surplus ECCV Recharge Accretions Diverted to the Artese Site | PV5: Surplus ECCV Recharge Accretions Diverted to the Dechant Site | PW5: Surplus ECCV Recharge Accretions Diverted to Carlin Site | PX5: Surplus ECCV Recharge Accretions Diverted to the Klug Site | PY5: Surplus ECCV Recharge Accretions Diverted to the Sater Site | PZ5: Check on Diversion of Surplus Recharge Accretions (must be >=0) | QB5: Release from Barr Lake for Replacement | QC5: Release from Milton Lake for Replacement | QE5: Days in the Month
S6: 0100587 | T6: 0100587 | U6: 0100587 | V6: 0100587 | X6: 0100587 | Y6: 0109961, 0109962, 0109963, 0109964 | Z6: 0107968, 0107969, 0107656, 0107657, 0107520, 0109719 | AA6: 0110707, 0110708, 0110709 | AB6: 0110707, 0110708, 0110709 | AC6: 0110707, 0110708, 0110709 | AD6: 0110707, 0110708, 0110709 | AV6: WDID # | BC6: 0201511 | BE6: 0203388 | BK6: WDID # | BL6: WDID # | BM6: WDID # | BN6: WDID # | CG6: 0102917 | CJ6: 0102907 | DA6: 0201511 | DC6: 0203388 | DG6: WDID # | DT6: WDID # | DV6: WDID # | EG6: WDID # | EI6: WDID # | EK6: WDID # | EU6: WDID # | EV6: WDID # | EW6: WDID # | EX6: WDID # | FA6: 0201511 | FC6: 0203388 | FI6: WDID # | FL6: WDID # | FN6: WDID # | GD6: WDID # | GE6: WDID # | GF6: WDID # | GG6: WDID # | GK6: 0201511 | GM6: 0203388 | GN6: 0203388 | GS6: WDID # | GU6: WDID # | HX6: 0201511 | HY6: 0201511
S7: cfs | T7: cfs | U7: cfs | V7: cfs | W7: cfs | X7: cfs | Y7: cfs | Z7: cfs | AA7: cfs | AB7: cfs | AC7: cfs | AD7: cfs | AE7: cfs | AF7: cfs | AG7: cfs | AH7: cfs | AI7: cfs | AJ7: cfs | AK7: cfs | AL7: cfs | AM7: cfs | AN7: cfs | AO7: cfs | AP7: cfs | AQ7: cfs | AS7: cfs | AT7: cfs | AU7: cfs | AV7: cfs | AY7: cfs | AZ7: cfs | BA7: cfs | BB7: cfs | BC7: cfs | BD7: cfs | BE7: cfs | BF7: cfs | BG7: cfs | BI7: cfs | BJ7: cfs | BK7: cfs | BL7: cfs | BM7: cfs | BN7: cfs | BO7: cfs | BP7: cfs | BQ7: cfs | BR7: cfs | BS7: cfs | BT7: cfs | BU7: cfs | BV7: cfs | BW7: cfs | BX7: cfs | BY7: cfs | BZ7: cfs | CA7: cfs | CB7: cfs | CC7: cfs | CD7: cfs | CE7: cfs | CF7: cfs | CG7: cfs | CH7: cfs | CI7: cfs | CJ7: cfs | CK7: cfs | CL7: cfs | CM7: cfs | CN7: cfs | CO7: cfs | CP7: cfs | CQ7: cfs | CS7: cfs | CT7: cfs | CU7: cfs | CV7: cfs | CW7: cfs | CX7: cfs | CY7: cfs | CZ7: cfs | DA7: cfs | DB7: cfs | DC7: cfs | DD7: cfs | DE7: cfs | DF7: cfs | DG7: cfs | DH7: cfs | DI7: cfs | DM7: cfs | DN7: cfs | DO7: cfs | DP7: cfs | DQ7: cfs | DR7: cfs | DS7: cfs | DT7: cfs | DU7: cfs | DV7: cfs | DW7: cfs | DX7: cfs | EA7: cfs | EB7: cfs | EC7: cfs | ED7: cfs | EE7: cfs | EG7: cfs | EH7: cfs | EI7: cfs | EJ7: cfs | EK7: cfs | EL7: cfs | EM7: cfs | EN7: cfs | EO7: cfs | EP7: cfs | EQ7: cfs | ER7: cfs | ES7: cfs | EU7: cfs | EV7: cfs | EW7: cfs | EX7: cfs | EY7: cfs | EZ7: cfs | FA7: cfs | FB7: cfs | FC7: cfs | FD7: cfs | FE7: cfs | FG7: cfs | FI7: cfs | FJ7: cfs | FL7: cfs | FM7: cfs | FN7: cfs | FO7: cfs | FP7: cfs | FQ7: cfs | FR7: cfs | FS7: cfs | FT7: cfs | FU7: cfs | FV7: cfs | FW7: cfs | FX7: cfs | FY7: cfs | FZ7: cfs | GA7: cfs | GD7: cfs | GE7: cfs | GF7: cfs | GG7: cfs | GH7: cfs | GI7: cfs | GJ7: cfs | GK7: cfs | GL7: cfs | GM7: cfs | GN7: cfs | GO7: cfs | GP7: cfs | GR7: cfs | GS7: cfs | GT7: cfs | GU7: cfs | GV7: cfs | GW7: cfs | GX7: cfs | GY7: cfs | GZ7: cfs | HA7: cfs | HB7: cfs | HC7: cfs | HD7: cfs | HE7: cfs | HF7: cfs | HG7: cfs | HH7: cfs | HI7: cfs | HJ7: cfs | HK7: cfs | HL7: cfs | HM7: cfs | HN7: cfs | HO7: cfs | HP7: cfs | HQ7: cfs | HR7: cfs | HT7: cfs | HU7: cfs | HV7: cfs | HW7: cfs | HX7: cfs | HY7: cfs | HZ7: cfs | IA7: cfs | IB7: cfs | IC7: cfs | ID7: cfs | IE7: cfs | IF7: cfs | IG7: cfs | IH7: cfs | II7: cfs | IJ7: cfs | IK7: cfs | IL7: cfs | IM7: cfs | IN7: cfs | IO7: cfs | IP7: cfs | IQ7: cfs | IR7: cfs | IS7: cfs | IT7: cfs | IU7: cfs | IV7: cfs | IX7: cfs | IY7: cfs | IZ7: cfs | JA7: cfs | JB7: cfs | JC7: cfs | JD7: cfs | JE7: cfs | JF7: cfs | JG7: cfs | JH7: cfs | JI7: cfs | JJ7: cfs | JK7: cfs | JL7: cfs | JM7: cfs | JN7: cfs | JO7: cfs | JP7: cfs | JQ7: cfs | JR7: cfs | JS7: cfs | JT7: cfs | JU7: cfs | JV7: cfs | JW7: cfs | JX7: cfs | JZ7: cfs | KA7: cfs | KB7: cfs | KC7: cfs | KD7: cfs | KE7: cfs | KF7: cfs | KG7: cfs | KH7: cfs | KI7: cfs | KJ7: cfs | KK7: cfs | KL7: cfs | KM7: cfs | KN7: cfs | KP7: cfs | KQ7: cfs | KR7: cfs | KS7: cfs | KT7: cfs | KU7: cfs | KV7: cfs | KW7: cfs | KX7: cfs | KY7: cfs | KZ7: cfs | LA7: cfs | LB7: cfs | LC7: cfs | LD7: cfs | LK7: cfs | LL7: cfs | LM7: cfs | LO7: cfs | LP7: cfs | LQ7: cfs | LR7: cfs | LS7: cfs | LT7: cfs | LU7: cfs | LV7: cfs | LW7: cfs | LX7: cfs | LY7: cfs | LZ7: cfs | MC7: cfs | MD7: cfs | ME7: cfs | MF7: cfs | MG7: cfs | MH7: cfs | MI7: cfs | MJ7: cfs | MK7: cfs | ML7: cfs | MN7: cfs | MO7: cfs | MP7: cfs | MQ7: cfs | MR7: cfs | MS7: cfs | MT7: cfs | MU7: cfs | MV7: cfs | MW7: cfs | MX7: cfs | ND7: cfs | NE7: cfs | NF7: cfs | NG7: cfs | NH7: cfs | NI7: cfs | NJ7: cfs | NK7: cfs | NL7: cfs | NO7: cfs | NP7: cfs | NQ7: cfs | NR7: cfs | NS7: cfs | NT7: cfs | NU7: cfs | NV7: cfs | NY7: cfs | NZ7: cfs | OA7: cfs | OB7: cfs | OC7: cfs | OD7: cfs | OE7: cfs | OH7: cfs | OI7: cfs | OK7: cfs | OL7: cfs | OM7: cfs | OQ7: cfs | OR7: cfs | OS7: cfs | OT7: cfs | OU7: cfs | OV7: cfs | OW7: cfs | OY7: cfs | OZ7: cfs | PA7: cfs | PB7: cfs | PD7: cfs | PF7: cfs | PG7: cfs | PH7: cfs | PI7: cfs | PJ7: cfs | PK7: cfs | PL7: cfs | PM7: cfs | PN7: cfs | PO7: cfs | PP7: cfs | PQ7: cfs | PR7: cfs | PS7: cfs | PT7: cfs | PU7: cfs | PV7: cfs | PW7: cfs | PX7: cfs | PY7: cfs | PZ7: cfs | QB7: cfs | QC7: cfs
C8: 1 | D8: =C8+1 -> 2 | E8: 3 | F8: 4 | G8: 5 | H8: 6 | I8: 7 | J8: 8 | K8: 9 | L8: 10 | M8: 11 | N8: 12 | O8: 13 | P8: 14 | Q8: 15 | R8: 16 | S8: 17 | T8: 18 | U8: 19 | V8: 20 | W8: 21 | X8: 22 | Y8: =X8+1 -> 23 | Z8: 24 | AA8: 25 | AB8: 26 | AC8: 27 | AD8: 28 | AE8: 29 | AF8: 30 | AG8: 31 | AH8: 32 | AI8: 33 | AJ8: =AI8+1 -> 34 | AK8: 35 | AL8: 36 | AM8: 37 | AN8: 38 | AO8: =AN8+1 -> 39 | AP8: =AO8+1 -> 40 | AQ8: 41 | AR8: 42 | AS8: 43 | AT8: 44 | AU8: 45 | AV8: 46 | AW8: 47 | AX8: =AW8+1 -> 48 | AY8: =AX8+1 -> 49 | AZ8: 50 | BA8: 51 | BB8: 52 | BC8: 53 | BD8: 54 | BE8: 55 | BF8: 56 | BG8: 57 | BH8: 58 | BI8: =BH8+1 -> 59 | BJ8: =BI8+1 -> 60 | BK8: 61 | BL8: 62 | BM8: 63 | BN8: 64 | BO8: 65 | BP8: 66 | BQ8: 67 | BR8: 68 | BS8: 69 | BT8: 70 | BU8: =BT8+1 -> 71 | BV8: 72 | BW8: 73 | BX8: 74 | BY8: 75 | BZ8: 76 | CA8: 77 | CB8: 78 | CC8: 79 | CD8: 80 | CE8: 81 | CF8: =CE8+1 -> 82 | CG8: 83 | CH8: 84 | CI8: =CH8+1 -> 85 | CJ8: =CI8+1 -> 86 | CK8: 87 | CL8: 88 | CM8: 89 | CN8: 90 | CO8: 91 | CP8: 92 | CS8: =CP8+1 -> 93 | CT8: 94 | CU8: 95 | CV8: 96 | CW8: 97 | CX8: 98 | CY8: 99 | CZ8: 100 | DA8: 101 | DB8: 102 | DC8: 103 | DD8: 104 | DE8: 105 | DF8: =DE8+1 -> 106 | DG8: =DF8+1 -> 107 | DH8: =DG8+1 -> 108 | DI8: 109 | DJ8: 110 | DK8: 111 | DL8: 112 | DM8: 113 | DN8: 114 | DO8: =DN8+1 -> 115 | DP8: 116 | DQ8: 117 | DR8: 118 | DS8: 119 | DT8: 120 | DU8: 121 | DV8: 122 | DW8: 123 | DX8: 124 | DY8: 125 | DZ8: 126 | EA8: =DZ8+1 -> 127 | EB8: =EA8+1 -> 128 | EC8: 129 | ED8: =EC8+1 -> 130 | EE8: =ED8+1 -> 131 | EF8: =EE8+1 -> 132 | EG8: =EF8+1 -> 133 | EH8: 134 | EI8: 135 | EJ8: 136 | EK8: 137 | EL8: 138 | EM8: =EL8+1 -> 139 | EN8: =EM8+1 -> 140 | EO8: =EN8+1 -> 141 | EP8: =EO8+1 -> 142 | EQ8: =EP8+1 -> 143 | ER8: =EQ8+1 -> 144 | ES8: 145 | ET8: 146 | EU8: 147 | EV8: 148 | EW8: 149 | EX8: 150 | EY8: 151 | EZ8: 152 | FA8: 153 | FB8: 154 | FC8: 155 | FD8: 156 | FE8: 157 | FF8: 158 | FG8: 159 | FH8: 160 | FI8: =FH8+1 -> 161 | FJ8: 162 | FK8: 163 | FL8: 164 | FM8: 165 | FN8: 166 | FO8: 167 | FP8: 168 | FQ8: =FP8+1 -> 169 | FR8: 170 | FS8: 171 | FT8: 172 | FU8: 173 | FV8: 174 | FW8: 175 | FX8: =FW8+1 -> 176 | FY8: =FX8+1 -> 177 | FZ8: =FY8+1 -> 178 | GA8: =FZ8+1 -> 179 | GB8: =GA8+1 -> 180 | GC8: 181 | GD8: 182 | GE8: 183 | GF8: 184 | GG8: 185 | GH8: 186 | GI8: 187 | GJ8: 188 | GK8: 189 | GL8: 190 | GM8: 191 | GN8: 192 | GO8: =GN8+1 -> 193 | GP8: 194 | GQ8: 195 | GR8: 196 | GS8: 197 | GT8: 198 | GU8: 199 | GV8: 200 | GW8: 201 | GX8: 202 | GY8: 203 | GZ8: 204 | HA8: =GZ8+1 -> 205 | HB8: =HA8+1 -> 206 | HC8: =HB8+1 -> 207 | HD8: 208 | HE8: 209 | HF8: 210 | HG8: =HF8+1 -> 211 | HH8: 212 | HI8: 213 | HJ8: 214 | HK8: 215 | HL8: 216 | HM8: 217 | HN8: 218 | HO8: 219 | HP8: 220 | HQ8: 221 | HR8: 222 | HS8: 223 | HT8: 224 | HU8: 225 | HV8: 226 | HW8: 227 | HX8: 228 | HY8: 229 | HZ8: 230 | IA8: 231 | IB8: 232 | IC8: 233 | ID8: 234 | IE8: 235 | IF8: =IE8+1 -> 236 | IG8: 237 | IH8: 238 | II8: 239 | IJ8: 240 | IK8: 241 | IL8: 242 | IM8: 243 | IN8: 244 | IO8: 245 | IP8: 246 | IQ8: 247 | IR8: 248 | IS8: 249 | IT8: 250 | IU8: 251 | IV8: 252 | IW8: 253 | IX8: 254 | IY8: 255 | IZ8: 256 | JA8: 257 | JB8: 258 | JC8: 259 | JD8: =JC8+1 -> 260 | JE8: 261 | JF8: 262 | JG8: =JF8+1 -> 263 | JH8: =JG8+1 -> 264 | JI8: =JH8+1 -> 265 | JJ8: =JI8+1 -> 266 | JK8: 267 | JL8: 268 | JM8: 269 | JN8: =JM8+1 -> 270 | JO8: 271 | JP8: 272 | JQ8: 273 | JR8: 274 | JS8: 275 | JT8: 276 | JU8: 277 | JV8: 278 | JW8: 279 | JX8: 280 | JY8: 281 | JZ8: 282 | KA8: 283 | KB8: 284 | KC8: 285 | KD8: 286 | KE8: 287 | KF8: 288 | KG8: 289 | KH8: 290 | KI8: 291 | KJ8: =KI8+1 -> 292 | KK8: 293 | KL8: 294 | KM8: 295 | KN8: 296 | KO8: 297 | KP8: 298 | KQ8: 299 | KR8: 300 | KS8: 301 | KT8: 302 | KU8: 303 | KV8: 304 | KW8: 305 | KX8: 306 | KY8: 307 | KZ8: 308 | LA8: 309 | LB8: 310 | LC8: 311 | LD8: 312 | LF8: =LD8+1 -> 313 | LG8: =LF8+1 -> 314 | LH8: 315 | LI8: 316 | LJ8: 317 | LK8: 318 | LL8: 319 | LM8: 320 | LN8: 321 | LO8: =LN8+1 -> 322 | LP8: 323 | LQ8: 324 | LR8: 325 | LS8: 326 | LT8: 327 | LU8: 328 | LV8: 329 | LW8: 330 | LX8: 331 | LY8: 332 | LZ8: 333 | MA8: 334 | MB8: 335 | MC8: 336 | MD8: 337 | ME8: 338 | MF8: 339 | MG8: 340 | MH8: 341 | MI8: 342 | MJ8: 343 | MK8: 344 | ML8: 345 | MM8: 346 | MN8: 347 | MO8: =MN8+1 -> 348 | MP8: 349 | MQ8: 350 | MR8: =MQ8+1 -> 351 | MS8: 352 | MT8: 353 | MU8: 354 | MV8: 355 | MW8: 356 | MX8: 357 | MY8: =MX8+1 -> 358 | MZ8: =MY8+1 -> 359 | NA8: =MZ8+1 -> 360 | NB8: 361 | NC8: 362 | ND8: 363 | NE8: 364 | NF8: 365 | NG8: 366 | NH8: 367 | NI8: 368 | NJ8: 369 | NK8: =NJ8+1 -> 370 | NL8: 371 | NM8: =NL8+1 -> 372 | NN8: 373 | NO8: 374 | NP8: 375 | NQ8: 376 | NR8: 377 | NS8: 378 | NT8: 379 | NU8: 380 | NV8: 381 | NW8: =NV8+1 -> 382 | NX8: 383 | NY8: 384 | NZ8: 385 | OA8: 386 | OB8: 387 | OC8: 388 | OD8: 389 | OE8: 390 | OF8: =OE8+1 -> 391 | OG8: =OF8+1 -> 392 | OH8: =OG8+1 -> 393 | OI8: 394 | OJ8: =OI8+1 -> 395 | OK8: 396 | OL8: 397 | OM8: 398 | ON8: 399 | OO8: =ON8+1 -> 400 | OP8: 401 | OQ8: 402 | OR8: 403 | OS8: 404 | OT8: 405 | OU8: 406 | OV8: 407 | OW8: 408 | OX8: =OW8+1 -> 409 | OY8: 410 | OZ8: 411 | PA8: 412 | PB8: 413 | PC8: 414 | PD8: 415 | PF8: =PD8+1 -> 416 | PG8: =PF8+1 -> 417 | PH8: 418 | PI8: 419 | PJ8: 420 | PK8: 421 | PL8: 422 | PM8: 423 | PN8: 424 | PO8: 425 | PP8: 426 | PQ8: 427 | PR8: 428 | PS8: 429 | PT8: 430 | PU8: 431 | PV8: 432 | PW8: 433 | PX8: 434 | PY8: 435 | PZ8: 436 | QB8: =PZ8+1 -> 437 | QC8: =QB8+1 -> 438
A9: Apr | B9: =DATE($B$2,4,1) -> 2015-04-01 | C9: Free River | F9: 99999.99999 | K9: Free River | N9: 99999.99999 | S9: =MN9 -> 1.355519494 | T9: 0 | U9: =X9-T9-V9 -> 0 | V9: 0 | X9: 0 | Y9: =('NFC Well Pumping'!$L7+'NFC Well Pumping'!$L44+'NFC Well Pumping'!$L80+'NFC Well Pumping'!$L116)/1.9835 -> 0 | Z9: ='88CW264(B) Pumping'!$E7/1.9835+'88CW264(B) Pumping'!$E43/1.9835+'88CW264(B) Pumping'!E83/1.9835+'88CW264(B) Pumping'!E119/1.9835+'88CW264(B) Pumping'!F159/1.9835+'88CW264(B) Pumping'!E195/1.9835 -> 0.009639106611 | AA9: =$LC9+$LD9 -> 1.355519494 | AB9: =('United No. 2 Well Pumping'!G8+'United No. 2 Well Pumping'!G44+'United No. 2 Well Pumping'!G80)/1.9835 -> 0 | AC9: =('United No. 2 Well Pumping'!F8+'United No. 2 Well Pumping'!F44+'United No. 2 Well Pumping'!F80)/1.9835 -> 0 | AD9: 0 | AF9: =Y9+Z9+AB9+AC9+AD9 -> 0.009639106611 | AG9: =AC9+U9+'United Res'!AA8+'United Res'!AQ8+'Gilcrest Res'!D8 -> 0 | AH9: 100 | AI9: =-(IF($N9=99999.99999,0,VLOOKUP($B9,'NFC Well Dplns-URF'!B$7:$AB$306,27))/$QE9/1.9835) -> 0 | AJ9: 0 | AL9: =(VLOOKUP($B9,'ECCV 70R Pond Acrtns'!$B$7:$AI$1206,34)+VLOOKUP($B9,'2003 70R Pond Acrtns'!$B$7:$AI$1206,34)+VLOOKUP($B9,'ECCV 70R Canal Acrtns'!$B$7:$AI$1206,27)+VLOOKUP($B9,'2003 70R Canal Acrtns'!$B$7:$AI$1206,27))/$QE9/1.9835 -> 0 | AM9: =IF(AL9<(-AI9)-AJ9,AI9+AJ9+AL9,0) -> 0 | AN9: =-(IF($N9=99999.99999,0,VLOOKUP($B9,'NFC Well Dplns-SDF'!$B$7:$Z$306,25)+VLOOKUP($B9,'NFC Well Dplns-URF'!B$7:$AB$306,20))/$QE9/1.9835) -> 0 | AO9: =IF(AN9<0,0.147959061643945/$QE9/1.9835,0) -> 0 | AP9: 0 | AR9: =-AV9*'Weldon Credit'!$Z$36 -> 0 | AS9: =0.4*(INDEX('Riverside Pond Accrtns'!$B$6:$M$36,MATCH($B$2,'Riverside Pond Accrtns'!$A$6:$A$36,0),MATCH('ECCV Daily Replacement Summary'!A9,'Riverside Pond Accrtns'!$B$5:$M$5,0))/QE9)/1.9835 -> 0.9942021679 | AT9: =(44/640)*(INDEX('Weldon Valley Accrtns (02CW377)'!$B$6:$M$30,MATCH($B$2,'Weldon Valley Accrtns (02CW377)'!$A$6:$A$30,0),MATCH(A9,'Weldon Valley Accrtns (02CW377)'!$B$5:$M$5,0))/QE9)/1.9835 -> 0.3613173263 | AU9: =(VLOOKUP($B9,'ECCV 70R Pond Acrtns'!$B$7:$AI$1206,25)+VLOOKUP($B9,'ECCV 70R Canal Acrtns'!$B$7:$AI$1206,20)+VLOOKUP($B9,'2003 70R Pond Acrtns'!$B$7:$AI$1206,25)+VLOOKUP($B9,'2003 70R Canal Acrtns'!$B$7:$AI$1206,20))/$QE9/1.9835 -> 0 | AV9: ='Joint Aug Station Deliveries'!G9 -> 0 | AW9: =IF(AV9>0,AV9-AX9,0) -> 0 | AX9: =MIN(-AR9,AV9) -> 0 | AY9: =MIN(-($AR9+AX9),AS9-AS9*0.5/100*'Distances for Transit Losses'!$C$51) -> 0 | AZ9: =MIN(-($AR9+AX9+AY9),AT9) -> 0 | BA9: =MIN(-($AR9+AX9+AY9+AZ9),AU9-AU9*0.5/100*'Distances for Transit Losses'!$C$51) -> 0 | BB9: =-((AY9+BA9)/(1-0.5/100*'Distances for Transit Losses'!$C$51)-(AY9+BA9)) -> 0 | BC9: =IF(AND(IF9-IG9-FI9-DI9>0,IA9="no"),MIN(-(AR9+AX9+AY9+AZ9+BA9+BB9)/(1-0.5/100*'Distances for Transit Losses'!$C$65),IF9-IG9-FI9-DI9),0) -> 0 | BD9: =--BC9*0.5/100*'Distances for Transit Losses'!C$65 -> 0 | BE9: =IF(AND(GM9-GN9-IA9-FC9-JO9-DC9>0,ET9="no"),MIN(-(AR9+SUM(AX9:BD9))/(1-0.5/100*'Distances for Transit Losses'!$C$71),GM9-GN9-IA9-FC9-JO9-DC9),0) -> 0 | BF9: =--BE9*0.5/100*'Distances for Transit Losses'!$C$67 -> 0 | BG9: 0 | BI9: no | BJ9: no | BK9: 0 | BL9: 0 | BM9: 0 | BO9: =IF($BJ9="No",MIN(-CV9,AS9-AY9/(1-0.5/100*'Distances for Transit Losses'!$C$51)),0) -> 0 | BP9: =IF($BJ9="No",MIN(-CV9+BO9,AU9-BA9/(1-0.5/100*'Distances for Transit Losses'!$C$51)),0) -> 0 | BQ9: =IF(AND($BI9="No",$BJ9="No"),MIN(-CV9+BO9+BP9,AW9),0) -> 0 | BR9: 0 | BS9: 0 | BT9: =AN9+AO9+AR9+AS9+AT9+AU9+AV9 -> 1.355519494 | BU9: =AN9+AO9+AR9+AS9+AT9+AU9+AV9-SUM(BO9:BS9) -> 1.355519494 | BV9: =-(IF($N9=99999.99999,0,VLOOKUP($B9,'NFC Well Dplns-SDF'!$B$7:$Z$306,16)+VLOOKUP($B9,'NFC Well Dplns-URF'!$B$7:$AB$306,13))/$QE9/1.9835) -> 0 | BW9: =-(IF($N9>=99999,0,'88CW264(B) Pumping'!$E7/1.9835)+IF($N9>=99999,0,'88CW264(B) Pumping'!$E43/1.9835)+IF($N9>=99999,0,'88CW264(B) Pumping'!$E83/1.9835)+IF($N9>=99999,0,'88CW264(B) Pumping'!$E119/1.9835)+IF($N9>=51134.50919,0,'88CW264(B) Pumping'!$F159/1.9835)+IF($N9>=53406,0,'88CW264(B) Pumping'!$E195/1.9835)) -> 0 | BX9: =BW9+BV9 -> 0 | BY9: =IF(BX9<0,13.7959295686599/$QE9/1.9835,0) -> 0 | BZ9: =-BX9-BY9 -> 0 | CB9: =-(IF($N9=99999.99999,0,VLOOKUP($B9,'United No. 2 Dplns'!$B$7:$X$676,13)/1.9835)) -> 0 | CC9: =CB9+(-(INDEX('Pre 1995 Net Accretions'!$B$6:$M$105,MATCH($B$2,'Pre 1995 Net Accretions'!$A$6:$A$105,0),MATCH($A9,'Pre 1995 Net Accretions'!$B$5:$M$5,0))/$QE9/1.9835)) -> 0.02919695922 | CD9: =-(IF(N9<99999.99999,(INDEX('70 Ranch RF Obligation'!$B$6:$M$30,MATCH($B$2,'70 Ranch RF Obligation'!$A$6:$A$30,0),MATCH('ECCV Daily Replacement Summary'!A9,'70 Ranch RF Obligation'!$B$5:$M$5,0))/QE9)/1.9835,0))-CG9*(1-'L. Latham Credit'!$E$35) -> 0 | CE9: =CD9+CC9 -> 0.02919695922 | CF9: =(VLOOKUP($B9,'ECCV 70R Pond Acrtns'!$B$7:$AI$1206,16)+VLOOKUP($B9,'ECCV 70R Canal Acrtns'!$B$7:$AI$1206,13)+VLOOKUP($B9,'2003 70R Pond Acrtns'!$B$7:$AI$1206,16)+VLOOKUP($B9,'2003 70R Canal Acrtns'!$B$7:$AI$1206,13))/$QE9/1.9835 -> 0 | CG9: 0 | CH9: =IF(CG9>0,CG9-CI9,0) -> 0 | CI9: =MIN(-CE9,CG9) -> -0.02919695922 | CJ9: 0 | CK9: 0 | CL9: 0 | CM9: 0 | CO9: =CH9+CK9+CL9+CM9 -> 0 | CP9: =MIN(-(CE9+CI9),CO9) -> 0 | CQ9: 0 | CR9: =-CQ9*0.5/100*'Distances for Transit Losses'!$C$44 -> 0 | CS9: =MIN(CF9,-(CE9+CI9+CP9)) -> 0 | CT9: 0 | CU9: 0 | CV9: =BX9+BY9+BZ9+CE9+CI9+CP9+CS9 -> 0 | CW9: =BO9 -> 0 | CX9: =BP9 -> 0 | CY9: =BQ9 -> 0 | CZ9: =('NFC Well Pumping'!I7+'NFC Well Pumping'!I44+'NFC Well Pumping'!I80)/1.9835 -> 0 | DA9: =IF(AND(HX9-HY9-FA9>0,HS9="no"),MIN(-SUM(CV9:CZ9)/(1-0.5/100*'Distances for Transit Losses'!$C$69),HX9-HY9-FA9),0) -> 0 | DB9: =-DA9*0.5/100*'Distances for Transit Losses'!C$69 -> 0 | DC9: =IF(AND(GM9-GN9-IA9-FC9-JO9>0,ET9="no"),MIN(-SUM(CV9:DB9)/(1-0.5/100*'Distances for Transit Losses'!$C$71),GM9-GN9-IA9-FC9-JO9),0) -> 0 | DD9: =--DC9*0.5/100*'Distances for Transit Losses'!$C$71 -> 0 | DE9: =CF9+CO9-CP9-CQ9-SUM(CS9:CU9) -> 0 | DF9: =-(IF(DK9="Yes",((0.107*(INDEX('New Cache Credit'!$AR$70:$BC$95,MATCH($B$2,'New Cache Credit'!$AQ$70:$AQ$95,0),MATCH($A9,'New Cache Credit'!$AR$70:$BC$70,0))/$QE9))+(0.333*(INDEX('New Cache Credit'!$BG$70:$BR$95,MATCH($B$2,'New Cache Credit'!$BF$70:$BF$95,0),MATCH($A9,'New Cache Credit'!$BG$70:$BR$70,0))/$QE9)))/1.9835,0)) -> 0 | DG9: ='Joint Aug Station Deliveries'!J9 -> 0 | DH9: =-(DG9*0.5/100*'Distances for Transit Losses'!$C$154) -> 0 | DI9: 0 | DK9: no | DM9: =DF9+IF(DL9="Yes",DG9,0)+DH9+DI9 -> 0 | DN9: =MAX(IF(AND(DK9="No",DL9="Yes"),DF9+DG9+DH9,0),0) -> 0 | DO9: =-(DN9*0.5/100*'Distances for Transit Losses'!$C$156) -> 0 | DP9: =-(IF(DZ9="Yes",((0.75*(INDEX('New Cache Credit'!$AR$70:$BC$95,MATCH($B$2,'New Cache Credit'!$AQ$70:$AQ$95,0),MATCH($A9,'New Cache Credit'!$AR$70:$BC$70,0))/$QE9))+(0.222*(INDEX('New Cache Credit'!$BG$70:$BR$95,MATCH($B$2,'New Cache Credit'!$BF$70:$BF$95,0),MATCH($A9,'New Cache Credit'!$BG$70:$BR$70,0))/$QE9)))/1.9835,0)) -> 0 | DQ9: =-(IF(DZ9="yes",(0.25*INDEX('GIC Credit'!$B$71:$M$96,MATCH($B$2,'GIC Credit'!$A$71:$A$96,0),MATCH($A9,'GIC Credit'!$B$71:$M$71,0))/$QE9)/1.9835,0)) -> 0 | DR9: =DP9+DQ9 -> 0 | DS9: =MIN(-DR9,DN9+DO9) -> 0 | DT9: 0 | DU9: =-(DT9*0.5/100*'Distances for Transit Losses'!$C$158) -> 0 | DV9: 0 | DW9: =-(DV9*0.5/100*('Distances for Transit Losses'!$C$160+'Distances for Transit Losses'!$C$170)) -> 0 | DX9: 0 | DZ9: no | EA9: =SUM(DR9:DX9) -> 0 | EB9: =-(IF($N9<99999.99999,(INDEX('New Cache Credit'!$W$70:$AH$95,MATCH($B$2,'New Cache Credit'!$V$70:$V$95,0),MATCH($A9,'New Cache Credit'!$W$70:$AH$70,0))/$QE9)/1.9835,0))-DF9-DP9 -> 0 | EC9: =-(IF($N9<99999.99999,(INDEX('GIC Credit'!$B$71:$M$96,MATCH($B$2,'GIC Credit'!$A$71:$A$96,0),MATCH($A9,'GIC Credit'!$B$71:$M$71,0))/$QE9)/1.9835,0))-DQ9 -> 0 | ED9: =MAX(IF(AND(DZ9="No",EA9>0),EA9,0),0) -> 0 | EE9: =-(ED9*0.5/100*('Distances for Transit Losses'!$C$162+'Distances for Transit Losses'!$C$168)) -> 0 | EG9: =IF(EF9="yes",'Joint Aug Station Deliveries'!Q9,0) -> 0 | EH9: =-(EG9*0.5/100*('Distances for Transit Losses'!$C$164+'Distances for Transit Losses'!$C$166+'Distances for Transit Losses'!$C$168)) -> 0 | EI9: =IF(EF9="Yes",'Joint Aug Station Deliveries'!T9,0) -> 0 | EJ9: =-(EI9*0.5/100*('Distances for Transit Losses'!$C$166+'Distances for Transit Losses'!$C$168)) -> 0 | EK9: 0 | EL9: =-(EK9*0.5/100*'Distances for Transit Losses'!$C$172) -> 0 | EM9: =SUM(EB9:EE9)+SUM(EG9:EL9) -> 0 | EN9: =DT9+DV9+EK9 -> 0 | EO9: 0 | EP9: =EN9-EO9 -> 0 | EQ9: =-(IF(N9<99999.99999,INDEX('Hist RF to SPR'!$AF$6:$AQ$30,MATCH($B$2,'Hist RF to SPR'!$AE$6:$AE$30,0),MATCH($A9,'Hist RF to SPR'!$AF$5:$AQ$5,0))/QE9/1.9835,0)) -> 0 | ER9: =IF(EM9<0,EM9,0) -> 0 | ES9: =SUM(EQ9:ER9) -> 0 | ET9: no | EU9: 0 | EV9: 0 | EW9: 0 | EY9: =IF(AND(ET9="No",KG9>0),MIN(-ES9,KG9),0) -> 0 | EZ9: =IF(AND(ET9="No",$BJ9="No"),MIN(-(ES9+EY9),KH9),0) -> 0 | FA9: =IF(AND(HX9-HY9-GK9>0,HS9="no"),MIN(-(ES9+EY9+EZ9)/(1-0.5/100*'Distances for Transit Losses'!$C$73),HX9-HY9-GK9),0) -> 0 | FB9: =-FA9*0.5/100*'Distances for Transit Losses'!$C$73 -> 0 | FC9: =IF(AND(GM9-GN9-IA9>0,GB9="no"),MIN(-(ES9+EY9+EZ9+FA9+FB9)/(1-0.5/100*'Distances for Transit Losses'!$C$75),GM9-GN9-IA9),0) -> 0 | FD9: =-FC9*0.5/100*'Distances for Transit Losses'!$C$79 -> 0 | FE9: =-(ES9+EY9+EZ9+FA9-FB9+FC9-FD9) -> 0 | FG9: =IF(EM9>0,EM9,0) -> 0 | FI9: =IF(AND(FH9="no",('Joint Aug Station Deliveries'!$AA9)*1.9835>'New Cache Credit'!$BY$33,('Joint Aug Station Deliveries'!$AA9)*1.9835>'New Cache Credit'!$CH$33),0,'Joint Aug Station Deliveries'!S9) -> 0 | FJ9: =-(FI9*0.5/100*'Distances for Transit Losses'!$C$150) -> 0 | FL9: =IF(AND(FK9="no",('Joint Aug Station Deliveries'!$AA9)*1.9835>'New Cache Credit'!$BY$33,('Joint Aug Station Deliveries'!$AA9)*1.9835>'New Cache Credit'!$CH$33),0,'Joint Aug Station Deliveries'!V9) -> 0 | FM9: =-(FL9*0.5/100*'Distances for Transit Losses'!$C$142) -> 0 | FN9: =IF(AND(FK9="no",('Joint Aug Station Deliveries'!$AA9)*1.9835>'New Cache Credit'!$BY$33,('Joint Aug Station Deliveries'!$AA9)*1.9835>'New Cache Credit'!$CH$33),0,'Joint Aug Station Deliveries'!Y9) -> 0 | FO9: =-(FN9*0.5/100*'Distances for Transit Losses'!$C$148) -> 0 | FP9: =ES9+SUM(EY9:FE9)+FG9+FI9+FJ9+SUM(FL9:FO9) -> 0 | FQ9: =IF(FP9>0,FP9,0) -> 0 | FR9: =KG9-EY9 -> 0 | FS9: =KH9-EZ9 -> 1.355519494 | FT9: =-(IF(N9<99999.99999,INDEX('Hist RF to SPR'!$Q$6:$AB$30,MATCH($B$2,'Hist RF to SPR'!$P$6:$P$30,0),MATCH($A9,'Hist RF to SPR'!$Q$5:$AB$5,0))/QE9/1.9835,0)) -> 0 | FU9: =-(IF($N9<99999.99999,(INDEX('FIDCO Credit'!$X$42:$AI$66,MATCH($B$2,'FIDCO Credit'!$W$42:$W$66,0),MATCH($A9,'FIDCO Credit'!$X$41:$AI$41,0))/$QE9)/1.9835,0)) -> 0 | FV9: =-(IF($N9<99999.99999,(INDEX('Western Credit'!$W$72:$AH$96,MATCH($B$2,'Western Credit'!$V$72:$V$96,0),MATCH($A9,'Western Credit'!$W$71:$AH$71,0))/$QE9)/1.9835,0)) -> 0 | FW9: =SUM(FT9:FV9) -> 0 | FX9: =MIN(-FU9,GU9) -> 0 | FY9: =VLOOKUP($B9,'ECCV Haren Pond S.P. Acrtns'!$B$7:$G$306,6)/$QE9/1.9835 -> 1.341957985 | FZ9: =MIN(-FW9+FX9,FY9) -> 0 | GA9: =JN9 -> 0 | GB9: no | GC9: no | GD9: 0 | GE9: 0 | GF9: 0 | GH9: =IF($GB9="No",MIN(-FW9+FZ9,FR9),0) -> 0 | GI9: =IF(AND(GB9="No",$BJ9="No"),MIN(-(FW9+FZ9+GH9),FS9),0) -> 0 | GJ9: =FW9+FZ9+GH9+GI9 -> 0 | GK9: =IF(AND(HX9-HY9>0,HS9="no"),MIN(-GJ9/(1-0.5/100*'Distances for Transit Losses'!$C$77),HX9-HY9),0) -> 0 | GL9: =-GK9*0.5/100*'Distances for Transit Losses'!$C$77 -> 0 | GM9: 0 | GN9: =IF(GM9>0,MIN(-(GJ9+GK9+GL9)/(1-0.5/100*'Distances for Transit Losses'!$C$79),GM9),0) -> 0 | GO9: =-GN9*0.5/100*'Distances for Transit Losses'!$C$79 -> 0 | GP9: 0 | GR9: =SUM(GJ9:GL9)+SUM(GN9:GP9) -> 0 | GS9: ='Joint Aug Station Deliveries'!AJ9 -> 0 | GT9: =GS9*'Western Credit'!$Z$36 -> 0 | GU9: ='Joint Aug Station Deliveries'!AD9 -> 0 | GV9: =IF(GU9>0,GU9-FX9,0) -> 0 | GW9: =MAX(0,(JJ9+JK9))/(1-0.5/100*'Distances for Transit Losses'!$C$55) -> 0 | GX9: =MAX(0,(JL9+JM9)/(1-0.5/100*'Distances for Transit Losses'!$C$53)) -> 0 | GY9: 0 | GZ9: 0 | HA9: 0 | HB9: =-HA9*0.5/100*'Distances for Transit Losses'!$C$34 -> 0 | HC9: =IF($GC9="No",GT9-GX9-GZ9,0) -> 0 | HD9: 0 | HE9: 0 | HF9: =IF($GC9="No",GV9-GW9-GY9,0) -> 0 | HG9: 0 | HH9: 0 | HI9: =IF(AND($GB9="No",$BJ9="No"),$IM9,0) -> 1.355519494 | HJ9: 0 | HK9: =IF(GB9="No",$IL9,0) -> 0 | HL9: 0 | HM9: 0 | HN9: =HD9+HG9+HJ9+SUM(HL9:HM9) -> 0 | HO9: =FY9-FZ9-GA9+GT9+GV9-SUM(GW9:GZ9)-HD9-HE9-HG9-HH9 -> 1.341957985 | HP9: =FR9-GH9 -> 0 | HQ9: =FS9-GI9 -> 1.355519494 | HR9: =-(IF(F9<99999.99999,INDEX('Hist RF to SPR'!$B$6:$M$30,MATCH($B$2,'Hist RF to SPR'!$A$6:$A$30,0),MATCH($A9,'Hist RF to SPR'!$B$5:$M$5,0))/QE9/1.9835,0)) -> 0 | HS9: no | HT9: =IF($HS9="No",MIN(-(HR9),HP9),0) -> 0 | HU9: =IF(AND(HS9="No",$BJ9="No"),MIN(-(HR9+HT9),HQ9),0) -> 0 | HV9: =IF(AND(HS9="No",$BJ9="No"),MIN(-(HR9+HT9+HU9),HO9),0) -> 0 | HW9: =HR9+HT9+HU9+HV9 -> 0 | HX9: 0 | HY9: =IF(HX9>0,MIN(-HW9/(1-0.5/100*'Distances for Transit Losses'!$C$81),HX9),0) -> 0 | HZ9: =-HY9*0.5/100*'Distances for Transit Losses'!$C$81 -> 0 | IA9: =IF(AND(GM9-GN9>0,HS9="no"),MIN(-(HW9+HY9+HZ9),GM9-GN9),0) -> 0 | IB9: 0 | ID9: =HW9+HY9+HZ9+IA9+IB9 -> 0 | IE9: =IF(AND($HS9="No",$BJ9="No"),$IM9-HJ9,0) -> 1.355519494 | IF9: 0 | IG9: =IF(HS9="No",$IL9-HL9,0) -> 0 | IH9: 0 | II9: =HE9 -> 0 | IJ9: =HH9 -> 0 | IK9: =IF9+IH9+II9+IJ9 -> 0 | IL9: =HP9-HT9 -> 0 | IM9: 1.355519494 | IN9: =-(IF(N9<99999.99999,(VLOOKUP(B9,'ECCV Upper Dpln'!$B$7:$BD$306,55))/QE9/1.9835,0)) -> 0 | IO9: =-(IF(N9<99999.99999,INDEX('Hist RF abv Milton'!$B$6:$M$30,MATCH($B$2,'Hist RF abv Milton'!$A$6:$A$30,0),MATCH($A9,'Hist RF abv Milton'!$B$5:$M$5,0))/QE9/1.9835,0)) -> 0 | IP9: =-(VLOOKUP(B9,'Unlagged Hist RF'!$A$9:$AN$308,36)/QE9/1.9835) -> 0 | IQ9: =(VLOOKUP($B9,'ECCV Beebe Pond Acrtns'!$B$7:$BI$1206,41)+VLOOKUP($B9,'ECCV Canal Acrtns'!$B$7:$AL$1206,22)+VLOOKUP($B9,'2003 Beebe Pond Acrtns'!$B$7:$BI$1206,41)+VLOOKUP($B9,'2003 Canal Acrtns'!$B$7:$AL$1206,22))/$QE9/1.9835 -> 1.053799341 | IR9: 0 | IS9: 0 | IT9: 0 | IU9: =MIN(IQ9,-IN9) -> 0 | IV9: =MIN($IT9,-($IN9+$IU9)) -> 0 | IW9: no | IX9: =IF('Milton Lake'!U8>0,'Milton Lake'!U8,0) -> 0 | IY9: =IF($IW9="No",IF($IX9>0,0,MIN(-IO9,DE9)),0) -> 0 | IZ9: =IF($IW9="No",IF($IX9>0,0,MIN(-(IN9+IU9+IV9),DE9-IY9)),0) -> 0 | JA9: =IF(AND(IW9="No",$BJ9="No"),IF($IX9>0,0,MIN(-(IO9+IY9),BU9)),0) -> 0 | JB9: =IF(AND(IW9="No",$BJ9="No"),IF($IX9>0,0,MIN(-(IN9+IU9+IV9+IZ9),$BU9-JA9)),0) -> 0 | JC9: =IN9+IU9+IV9+IZ9+JB9 -> 0 | JD9: =IO9+IY9+JA9 -> 0 | JE9: 0 | JF9: =-(JE9*0.5/100*'Distances for Transit Losses'!$C$6) -> 0 | JG9: 0 | JH9: 0 | JI9: 0 | JJ9: =MIN(-(JD9+JG9),GV9-GV9*0.5/100*'Distances for Transit Losses'!$C$55) -> 0 | JK9: =MAX(0,MIN(-(JC9+JE9+JF9+JI9),GV9-GV9*0.5/100*'Distances for Transit Losses'!$C$55-JJ9/(1-0.5/100*'Distances for Transit Losses'!$C$55))) -> 0 | JL9: =MIN(-(JD9+JG9+JJ9),GT9-GT9*0.5/100*'Distances for Transit Losses'!$C$53) -> 0 | JM9: =MAX(0,MIN(-(JC9+JE9+JF9+JK9),GT9-GT9*0.5/100*'Distances for Transit Losses'!$C$53-JL9/(1-0.5/100*'Distances for Transit Losses'!$C$53))) -> 0 | JN9: =IF(ET9="no",MIN(-(MIN(0,JC9+JE9+JF9+JK9+JM9)),(FY9-FZ9)-(FY9-FZ9)*0.5/100*'Distances for Transit Losses'!$C$53),0) -> 0 | JO9: =IF(AND(GM9-GN9-IA9-FC9>0,ET9="no"),MIN(-(JC9+JE9+JF9+JI9+JK9+JM9+JN9)/(1-0.5/100*'Distances for Transit Losses'!$C$59),GM9-GN9-IA9-FC9),0) -> 0 | JP9: =JO9*0.5/100*'Distances for Transit Losses'!$D$59 -> 0 | JQ9: 0 | JS9: =SUM(IN9:IP9)+IU9+IV9+SUM(IY9:JB9)+SUM(JE9:JQ9) -> 0 | JT9: =IQ9-IU9 -> 1.053799341 | JU9: =IT9-IV9 -> 0 | JV9: =DE9-IY9-IZ9 -> 0 | JW9: =BU9-JA9-JB9 -> 1.355519494 | JX9: =-(IF(N9<99999.99999,INDEX('Hist RF blw Milton'!$B$6:$M$30,MATCH($B$2,'Hist RF blw Milton'!$A$6:$A$30,0),MATCH($A9,'Hist RF blw Milton'!$B$5:$M$5,0))/QE9/1.9835,0)) -> 0 | JY9: no | JZ9: =IF($JY9="No",MIN(-JX9,$JV9),0) -> 0 | KA9: =IF(AND(JY9="No",$BJ9="No"),MIN(-(JX9+JZ9),$JW9),0) -> 0 | KB9: =JX9+JZ9+KA9 -> 0 | KC9: =-(KB9+KE9) -> 0 | KD9: 0 | KE9: 0 | KG9: =IF(JV9-JZ9<0,0,JV9-JZ9) -> 0 | KH9: =JW9-KA9 -> 1.355519494 | KI9: =-(IF(N9<99999.99999,INDEX('Hist RF to Box Elder'!$B$6:$M$30,MATCH($B$2,'Hist RF to Box Elder'!$A$6:$A$30,0),MATCH($A9,'Hist RF to Box Elder'!$B$5:$M$5,0))/QE9/1.9835,0)) -> 0 | KJ9: =(VLOOKUP($B9,'ECCV Beebe Pond Acrtns'!$B$7:$BI$1206,54)+VLOOKUP($B9,'ECCV Canal Acrtns'!$B$7:$AL$1206,34)+VLOOKUP($B9,'2003 Beebe Pond Acrtns'!$B$7:$AL$1206,34)+VLOOKUP($B9,'2003 Canal Acrtns'!$B$7:$AL$1206,34)+VLOOKUP($B9,'84CW090 Beebe Pond Acrtns'!$B$7:$AL$1206,34)+VLOOKUP($B9,'84CW090 Canal Acrtns'!$B$7:$AL$1206,34))/$QE9/1.9835 -> 0.06977267982 | KK9: =MIN(-KI9,KJ9) -> 0 | KL9: =IF(KI9+KK9+KN9=0,0,-(KI9+KJ9+KN9)) -> 0 | KM9: 0 | KN9: 0 | KP9: =AN9+AR9+BX9+CE9+DF9+DP9+DQ9+ES9+IN9+IO9+FW9+HR9+JX9+KI9 -> 0.02919695922 | KQ9: =IU9+IV9+SUM(IY9:JB9)+SUM(JE9:JQ9) -> 0 | KR9: =JZ9+KA9+KC9+KD9+KE9 -> 0 | KS9: =KK9+KL9+KM9+KN9 -> 0 | KT9: =HT9+HU9+HV9+HY9+HZ9+IA9+IB9 -> 0 | KU9: =FX9+FZ9+GH9+GI9+GK9+GL9+SUM(GN9:GP9) -> 0 | KV9: =SUM(EY9:FE9)+FI9+FJ9+SUM(FL9:FO9) -> 0 | KW9: =SUM(DG9:DI9)+SUM(DT9:DX9)+SUM(EG9:EL9) -> 0 | KX9: =BY9+BZ9+CI9+CP9+CS9+SUM(CW9:DD9) -> -0.02919695922 | KY9: =AO9+AP9+SUM(AX9:BG9) -> 0 | KZ9: =SUM(KQ9:KY9) -> -0.02919695922 | LA9: =KP9+KZ9 -> 0 | LB9: =JT9+JU9 -> 1.053799341 | LC9: =IG9-IH9 -> 0 | LD9: =IE9-IF9 -> 1.355519494 | LK9: 0 | LL9: 0 | LM9: 0 | LO9: 0 | LP9: 0 | LQ9: 0 | LR9: 0 | LS9: 0 | LT9: 0 | LU9: 0 | LV9: 0 | LW9: 0 | LX9: 0 | LY9: 0 | LZ9: 0 | MB9: =AV9 -> 0 | MC9: 0 | MD9: 0 | ME9: 0 | MF9: 0 | MG9: 0 | MH9: 0 | MI9: 0 | MJ9: 0 | MK9: 0 | ML9: 0 | MN9: =LC9+LD9-AB9 -> 1.355519494 | MO9: 0 | MP9: 0 | MQ9: 0 | MR9: 0 | MS9: 0 | MT9: 0 | MU9: 0 | MV9: 0 | MW9: 0 | MX9: 0 | ND9: 0 | NE9: 0 | NF9: 0 | NG9: 0 | NH9: 0 | NI9: 0 | NJ9: 0 | NK9: 0 | NL9: 0 | NN9: =GS9 -> 0 | NO9: 0 | NP9: 0 | NQ9: 0 | NR9: 0 | NS9: 0 | NT9: 0 | NU9: 0 | NV9: 0 | NY9: 0 | NZ9: 0 | OA9: 0 | OB9: 0 | OC9: 0 | OD9: 0 | OE9: 0 | OH9: 0 | OI9: 0 | OL9: 0 | OM9: 0 | ON9: 0 | OQ9: 0 | OR9: 0 | OS9: 0 | OT9: 0 | OU9: 0 | OV9: 0 | OW9: 0 | OY9: =MV9+MJ9+LX9+NJ9+NT9+OC9+OU9 -> 0 | OZ9: =MW9+MK9+LY9+NK9+NU9+OD9+OV9 -> 0 | PA9: =MX9+ML9+LM9+LZ9+NL9+NV9+OE9+OI9+ON9+OW9 -> 0 | PB9: =LL9+SUM(MO9:MU9)+SUM(MC9:MI9)+SUM(LP9:LW9)+SUM(ND9:NI9)+SUM(NO9:NS9)+SUM(NY9:OB9)+SUM(OQ9:OT9) -> 0 | PC9: =IF(PB9*1.9835>8706,"Exceeded Annual Maximum",PB9*1.9835) -> 0 | PD9: 309.6 | PF9: =LB9 -> 1.053799341 | PG9: 0 | PH9: 0 | PI9: 0 | PJ9: 0 | PK9: 0 | PL9: 0 | PM9: 0 | PN9: 0 | PO9: 0 | PP9: 0 | PQ9: 0 | PR9: 0 | PS9: 0 | PT9: 0 | PU9: 0 | PV9: 0 | PW9: 0 | PX9: 0 | PY9: 0 | PZ9: =PF9-SUM(PG9:PY9) -> 1.053799341 | QB9: =JE9+JG9+JH9 -> 0 | QC9: =KL9+KC9 -> 0 | QE9: =VLOOKUP(A9,'Control Sheet'!$G$9:$H$20,2) -> 30
A10: Apr | B10: =B9+1 -> 2015-04-02 | C10: Free River | F10: 99999.99999 | K10: Free River | N10: 99999.99999 | S10: =MN10 -> 1.355519494 | T10: 0 | U10: 0 | V10: 0 | X10: 0 | Y10: =('NFC Well Pumping'!$L8+'NFC Well Pumping'!$L45+'NFC Well Pumping'!$L81+'NFC Well Pumping'!$L117)/1.9835 -> 0 | Z10: ='88CW264(B) Pumping'!$E8/1.9835+'88CW264(B) Pumping'!$E44/1.9835+'88CW264(B) Pumping'!E84/1.9835+'88CW264(B) Pumping'!E120/1.9835+'88CW264(B) Pumping'!F160/1.9835+'88CW264(B) Pumping'!E196/1.9835 -> 0.009639106611 | AA10: =$LC10+$LD10 -> 1.355519494 | AB10: =('United No. 2 Well Pumping'!G9+'United No. 2 Well Pumping'!G45+'United No. 2 Well Pumping'!G81)/1.9835 -> 0 | AC10: =('United No. 2 Well Pumping'!F9+'United No. 2 Well Pumping'!F45+'United No. 2 Well Pumping'!F81)/1.9835 -> 0 | AD10: 0 | AF10: =Y10+Z10+AB10+AC10+AD10 -> 0.009639106611 | AG10: =AC10+U10+'United Res'!AA9+'United Res'!AQ9+'Gilcrest Res'!D9 -> 0 | AH10: 100 | AI10: =-(IF($N10=99999.99999,0,VLOOKUP($B10,'NFC Well Dplns-URF'!B$7:$AB$306,27))/$QE10/1.9835) -> 0 | AJ10: 0 | AL10: =(VLOOKUP($B10,'ECCV 70R Pond Acrtns'!$B$7:$AI$1206,34)+VLOOKUP($B10,'2003 70R Pond Acrtns'!$B$7:$AI$1206,34)+VLOOKUP($B10,'ECCV 70R Canal Acrtns'!$B$7:$AI$1206,27)+VLOOKUP($B10,'2003 70R Canal Acrtns'!$B$7:$AI$1206,27))/$QE10/1.9835 -> 0 | AM10: 0 | AN10: =-(IF($N10=99999.99999,0,VLOOKUP($B10,'NFC Well Dplns-SDF'!$B$7:$Z$306,25)+VLOOKUP($B10,'NFC Well Dplns-URF'!B$7:$AB$306,20))/$QE10/1.9835) -> 0 | AO10: 0 | AP10: 0 | AR10: =-AV10*'Weldon Credit'!$Z$36 -> 0 | AS10: =0.4*(INDEX('Riverside Pond Accrtns'!$B$6:$M$36,MATCH($B$2,'Riverside Pond Accrtns'!$A$6:$A$36,0),MATCH('ECCV Daily Replacement Summary'!A10,'Riverside Pond Accrtns'!$B$5:$M$5,0))/QE10)/1.9835 -> 0.9942021679 | AT10: =(44/640)*(INDEX('Weldon Valley Accrtns (02CW377)'!$B$6:$M$30,MATCH($B$2,'Weldon Valley Accrtns (02CW377)'!$A$6:$A$30,0),MATCH(A10,'Weldon Valley Accrtns (02CW377)'!$B$5:$M$5,0))/QE10)/1.9835 -> 0.3613173263 | AU10: =(VLOOKUP($B10,'ECCV 70R Pond Acrtns'!$B$7:$AI$1206,25)+VLOOKUP($B10,'ECCV 70R Canal Acrtns'!$B$7:$AI$1206,20)+VLOOKUP($B10,'2003 70R Pond Acrtns'!$B$7:$AI$1206,25)+VLOOKUP($B10,'2003 70R Canal Acrtns'!$B$7:$AI$1206,20))/$QE10/1.9835 -> 0 | AV10: ='Joint Aug Station Deliveries'!G10 -> 0 | AW10: =IF(AV10>0,AV10-AX10,0) -> 0 | AX10: =MIN(-AR10,AV10) -> 0 | AY10: =MIN(-($AR10+AX10),AS10-AS10*0.5/100*'Distances for Transit Losses'!$C$51) -> 0 | AZ10: =MIN(-($AR10+AX10+AY10),AT10) -> 0 | BA10: =MIN(-($AR10+AX10+AY10+AZ10),AU10-AU10*0.5/100*'Distances for Transit Losses'!$C$51) -> 0 | BB10: =-((AY10+BA10)/(1-0.5/100*'Distances for Transit Losses'!$C$51)-(AY10+BA10)) -> 0 | BC10: =IF(AND(IF10-IG10-FI10-DI10>0,IA10="no"),MIN(-(AR10+AX10+AY10+AZ10+BA10+BB10)/(1-0.5/100*'Distances for Transit Losses'!$C$65),IF10-IG10-FI10-DI10),0) -> 0 | BD10: =--BC10*0.5/100*'Distances for Transit Losses'!C$65 -> 0 | BE10: =IF(AND(GM10-GN10-IA10-FC10-JO10-DC10>0,ET10="no"),MIN(-(AR10+SUM(AX10:BD10))/(1-0.5/100*'Distances for Transit Losses'!$C$71),GM10-GN10-IA10-FC10-JO10-DC10),0) -> 0 | BF10: =--BE10*0.5/100*'Distances for Transit Losses'!$C$67 -> 0 | BG10: 0 | BI10: no | BJ10: no | BK10: 0 | BL10: 0 | BM10: 0 | BO10: =IF($BJ10="No",MIN(-CV10,AS10-AY10/(1-0.5/100*'Distances for Transit Losses'!$C$51)),0) -> 0 | BP10: =IF($BJ10="No",MIN(-CV10+BO10,AU10-BA10/(1-0.5/100*'Distances for Transit Losses'!$C$51)),0) -> 0 | BQ10: 0 | BR10: 0 | BS10: 0 | BT10: =AN10+AO10+AR10+AS10+AT10+AU10+AV10 -> 1.355519494 | BU10: =AN10+AO10+AR10+AS10+AT10+AU10+AV10-SUM(BO10:BS10) -> 1.355519494 | BV10: =-(IF($N10=99999.99999,0,VLOOKUP($B10,'NFC Well Dplns-SDF'!$B$7:$Z$306,16)+VLOOKUP($B10,'NFC Well Dplns-URF'!$B$7:$AB$306,13))/$QE10/1.9835) -> 0 | BW10: =-(IF($N10>=99999,0,'88CW264(B) Pumping'!$E8/1.9835)+IF($N10>=99999,0,'88CW264(B) Pumping'!$E44/1.9835)+IF($N10>=99999,0,'88CW264(B) Pumping'!$E84/1.9835)+IF($N10>=99999,0,'88CW264(B) Pumping'!$E120/1.9835)+IF($N10>=51134.50919,0,'88CW264(B) Pumping'!$F160/1.9835)+IF($N10>=53406,0,'88CW264(B) Pumping'!$E196/1.9835)) -> 0 | BX10: 0 | BY10: 0 | BZ10: 0 | CB10: =-(IF($N10=99999.99999,0,VLOOKUP($B10,'United No. 2 Dplns'!$B$7:$X$676,13)/1.9835)) -> 0 | CC10: =CB10+(-(INDEX('Pre 1995 Net Accretions'!$B$6:$M$105,MATCH($B$2,'Pre 1995 Net Accretions'!$A$6:$A$105,0),MATCH($A10,'Pre 1995 Net Accretions'!$B$5:$M$5,0))/$QE10/1.9835)) -> 0.02919695922 | CD10: =-(IF(N10<99999.99999,(INDEX('70 Ranch RF Obligation'!$B$6:$M$30,MATCH($B$2,'70 Ranch RF Obligation'!$A$6:$A$30,0),MATCH('ECCV Daily Replacement Summary'!A10,'70 Ranch RF Obligation'!$B$5:$M$5,0))/QE10)/1.9835,0))-CG10*(1-'L. Latham Credit'!$E$35) -> 0 | CE10: 0.02919695922 | CF10: =(VLOOKUP($B10,'ECCV 70R Pond Acrtns'!$B$7:$AI$1206,16)+VLOOKUP($B10,'ECCV 70R Canal Acrtns'!$B$7:$AI$1206,13)+VLOOKUP($B10,'2003 70R Pond Acrtns'!$B$7:$AI$1206,16)+VLOOKUP($B10,'2003 70R Canal Acrtns'!$B$7:$AI$1206,13))/$QE10/1.9835 -> 0 | CG10: 0 | CH10: =IF(CG10>0,CG10-CI10,0) -> 0 | CI10: =MIN(-CE10,CG10) -> -0.02919695922 | CJ10: 0 | CK10: 0 | CL10: 0 | CM10: 0 | CO10: 0 | CP10: =MIN(-(CE10+CI10),CO10) -> 0 | CQ10: 0 | CR10: =-CQ10*0.5/100*'Distances for Transit Losses'!$C$44 -> 0 | CS10: =MIN(CF10,-(CE10+CI10+CP10)) -> 0 | CT10: 0 | CU10: 0 | CV10: =BX10+BY10+BZ10+CE10+CI10+CP10+CS10 -> 0 | CW10: 0 | CX10: 0 | CY10: 0 | CZ10: =('NFC Well Pumping'!I8+'NFC Well Pumping'!I45+'NFC Well Pumping'!I81)/1.9835 -> 0 | DA10: =IF(AND(HX10-HY10-FA10>0,HS10="no"),MIN(-SUM(CV10:CZ10)/(1-0.5/100*'Distances for Transit Losses'!$C$69),HX10-HY10-FA10),0) -> 0 | DB10: =-DA10*0.5/100*'Distances for Transit Losses'!C$69 -> 0 | DC10: =IF(AND(GM10-GN10-IA10-FC10-JO10>0,ET10="no"),MIN(-SUM(CV10:DB10)/(1-0.5/100*'Distances for Transit Losses'!$C$71),GM10-GN10-IA10-FC10-JO10),0) -> 0 | DD10: =--DC10*0.5/100*'Distances for Transit Losses'!$C$71 -> 0 | DE10: =CF10+CO10-CP10-CQ10-SUM(CS10:CU10) -> 0 | DF10: =-(IF(DK10="Yes",((0.107*(INDEX('New Cache Credit'!$AR$70:$BC$95,MATCH($B$2,'New Cache Credit'!$AQ$70:$AQ$95,0),MATCH($A10,'New Cache Credit'!$AR$70:$BC$70,0))/$QE10))+(0.333*(INDEX('New Cache Credit'!$BG$70:$BR$95,MATCH($B$2,'New Cache Credit'!$BF$70:$BF$95,0),MATCH($A10,'New Cache Credit'!$BG$70:$BR$70,0))/$QE10)))/1.9835,0)) -> 0 | DG10: ='Joint Aug Station Deliveries'!J10 -> 0 | DH10: =-(DG10*0.5/100*'Distances for Transit Losses'!$C$154) -> 0 | DI10: 0 | DK10: no | DM10: =DF10+IF(DL10="Yes",DG10,0)+DH10+DI10 -> 0 | DN10: =MAX(IF(AND(DK10="No",DL10="Yes"),DF10+DG10+DH10,0),0) -> 0 | DO10: =-(DN10*0.5/100*'Distances for Transit Losses'!$C$156) -> 0 | DP10: =-(IF(DZ10="Yes",((0.75*(INDEX('New Cache Credit'!$AR$70:$BC$95,MATCH($B$2,'New Cache Credit'!$AQ$70:$AQ$95,0),MATCH($A10,'New Cache Credit'!$AR$70:$BC$70,0))/$QE10))+(0.222*(INDEX('New Cache Credit'!$BG$70:$BR$95,MATCH($B$2,'New Cache Credit'!$BF$70:$BF$95,0),MATCH($A10,'New Cache Credit'!$BG$70:$BR$70,0))/$QE10)))/1.9835,0)) -> 0 | DQ10: =-(IF(DZ10="yes",(0.25*INDEX('GIC Credit'!$B$71:$M$96,MATCH($B$2,'GIC Credit'!$A$71:$A$96,0),MATCH($A10,'GIC Credit'!$B$71:$M$71,0))/$QE10)/1.9835,0)) -> 0 | DR10: =DP10+DQ10 -> 0 | DS10: =MIN(-DR10,DN10+DO10) -> 0 | DT10: 0 | DU10: =-(DT10*0.5/100*'Distances for Transit Losses'!$C$158) -> 0 | DV10: 0 | DW10: =-(DV10*0.5/100*('Distances for Transit Losses'!$C$160+'Distances for Transit Losses'!$C$170)) -> 0 | DX10: 0 | DZ10: no | EA10: 0 | EB10: =-(IF($N10<99999.99999,(INDEX('New Cache Credit'!$W$70:$AH$95,MATCH($B$2,'New Cache Credit'!$V$70:$V$95,0),MATCH($A10,'New Cache Credit'!$W$70:$AH$70,0))/$QE10)/1.9835,0))-DF10-DP10 -> 0 | EC10: =-(IF($N10<99999.99999,(INDEX('GIC Credit'!$B$71:$M$96,MATCH($B$2,'GIC Credit'!$A$71:$A$96,0),MATCH($A10,'GIC Credit'!$B$71:$M$71,0))/$QE10)/1.9835,0))-DQ10 -> 0 | ED10: =MAX(IF(AND(DZ10="No",EA10>0),EA10,0),0) -> 0 | EE10: =-(ED10*0.5/100*('Distances for Transit Losses'!$C$162+'Distances for Transit Losses'!$C$168)) -> 0 | EG10: =IF(EF10="yes",'Joint Aug Station Deliveries'!Q10,0) -> 0 | EH10: =-(EG10*0.5/100*('Distances for Transit Losses'!$C$164+'Distances for Transit Losses'!$C$166+'Distances for Transit Losses'!$C$168)) -> 0 | EI10: =IF(EF10="Yes",'Joint Aug Station Deliveries'!T10,0) -> 0 | EJ10: =-(EI10*0.5/100*('Distances for Transit Losses'!$C$166+'Distances for Transit Losses'!$C$168)) -> 0 | EK10: 0 | EL10: =-(EK10*0.5/100*'Distances for Transit Losses'!$C$172) -> 0 | EM10: =SUM(EB10:EE10)+SUM(EG10:EL10) -> 0 | EN10: 0 | EO10: 0 | EP10: =EN10-EO10 -> 0 | EQ10: =-(IF(N10<99999.99999,INDEX('Hist RF to SPR'!$AF$6:$AQ$30,MATCH($B$2,'Hist RF to SPR'!$AE$6:$AE$30,0),MATCH($A10,'Hist RF to SPR'!$AF$5:$AQ$5,0))/QE10/1.9835,0)) -> 0 | ER10: =IF(EM10<0,EM10,0) -> 0 | ES10: 0 | ET10: no | EU10: 0 | EV10: 0 | EW10: 0 | EY10: 0 | EZ10: 0 | FA10: =IF(AND(HX10-HY10-GK10>0,HS10="no"),MIN(-(ES10+EY10+EZ10)/(1-0.5/100*'Distances for Transit Losses'!$C$73),HX10-HY10-GK10),0) -> 0 | FB10: =-FA10*0.5/100*'Distances for Transit Losses'!$C$73 -> 0 | FC10: =IF(AND(GM10-GN10-IA10>0,GB10="no"),MIN(-(ES10+EY10+EZ10+FA10+FB10)/(1-0.5/100*'Distances for Transit Losses'!$C$75),GM10-GN10-IA10),0) -> 0 | FD10: =-FC10*0.5/100*'Distances for Transit Losses'!$C$79 -> 0 | FE10: 0 | FG10: =IF(EM10>0,EM10,0) -> 0 | FI10: =IF(AND(FH9="no",(SUM('Joint Aug Station Deliveries'!$AA$9:'Joint Aug Station Deliveries'!$AA9)+'Joint Aug Station Deliveries'!$AA10)*1.9835>'New Cache Credit'!$BY$33,(SUM('Joint Aug Station Deliveries'!$AA$9:'Joint Aug Station Deliveries'!$AA9)+'Joint Aug Station Deliveries'!$AA10)*1.9835>'New Cache Credit'!$CH$33),0,'Joint Aug Station Deliveries'!S10) -> 0 | FJ10: =-(FI10*0.5/100*'Distances for Transit Losses'!$C$150) -> 0 | FL10: =IF(AND(FK9="no",(SUM('Joint Aug Station Deliveries'!$AA$9:'Joint Aug Station Deliveries'!$AA9)+'Joint Aug Station Deliveries'!$AA10)*1.9835>'New Cache Credit'!$BY$33,(SUM('Joint Aug Station Deliveries'!$AA$9:'Joint Aug Station Deliveries'!$AA9)+'Joint Aug Station Deliveries'!$AA10)*1.9835>'New Cache Credit'!$CH$33),0,'Joint Aug Station Deliveries'!V10) -> 0 | FM10: =-(FL10*0.5/100*'Distances for Transit Losses'!$C$142) -> 0 | FN10: =IF(AND(FK9="no",(SUM('Joint Aug Station Deliveries'!$AA$9:'Joint Aug Station Deliveries'!$AA9)+'Joint Aug Station Deliveries'!$AA10)*1.9835>'New Cache Credit'!$BY$33,(SUM('Joint Aug Station Deliveries'!$AA$9:'Joint Aug Station Deliveries'!$AA9)+'Joint Aug Station Deliveries'!$AA10)*1.9835>'New Cache Credit'!$CH$33),0,'Joint Aug Station Deliveries'!Y10) -> 0 | FO10: =-(FN10*0.5/100*'Distances for Transit Losses'!$C$148) -> 0 | FP10: =ES10+SUM(EY10:FE10)+FG10+FI10+FJ10+SUM(FL10:FO10) -> 0 | FQ10: 0 | FR10: =IF(KG10>EQ10,KG10-EY10,0) -> 0 | FS10: =KH10-EZ10 -> 1.355519494 | FT10: =-(IF(N10<99999.99999,INDEX('Hist RF to SPR'!$Q$6:$AB$30,MATCH($B$2,'Hist RF to SPR'!$P$6:$P$30,0),MATCH($A10,'Hist RF to SPR'!$Q$5:$AB$5,0))/QE10/1.9835,0)) -> 0 | FU10: =-(IF($N10<99999.99999,(INDEX('FIDCO Credit'!$X$42:$AI$66,MATCH($B$2,'FIDCO Credit'!$W$42:$W$66,0),MATCH($A10,'FIDCO Credit'!$X$41:$AI$41,0))/$QE10)/1.9835,0)) -> 0 | FV10: =-(IF($N10<99999.99999,(INDEX('Western Credit'!$W$72:$AH$96,MATCH($B$2,'Western Credit'!$V$72:$V$96,0),MATCH($A10,'Western Credit'!$W$71:$AH$71,0))/$QE10)/1.9835,0)) -> 0 | FW10: 0 | FX10: 0 | FY10: =VLOOKUP($B10,'ECCV Haren Pond S.P. Acrtns'!$B$7:$G$306,6)/$QE10/1.9835 -> 1.341957985 | FZ10: =MIN(-FW10+FX10,FY10) -> 0 | GA10: =JN10 -> 0 | GB10: no | GC10: no | GD10: 0 | GE10: 0 | GF10: 0 | GH10: =IF($GB10="No",MIN(-FW10+FZ10,FR10),0) -> 0 | GI10: =IF(AND(GB10="No",$BJ10="No"),MIN(-(FW10+FZ10+GH10),FS10),0) -> 0 | GJ10: =FW10+FZ10+GH10+GI10 -> 0 | GK10: =IF(AND(HX10-HY10>0,HS10="no"),MIN(-GJ10/(1-0.5/100*'Distances for Transit Losses'!$C$77),HX10-HY10),0) -> 0 | GL10: =-GK10*0.5/100*'Distances for Transit Losses'!$C$77 -> 0 | GM10: 0 | GN10: =IF(GM10>0,MIN(-(GJ10+GK10+GL10)/(1-0.5/100*'Distances for Transit Losses'!$C$79),GM10),0) -> 0 | GO10: =-GN10*0.5/100*'Distances for Transit Losses'!$C$79 -> 0 | GP10: 0 | GR10: 0 | GS10: ='Joint Aug Station Deliveries'!AJ10 -> 0 | GT10: =GS10*'Western Credit'!$Z$36 -> 0 | GU10: ='Joint Aug Station Deliveries'!AD10 -> 0 | GV10: 0 | GW10: =MAX(0,(JJ10+JK10))/(1-0.5/100*'Distances for Transit Losses'!$C$55) -> 0 | GX10: =MAX(0,(JL10+JM10)/(1-0.5/100*'Distances for Transit Losses'!$C$53)) -> 0 | GY10: 0 | GZ10: 0 | HA10: 0 | HB10: =-HA10*0.5/100*'Distances for Transit Losses'!$C$34 -> 0 | HC10: 0 | HD10: 0 | HE10: 0 | HF10: 0 | HG10: 0 | HH10: 0 | HI10: =IF(AND($GB10="No",$BJ10="No"),IM10,0) -> 1.355519494 | HJ10: 0 | HK10: =IF(GB10="No",IL10,0) -> 0 | HL10: 0 | HM10: 0 | HN10: =HD10+HG10+HJ10+SUM(HL10:HM10) -> 0 | HO10: 1.341957985 | HP10: 0 | HQ10: 1.355519494 | HR10: =-(IF(F10<99999.99999,INDEX('Hist RF to SPR'!$B$6:$M$30,MATCH($B$2,'Hist RF to SPR'!$A$6:$A$30,0),MATCH($A10,'Hist RF to SPR'!$B$5:$M$5,0))/QE10/1.9835,0)) -> 0 | HS10: no | HT10: =IF($HS10="No",MIN(-(HR10),HP10),0) -> 0 | HU10: =IF(AND(HS10="No",$BJ10="No"),MIN(-(HR10+HT10),HQ10),0) -> 0 | HV10: 0 | HW10: =HR10+HT10+HU10+HV10 -> 0 | HX10: 0 | HY10: =IF(HX10>0,MIN(-HW10/(1-0.5/100*'Distances for Transit Losses'!$C$81),HX10),0) -> 0 | HZ10: =-HY10*0.5/100*'Distances for Transit Losses'!$C$81 -> 0 | IA10: 0 | IB10: 0 | ID10: 0 | IE10: 1.355519494 | IF10: 0 | IG10: 0 | IH10: 0 | II10: 0 | IJ10: 0 | IK10: =IF10+IH10+II10+IJ10 -> 0 | IL10: 0 | IM10: 1.355519494 | IN10: =-(IF(N10<99999.99999,(VLOOKUP(B10,'ECCV Upper Dpln'!$B$7:$BD$306,55))/QE10/1.9835,0)) -> 0 | IO10: =-(IF(N10<99999.99999,INDEX('Hist RF abv Milton'!$B$6:$M$30,MATCH($B$2,'Hist RF abv Milton'!$A$6:$A$30,0),MATCH($A10,'Hist RF abv Milton'!$B$5:$M$5,0))/QE10/1.9835,0)) -> 0 | IP10: =-(VLOOKUP(B10,'Unlagged Hist RF'!$A$9:$AN$308,36)/QE10/1.9835) -> 0 | IQ10: =(VLOOKUP($B10,'ECCV Beebe Pond Acrtns'!$B$7:$BI$1206,41)+VLOOKUP($B10,'ECCV Canal Acrtns'!$B$7:$AL$1206,22)+VLOOKUP($B10,'2003 Beebe Pond Acrtns'!$B$7:$BI$1206,41)+VLOOKUP($B10,'2003 Canal Acrtns'!$B$7:$AL$1206,22))/$QE10/1.9835 -> 1.053799341 | IR10: 0 | IS10: 0 | IT10: 0 | IU10: 0 | IV10: =MIN($IT10,-($IN10+$IU10)) -> 0 | IW10: no | IX10: 0 | IY10: 0 | IZ10: 0 | JA10: 0 | JB10: 0 | JC10: =IN10+IU10+IV10+IZ10+JB10 -> 0 | JD10: 0 | JE10: 0 | JF10: =-(JE10*0.5/100*'Distances for Transit Losses'!$C$6) -> 0 | JG10: 0 | JH10: 0 | JI10: 0 | JJ10: =MIN(-(JD10+JG10),GV10-GV10*0.5/100*'Distances for Transit Losses'!$C$55) -> 0 | JK10: =MAX(0,MIN(-(JC10+JE10+JF10+JI10),GV10-GV10*0.5/100*'Distances for Transit Losses'!$C$55-JJ10/(1-0.5/100*'Distances for Transit Losses'!$C$55))) -> 0 | JL10: =MIN(-(JD10+JJ10),GT10-GT10*0.5/100*'Distances for Transit Losses'!$C$53) -> 0 | JM10: =MAX(0,MIN(-(JC10+JE10+JF10+JK10),GT10-GT10*0.5/100*'Distances for Transit Losses'!$C$53-JL10/(1-0.5/100*'Distances for Transit Losses'!$C$53))) -> 0 | JN10: =IF(ET10="no",MIN(-(MIN(0,JC10+JE10+JF10+JK10+JM10)),(FY10-FZ10)-(FY10-FZ10)*0.5/100*'Distances for Transit Losses'!$C$53),0) -> 0 | JO10: =IF(AND(GM10-GN10-IA10-FC10>0,ET10="no"),MIN(-(JC10+JE10+JF10+JI10+JK10+JM10+JN10)/(1-0.5/100*'Distances for Transit Losses'!$C$59),GM10-GN10-IA10-FC10),0) -> 0 | JP10: =JO10*0.5/100*'Distances for Transit Losses'!$D$59 -> 0 | JQ10: 0 | JS10: 0 | JT10: 1.053799341 | JU10: 0 | JV10: 0 | JW10: 1.355519494 | JX10: =-(IF(N10<99999.99999,INDEX('Hist RF blw Milton'!$B$6:$M$30,MATCH($B$2,'Hist RF blw Milton'!$A$6:$A$30,0),MATCH($A10,'Hist RF blw Milton'!$B$5:$M$5,0))/QE10/1.9835,0)) -> 0 | JY10: no | JZ10: =IF($JY10="No",MIN(-JX10,$JV10),0) -> 0 | KA10: 0 | KB10: 0 | KC10: 0 | KD10: 0 | KE10: 0 | KG10: 0 | KH10: 1.355519494 | KI10: =-(IF(N10<99999.99999,INDEX('Hist RF to Box Elder'!$B$6:$M$30,MATCH($B$2,'Hist RF to Box Elder'!$A$6:$A$30,0),MATCH($A10,'Hist RF to Box Elder'!$B$5:$M$5,0))/QE10/1.9835,0)) -> 0 | KJ10: =(VLOOKUP($B10,'ECCV Beebe Pond Acrtns'!$B$7:$BI$1206,54)+VLOOKUP($B10,'ECCV Canal Acrtns'!$B$7:$AL$1206,34)+VLOOKUP($B10,'2003 Beebe Pond Acrtns'!$B$7:$AL$1206,34)+VLOOKUP($B10,'2003 Canal Acrtns'!$B$7:$AL$1206,34)+VLOOKUP($B10,'84CW090 Beebe Pond Acrtns'!$B$7:$AL$1206,34)+VLOOKUP($B10,'84CW090 Canal Acrtns'!$B$7:$AL$1206,34))/$QE10/1.9835 -> 0.06977267982 | KK10: 0 | KL10: 0 | KM10: 0 | KN10: 0 | KP10: 0.02919695922 | KQ10: =IU10+IV10+SUM(IY10:JB10)+SUM(JE10:JQ10) -> 0 | KR10: 0 | KS10: 0 | KT10: 0 | KU10: 0 | KV10: 0 | KW10: 0 | KX10: -0.02919695922 | KY10: 0 | KZ10: -0.02919695922 | LA10: 0 | LB10: =JT10 -> 1.053799341 | LC10: 0 | LD10: 1.355519494 | LK10: 0 | LL10: 0 | LM10: 0 | LO10: 0 | LP10: 0 | LQ10: 0 | LR10: 0 | LS10: 0 | LT10: 0 | LU10: 0 | LV10: 0 | LW10: 0 | LX10: 0 | LY10: 0 | LZ10: 0 | MB10: 0 | MC10: 0 | MD10: 0 | ME10: 0 | MF10: 0 | MG10: 0 | MH10: 0 | MI10: 0 | MJ10: 0 | MK10: 0 | ML10: 0 | MN10: 1.355519494 | MO10: 0 | MP10: 0 | MQ10: 0 | MR10: 0 | MS10: 0 | MT10: 0 | MU10: 0 | MV10: 0 | MW10: 0 | MX10: 0 | ND10: 0 | NE10: 0 | NF10: 0 | NG10: 0 | NH10: 0 | NI10: 0 | NJ10: 0 | NK10: 0 | NL10: 0 | NN10: 0 | NO10: 0 | NP10: 0 | NQ10: 0 | NR10: 0 | NS10: 0 | NT10: 0 | NU10: 0 | NV10: 0 | NY10: 0 | NZ10: 0 | OA10: 0 | OB10: 0 | OC10: 0 | OD10: 0 | OE10: 0 | OH10: 0 | OI10: 0 | OL10: 0 | OM10: 0 | ON10: 0 | OQ10: 0 | OR10: 0 | OS10: 0 | OT10: 0 | OU10: 0 | OV10: 0 | OW10: 0 | OY10: 0 | OZ10: 0 | PA10: 0 | PB10: =LL10+SUM(MO10:MU10)+SUM(MC10:MI10)+SUM(LP10:LW10)+SUM(ND10:NI10)+SUM(NO10:NS10)+SUM(NY10:OB10)+SUM(OQ10:OT10) -> 0 | PC10: =IF(PB10*1.9835>8706,"Exceeded Annual Maximum",PB10*1.9835) -> 0 | PD10: 309.6 | PF10: 1.053799341 | PG10: 0 | PH10: 0 | PI10: 0 | PJ10: 0 | PK10: 0 | PL10: 0 | PM10: 0 | PN10: 0 | PO10: 0 | PP10: 0 | PQ10: 0 | PR10: 0 | PS10: 0 | PT10: 0 | PU10: 0 | PV10: 0 | PW10: 0 | PX10: 0 | PY10: 0 | PZ10: =PF10-SUM(PG10:PY10) -> 1.053799341 | QB10: 0 | QC10: 0 | QE10: =VLOOKUP(A10,'Control Sheet'!$G$9:$H$20,2) -> 30
A11: Apr | B11: 2015-04-03 | C11: Free River | F11: 99999.99999 | K11: Free River | N11: 99999.99999 | S11: 1.355519494 | T11: 0 | U11: 0 | V11: 0 | X11: 0 | Y11: =('NFC Well Pumping'!$L9+'NFC Well Pumping'!$L46+'NFC Well Pumping'!$L82+'NFC Well Pumping'!$L118)/1.9835 -> 0 | Z11: ='88CW264(B) Pumping'!$E9/1.9835+'88CW264(B) Pumping'!$E45/1.9835+'88CW264(B) Pumping'!E85/1.9835+'88CW264(B) Pumping'!E121/1.9835+'88CW264(B) Pumping'!F161/1.9835+'88CW264(B) Pumping'!E197/1.9835 -> 0.009639106611 | AA11: =$LC11+$LD11 -> 1.355519494 | AB11: =('United No. 2 Well Pumping'!G10+'United No. 2 Well Pumping'!G46+'United No. 2 Well Pumping'!G82)/1.9835 -> 0 | AC11: =('United No. 2 Well Pumping'!F10+'United No. 2 Well Pumping'!F46+'United No. 2 Well Pumping'!F82)/1.9835 -> 0 | AD11: 0 | AF11: 0.009639106611 | AG11: =AC11+U11+'United Res'!AA10+'United Res'!AQ10+'Gilcrest Res'!D10 -> 0 | AH11: 100 | AI11: =-(IF($N11=99999.99999,0,VLOOKUP($B11,'NFC Well Dplns-URF'!B$7:$AB$306,27))/$QE11/1.9835) -> 0 | AJ11: 0 | AL11: =(VLOOKUP($B11,'ECCV 70R Pond Acrtns'!$B$7:$AI$1206,34)+VLOOKUP($B11,'2003 70R Pond Acrtns'!$B$7:$AI$1206,34)+VLOOKUP($B11,'ECCV 70R Canal Acrtns'!$B$7:$AI$1206,27)+VLOOKUP($B11,'2003 70R Canal Acrtns'!$B$7:$AI$1206,27))/$QE11/1.9835 -> 0 | AM11: 0 | AN11: =-(IF($N11=99999.99999,0,VLOOKUP($B11,'NFC Well Dplns-SDF'!$B$7:$Z$306,25)+VLOOKUP($B11,'NFC Well Dplns-URF'!B$7:$AB$306,20))/$QE11/1.9835) -> 0 | AO11: 0 | AP11: 0 | AR11: =-AV11*'Weldon Credit'!$Z$36 -> 0 | AS11: =0.4*(INDEX('Riverside Pond Accrtns'!$B$6:$M$36,MATCH($B$2,'Riverside Pond Accrtns'!$A$6:$A$36,0),MATCH('ECCV Daily Replacement Summary'!A11,'Riverside Pond Accrtns'!$B$5:$M$5,0))/QE11)/1.9835 -> 0.9942021679 | AT11: =(44/640)*(INDEX('Weldon Valley Accrtns (02CW377)'!$B$6:$M$30,MATCH($B$2,'Weldon Valley Accrtns (02CW377)'!$A$6:$A$30,0),MATCH(A11,'Weldon Valley Accrtns (02CW377)'!$B$5:$M$5,0))/QE11)/1.9835 -> 0.3613173263 | AU11: =(VLOOKUP($B11,'ECCV 70R Pond Acrtns'!$B$7:$AI$1206,25)+VLOOKUP($B11,'ECCV 70R Canal Acrtns'!$B$7:$AI$1206,20)+VLOOKUP($B11,'2003 70R Pond Acrtns'!$B$7:$AI$1206,25)+VLOOKUP($B11,'2003 70R Canal Acrtns'!$B$7:$AI$1206,20))/$QE11/1.9835 -> 0 | AV11: ='Joint Aug Station Deliveries'!G11 -> 0 | AW11: 0 | AX11: 0 | AY11: =MIN(-($AR11+AX11),AS11-AS11*0.5/100*'Distances for Transit Losses'!$C$51) -> 0 | AZ11: =MIN(-($AR11+AX11+AY11),AT11) -> 0 | BA11: =MIN(-($AR11+AX11+AY11+AZ11),AU11-AU11*0.5/100*'Distances for Transit Losses'!$C$51) -> 0 | BB11: =-((AY11+BA11)/(1-0.5/100*'Distances for Transit Losses'!$C$51)-(AY11+BA11)) -> 0 | BC11: =IF(AND(IF11-IG11-FI11-DI11>0,IA11="no"),MIN(-(AR11+AX11+AY11+AZ11+BA11+BB11)/(1-0.5/100*'Distances for Transit Losses'!$C$65),IF11-IG11-FI11-DI11),0) -> 0 | BD11: =--BC11*0.5/100*'Distances for Transit Losses'!C$65 -> 0 | BE11: =IF(AND(GM11-GN11-IA11-FC11-JO11-DC11>0,ET11="no"),MIN(-(AR11+SUM(AX11:BD11))/(1-0.5/100*'Distances for Transit Losses'!$C$71),GM11-GN11-IA11-FC11-JO11-DC11),0) -> 0 | BF11: =--BE11*0.5/100*'Distances for Transit Losses'!$C$67 -> 0 | BG11: 0 | BI11: no | BJ11: no | BK11: 0 | BL11: 0 | BM11: 0 | BO11: =IF($BJ11="No",MIN(-CV11,AS11-AY11/(1-0.5/100*'Distances for Transit Losses'!$C$51)),0) -> 0 | BP11: =IF($BJ11="No",MIN(-CV11+BO11,AU11-BA11/(1-0.5/100*'Distances for Transit Losses'!$C$51)),0) -> 0 | BQ11: 0 | BR11: 0 | BS11: 0 | BT11: 1.355519494 | BU11: =AN11+AO11+AR11+AS11+AT11+AU11+AV11-SUM(BO11:BS11) -> 1.355519494 | BV11: =-(IF($N11=99999.99999,0,VLOOKUP($B11,'NFC Well Dplns-SDF'!$B$7:$Z$306,16)+VLOOKUP($B11,'NFC Well Dplns-URF'!$B$7:$AB$306,13))/$QE11/1.9835) -> 0 | BW11: =-(IF($N11>=99999,0,'88CW264(B) Pumping'!$E9/1.9835)+IF($N11>=99999,0,'88CW264(B) Pumping'!$E45/1.9835)+IF($N11>=99999,0,'88CW264(B) Pumping'!$E85/1.9835)+IF($N11>=99999,0,'88CW264(B) Pumping'!$E121/1.9835)+IF($N11>=51134.50919,0,'88CW264(B) Pumping'!$F161/1.9835)+IF($N11>=53406,0,'88CW264(B) Pumping'!$E197/1.9835)) -> 0 | BX11: 0 | BY11: 0 | BZ11: 0 | CB11: =-(IF($N11=99999.99999,0,VLOOKUP($B11,'United No. 2 Dplns'!$B$7:$X$676,13)/1.9835)) -> 0 | CC11: =CB11+(-(INDEX('Pre 1995 Net Accretions'!$B$6:$M$105,MATCH($B$2,'Pre 1995 Net Accretions'!$A$6:$A$105,0),MATCH($A11,'Pre 1995 Net Accretions'!$B$5:$M$5,0))/$QE11/1.9835)) -> 0.02919695922 | CD11: =-(IF(N11<99999.99999,(INDEX('70 Ranch RF Obligation'!$B$6:$M$30,MATCH($B$2,'70 Ranch RF Obligation'!$A$6:$A$30,0),MATCH('ECCV Daily Replacement Summary'!A11,'70 Ranch RF Obligation'!$B$5:$M$5,0))/QE11)/1.9835,0))-CG11*(1-'L. Latham Credit'!$E$35) -> 0 | CE11: 0.02919695922 | CF11: =(VLOOKUP($B11,'ECCV 70R Pond Acrtns'!$B$7:$AI$1206,16)+VLOOKUP($B11,'ECCV 70R Canal Acrtns'!$B$7:$AI$1206,13)+VLOOKUP($B11,'2003 70R Pond Acrtns'!$B$7:$AI$1206,16)+VLOOKUP($B11,'2003 70R Canal Acrtns'!$B$7:$AI$1206,13))/$QE11/1.9835 -> 0 | CG11: 0 | CH11: 0 | CI11: -0.02919695922 | CJ11: 0 | CK11: 0 | CL11: 0 | CM11: 0 | CO11: 0 | CP11: =MIN(-(CE11+CI11),CO11) -> 0 | CQ11: 0 | CR11: =-CQ11*0.5/100*'Distances for Transit Losses'!$C$44 -> 0 | CS11: =MIN(CF11,-(CE11+CI11+CP11)) -> 0 | CT11: 0 | CU11: 0 | CV11: =BX11+BY11+BZ11+CE11+CI11+CP11+CS11 -> 0 | CW11: 0 | CX11: 0 | CY11: 0 | CZ11: =('NFC Well Pumping'!I9+'NFC Well Pumping'!I46+'NFC Well Pumping'!I82)/1.9835 -> 0 | DA11: =IF(AND(HX11-HY11-FA11>0,HS11="no"),MIN(-SUM(CV11:CZ11)/(1-0.5/100*'Distances for Transit Losses'!$C$69),HX11-HY11-FA11),0) -> 0 | DB11: =-DA11*0.5/100*'Distances for Transit Losses'!C$69 -> 0 | DC11: =IF(AND(GM11-GN11-IA11-FC11-JO11>0,ET11="no"),MIN(-SUM(CV11:DB11)/(1-0.5/100*'Distances for Transit Losses'!$C$71),GM11-GN11-IA11-FC11-JO11),0) -> 0 | DD11: =--DC11*0.5/100*'Distances for Transit Losses'!$C$71 -> 0 | DE11: =CF11+CO11-CP11-CQ11-SUM(CS11:CU11) -> 0 | DF11: =-(IF(DK11="Yes",((0.107*(INDEX('New Cache Credit'!$AR$70:$BC$95,MATCH($B$2,'New Cache Credit'!$AQ$70:$AQ$95,0),MATCH($A11,'New Cache Credit'!$AR$70:$BC$70,0))/$QE11))+(0.333*(INDEX('New Cache Credit'!$BG$70:$BR$95,MATCH($B$2,'New Cache Credit'!$BF$70:$BF$95,0),MATCH($A11,'New Cache Credit'!$BG$70:$BR$70,0))/$QE11)))/1.9835,0)) -> 0 | DG11: ='Joint Aug Station Deliveries'!J11 -> 0 | DH11: =-(DG11*0.5/100*'Distances for Transit Losses'!$C$154) -> 0 | DI11: 0 | DK11: no | DM11: 0 | DN11: 0 | DO11: =-(DN11*0.5/100*'Distances for Transit Losses'!$C$156) -> 0 | DP11: =-(IF(DZ11="Yes",((0.75*(INDEX('New Cache Credit'!$AR$70:$BC$95,MATCH($B$2,'New Cache Credit'!$AQ$70:$AQ$95,0),MATCH($A11,'New Cache Credit'!$AR$70:$BC$70,0))/$QE11))+(0.222*(INDEX('New Cache Credit'!$BG$70:$BR$95,MATCH($B$2,'New Cache Credit'!$BF$70:$BF$95,0),MATCH($A11,'New Cache Credit'!$BG$70:$BR$70,0))/$QE11)))/1.9835,0)) -> 0 | DQ11: =-(IF(DZ11="yes",(0.25*INDEX('GIC Credit'!$B$71:$M$96,MATCH($B$2,'GIC Credit'!$A$71:$A$96,0),MATCH($A11,'GIC Credit'!$B$71:$M$71,0))/$QE11)/1.9835,0)) -> 0 | DR11: 0 | DS11: 0 | DT11: 0 | DU11: =-(DT11*0.5/100*'Distances for Transit Losses'!$C$158) -> 0 | DV11: 0 | DW11: =-(DV11*0.5/100*('Distances for Transit Losses'!$C$160+'Distances for Transit Losses'!$C$170)) -> 0 | DX11: 0 | DZ11: no | EA11: 0 | EB11: =-(IF($N11<99999.99999,(INDEX('New Cache Credit'!$W$70:$AH$95,MATCH($B$2,'New Cache Credit'!$V$70:$V$95,0),MATCH($A11,'New Cache Credit'!$W$70:$AH$70,0))/$QE11)/1.9835,0))-DF11-DP11 -> 0 | EC11: =-(IF($N11<99999.99999,(INDEX('GIC Credit'!$B$71:$M$96,MATCH($B$2,'GIC Credit'!$A$71:$A$96,0),MATCH($A11,'GIC Credit'!$B$71:$M$71,0))/$QE11)/1.9835,0))-DQ11 -> 0 | ED11: 0 | EE11: =-(ED11*0.5/100*('Distances for Transit Losses'!$C$162+'Distances for Transit Losses'!$C$168)) -> 0 | EG11: =IF(EF11="yes",'Joint Aug Station Deliveries'!Q11,0) -> 0 | EH11: =-(EG11*0.5/100*('Distances for Transit Losses'!$C$164+'Distances for Transit Losses'!$C$166+'Distances for Transit Losses'!$C$168)) -> 0 | EI11: =IF(EF11="Yes",'Joint Aug Station Deliveries'!T11,0) -> 0 | EJ11: =-(EI11*0.5/100*('Distances for Transit Losses'!$C$166+'Distances for Transit Losses'!$C$168)) -> 0 | EK11: 0 | EL11: =-(EK11*0.5/100*'Distances for Transit Losses'!$C$172) -> 0 | EM11: 0 | EN11: 0 | EO11: 0 | EP11: 0 | EQ11: =-(IF(N11<99999.99999,INDEX('Hist RF to SPR'!$AF$6:$AQ$30,MATCH($B$2,'Hist RF to SPR'!$AE$6:$AE$30,0),MATCH($A11,'Hist RF to SPR'!$AF$5:$AQ$5,0))/QE11/1.9835,0)) -> 0 | ER11: 0 | ES11: 0 | ET11: no | EU11: 0 | EV11: 0 | EW11: 0 | EY11: 0 | EZ11: 0 | FA11: =IF(AND(HX11-HY11-GK11>0,HS11="no"),MIN(-(ES11+EY11+EZ11)/(1-0.5/100*'Distances for Transit Losses'!$C$73),HX11-HY11-GK11),0) -> 0 | FB11: =-FA11*0.5/100*'Distances for Transit Losses'!$C$73 -> 0 | FC11: =IF(AND(GM11-GN11-IA11>0,GB11="no"),MIN(-(ES11+EY11+EZ11+FA11+FB11)/(1-0.5/100*'Distances for Transit Losses'!$C$75),GM11-GN11-IA11),0) -> 0 | FD11: =-FC11*0.5/100*'Distances for Transit Losses'!$C$79 -> 0 | FE11: 0 | FG11: 0 | FI11: =IF(AND(FH10="no",(SUM('Joint Aug Station Deliveries'!$AA$9:'Joint Aug Station Deliveries'!$AA10)+'Joint Aug Station Deliveries'!$AA11)*1.9835>'New Cache Credit'!$BY$33,(SUM('Joint Aug Station Deliveries'!$AA$9:'Joint Aug Station Deliveries'!$AA10)+'Joint Aug Station Deliveries'!$AA11)*1.9835>'New Cache Credit'!$CH$33),0,'Joint Aug Station Deliveries'!S11) -> 0 | FJ11: =-(FI11*0.5/100*'Distances for Transit Losses'!$C$150) -> 0 | FL11: =IF(AND(FK10="no",(SUM('Joint Aug Station Deliveries'!$AA$9:'Joint Aug Station Deliveries'!$AA10)+'Joint Aug Station Deliveries'!$AA11)*1.9835>'New Cache Credit'!$BY$33,(SUM('Joint Aug Station Deliveries'!$AA$9:'Joint Aug Station Deliveries'!$AA10)+'Joint Aug Station Deliveries'!$AA11)*1.9835>'New Cache Credit'!$CH$33),0,'Joint Aug Station Deliveries'!V11) -> 0 | FM11: =-(FL11*0.5/100*'Distances for Transit Losses'!$C$142) -> 0 | FN11: =IF(AND(FK10="no",(SUM('Joint Aug Station Deliveries'!$AA$9:'Joint Aug Station Deliveries'!$AA10)+'Joint Aug Station Deliveries'!$AA11)*1.9835>'New Cache Credit'!$BY$33,(SUM('Joint Aug Station Deliveries'!$AA$9:'Joint Aug Station Deliveries'!$AA10)+'Joint Aug Station Deliveries'!$AA11)*1.9835>'New Cache Credit'!$CH$33),0,'Joint Aug Station Deliveries'!Y11) -> 0 | FO11: =-(FN11*0.5/100*'Distances for Transit Losses'!$C$148) -> 0 | FP11: 0 | FQ11: 0 | FR11: 0 | FS11: 1.355519494 | FT11: =-(IF(N11<99999.99999,INDEX('Hist RF to SPR'!$Q$6:$AB$30,MATCH($B$2,'Hist RF to SPR'!$P$6:$P$30,0),MATCH($A11,'Hist RF to SPR'!$Q$5:$AB$5,0))/QE11/1.9835,0)) -> 0 | FU11: =-(IF($N11<99999.99999,(INDEX('FIDCO Credit'!$X$42:$AI$66,MATCH($B$2,'FIDCO Credit'!$W$42:$W$66,0),MATCH($A11,'FIDCO Credit'!$X$41:$AI$41,0))/$QE11)/1.9835,0)) -> 0 | FV11: =-(IF($N11<99999.99999,(INDEX('Western Credit'!$W$72:$AH$96,MATCH($B$2,'Western Credit'!$V$72:$V$96,0),MATCH($A11,'Western Credit'!$W$71:$AH$71,0))/$QE11)/1.9835,0)) -> 0 | FW11: 0 | FX11: 0 | FY11: =VLOOKUP($B11,'ECCV Haren Pond S.P. Acrtns'!$B$7:$G$306,6)/$QE11/1.9835 -> 1.341957985 | FZ11: 0 | GA11: 0 | GB11: no | GC11: no | GD11: 0 | GE11: 0 | GF11: 0 | GH11: 0 | GI11: 0 | GJ11: 0 | GK11: =IF(AND(HX11-HY11>0,HS11="no"),MIN(-GJ11/(1-0.5/100*'Distances for Transit Losses'!$C$77),HX11-HY11),0) -> 0 | GL11: =-GK11*0.5/100*'Distances for Transit Losses'!$C$77 -> 0 | GM11: 0 | GN11: =IF(GM11>0,MIN(-(GJ11+GK11+GL11)/(1-0.5/100*'Distances for Transit Losses'!$C$79),GM11),0) -> 0 | GO11: =-GN11*0.5/100*'Distances for Transit Losses'!$C$79 -> 0 | GP11: 0 | GR11: 0 | GS11: ='Joint Aug Station Deliveries'!AJ11 -> 0 | GT11: =GS11*'Western Credit'!$Z$36 -> 0 | GU11: ='Joint Aug Station Deliveries'!AD11 -> 0 | GV11: 0 | GW11: =MAX(0,(JJ11+JK11))/(1-0.5/100*'Distances for Transit Losses'!$C$55) -> 0 | GX11: =MAX(0,(JL11+JM11)/(1-0.5/100*'Distances for Transit Losses'!$C$53)) -> 0 | GY11: 0 | GZ11: 0 | HA11: 0 | HB11: =-HA11*0.5/100*'Distances for Transit Losses'!$C$34 -> 0 | HC11: 0 | HD11: 0 | HE11: 0 | HF11: 0 | HG11: 0 | HH11: 0 | HI11: 1.355519494 | HJ11: 0 | HK11: 0 | HL11: 0 | HM11: 0 | HN11: 0 | HO11: 1.341957985 | HP11: 0 | HQ11: 1.355519494 | HR11: =-(IF(F11<99999.99999,INDEX('Hist RF to SPR'!$B$6:$M$30,MATCH($B$2,'Hist RF to SPR'!$A$6:$A$30,0),MATCH($A11,'Hist RF to SPR'!$B$5:$M$5,0))/QE11/1.9835,0)) -> 0 | HS11: no | HT11: =IF($HS11="No",MIN(-(HR11),HP11),0) -> 0 | HU11: =IF(AND(HS11="No",$BJ11="No"),MIN(-(HR11+HT11),HQ11),0) -> 0 | HV11: 0 | HW11: =HR11+HT11+HU11+HV11 -> 0 | HX11: 0 | HY11: =IF(HX11>0,MIN(-HW11/(1-0.5/100*'Distances for Transit Losses'!$C$81),HX11),0) -> 0 | HZ11: =-HY11*0.5/100*'Distances for Transit Losses'!$C$81 -> 0 | IA11: 0 | IB11: 0 | ID11: 0 | IE11: 1.355519494 | IF11: 0 | IG11: 0 | IH11: 0 | II11: 0 | IJ11: 0 | IK11: =IF11+IH11+II11+IJ11 -> 0 | IL11: 0 | IM11: 1.355519494 | IN11: =-(IF(N11<99999.99999,(VLOOKUP(B11,'ECCV Upper Dpln'!$B$7:$BD$306,55))/QE11/1.9835,0)) -> 0 | IO11: =-(IF(N11<99999.99999,INDEX('Hist RF abv Milton'!$B$6:$M$30,MATCH($B$2,'Hist RF abv Milton'!$A$6:$A$30,0),MATCH($A11,'Hist RF abv Milton'!$B$5:$M$5,0))/QE11/1.9835,0)) -> 0 | IP11: =-(VLOOKUP(B11,'Unlagged Hist RF'!$A$9:$AN$308,36)/QE11/1.9835) -> 0 | IQ11: =(VLOOKUP($B11,'ECCV Beebe Pond Acrtns'!$B$7:$BI$1206,41)+VLOOKUP($B11,'ECCV Canal Acrtns'!$B$7:$AL$1206,22)+VLOOKUP($B11,'2003 Beebe Pond Acrtns'!$B$7:$BI$1206,41)+VLOOKUP($B11,'2003 Canal Acrtns'!$B$7:$AL$1206,22))/$QE11/1.9835 -> 1.053799341 | IR11: 0 | IS11: 0 | IT11: 0 | IU11: 0 | IV11: 0 | IW11: no | IX11: 0 | IY11: 0 | IZ11: 0 | JA11: 0 | JB11: 0 | JC11: 0 | JD11: 0 | JE11: 0 | JF11: =-(JE11*0.5/100*'Distances for Transit Losses'!$C$6) -> 0 | JG11: 0 | JH11: 0 | JI11: 0 | JJ11: =MIN(-(JD11+JG11),GV11-GV11*0.5/100*'Distances for Transit Losses'!$C$55) -> 0 | JK11: =MAX(0,MIN(-(JC11+JE11+JF11+JI11),GV11-GV11*0.5/100*'Distances for Transit Losses'!$C$55-JJ11/(1-0.5/100*'Distances for Transit Losses'!$C$55))) -> 0 | JL11: =MIN(-(JD11+JJ11),GT11-GT11*0.5/100*'Distances for Transit Losses'!$C$53) -> 0 | JM11: =MAX(0,MIN(-(JC11+JE11+JF11+JK11),GT11-GT11*0.5/100*'Distances for Transit Losses'!$C$53-JL11/(1-0.5/100*'Distances for Transit Losses'!$C$53))) -> 0 | JN11: =IF(ET11="no",MIN(-(MIN(0,JC11+JE11+JF11+JK11+JM11)),(FY11-FZ11)-(FY11-FZ11)*0.5/100*'Distances for Transit Losses'!$C$53),0) -> 0 | JO11: =IF(AND(GM11-GN11-IA11-FC11>0,ET11="no"),MIN(-(JC11+JE11+JF11+JI11+JK11+JM11+JN11)/(1-0.5/100*'Distances for Transit Losses'!$C$59),GM11-GN11-IA11-FC11),0) -> 0 | JP11: =JO11*0.5/100*'Distances for Transit Losses'!$D$59 -> 0 | JQ11: 0 | JS11: 0 | JT11: 1.053799341 | JU11: 0 | JV11: 0 | JW11: 1.355519494 | JX11: =-(IF(N11<99999.99999,INDEX('Hist RF blw Milton'!$B$6:$M$30,MATCH($B$2,'Hist RF blw Milton'!$A$6:$A$30,0),MATCH($A11,'Hist RF blw Milton'!$B$5:$M$5,0))/QE11/1.9835,0)) -> 0 | JY11: no | JZ11: 0 | KA11: 0 | KB11: 0 | KC11: 0 | KD11: 0 | KE11: 0 | KG11: 0 | KH11: 1.355519494 | KI11: =-(IF(N11<99999.99999,INDEX('Hist RF to Box Elder'!$B$6:$M$30,MATCH($B$2,'Hist RF to Box Elder'!$A$6:$A$30,0),MATCH($A11,'Hist RF to Box Elder'!$B$5:$M$5,0))/QE11/1.9835,0)) -> 0 | KJ11: =(VLOOKUP($B11,'ECCV Beebe Pond Acrtns'!$B$7:$BI$1206,54)+VLOOKUP($B11,'ECCV Canal Acrtns'!$B$7:$AL$1206,34)+VLOOKUP($B11,'2003 Beebe Pond Acrtns'!$B$7:$AL$1206,34)+VLOOKUP($B11,'2003 Canal Acrtns'!$B$7:$AL$1206,34)+VLOOKUP($B11,'84CW090 Beebe Pond Acrtns'!$B$7:$AL$1206,34)+VLOOKUP($B11,'84CW090 Canal Acrtns'!$B$7:$AL$1206,34))/$QE11/1.9835 -> 0.06977267982 | KK11: 0 | KL11: 0 | KM11: 0 | KN11: 0 | KP11: 0.02919695922 | KQ11: =IU11+IV11+SUM(IY11:JB11)+SUM(JE11:JQ11) -> 0 | KR11: 0 | KS11: 0 | KT11: 0 | KU11: 0 | KV11: 0 | KW11: 0 | KX11: -0.02919695922 | KY11: 0 | KZ11: -0.02919695922 | LA11: 0 | LB11: 1.053799341 | LC11: 0 | LD11: 1.355519494 | LK11: 0 | LL11: 0 | LM11: 0 | LO11: 0 | LP11: 0 | LQ11: 0 | LR11: 0 | LS11: 0 | LT11: 0 | LU11: 0 | LV11: 0 | LW11: 0 | LX11: 0 | LY11: 0 | LZ11: 0 | MB11: 0 | MC11: 0 | MD11: 0 | ME11: 0 | MF11: 0 | MG11: 0 | MH11: 0 | MI11: 0 | MJ11: 0 | MK11: 0 | ML11: 0 | MN11: 1.355519494 | MO11: 0 | MP11: 0 | MQ11: 0 | MR11: 0 | MS11: 0 | MT11: 0 | MU11: 0 | MV11: 0 | MW11: 0 | MX11: 0 | ND11: 0 | NE11: 0 | NF11: 0 | NG11: 0 | NH11: 0 | NI11: 0 | NJ11: 0 | NK11: 0 | NL11: 0 | NN11: 0 | NO11: 0 | NP11: 0 | NQ11: 0 | NR11: 0 | NS11: 0 | NT11: 0 | NU11: 0 | NV11: 0 | NY11: 0 | NZ11: 0 | OA11: 0 | OB11: 0 | OC11: 0 | OD11: 0 | OE11: 0 | OH11: 0 | OI11: 0 | OL11: 0 | OM11: 0 | ON11: 0 | OQ11: 0 | OR11: 0 | OS11: 0 | OT11: 0 | OU11: 0 | OV11: 0 | OW11: 0 | OY11: 0 | OZ11: 0 | PA11: 0 | PB11: =LL11+SUM(MO11:MU11)+SUM(MC11:MI11)+SUM(LP11:LW11)+SUM(ND11:NI11)+SUM(NO11:NS11)+SUM(NY11:OB11)+SUM(OQ11:OT11) -> 0 | PC11: 0 | PD11: 309.6 | PF11: 1.053799341 | PG11: 0 | PH11: 0 | PI11: 0 | PJ11: 0 | PK11: 0 | PL11: 0 | PM11: 0 | PN11: 0 | PO11: 0 | PP11: 0 | PQ11: 0 | PR11: 0 | PS11: 0 | PT11: 0 | PU11: 0 | PV11: 0 | PW11: 0 | PX11: 0 | PY11: 0 | PZ11: =PF11-SUM(PG11:PY11) -> 1.053799341 | QB11: 0 | QC11: 0 | QE11: =VLOOKUP(A11,'Control Sheet'!$G$9:$H$20,2) -> 30
A12: Apr | B12: 2015-04-04 | C12: Free River | F12: 99999.99999 | K12: Free River | N12: 99999.99999 | S12: 1.355519494 | T12: 0 | U12: 0 | V12: 0 | X12: 0 | Y12: =('NFC Well Pumping'!$L10+'NFC Well Pumping'!$L47+'NFC Well Pumping'!$L83+'NFC Well Pumping'!$L119)/1.9835 -> 0 | Z12: ='88CW264(B) Pumping'!$E10/1.9835+'88CW264(B) Pumping'!$E46/1.9835+'88CW264(B) Pumping'!E86/1.9835+'88CW264(B) Pumping'!E122/1.9835+'88CW264(B) Pumping'!F162/1.9835+'88CW264(B) Pumping'!E198/1.9835 -> 0.009639106611 | AA12: 1.355519494 | AB12: =('United No. 2 Well Pumping'!G11+'United No. 2 Well Pumping'!G47+'United No. 2 Well Pumping'!G83)/1.9835 -> 0 | AC12: =('United No. 2 Well Pumping'!F11+'United No. 2 Well Pumping'!F47+'United No. 2 Well Pumping'!F83)/1.9835 -> 0 | AD12: 0 | AF12: 0.009639106611 | AG12: =AC12+U12+'United Res'!AA11+'United Res'!AQ11+'Gilcrest Res'!D11 -> 0 | AH12: 100 | AI12: =-(IF($N12=99999.99999,0,VLOOKUP($B12,'NFC Well Dplns-URF'!B$7:$AB$306,27))/$QE12/1.9835) -> 0 | AJ12: 0 | AL12: =(VLOOKUP($B12,'ECCV 70R Pond Acrtns'!$B$7:$AI$1206,34)+VLOOKUP($B12,'2003 70R Pond Acrtns'!$B$7:$AI$1206,34)+VLOOKUP($B12,'ECCV 70R Canal Acrtns'!$B$7:$AI$1206,27)+VLOOKUP($B12,'2003 70R Canal Acrtns'!$B$7:$AI$1206,27))/$QE12/1.9835 -> 0 | AM12: 0 | AN12: =-(IF($N12=99999.99999,0,VLOOKUP($B12,'NFC Well Dplns-SDF'!$B$7:$Z$306,25)+VLOOKUP($B12,'NFC Well Dplns-URF'!B$7:$AB$306,20))/$QE12/1.9835) -> 0 | AO12: 0 | AP12: 0 | AR12: =-AV12*'Weldon Credit'!$Z$36 -> 0 | AS12: =0.4*(INDEX('Riverside Pond Accrtns'!$B$6:$M$36,MATCH($B$2,'Riverside Pond Accrtns'!$A$6:$A$36,0),MATCH('ECCV Daily Replacement Summary'!A12,'Riverside Pond Accrtns'!$B$5:$M$5,0))/QE12)/1.9835 -> 0.9942021679 | AT12: =(44/640)*(INDEX('Weldon Valley Accrtns (02CW377)'!$B$6:$M$30,MATCH($B$2,'Weldon Valley Accrtns (02CW377)'!$A$6:$A$30,0),MATCH(A12,'Weldon Valley Accrtns (02CW377)'!$B$5:$M$5,0))/QE12)/1.9835 -> 0.3613173263 | AU12: =(VLOOKUP($B12,'ECCV 70R Pond Acrtns'!$B$7:$AI$1206,25)+VLOOKUP($B12,'ECCV 70R Canal Acrtns'!$B$7:$AI$1206,20)+VLOOKUP($B12,'2003 70R Pond Acrtns'!$B$7:$AI$1206,25)+VLOOKUP($B12,'2003 70R Canal Acrtns'!$B$7:$AI$1206,20))/$QE12/1.9835 -> 0 | AV12: ='Joint Aug Station Deliveries'!G12 -> 0 | AW12: 0 | AX12: 0 | AY12: =MIN(-($AR12+AX12),AS12-AS12*0.5/100*'Distances for Transit Losses'!$C$51) -> 0 | AZ12: 0 | BA12: =MIN(-($AR12+AX12+AY12+AZ12),AU12-AU12*0.5/100*'Distances for Transit Losses'!$C$51) -> 0 | BB12: =-((AY12+BA12)/(1-0.5/100*'Distances for Transit Losses'!$C$51)-(AY12+BA12)) -> 0 | BC12: =IF(AND(IF12-IG12-FI12-DI12>0,IA12="no"),MIN(-(AR12+AX12+AY12+AZ12+BA12+BB12)/(1-0.5/100*'Distances for Transit Losses'!$C$65),IF12-IG12-FI12-DI12),0) -> 0 | BD12: =--BC12*0.5/100*'Distances for Transit Losses'!C$65 -> 0 | BE12: =IF(AND(GM12-GN12-IA12-FC12-JO12-DC12>0,ET12="no"),MIN(-(AR12+SUM(AX12:BD12))/(1-0.5/100*'Distances for Transit Losses'!$C$71),GM12-GN12-IA12-FC12-JO12-DC12),0) -> 0 | BF12: =--BE12*0.5/100*'Distances for Transit Losses'!$C$67 -> 0 | BG12: 0 | BI12: no | BJ12: no | BK12: 0 | BL12: 0 | BM12: 0 | BO12: =IF($BJ12="No",MIN(-CV12,AS12-AY12/(1-0.5/100*'Distances for Transit Losses'!$C$51)),0) -> 0 | BP12: =IF($BJ12="No",MIN(-CV12+BO12,AU12-BA12/(1-0.5/100*'Distances for Transit Losses'!$C$51)),0) -> 0 | BQ12: 0 | BR12: 0 | BS12: 0 | BT12: 1.355519494 | BU12: 1.355519494 | BV12: =-(IF($N12=99999.99999,0,VLOOKUP($B12,'NFC Well Dplns-SDF'!$B$7:$Z$306,16)+VLOOKUP($B12,'NFC Well Dplns-URF'!$B$7:$AB$306,13))/$QE12/1.9835) -> 0 | BW12: =-(IF($N12>=99999,0,'88CW264(B) Pumping'!$E10/1.9835)+IF($N12>=99999,0,'88CW264(B) Pumping'!$E46/1.9835)+IF($N12>=99999,0,'88CW264(B) Pumping'!$E86/1.9835)+IF($N12>=99999,0,'88CW264(B) Pumping'!$E122/1.9835)+IF($N12>=51134.50919,0,'88CW264(B) Pumping'!$F162/1.9835)+IF($N12>=53406,0,'88CW264(B) Pumping'!$E198/1.9835)) -> 0 | BX12: 0 | BY12: 0 | BZ12: 0 | CB12: =-(IF($N12=99999.99999,0,VLOOKUP($B12,'United No. 2 Dplns'!$B$7:$X$676,13)/1.9835)) -> 0 | CC12: =CB12+(-(INDEX('Pre 1995 Net Accretions'!$B$6:$M$105,MATCH($B$2,'Pre 1995 Net Accretions'!$A$6:$A$105,0),MATCH($A12,'Pre 1995 Net Accretions'!$B$5:$M$5,0))/$QE12/1.9835)) -> 0.02919695922 | CD12: =-(IF(N12<99999.99999,(INDEX('70 Ranch RF Obligation'!$B$6:$M$30,MATCH($B$2,'70 Ranch RF Obligation'!$A$6:$A$30,0),MATCH('ECCV Daily Replacement Summary'!A12,'70 Ranch RF Obligation'!$B$5:$M$5,0))/QE12)/1.9835,0))-CG12*(1-'L. Latham Credit'!$E$35) -> 0 | CE12: 0.02919695922 | CF12: =(VLOOKUP($B12,'ECCV 70R Pond Acrtns'!$B$7:$AI$1206,16)+VLOOKUP($B12,'ECCV 70R Canal Acrtns'!$B$7:$AI$1206,13)+VLOOKUP($B12,'2003 70R Pond Acrtns'!$B$7:$AI$1206,16)+VLOOKUP($B12,'2003 70R Canal Acrtns'!$B$7:$AI$1206,13))/$QE12/1.9835 -> 0 | CG12: 0 | CH12: 0 | CI12: -0.02919695922 | CJ12: 0 | CK12: 0 | CL12: 0 | CM12: 0 | CO12: 0 | CP12: 0 | CQ12: 0 | CR12: =-CQ12*0.5/100*'Distances for Transit Losses'!$C$44 -> 0 | CS12: 0 | CT12: 0 | CU12: 0 | CV12: 0 | CW12: 0 | CX12: 0 | CY12: 0 | CZ12: =('NFC Well Pumping'!I10+'NFC Well Pumping'!I47+'NFC Well Pumping'!I83)/1.9835 -> 0 | DA12: =IF(AND(HX12-HY12-FA12>0,HS12="no"),MIN(-SUM(CV12:CZ12)/(1-0.5/100*'Distances for Transit Losses'!$C$69),HX12-HY12-FA12),0) -> 0 | DB12: =-DA12*0.5/100*'Distances for Transit Losses'!C$69 -> 0 | DC12: =IF(AND(GM12-GN12-IA12-FC12-JO12>0,ET12="no"),MIN(-SUM(CV12:DB12)/(1-0.5/100*'Distances for Transit Losses'!$C$71),GM12-GN12-IA12-FC12-JO12),0) -> 0 | DD12: =--DC12*0.5/100*'Distances for Transit Losses'!$C$71 -> 0 | DE12: 0 | DF12: =-(IF(DK12="Yes",((0.107*(INDEX('New Cache Credit'!$AR$70:$BC$95,MATCH($B$2,'New Cache Credit'!$AQ$70:$AQ$95,0),MATCH($A12,'New Cache Credit'!$AR$70:$BC$70,0))/$QE12))+(0.333*(INDEX('New Cache Credit'!$BG$70:$BR$95,MATCH($B$2,'New Cache Credit'!$BF$70:$BF$95,0),MATCH($A12,'New Cache Credit'!$BG$70:$BR$70,0))/$QE12)))/1.9835,0)) -> 0 | DG12: ='Joint Aug Station Deliveries'!J12 -> 0 | DH12: =-(DG12*0.5/100*'Distances for Transit Losses'!$C$154) -> 0 | DI12: 0 | DK12: no | DM12: 0 | DN12: 0 | DO12: =-(DN12*0.5/100*'Distances for Transit Losses'!$C$156) -> 0 | DP12: =-(IF(DZ12="Yes",((0.75*(INDEX('New Cache Credit'!$AR$70:$BC$95,MATCH($B$2,'New Cache Credit'!$AQ$70:$AQ$95,0),MATCH($A12,'New Cache Credit'!$AR$70:$BC$70,0))/$QE12))+(0.222*(INDEX('New Cache Credit'!$BG$70:$BR$95,MATCH($B$2,'New Cache Credit'!$BF$70:$BF$95,0),MATCH($A12,'New Cache Credit'!$BG$70:$BR$70,0))/$QE12)))/1.9835,0)) -> 0 | DQ12: =-(IF(DZ12="yes",(0.25*INDEX('GIC Credit'!$B$71:$M$96,MATCH($B$2,'GIC Credit'!$A$71:$A$96,0),MATCH($A12,'GIC Credit'!$B$71:$M$71,0))/$QE12)/1.9835,0)) -> 0 | DR12: 0 | DS12: 0 | DT12: 0 | DU12: =-(DT12*0.5/100*'Distances for Transit Losses'!$C$158) -> 0 | DV12: 0 | DW12: =-(DV12*0.5/100*('Distances for Transit Losses'!$C$160+'Distances for Transit Losses'!$C$170)) -> 0 | DX12: 0 | DZ12: no | EA12: 0 | EB12: =-(IF($N12<99999.99999,(INDEX('New Cache Credit'!$W$70:$AH$95,MATCH($B$2,'New Cache Credit'!$V$70:$V$95,0),MATCH($A12,'New Cache Credit'!$W$70:$AH$70,0))/$QE12)/1.9835,0))-DF12-DP12 -> 0 | EC12: =-(IF($N12<99999.99999,(INDEX('GIC Credit'!$B$71:$M$96,MATCH($B$2,'GIC Credit'!$A$71:$A$96,0),MATCH($A12,'GIC Credit'!$B$71:$M$71,0))/$QE12)/1.9835,0))-DQ12 -> 0 | ED12: 0 | EE12: =-(ED12*0.5/100*('Distances for Transit Losses'!$C$162+'Distances for Transit Losses'!$C$168)) -> 0 | EG12: =IF(EF12="yes",'Joint Aug Station Deliveries'!Q12,0) -> 0 | EH12: =-(EG12*0.5/100*('Distances for Transit Losses'!$C$164+'Distances for Transit Losses'!$C$166+'Distances for Transit Losses'!$C$168)) -> 0 | EI12: =IF(EF12="Yes",'Joint Aug Station Deliveries'!T12,0) -> 0 | EJ12: =-(EI12*0.5/100*('Distances for Transit Losses'!$C$166+'Distances for Transit Losses'!$C$168)) -> 0 | EK12: 0 | EL12: =-(EK12*0.5/100*'Distances for Transit Losses'!$C$172) -> 0 | EM12: 0 | EN12: 0 | EO12: 0 | EP12: 0 | EQ12: =-(IF(N12<99999.99999,INDEX('Hist RF to SPR'!$AF$6:$AQ$30,MATCH($B$2,'Hist RF to SPR'!$AE$6:$AE$30,0),MATCH($A12,'Hist RF to SPR'!$AF$5:$AQ$5,0))/QE12/1.9835,0)) -> 0 | ER12: 0 | ES12: 0 | ET12: no | EU12: 0 | EV12: 0 | EW12: 0 | EY12: 0 | EZ12: 0 | FA12: =IF(AND(HX12-HY12-GK12>0,HS12="no"),MIN(-(ES12+EY12+EZ12)/(1-0.5/100*'Distances for Transit Losses'!$C$73),HX12-HY12-GK12),0) -> 0 | FB12: =-FA12*0.5/100*'Distances for Transit Losses'!$C$73 -> 0 | FC12: =IF(AND(GM12-GN12-IA12>0,GB12="no"),MIN(-(ES12+EY12+EZ12+FA12+FB12)/(1-0.5/100*'Distances for Transit Losses'!$C$75),GM12-GN12-IA12),0) -> 0 | FD12: =-FC12*0.5/100*'Distances for Transit Losses'!$C$79 -> 0 | FE12: 0 | FG12: 0 | FI12: =IF(AND(FH11="no",(SUM('Joint Aug Station Deliveries'!$AA$9:'Joint Aug Station Deliveries'!$AA11)+'Joint Aug Station Deliveries'!$AA12)*1.9835>'New Cache Credit'!$BY$33,(SUM('Joint Aug Station Deliveries'!$AA$9:'Joint Aug Station Deliveries'!$AA11)+'Joint Aug Station Deliveries'!$AA12)*1.9835>'New Cache Credit'!$CH$33),0,'Joint Aug Station Deliveries'!S12) -> 0 | FJ12: =-(FI12*0.5/100*'Distances for Transit Losses'!$C$150) -> 0 | FL12: =IF(AND(FK11="no",(SUM('Joint Aug Station Deliveries'!$AA$9:'Joint Aug Station Deliveries'!$AA11)+'Joint Aug Station Deliveries'!$AA12)*1.9835>'New Cache Credit'!$BY$33,(SUM('Joint Aug Station Deliveries'!$AA$9:'Joint Aug Station Deliveries'!$AA11)+'Joint Aug Station Deliveries'!$AA12)*1.9835>'New Cache Credit'!$CH$33),0,'Joint Aug Station Deliveries'!V12) -> 0 | FM12: =-(FL12*0.5/100*'Distances for Transit Losses'!$C$142) -> 0 | FN12: =IF(AND(FK11="no",(SUM('Joint Aug Station Deliveries'!$AA$9:'Joint Aug Station Deliveries'!$AA11)+'Joint Aug Station Deliveries'!$AA12)*1.9835>'New Cache Credit'!$BY$33,(SUM('Joint Aug Station Deliveries'!$AA$9:'Joint Aug Station Deliveries'!$AA11)+'Joint Aug Station Deliveries'!$AA12)*1.9835>'New Cache Credit'!$CH$33),0,'Joint Aug Station Deliveries'!Y12) -> 0 | FO12: =-(FN12*0.5/100*'Distances for Transit Losses'!$C$148) -> 0 | FP12: 0 | FQ12: 0 | FR12: 0 | FS12: 1.355519494 | FT12: =-(IF(N12<99999.99999,INDEX('Hist RF to SPR'!$Q$6:$AB$30,MATCH($B$2,'Hist RF to SPR'!$P$6:$P$30,0),MATCH($A12,'Hist RF to SPR'!$Q$5:$AB$5,0))/QE12/1.9835,0)) -> 0 | FU12: =-(IF($N12<99999.99999,(INDEX('FIDCO Credit'!$X$42:$AI$66,MATCH($B$2,'FIDCO Credit'!$W$42:$W$66,0),MATCH($A12,'FIDCO Credit'!$X$41:$AI$41,0))/$QE12)/1.9835,0)) -> 0 | FV12: =-(IF($N12<99999.99999,(INDEX('Western Credit'!$W$72:$AH$96,MATCH($B$2,'Western Credit'!$V$72:$V$96,0),MATCH($A12,'Western Credit'!$W$71:$AH$71,0))/$QE12)/1.9835,0)) -> 0 | FW12: 0 | FX12: 0 | FY12: =VLOOKUP($B12,'ECCV Haren Pond S.P. Acrtns'!$B$7:$G$306,6)/$QE12/1.9835 -> 1.341957985 | FZ12: 0 | GA12: 0 | GB12: no | GC12: no | GD12: 0 | GE12: 0 | GF12: 0 | GH12: 0 | GI12: 0 | GJ12: 0 | GK12: =IF(AND(HX12-HY12>0,HS12="no"),MIN(-GJ12/(1-0.5/100*'Distances for Transit Losses'!$C$77),HX12-HY12),0) -> 0 | GL12: =-GK12*0.5/100*'Distances for Transit Losses'!$C$77 -> 0 | GM12: 0 | GN12: =IF(GM12>0,MIN(-(GJ12+GK12+GL12)/(1-0.5/100*'Distances for Transit Losses'!$C$79),GM12),0) -> 0 | GO12: =-GN12*0.5/100*'Distances for Transit Losses'!$C$79 -> 0 | GP12: 0 | GR12: 0 | GS12: ='Joint Aug Station Deliveries'!AJ12 -> 0 | GT12: =GS12*'Western Credit'!$Z$36 -> 0 | GU12: ='Joint Aug Station Deliveries'!AD12 -> 0 | GV12: 0 | GW12: =MAX(0,(JJ12+JK12))/(1-0.5/100*'Distances for Transit Losses'!$C$55) -> 0 | GX12: =MAX(0,(JL12+JM12)/(1-0.5/100*'Distances for Transit Losses'!$C$53)) -> 0 | GY12: 0 | GZ12: 0 | HA12: 0 | HB12: =-HA12*0.5/100*'Distances for Transit Losses'!$C$34 -> 0 | HC12: 0 | HD12: 0 | HE12: 0 | HF12: 0 | HG12: 0 | HH12: 0 | HI12: 1.355519494 | HJ12: 0 | HK12: 0 | HL12: 0 | HM12: 0 | HN12: 0 | HO12: 1.341957985 | HP12: 0 | HQ12: 1.355519494 | HR12: =-(IF(F12<99999.99999,INDEX('Hist RF to SPR'!$B$6:$M$30,MATCH($B$2,'Hist RF to SPR'!$A$6:$A$30,0),MATCH($A12,'Hist RF to SPR'!$B$5:$M$5,0))/QE12/1.9835,0)) -> 0 | HS12: no | HT12: 0 | HU12: 0 | HV12: 0 | HW12: 0 | HX12: 0 | HY12: =IF(HX12>0,MIN(-HW12/(1-0.5/100*'Distances for Transit Losses'!$C$81),HX12),0) -> 0 | HZ12: =-HY12*0.5/100*'Distances for Transit Losses'!$C$81 -> 0 | IA12: 0 | IB12: 0 | ID12: 0 | IE12: 1.355519494 | IF12: 0 | IG12: 0 | IH12: 0 | II12: 0 | IJ12: 0 | IK12: 0 | IL12: 0 | IM12: 1.355519494 | IN12: =-(IF(N12<99999.99999,(VLOOKUP(B12,'ECCV Upper Dpln'!$B$7:$BD$306,55))/QE12/1.9835,0)) -> 0 | IO12: =-(IF(N12<99999.99999,INDEX('Hist RF abv Milton'!$B$6:$M$30,MATCH($B$2,'Hist RF abv Milton'!$A$6:$A$30,0),MATCH($A12,'Hist RF abv Milton'!$B$5:$M$5,0))/QE12/1.9835,0)) -> 0 | IP12: =-(VLOOKUP(B12,'Unlagged Hist RF'!$A$9:$AN$308,36)/QE12/1.9835) -> 0 | IQ12: =(VLOOKUP($B12,'ECCV Beebe Pond Acrtns'!$B$7:$BI$1206,41)+VLOOKUP($B12,'ECCV Canal Acrtns'!$B$7:$AL$1206,22)+VLOOKUP($B12,'2003 Beebe Pond Acrtns'!$B$7:$BI$1206,41)+VLOOKUP($B12,'2003 Canal Acrtns'!$B$7:$AL$1206,22))/$QE12/1.9835 -> 1.053799341 | IR12: 0 | IS12: 0 | IT12: 0 | IU12: 0 | IV12: 0 | IW12: no | IX12: 0 | IY12: 0 | IZ12: 0 | JA12: 0 | JB12: 0 | JC12: 0 | JD12: 0 | JE12: 0 | JF12: =-(JE12*0.5/100*'Distances for Transit Losses'!$C$6) -> 0 | JG12: 0 | JH12: 0 | JI12: 0 | JJ12: =MIN(-(JD12+JG12),GV12-GV12*0.5/100*'Distances for Transit Losses'!$C$55) -> 0 | JK12: =MAX(0,MIN(-(JC12+JE12+JF12+JI12),GV12-GV12*0.5/100*'Distances for Transit Losses'!$C$55-JJ12/(1-0.5/100*'Distances for Transit Losses'!$C$55))) -> 0 | JL12: =MIN(-(JD12+JJ12),GT12-GT12*0.5/100*'Distances for Transit Losses'!$C$53) -> 0 | JM12: =MAX(0,MIN(-(JC12+JE12+JF12+JK12),GT12-GT12*0.5/100*'Distances for Transit Losses'!$C$53-JL12/(1-0.5/100*'Distances for Transit Losses'!$C$53))) -> 0 | JN12: =IF(ET12="no",MIN(-(MIN(0,JC12+JE12+JF12+JK12+JM12)),(FY12-FZ12)-(FY12-FZ12)*0.5/100*'Distances for Transit Losses'!$C$53),0) -> 0 | JO12: =IF(AND(GM12-GN12-IA12-FC12>0,ET12="no"),MIN(-(JC12+JE12+JF12+JI12+JK12+JM12+JN12)/(1-0.5/100*'Distances for Transit Losses'!$C$59),GM12-GN12-IA12-FC12),0) -> 0 | JP12: =JO12*0.5/100*'Distances for Transit Losses'!$D$59 -> 0 | JQ12: 0 | JS12: 0 | JT12: 1.053799341 | JU12: 0 | JV12: 0 | JW12: 1.355519494 | JX12: =-(IF(N12<99999.99999,INDEX('Hist RF blw Milton'!$B$6:$M$30,MATCH($B$2,'Hist RF blw Milton'!$A$6:$A$30,0),MATCH($A12,'Hist RF blw Milton'!$B$5:$M$5,0))/QE12/1.9835,0)) -> 0 | JY12: no | JZ12: 0 | KA12: 0 | KB12: 0 | KC12: 0 | KD12: 0 | KE12: 0 | KG12: 0 | KH12: 1.355519494 | KI12: =-(IF(N12<99999.99999,INDEX('Hist RF to Box Elder'!$B$6:$M$30,MATCH($B$2,'Hist RF to Box Elder'!$A$6:$A$30,0),MATCH($A12,'Hist RF to Box Elder'!$B$5:$M$5,0))/QE12/1.9835,0)) -> 0 | KJ12: =(VLOOKUP($B12,'ECCV Beebe Pond Acrtns'!$B$7:$BI$1206,54)+VLOOKUP($B12,'ECCV Canal Acrtns'!$B$7:$AL$1206,34)+VLOOKUP($B12,'2003 Beebe Pond Acrtns'!$B$7:$AL$1206,34)+VLOOKUP($B12,'2003 Canal Acrtns'!$B$7:$AL$1206,34)+VLOOKUP($B12,'84CW090 Beebe Pond Acrtns'!$B$7:$AL$1206,34)+VLOOKUP($B12,'84CW090 Canal Acrtns'!$B$7:$AL$1206,34))/$QE12/1.9835 -> 0.06977267982 | KK12: 0 | KL12: 0 | KM12: 0 | KN12: 0 | KP12: 0.02919695922 | KQ12: =IU12+IV12+SUM(IY12:JB12)+SUM(JE12:JQ12) -> 0 | KR12: 0 | KS12: 0 | KT12: 0 | KU12: 0 | KV12: 0 | KW12: 0 | KX12: -0.02919695922 | KY12: 0 | KZ12: -0.02919695922 | LA12: 0 | LB12: 1.053799341 | LC12: 0 | LD12: 1.355519494 | LK12: 0 | LL12: 0 | LM12: 0 | LO12: 0 | LP12: 0 | LQ12: 0 | LR12: 0 | LS12: 0 | LT12: 0 | LU12: 0 | LV12: 0 | LW12: 0 | LX12: 0 | LY12: 0 | LZ12: 0 | MB12: 0 | MC12: 0 | MD12: 0 | ME12: 0 | MF12: 0 | MG12: 0 | MH12: 0 | MI12: 0 | MJ12: 0 | MK12: 0 | ML12: 0 | MN12: 1.355519494 | MO12: 0 | MP12: 0 | MQ12: 0 | MR12: 0 | MS12: 0 | MT12: 0 | MU12: 0 | MV12: 0 | MW12: 0 | MX12: 0 | ND12: 0 | NE12: 0 | NF12: 0 | NG12: 0 | NH12: 0 | NI12: 0 | NJ12: 0 | NK12: 0 | NL12: 0 | NN12: 0 | NO12: 0 | NP12: 0 | NQ12: 0 | NR12: 0 | NS12: 0 | NT12: 0 | NU12: 0 | NV12: 0 | NY12: 0 | NZ12: 0 | OA12: 0 | OB12: 0 | OC12: 0 | OD12: 0 | OE12: 0 | OH12: 0 | OI12: 0 | OL12: 0 | OM12: 0 | ON12: 0 | OQ12: 0 | OR12: 0 | OS12: 0 | OT12: 0 | OU12: 0 | OV12: 0 | OW12: 0 | OY12: 0 | OZ12: 0 | PA12: 0 | PB12: 0 | PC12: 0 | PD12: 309.6 | PF12: 1.053799341 | PG12: 0 | PH12: 0 | PI12: 0 | PJ12: 0 | PK12: 0 | PL12: 0 | PM12: 0 | PN12: 0 | PO12: 0 | PP12: 0 | PQ12: 0 | PR12: 0 | PS12: 0 | PT12: 0 | PU12: 0 | PV12: 0 | PW12: 0 | PX12: 0 | PY12: 0 | PZ12: 1.053799341 | QB12: 0 | QC12: 0 | QE12: =VLOOKUP(A12,'Control Sheet'!$G$9:$H$20,2) -> 30
A13: Apr | B13: 2015-04-05 | C13: Free River | F13: 99999.99999 | K13: Free River | N13: 99999.99999 | S13: 1.355519494 | T13: 0 | U13: 0 | V13: 0 | X13: 0 | Y13: =('NFC Well Pumping'!$L11+'NFC Well Pumping'!$L48+'NFC Well Pumping'!$L84+'NFC Well Pumping'!$L120)/1.9835 -> 0 | Z13: ='88CW264(B) Pumping'!$E11/1.9835+'88CW264(B) Pumping'!$E47/1.9835+'88CW264(B) Pumping'!E87/1.9835+'88CW264(B) Pumping'!E123/1.9835+'88CW264(B) Pumping'!F163/1.9835+'88CW264(B) Pumping'!E199/1.9835 -> 0.009639106611 | AA13: 1.355519494 | AB13: =('United No. 2 Well Pumping'!G12+'United No. 2 Well Pumping'!G48+'United No. 2 Well Pumping'!G84)/1.9835 -> 0 | AC13: =('United No. 2 Well Pumping'!F12+'United No. 2 Well Pumping'!F48+'United No. 2 Well Pumping'!F84)/1.9835 -> 0 | AD13: 0 | AF13: 0.009639106611 | AG13: =AC13+U13+'United Res'!AA12+'United Res'!AQ12+'Gilcrest Res'!D12 -> 0 | AH13: 100 | AI13: =-(IF($N13=99999.99999,0,VLOOKUP($B13,'NFC Well Dplns-URF'!B$7:$AB$306,27))/$QE13/1.9835) -> 0 | AJ13: 0 | AL13: =(VLOOKUP($B13,'ECCV 70R Pond Acrtns'!$B$7:$AI$1206,34)+VLOOKUP($B13,'2003 70R Pond Acrtns'!$B$7:$AI$1206,34)+VLOOKUP($B13,'ECCV 70R Canal Acrtns'!$B$7:$AI$1206,27)+VLOOKUP($B13,'2003 70R Canal Acrtns'!$B$7:$AI$1206,27))/$QE13/1.9835 -> 0 | AM13: 0 | AN13: =-(IF($N13=99999.99999,0,VLOOKUP($B13,'NFC Well Dplns-SDF'!$B$7:$Z$306,25)+VLOOKUP($B13,'NFC Well Dplns-URF'!B$7:$AB$306,20))/$QE13/1.9835) -> 0 | AO13: 0 | AP13: 0 | AR13: =-AV13*'Weldon Credit'!$Z$36 -> 0 | AS13: =0.4*(INDEX('Riverside Pond Accrtns'!$B$6:$M$36,MATCH($B$2,'Riverside Pond Accrtns'!$A$6:$A$36,0),MATCH('ECCV Daily Replacement Summary'!A13,'Riverside Pond Accrtns'!$B$5:$M$5,0))/QE13)/1.9835 -> 0.9942021679 | AT13: =(44/640)*(INDEX('Weldon Valley Accrtns (02CW377)'!$B$6:$M$30,MATCH($B$2,'Weldon Valley Accrtns (02CW377)'!$A$6:$A$30,0),MATCH(A13,'Weldon Valley Accrtns (02CW377)'!$B$5:$M$5,0))/QE13)/1.9835 -> 0.3613173263 | AU13: =(VLOOKUP($B13,'ECCV 70R Pond Acrtns'!$B$7:$AI$1206,25)+VLOOKUP($B13,'ECCV 70R Canal Acrtns'!$B$7:$AI$1206,20)+VLOOKUP($B13,'2003 70R Pond Acrtns'!$B$7:$AI$1206,25)+VLOOKUP($B13,'2003 70R Canal Acrtns'!$B$7:$AI$1206,20))/$QE13/1.9835 -> 0 | AV13: ='Joint Aug Station Deliveries'!G13 -> 0 | AW13: 0 | AX13: 0 | AY13: =MIN(-($AR13+AX13),AS13-AS13*0.5/100*'Distances for Transit Losses'!$C$51) -> 0 | AZ13: 0 | BA13: =MIN(-($AR13+AX13+AY13+AZ13),AU13-AU13*0.5/100*'Distances for Transit Losses'!$C$51) -> 0 | BB13: =-((AY13+BA13)/(1-0.5/100*'Distances for Transit Losses'!$C$51)-(AY13+BA13)) -> 0 | BC13: =IF(AND(IF13-IG13-FI13-DI13>0,IA13="no"),MIN(-(AR13+AX13+AY13+AZ13+BA13+BB13)/(1-0.5/100*'Distances for Transit Losses'!$C$65),IF13-IG13-FI13-DI13),0) -> 0 | BD13: =--BC13*0.5/100*'Distances for Transit Losses'!C$65 -> 0 | BE13: =IF(AND(GM13-GN13-IA13-FC13-JO13-DC13>0,ET13="no"),MIN(-(AR13+SUM(AX13:BD13))/(1-0.5/100*'Distances for Transit Losses'!$C$71),GM13-GN13-IA13-FC13-JO13-DC13),0) -> 0 | BF13: =--BE13*0.5/100*'Distances for Transit Losses'!$C$67 -> 0 | BG13: 0 | BI13: no | BJ13: no | BK13: 0 | BL13: 0 | BM13: 0 | BO13: =IF($BJ13="No",MIN(-CV13,AS13-AY13/(1-0.5/100*'Distances for Transit Losses'!$C$51)),0) -> 0 | BP13: =IF($BJ13="No",MIN(-CV13+BO13,AU13-BA13/(1-0.5/100*'Distances for Transit Losses'!$C$51)),0) -> 0 | BQ13: 0 | BR13: 0 | BS13: 0 | BT13: 1.355519494 | BU13: 1.355519494 | BV13: =-(IF($N13=99999.99999,0,VLOOKUP($B13,'NFC Well Dplns-SDF'!$B$7:$Z$306,16)+VLOOKUP($B13,'NFC Well Dplns-URF'!$B$7:$AB$306,13))/$QE13/1.9835) -> 0 | BW13: =-(IF($N13>=99999,0,'88CW264(B) Pumping'!$E11/1.9835)+IF($N13>=99999,0,'88CW264(B) Pumping'!$E47/1.9835)+IF($N13>=99999,0,'88CW264(B) Pumping'!$E87/1.9835)+IF($N13>=99999,0,'88CW264(B) Pumping'!$E123/1.9835)+IF($N13>=51134.50919,0,'88CW264(B) Pumping'!$F163/1.9835)+IF($N13>=53406,0,'88CW264(B) Pumping'!$E199/1.9835)) -> 0 | BX13: 0 | BY13: 0 | BZ13: 0 | CB13: =-(IF($N13=99999.99999,0,VLOOKUP($B13,'United No. 2 Dplns'!$B$7:$X$676,13)/1.9835)) -> 0 | CC13: =CB13+(-(INDEX('Pre 1995 Net Accretions'!$B$6:$M$105,MATCH($B$2,'Pre 1995 Net Accretions'!$A$6:$A$105,0),MATCH($A13,'Pre 1995 Net Accretions'!$B$5:$M$5,0))/$QE13/1.9835)) -> 0.02919695922 | CD13: =-(IF(N13<99999.99999,(INDEX('70 Ranch RF Obligation'!$B$6:$M$30,MATCH($B$2,'70 Ranch RF Obligation'!$A$6:$A$30,0),MATCH('ECCV Daily Replacement Summary'!A13,'70 Ranch RF Obligation'!$B$5:$M$5,0))/QE13)/1.9835,0))-CG13*(1-'L. Latham Credit'!$E$35) -> 0 | CE13: 0.02919695922 | CF13: =(VLOOKUP($B13,'ECCV 70R Pond Acrtns'!$B$7:$AI$1206,16)+VLOOKUP($B13,'ECCV 70R Canal Acrtns'!$B$7:$AI$1206,13)+VLOOKUP($B13,'2003 70R Pond Acrtns'!$B$7:$AI$1206,16)+VLOOKUP($B13,'2003 70R Canal Acrtns'!$B$7:$AI$1206,13))/$QE13/1.9835 -> 0 | CG13: 0 | CH13: 0 | CI13: -0.02919695922 | CJ13: 0 | CK13: 0 | CL13: 0 | CM13: 0 | CO13: 0 | CP13: 0 | CQ13: 0 | CR13: =-CQ13*0.5/100*'Distances for Transit Losses'!$C$44 -> 0 | CS13: 0 | CT13: 0 | CU13: 0 | CV13: 0 | CW13: 0 | CX13: 0 | CY13: 0 | CZ13: =('NFC Well Pumping'!I11+'NFC Well Pumping'!I48+'NFC Well Pumping'!I84)/1.9835 -> 0 | DA13: =IF(AND(HX13-HY13-FA13>0,HS13="no"),MIN(-SUM(CV13:CZ13)/(1-0.5/100*'Distances for Transit Losses'!$C$69),HX13-HY13-FA13),0) -> 0 | DB13: =-DA13*0.5/100*'Distances for Transit Losses'!C$69 -> 0 | DC13: =IF(AND(GM13-GN13-IA13-FC13-JO13>0,ET13="no"),MIN(-SUM(CV13:DB13)/(1-0.5/100*'Distances for Transit Losses'!$C$71),GM13-GN13-IA13-FC13-JO13),0) -> 0 | DD13: =--DC13*0.5/100*'Distances for Transit Losses'!$C$71 -> 0 | DE13: 0 | DF13: =-(IF(DK13="Yes",((0.107*(INDEX('New Cache Credit'!$AR$70:$BC$95,MATCH($B$2,'New Cache Credit'!$AQ$70:$AQ$95,0),MATCH($A13,'New Cache Credit'!$AR$70:$BC$70,0))/$QE13))+(0.333*(INDEX('New Cache Credit'!$BG$70:$BR$95,MATCH($B$2,'New Cache Credit'!$BF$70:$BF$95,0),MATCH($A13,'New Cache Credit'!$BG$70:$BR$70,0))/$QE13)))/1.9835,0)) -> 0 | DG13: ='Joint Aug Station Deliveries'!J13 -> 0 | DH13: =-(DG13*0.5/100*'Distances for Transit Losses'!$C$154) -> 0 | DI13: 0 | DK13: no | DM13: 0 | DN13: 0 | DO13: =-(DN13*0.5/100*'Distances for Transit Losses'!$C$156) -> 0 | DP13: =-(IF(DZ13="Yes",((0.75*(INDEX('New Cache Credit'!$AR$70:$BC$95,MATCH($B$2,'New Cache Credit'!$AQ$70:$AQ$95,0),MATCH($A13,'New Cache Credit'!$AR$70:$BC$70,0))/$QE13))+(0.222*(INDEX('New Cache Credit'!$BG$70:$BR$95,MATCH($B$2,'New Cache Credit'!$BF$70:$BF$95,0),MATCH($A13,'New Cache Credit'!$BG$70:$BR$70,0))/$QE13)))/1.9835,0)) -> 0 | DQ13: =-(IF(DZ13="yes",(0.25*INDEX('GIC Credit'!$B$71:$M$96,MATCH($B$2,'GIC Credit'!$A$71:$A$96,0),MATCH($A13,'GIC Credit'!$B$71:$M$71,0))/$QE13)/1.9835,0)) -> 0 | DR13: 0 | DS13: 0 | DT13: 0 | DU13: =-(DT13*0.5/100*'Distances for Transit Losses'!$C$158) -> 0 | DV13: 0 | DW13: =-(DV13*0.5/100*('Distances for Transit Losses'!$C$160+'Distances for Transit Losses'!$C$170)) -> 0 | DX13: 0 | DZ13: no | EA13: 0 | EB13: =-(IF($N13<99999.99999,(INDEX('New Cache Credit'!$W$70:$AH$95,MATCH($B$2,'New Cache Credit'!$V$70:$V$95,0),MATCH($A13,'New Cache Credit'!$W$70:$AH$70,0))/$QE13)/1.9835,0))-DF13-DP13 -> 0 | EC13: =-(IF($N13<99999.99999,(INDEX('GIC Credit'!$B$71:$M$96,MATCH($B$2,'GIC Credit'!$A$71:$A$96,0),MATCH($A13,'GIC Credit'!$B$71:$M$71,0))/$QE13)/1.9835,0))-DQ13 -> 0 | ED13: 0 | EE13: =-(ED13*0.5/100*('Distances for Transit Losses'!$C$162+'Distances for Transit Losses'!$C$168)) -> 0 | EG13: =IF(EF13="yes",'Joint Aug Station Deliveries'!Q13,0) -> 0 | EH13: =-(EG13*0.5/100*('Distances for Transit Losses'!$C$164+'Distances for Transit Losses'!$C$166+'Distances for Transit Losses'!$C$168)) -> 0 | EI13: =IF(EF13="Yes",'Joint Aug Station Deliveries'!T13,0) -> 0 | EJ13: =-(EI13*0.5/100*('Distances for Transit Losses'!$C$166+'Distances for Transit Losses'!$C$168)) -> 0 | EK13: 0 | EL13: =-(EK13*0.5/100*'Distances for Transit Losses'!$C$172) -> 0 | EM13: 0 | EN13: 0 | EO13: 0 | EP13: 0 | EQ13: =-(IF(N13<99999.99999,INDEX('Hist RF to SPR'!$AF$6:$AQ$30,MATCH($B$2,'Hist RF to SPR'!$AE$6:$AE$30,0),MATCH($A13,'Hist RF to SPR'!$AF$5:$AQ$5,0))/QE13/1.9835,0)) -> 0 | ER13: 0 | ES13: 0 | ET13: no | EU13: 0 | EV13: 0 | EW13: 0 | EY13: 0 | EZ13: 0 | FA13: =IF(AND(HX13-HY13-GK13>0,HS13="no"),MIN(-(ES13+EY13+EZ13)/(1-0.5/100*'Distances for Transit Losses'!$C$73),HX13-HY13-GK13),0) -> 0 | FB13: =-FA13*0.5/100*'Distances for Transit Losses'!$C$73 -> 0 | FC13: =IF(AND(GM13-GN13-IA13>0,GB13="no"),MIN(-(ES13+EY13+EZ13+FA13+FB13)/(1-0.5/100*'Distances for Transit Losses'!$C$75),GM13-GN13-IA13),0) -> 0 | FD13: =-FC13*0.5/100*'Distances for Transit Losses'!$C$79 -> 0 | FE13: 0 | FG13: 0 | FI13: =IF(AND(FH12="no",(SUM('Joint Aug Station Deliveries'!$AA$9:'Joint Aug Station Deliveries'!$AA12)+'Joint Aug Station Deliveries'!$AA13)*1.9835>'New Cache Credit'!$BY$33,(SUM('Joint Aug Station Deliveries'!$AA$9:'Joint Aug Station Deliveries'!$AA12)+'Joint Aug Station Deliveries'!$AA13)*1.9835>'New Cache Credit'!$CH$33),0,'Joint Aug Station Deliveries'!S13) -> 0 | FJ13: =-(FI13*0.5/100*'Distances for Transit Losses'!$C$150) -> 0 | FL13: =IF(AND(FK12="no",(SUM('Joint Aug Station Deliveries'!$AA$9:'Joint Aug Station Deliveries'!$AA12)+'Joint Aug Station Deliveries'!$AA13)*1.9835>'New Cache Credit'!$BY$33,(SUM('Joint Aug Station Deliveries'!$AA$9:'Joint Aug Station Deliveries'!$AA12)+'Joint Aug Station Deliveries'!$AA13)*1.9835>'New Cache Credit'!$CH$33),0,'Joint Aug Station Deliveries'!V13) -> 0 | FM13: =-(FL13*0.5/100*'Distances for Transit Losses'!$C$142) -> 0 | FN13: =IF(AND(FK12="no",(SUM('Joint Aug Station Deliveries'!$AA$9:'Joint Aug Station Deliveries'!$AA12)+'Joint Aug Station Deliveries'!$AA13)*1.9835>'New Cache Credit'!$BY$33,(SUM('Joint Aug Station Deliveries'!$AA$9:'Joint Aug Station Deliveries'!$AA12)+'Joint Aug Station Deliveries'!$AA13)*1.9835>'New Cache Credit'!$CH$33),0,'Joint Aug Station Deliveries'!Y13) -> 0 | FO13: =-(FN13*0.5/100*'Distances for Transit Losses'!$C$148) -> 0 | FP13: 0 | FQ13: 0 | FR13: 0 | FS13: 1.355519494 | FT13: =-(IF(N13<99999.99999,INDEX('Hist RF to SPR'!$Q$6:$AB$30,MATCH($B$2,'Hist RF to SPR'!$P$6:$P$30,0),MATCH($A13,'Hist RF to SPR'!$Q$5:$AB$5,0))/QE13/1.9835,0)) -> 0 | FU13: =-(IF($N13<99999.99999,(INDEX('FIDCO Credit'!$X$42:$AI$66,MATCH($B$2,'FIDCO Credit'!$W$42:$W$66,0),MATCH($A13,'FIDCO Credit'!$X$41:$AI$41,0))/$QE13)/1.9835,0)) -> 0 | FV13: =-(IF($N13<99999.99999,(INDEX('Western Credit'!$W$72:$AH$96,MATCH($B$2,'Western Credit'!$V$72:$V$96,0),MATCH($A13,'Western Credit'!$W$71:$AH$71,0))/$QE13)/1.9835,0)) -> 0 | FW13: 0 | FX13: 0 | FY13: =VLOOKUP($B13,'ECCV Haren Pond S.P. Acrtns'!$B$7:$G$306,6)/$QE13/1.9835 -> 1.341957985 | FZ13: 0 | GA13: 0 | GB13: no | GC13: no | GD13: 0 | GE13: 0 | GF13: 0 | GH13: 0 | GI13: 0 | GJ13: 0 | GK13: =IF(AND(HX13-HY13>0,HS13="no"),MIN(-GJ13/(1-0.5/100*'Distances for Transit Losses'!$C$77),HX13-HY13),0) -> 0 | GL13: =-GK13*0.5/100*'Distances for Transit Losses'!$C$77 -> 0 | GM13: 0 | GN13: =IF(GM13>0,MIN(-(GJ13+GK13+GL13)/(1-0.5/100*'Distances for Transit Losses'!$C$79),GM13),0) -> 0 | GO13: =-GN13*0.5/100*'Distances for Transit Losses'!$C$79 -> 0 | GP13: 0 | GR13: 0 | GS13: ='Joint Aug Station Deliveries'!AJ13 -> 0 | GT13: =GS13*'Western Credit'!$Z$36 -> 0 | GU13: ='Joint Aug Station Deliveries'!AD13 -> 0 | GV13: 0 | GW13: =MAX(0,(JJ13+JK13))/(1-0.5/100*'Distances for Transit Losses'!$C$55) -> 0 | GX13: =MAX(0,(JL13+JM13)/(1-0.5/100*'Distances for Transit Losses'!$C$53)) -> 0 | GY13: 0 | GZ13: 0 | HA13: 0 | HB13: =-HA13*0.5/100*'Distances for Transit Losses'!$C$34 -> 0 | HC13: 0 | HD13: 0 | HE13: 0 | HF13: 0 | HG13: 0 | HH13: 0 | HI13: 1.355519494 | HJ13: 0 | HK13: 0 | HL13: 0 | HM13: 0 | HN13: 0 | HO13: 1.341957985 | HP13: 0 | HQ13: 1.355519494 | HR13: =-(IF(F13<99999.99999,INDEX('Hist RF to SPR'!$B$6:$M$30,MATCH($B$2,'Hist RF to SPR'!$A$6:$A$30,0),MATCH($A13,'Hist RF to SPR'!$B$5:$M$5,0))/QE13/1.9835,0)) -> 0 | HS13: no | HT13: 0 | HU13: 0 | HV13: 0 | HW13: 0 | HX13: 0 | HY13: =IF(HX13>0,MIN(-HW13/(1-0.5/100*'Distances for Transit Losses'!$C$81),HX13),0) -> 0 | HZ13: =-HY13*0.5/100*'Distances for Transit Losses'!$C$81 -> 0 | IA13: 0 | IB13: 0 | ID13: 0 | IE13: 1.355519494 | IF13: 0 | IG13: 0 | IH13: 0 | II13: 0 | IJ13: 0 | IK13: 0 | IL13: 0 | IM13: 1.355519494 | IN13: =-(IF(N13<99999.99999,(VLOOKUP(B13,'ECCV Upper Dpln'!$B$7:$BD$306,55))/QE13/1.9835,0)) -> 0 | IO13: =-(IF(N13<99999.99999,INDEX('Hist RF abv Milton'!$B$6:$M$30,MATCH($B$2,'Hist RF abv Milton'!$A$6:$A$30,0),MATCH($A13,'Hist RF abv Milton'!$B$5:$M$5,0))/QE13/1.9835,0)) -> 0 | IP13: =-(VLOOKUP(B13,'Unlagged Hist RF'!$A$9:$AN$308,36)/QE13/1.9835) -> 0 | IQ13: =(VLOOKUP($B13,'ECCV Beebe Pond Acrtns'!$B$7:$BI$1206,41)+VLOOKUP($B13,'ECCV Canal Acrtns'!$B$7:$AL$1206,22)+VLOOKUP($B13,'2003 Beebe Pond Acrtns'!$B$7:$BI$1206,41)+VLOOKUP($B13,'2003 Canal Acrtns'!$B$7:$AL$1206,22))/$QE13/1.9835 -> 1.053799341 | IR13: 0 | IS13: 0 | IT13: 0 | IU13: 0 | IV13: 0 | IW13: no | IX13: 0 | IY13: 0 | IZ13: 0 | JA13: 0 | JB13: 0 | JC13: 0 | JD13: 0 | JE13: 0 | JF13: =-(JE13*0.5/100*'Distances for Transit Losses'!$C$6) -> 0 | JG13: 0 | JH13: 0 | JI13: 0 | JJ13: =MIN(-(JD13+JG13),GV13-GV13*0.5/100*'Distances for Transit Losses'!$C$55) -> 0 | JK13: =MAX(0,MIN(-(JC13+JE13+JF13+JI13),GV13-GV13*0.5/100*'Distances for Transit Losses'!$C$55-JJ13/(1-0.5/100*'Distances for Transit Losses'!$C$55))) -> 0 | JL13: =MIN(-(JD13+JJ13),GT13-GT13*0.5/100*'Distances for Transit Losses'!$C$53) -> 0 | JM13: =MAX(0,MIN(-(JC13+JE13+JF13+JK13),GT13-GT13*0.5/100*'Distances for Transit Losses'!$C$53-JL13/(1-0.5/100*'Distances for Transit Losses'!$C$53))) -> 0 | JN13: =IF(ET13="no",MIN(-(MIN(0,JC13+JE13+JF13+JK13+JM13)),(FY13-FZ13)-(FY13-FZ13)*0.5/100*'Distances for Transit Losses'!$C$53),0) -> 0 | JO13: =IF(AND(GM13-GN13-IA13-FC13>0,ET13="no"),MIN(-(JC13+JE13+JF13+JI13+JK13+JM13+JN13)/(1-0.5/100*'Distances for Transit Losses'!$C$59),GM13-GN13-IA13-FC13),0) -> 0 | JP13: =JO13*0.5/100*'Distances for Transit Losses'!$D$59 -> 0 | JQ13: 0 | JS13: 0 | JT13: 1.053799341 | JU13: 0 | JV13: 0 | JW13: 1.355519494 | JX13: =-(IF(N13<99999.99999,INDEX('Hist RF blw Milton'!$B$6:$M$30,MATCH($B$2,'Hist RF blw Milton'!$A$6:$A$30,0),MATCH($A13,'Hist RF blw Milton'!$B$5:$M$5,0))/QE13/1.9835,0)) -> 0 | JY13: no | JZ13: 0 | KA13: 0 | KB13: 0 | KC13: 0 | KD13: 0 | KE13: 0 | KG13: 0 | KH13: 1.355519494 | KI13: =-(IF(N13<99999.99999,INDEX('Hist RF to Box Elder'!$B$6:$M$30,MATCH($B$2,'Hist RF to Box Elder'!$A$6:$A$30,0),MATCH($A13,'Hist RF to Box Elder'!$B$5:$M$5,0))/QE13/1.9835,0)) -> 0 | KJ13: =(VLOOKUP($B13,'ECCV Beebe Pond Acrtns'!$B$7:$BI$1206,54)+VLOOKUP($B13,'ECCV Canal Acrtns'!$B$7:$AL$1206,34)+VLOOKUP($B13,'2003 Beebe Pond Acrtns'!$B$7:$AL$1206,34)+VLOOKUP($B13,'2003 Canal Acrtns'!$B$7:$AL$1206,34)+VLOOKUP($B13,'84CW090 Beebe Pond Acrtns'!$B$7:$AL$1206,34)+VLOOKUP($B13,'84CW090 Canal Acrtns'!$B$7:$AL$1206,34))/$QE13/1.9835 -> 0.06977267982 | KK13: 0 | KL13: 0 | KM13: 0 | KN13: 0 | KP13: 0.02919695922 | KQ13: =IU13+IV13+SUM(IY13:JB13)+SUM(JE13:JQ13) -> 0 | KR13: 0 | KS13: 0 | KT13: 0 | KU13: 0 | KV13: 0 | KW13: 0 | KX13: -0.02919695922 | KY13: 0 | KZ13: -0.02919695922 | LA13: 0 | LB13: 1.053799341 | LC13: 0 | LD13: 1.355519494 | LK13: 0 | LL13: 0 | LM13: 0 | LO13: 0 | LP13: 0 | LQ13: 0 | LR13: 0 | LS13: 0 | LT13: 0 | LU13: 0 | LV13: 0 | LW13: 0 | LX13: 0 | LY13: 0 | LZ13: 0 | MB13: 0 | MC13: 0 | MD13: 0 | ME13: 0 | MF13: 0 | MG13: 0 | MH13: 0 | MI13: 0 | MJ13: 0 | MK13: 0 | ML13: 0 | MN13: 1.355519494 | MO13: 0 | MP13: 0 | MQ13: 0 | MR13: 0 | MS13: 0 | MT13: 0 | MU13: 0 | MV13: 0 | MW13: 0 | MX13: 0 | ND13: 0 | NE13: 0 | NF13: 0 | NG13: 0 | NH13: 0 | NI13: 0 | NJ13: 0 | NK13: 0 | NL13: 0 | NN13: 0 | NO13: 0 | NP13: 0 | NQ13: 0 | NR13: 0 | NS13: 0 | NT13: 0 | NU13: 0 | NV13: 0 | NY13: 0 | NZ13: 0 | OA13: 0 | OB13: 0 | OC13: 0 | OD13: 0 | OE13: 0 | OH13: 0 | OI13: 0 | OL13: 0 | OM13: 0 | ON13: 0 | OQ13: 0 | OR13: 0 | OS13: 0 | OT13: 0 | OU13: 0 | OV13: 0 | OW13: 0 | OY13: 0 | OZ13: 0 | PA13: 0 | PB13: 0 | PC13: 0 | PD13: 309.6 | PF13: 1.053799341 | PG13: 0 | PH13: 0 | PI13: 0 | PJ13: 0 | PK13: 0 | PL13: 0 | PM13: 0 | PN13: 0 | PO13: 0 | PP13: 0 | PQ13: 0 | PR13: 0 | PS13: 0 | PT13: 0 | PU13: 0 | PV13: 0 | PW13: 0 | PX13: 0 | PY13: 0 | PZ13: 1.053799341 | QB13: 0 | QC13: 0 | QE13: =VLOOKUP(A13,'Control Sheet'!$G$9:$H$20,2) -> 30
A14: Apr | B14: 2015-04-06 | C14: Free River | F14: 99999.99999 | K14: Free River | N14: 99999.99999 | S14: 1.355519494 | T14: 0 | U14: 0 | V14: 0 | X14: 0 | Y14: =('NFC Well Pumping'!$L12+'NFC Well Pumping'!$L49+'NFC Well Pumping'!$L85+'NFC Well Pumping'!$L121)/1.9835 -> 0 | Z14: ='88CW264(B) Pumping'!$E12/1.9835+'88CW264(B) Pumping'!$E48/1.9835+'88CW264(B) Pumping'!E88/1.9835+'88CW264(B) Pumping'!E124/1.9835+'88CW264(B) Pumping'!F164/1.9835+'88CW264(B) Pumping'!E200/1.9835 -> 0.009639106611 | AA14: 1.355519494 | AB14: =('United No. 2 Well Pumping'!G13+'United No. 2 Well Pumping'!G49+'United No. 2 Well Pumping'!G85)/1.9835 -> 0 | AC14: =('United No. 2 Well Pumping'!F13+'United No. 2 Well Pumping'!F49+'United No. 2 Well Pumping'!F85)/1.9835 -> 0 | AD14: 0 | AF14: 0.009639106611 | AG14: =AC14+U14+'United Res'!AA13+'United Res'!AQ13+'Gilcrest Res'!D13 -> 0 | AH14: 100 | AI14: =-(IF($N14=99999.99999,0,VLOOKUP($B14,'NFC Well Dplns-URF'!B$7:$AB$306,27))/$QE14/1.9835) -> 0 | AJ14: 0 | AL14: =(VLOOKUP($B14,'ECCV 70R Pond Acrtns'!$B$7:$AI$1206,34)+VLOOKUP($B14,'2003 70R Pond Acrtns'!$B$7:$AI$1206,34)+VLOOKUP($B14,'ECCV 70R Canal Acrtns'!$B$7:$AI$1206,27)+VLOOKUP($B14,'2003 70R Canal Acrtns'!$B$7:$AI$1206,27))/$QE14/1.9835 -> 0 | AM14: 0 | AN14: =-(IF($N14=99999.99999,0,VLOOKUP($B14,'NFC Well Dplns-SDF'!$B$7:$Z$306,25)+VLOOKUP($B14,'NFC Well Dplns-URF'!B$7:$AB$306,20))/$QE14/1.9835) -> 0 | AO14: 0 | AP14: 0 | AR14: =-AV14*'Weldon Credit'!$Z$36 -> 0 | AS14: =0.4*(INDEX('Riverside Pond Accrtns'!$B$6:$M$36,MATCH($B$2,'Riverside Pond Accrtns'!$A$6:$A$36,0),MATCH('ECCV Daily Replacement Summary'!A14,'Riverside Pond Accrtns'!$B$5:$M$5,0))/QE14)/1.9835 -> 0.9942021679 | AT14: =(44/640)*(INDEX('Weldon Valley Accrtns (02CW377)'!$B$6:$M$30,MATCH($B$2,'Weldon Valley Accrtns (02CW377)'!$A$6:$A$30,0),MATCH(A14,'Weldon Valley Accrtns (02CW377)'!$B$5:$M$5,0))/QE14)/1.9835 -> 0.3613173263 | AU14: =(VLOOKUP($B14,'ECCV 70R Pond Acrtns'!$B$7:$AI$1206,25)+VLOOKUP($B14,'ECCV 70R Canal Acrtns'!$B$7:$AI$1206,20)+VLOOKUP($B14,'2003 70R Pond Acrtns'!$B$7:$AI$1206,25)+VLOOKUP($B14,'2003 70R Canal Acrtns'!$B$7:$AI$1206,20))/$QE14/1.9835 -> 0 | AV14: ='Joint Aug Station Deliveries'!G14 -> 0 | AW14: 0 | AX14: 0 | AY14: =MIN(-($AR14+AX14),AS14-AS14*0.5/100*'Distances for Transit Losses'!$C$51) -> 0 | AZ14: 0 | BA14: =MIN(-($AR14+AX14+AY14+AZ14),AU14-AU14*0.5/100*'Distances for Transit Losses'!$C$51) -> 0 | BB14: =-((AY14+BA14)/(1-0.5/100*'Distances for Transit Losses'!$C$51)-(AY14+BA14)) -> 0 | BC14: =IF(AND(IF14-IG14-FI14-DI14>0,IA14="no"),MIN(-(AR14+AX14+AY14+AZ14+BA14+BB14)/(1-0.5/100*'Distances for Transit Losses'!$C$65),IF14-IG14-FI14-DI14),0) -> 0 | BD14: =--BC14*0.5/100*'Distances for Transit Losses'!C$65 -> 0 | BE14: =IF(AND(GM14-GN14-IA14-FC14-JO14-DC14>0,ET14="no"),MIN(-(AR14+SUM(AX14:BD14))/(1-0.5/100*'Distances for Transit Losses'!$C$71),GM14-GN14-IA14-FC14-JO14-DC14),0) -> 0 | BF14: =--BE14*0.5/100*'Distances for Transit Losses'!$C$67 -> 0 | BG14: 0 | BI14: no | BJ14: no | BK14: 0 | BL14: 0 | BM14: 0 | BO14: =IF($BJ14="No",MIN(-CV14,AS14-AY14/(1-0.5/100*'Distances for Transit Losses'!$C$51)),0) -> 0 | BP14: =IF($BJ14="No",MIN(-CV14+BO14,AU14-BA14/(1-0.5/100*'Distances for Transit Losses'!$C$51)),0) -> 0 | BQ14: 0 | BR14: 0 | BS14: 0 | BT14: 1.355519494 | BU14: 1.355519494 | BV14: =-(IF($N14=99999.99999,0,VLOOKUP($B14,'NFC Well Dplns-SDF'!$B$7:$Z$306,16)+VLOOKUP($B14,'NFC Well Dplns-URF'!$B$7:$AB$306,13))/$QE14/1.9835) -> 0 | BW14: =-(IF($N14>=99999,0,'88CW264(B) Pumping'!$E12/1.9835)+IF($N14>=99999,0,'88CW264(B) Pumping'!$E48/1.9835)+IF($N14>=99999,0,'88CW264(B) Pumping'!$E88/1.9835)+IF($N14>=99999,0,'88CW264(B) Pumping'!$E124/1.9835)+IF($N14>=51134.50919,0,'88CW264(B) Pumping'!$F164/1.9835)+IF($N14>=53406,0,'88CW264(B) Pumping'!$E200/1.9835)) -> 0 | BX14: 0 | BY14: 0 | BZ14: 0 | CB14: =-(IF($N14=99999.99999,0,VLOOKUP($B14,'United No. 2 Dplns'!$B$7:$X$676,13)/1.9835)) -> 0 | CC14: =CB14+(-(INDEX('Pre 1995 Net Accretions'!$B$6:$M$105,MATCH($B$2,'Pre 1995 Net Accretions'!$A$6:$A$105,0),MATCH($A14,'Pre 1995 Net Accretions'!$B$5:$M$5,0))/$QE14/1.9835)) -> 0.02919695922 | CD14: =-(IF(N14<99999.99999,(INDEX('70 Ranch RF Obligation'!$B$6:$M$30,MATCH($B$2,'70 Ranch RF Obligation'!$A$6:$A$30,0),MATCH('ECCV Daily Replacement Summary'!A14,'70 Ranch RF Obligation'!$B$5:$M$5,0))/QE14)/1.9835,0))-CG14*(1-'L. Latham Credit'!$E$35) -> 0 | CE14: 0.02919695922 | CF14: =(VLOOKUP($B14,'ECCV 70R Pond Acrtns'!$B$7:$AI$1206,16)+VLOOKUP($B14,'ECCV 70R Canal Acrtns'!$B$7:$AI$1206,13)+VLOOKUP($B14,'2003 70R Pond Acrtns'!$B$7:$AI$1206,16)+VLOOKUP($B14,'2003 70R Canal Acrtns'!$B$7:$AI$1206,13))/$QE14/1.9835 -> 0 | CG14: 0 | CH14: 0 | CI14: -0.02919695922 | CJ14: 0 | CK14: 0 | CL14: 0 | CM14: 0 | CO14: 0 | CP14: 0 | CQ14: 0 | CR14: =-CQ14*0.5/100*'Distances for Transit Losses'!$C$44 -> 0 | CS14: 0 | CT14: 0 | CU14: 0 | CV14: 0 | CW14: 0 | CX14: 0 | CY14: 0 | CZ14: =('NFC Well Pumping'!I12+'NFC Well Pumping'!I49+'NFC Well Pumping'!I85)/1.9835 -> 0 | DA14: =IF(AND(HX14-HY14-FA14>0,HS14="no"),MIN(-SUM(CV14:CZ14)/(1-0.5/100*'Distances for Transit Losses'!$C$69),HX14-HY14-FA14),0) -> 0 | DB14: =-DA14*0.5/100*'Distances for Transit Losses'!C$69 -> 0 | DC14: =IF(AND(GM14-GN14-IA14-FC14-JO14>0,ET14="no"),MIN(-SUM(CV14:DB14)/(1-0.5/100*'Distances for Transit Losses'!$C$71),GM14-GN14-IA14-FC14-JO14),0) -> 0 | DD14: =--DC14*0.5/100*'Distances for Transit Losses'!$C$71 -> 0 | DE14: 0 | DF14: =-(IF(DK14="Yes",((0.107*(INDEX('New Cache Credit'!$AR$70:$BC$95,MATCH($B$2,'New Cache Credit'!$AQ$70:$AQ$95,0),MATCH($A14,'New Cache Credit'!$AR$70:$BC$70,0))/$QE14))+(0.333*(INDEX('New Cache Credit'!$BG$70:$BR$95,MATCH($B$2,'New Cache Credit'!$BF$70:$BF$95,0),MATCH($A14,'New Cache Credit'!$BG$70:$BR$70,0))/$QE14)))/1.9835,0)) -> 0 | DG14: ='Joint Aug Station Deliveries'!J14 -> 0 | DH14: =-(DG14*0.5/100*'Distances for Transit Losses'!$C$154) -> 0 | DI14: 0 | DK14: no | DM14: 0 | DN14: 0 | DO14: =-(DN14*0.5/100*'Distances for Transit Losses'!$C$156) -> 0 | DP14: =-(IF(DZ14="Yes",((0.75*(INDEX('New Cache Credit'!$AR$70:$BC$95,MATCH($B$2,'New Cache Credit'!$AQ$70:$AQ$95,0),MATCH($A14,'New Cache Credit'!$AR$70:$BC$70,0))/$QE14))+(0.222*(INDEX('New Cache Credit'!$BG$70:$BR$95,MATCH($B$2,'New Cache Credit'!$BF$70:$BF$95,0),MATCH($A14,'New Cache Credit'!$BG$70:$BR$70,0))/$QE14)))/1.9835,0)) -> 0 | DQ14: =-(IF(DZ14="yes",(0.25*INDEX('GIC Credit'!$B$71:$M$96,MATCH($B$2,'GIC Credit'!$A$71:$A$96,0),MATCH($A14,'GIC Credit'!$B$71:$M$71,0))/$QE14)/1.9835,0)) -> 0 | DR14: 0 | DS14: 0 | DT14: 0 | DU14: =-(DT14*0.5/100*'Distances for Transit Losses'!$C$158) -> 0 | DV14: 0 | DW14: =-(DV14*0.5/100*('Distances for Transit Losses'!$C$160+'Distances for Transit Losses'!$C$170)) -> 0 | DX14: 0 | DZ14: no | EA14: 0 | EB14: =-(IF($N14<99999.99999,(INDEX('New Cache Credit'!$W$70:$AH$95,MATCH($B$2,'New Cache Credit'!$V$70:$V$95,0),MATCH($A14,'New Cache Credit'!$W$70:$AH$70,0))/$QE14)/1.9835,0))-DF14-DP14 -> 0 | EC14: =-(IF($N14<99999.99999,(INDEX('GIC Credit'!$B$71:$M$96,MATCH($B$2,'GIC Credit'!$A$71:$A$96,0),MATCH($A14,'GIC Credit'!$B$71:$M$71,0))/$QE14)/1.9835,0))-DQ14 -> 0 | ED14: 0 | EE14: =-(ED14*0.5/100*('Distances for Transit Losses'!$C$162+'Distances for Transit Losses'!$C$168)) -> 0 | EG14: =IF(EF14="yes",'Joint Aug Station Deliveries'!Q14,0) -> 0 | EH14: =-(EG14*0.5/100*('Distances for Transit Losses'!$C$164+'Distances for Transit Losses'!$C$166+'Distances for Transit Losses'!$C$168)) -> 0 | EI14: =IF(EF14="Yes",'Joint Aug Station Deliveries'!T14,0) -> 0 | EJ14: =-(EI14*0.5/100*('Distances for Transit Losses'!$C$166+'Distances for Transit Losses'!$C$168)) -> 0 | EK14: 0 | EL14: =-(EK14*0.5/100*'Distances for Transit Losses'!$C$172) -> 0 | EM14: 0 | EN14: 0 | EO14: 0 | EP14: 0 | EQ14: =-(IF(N14<99999.99999,INDEX('Hist RF to SPR'!$AF$6:$AQ$30,MATCH($B$2,'Hist RF to SPR'!$AE$6:$AE$30,0),MATCH($A14,'Hist RF to SPR'!$AF$5:$AQ$5,0))/QE14/1.9835,0)) -> 0 | ER14: 0 | ES14: 0 | ET14: no | EU14: 0 | EV14: 0 | EW14: 0 | EY14: 0 | EZ14: 0 | FA14: =IF(AND(HX14-HY14-GK14>0,HS14="no"),MIN(-(ES14+EY14+EZ14)/(1-0.5/100*'Distances for Transit Losses'!$C$73),HX14-HY14-GK14),0) -> 0 | FB14: =-FA14*0.5/100*'Distances for Transit Losses'!$C$73 -> 0 | FC14: =IF(AND(GM14-GN14-IA14>0,GB14="no"),MIN(-(ES14+EY14+EZ14+FA14+FB14)/(1-0.5/100*'Distances for Transit Losses'!$C$75),GM14-GN14-IA14),0) -> 0 | FD14: =-FC14*0.5/100*'Distances for Transit Losses'!$C$79 -> 0 | FE14: 0 | FG14: 0 | FI14: =IF(AND(FH13="no",(SUM('Joint Aug Station Deliveries'!$AA$9:'Joint Aug Station Deliveries'!$AA13)+'Joint Aug Station Deliveries'!$AA14)*1.9835>'New Cache Credit'!$BY$33,(SUM('Joint Aug Station Deliveries'!$AA$9:'Joint Aug Station Deliveries'!$AA13)+'Joint Aug Station Deliveries'!$AA14)*1.9835>'New Cache Credit'!$CH$33),0,'Joint Aug Station Deliveries'!S14) -> 0 | FJ14: =-(FI14*0.5/100*'Distances for Transit Losses'!$C$150) -> 0 | FL14: =IF(AND(FK13="no",(SUM('Joint Aug Station Deliveries'!$AA$9:'Joint Aug Station Deliveries'!$AA13)+'Joint Aug Station Deliveries'!$AA14)*1.9835>'New Cache Credit'!$BY$33,(SUM('Joint Aug Station Deliveries'!$AA$9:'Joint Aug Station Deliveries'!$AA13)+'Joint Aug Station Deliveries'!$AA14)*1.9835>'New Cache Credit'!$CH$33),0,'Joint Aug Station Deliveries'!V14) -> 0 | FM14: =-(FL14*0.5/100*'Distances for Transit Losses'!$C$142) -> 0 | FN14: =IF(AND(FK13="no",(SUM('Joint Aug Station Deliveries'!$AA$9:'Joint Aug Station Deliveries'!$AA13)+'Joint Aug Station Deliveries'!$AA14)*1.9835>'New Cache Credit'!$BY$33,(SUM('Joint Aug Station Deliveries'!$AA$9:'Joint Aug Station Deliveries'!$AA13)+'Joint Aug Station Deliveries'!$AA14)*1.9835>'New Cache Credit'!$CH$33),0,'Joint Aug Station Deliveries'!Y14) -> 0 | FO14: =-(FN14*0.5/100*'Distances for Transit Losses'!$C$148) -> 0 | FP14: 0 | FQ14: 0 | FR14: 0 | FS14: 1.355519494 | FT14: =-(IF(N14<99999.99999,INDEX('Hist RF to SPR'!$Q$6:$AB$30,MATCH($B$2,'Hist RF to SPR'!$P$6:$P$30,0),MATCH($A14,'Hist RF to SPR'!$Q$5:$AB$5,0))/QE14/1.9835,0)) -> 0 | FU14: =-(IF($N14<99999.99999,(INDEX('FIDCO Credit'!$X$42:$AI$66,MATCH($B$2,'FIDCO Credit'!$W$42:$W$66,0),MATCH($A14,'FIDCO Credit'!$X$41:$AI$41,0))/$QE14)/1.9835,0)) -> 0 | FV14: =-(IF($N14<99999.99999,(INDEX('Western Credit'!$W$72:$AH$96,MATCH($B$2,'Western Credit'!$V$72:$V$96,0),MATCH($A14,'Western Credit'!$W$71:$AH$71,0))/$QE14)/1.9835,0)) -> 0 | FW14: 0 | FX14: 0 | FY14: =VLOOKUP($B14,'ECCV Haren Pond S.P. Acrtns'!$B$7:$G$306,6)/$QE14/1.9835 -> 1.341957985 | FZ14: 0 | GA14: 0 | GB14: no | GC14: no | GD14: 0 | GE14: 0 | GF14: 0 | GH14: 0 | GI14: 0 | GJ14: 0 | GK14: =IF(AND(HX14-HY14>0,HS14="no"),MIN(-GJ14/(1-0.5/100*'Distances for Transit Losses'!$C$77),HX14-HY14),0) -> 0 | GL14: =-GK14*0.5/100*'Distances for Transit Losses'!$C$77 -> 0 | GM14: 0 | GN14: =IF(GM14>0,MIN(-(GJ14+GK14+GL14)/(1-0.5/100*'Distances for Transit Losses'!$C$79),GM14),0) -> 0 | GO14: =-GN14*0.5/100*'Distances for Transit Losses'!$C$79 -> 0 | GP14: 0 | GR14: 0 | GS14: ='Joint Aug Station Deliveries'!AJ14 -> 0 | GT14: =GS14*'Western Credit'!$Z$36 -> 0 | GU14: ='Joint Aug Station Deliveries'!AD14 -> 0 | GV14: 0 | GW14: =MAX(0,(JJ14+JK14))/(1-0.5/100*'Distances for Transit Losses'!$C$55) -> 0 | GX14: =MAX(0,(JL14+JM14)/(1-0.5/100*'Distances for Transit Losses'!$C$53)) -> 0 | GY14: 0 | GZ14: 0 | HA14: 0 | HB14: =-HA14*0.5/100*'Distances for Transit Losses'!$C$34 -> 0 | HC14: 0 | HD14: 0 | HE14: 0 | HF14: 0 | HG14: 0 | HH14: 0 | HI14: 1.355519494 | HJ14: 0 | HK14: 0 | HL14: 0 | HM14: 0 | HN14: 0 | HO14: 1.341957985 | HP14: 0 | HQ14: 1.355519494 | HR14: =-(IF(F14<99999.99999,INDEX('Hist RF to SPR'!$B$6:$M$30,MATCH($B$2,'Hist RF to SPR'!$A$6:$A$30,0),MATCH($A14,'Hist RF to SPR'!$B$5:$M$5,0))/QE14/1.9835,0)) -> 0 | HS14: no | HT14: 0 | HU14: 0 | HV14: 0 | HW14: 0 | HX14: 0 | HY14: =IF(HX14>0,MIN(-HW14/(1-0.5/100*'Distances for Transit Losses'!$C$81),HX14),0) -> 0 | HZ14: =-HY14*0.5/100*'Distances for Transit Losses'!$C$81 -> 0 | IA14: 0 | IB14: 0 | ID14: 0 | IE14: 1.355519494 | IF14: 0 | IG14: 0 | IH14: 0 | II14: 0 | IJ14: 0 | IK14: 0 | IL14: 0 | IM14: 1.355519494 | IN14: =-(IF(N14<99999.99999,(VLOOKUP(B14,'ECCV Upper Dpln'!$B$7:$BD$306,55))/QE14/1.9835,0)) -> 0 | IO14: =-(IF(N14<99999.99999,INDEX('Hist RF abv Milton'!$B$6:$M$30,MATCH($B$2,'Hist RF abv Milton'!$A$6:$A$30,0),MATCH($A14,'Hist RF abv Milton'!$B$5:$M$5,0))/QE14/1.9835,0)) -> 0 | IP14: =-(VLOOKUP(B14,'Unlagged Hist RF'!$A$9:$AN$308,36)/QE14/1.9835) -> 0 | IQ14: =(VLOOKUP($B14,'ECCV Beebe Pond Acrtns'!$B$7:$BI$1206,41)+VLOOKUP($B14,'ECCV Canal Acrtns'!$B$7:$AL$1206,22)+VLOOKUP($B14,'2003 Beebe Pond Acrtns'!$B$7:$BI$1206,41)+VLOOKUP($B14,'2003 Canal Acrtns'!$B$7:$AL$1206,22))/$QE14/1.9835 -> 1.053799341 | IR14: 0 | IS14: 0 | IT14: 0 | IU14: 0 | IV14: 0 | IW14: no | IX14: 0 | IY14: 0 | IZ14: 0 | JA14: 0 | JB14: 0 | JC14: 0 | JD14: 0 | JE14: 0 | JF14: =-(JE14*0.5/100*'Distances for Transit Losses'!$C$6) -> 0 | JG14: 0 | JH14: 0 | JI14: 0 | JJ14: =MIN(-(JD14+JG14),GV14-GV14*0.5/100*'Distances for Transit Losses'!$C$55) -> 0 | JK14: =MAX(0,MIN(-(JC14+JE14+JF14+JI14),GV14-GV14*0.5/100*'Distances for Transit Losses'!$C$55-JJ14/(1-0.5/100*'Distances for Transit Losses'!$C$55))) -> 0 | JL14: =MIN(-(JD14+JJ14),GT14-GT14*0.5/100*'Distances for Transit Losses'!$C$53) -> 0 | JM14: =MAX(0,MIN(-(JC14+JE14+JF14+JK14),GT14-GT14*0.5/100*'Distances for Transit Losses'!$C$53-JL14/(1-0.5/100*'Distances for Transit Losses'!$C$53))) -> 0 | JN14: =IF(ET14="no",MIN(-(MIN(0,JC14+JE14+JF14+JK14+JM14)),(FY14-FZ14)-(FY14-FZ14)*0.5/100*'Distances for Transit Losses'!$C$53),0) -> 0 | JO14: =IF(AND(GM14-GN14-IA14-FC14>0,ET14="no"),MIN(-(JC14+JE14+JF14+JI14+JK14+JM14+JN14)/(1-0.5/100*'Distances for Transit Losses'!$C$59),GM14-GN14-IA14-FC14),0) -> 0 | JP14: =JO14*0.5/100*'Distances for Transit Losses'!$D$59 -> 0 | JQ14: 0 | JS14: 0 | JT14: 1.053799341 | JU14: 0 | JV14: 0 | JW14: 1.355519494 | JX14: =-(IF(N14<99999.99999,INDEX('Hist RF blw Milton'!$B$6:$M$30,MATCH($B$2,'Hist RF blw Milton'!$A$6:$A$30,0),MATCH($A14,'Hist RF blw Milton'!$B$5:$M$5,0))/QE14/1.9835,0)) -> 0 | JY14: no | JZ14: 0 | KA14: 0 | KB14: 0 | KC14: 0 | KD14: 0 | KE14: 0 | KG14: 0 | KH14: 1.355519494 | KI14: =-(IF(N14<99999.99999,INDEX('Hist RF to Box Elder'!$B$6:$M$30,MATCH($B$2,'Hist RF to Box Elder'!$A$6:$A$30,0),MATCH($A14,'Hist RF to Box Elder'!$B$5:$M$5,0))/QE14/1.9835,0)) -> 0 | KJ14: =(VLOOKUP($B14,'ECCV Beebe Pond Acrtns'!$B$7:$BI$1206,54)+VLOOKUP($B14,'ECCV Canal Acrtns'!$B$7:$AL$1206,34)+VLOOKUP($B14,'2003 Beebe Pond Acrtns'!$B$7:$AL$1206,34)+VLOOKUP($B14,'2003 Canal Acrtns'!$B$7:$AL$1206,34)+VLOOKUP($B14,'84CW090 Beebe Pond Acrtns'!$B$7:$AL$1206,34)+VLOOKUP($B14,'84CW090 Canal Acrtns'!$B$7:$AL$1206,34))/$QE14/1.9835 -> 0.06977267982 | KK14: 0 | KL14: 0 | KM14: 0 | KN14: 0 | KP14: 0.02919695922 | KQ14: 0 | KR14: 0 | KS14: 0 | KT14: 0 | KU14: 0 | KV14: 0 | KW14: 0 | KX14: -0.02919695922 | KY14: 0 | KZ14: -0.02919695922 | LA14: 0 | LB14: 1.053799341 | LC14: 0 | LD14: 1.355519494 | LK14: 0 | LL14: 0 | LM14: 0 | LO14: 0 | LP14: 0 | LQ14: 0 | LR14: 0 | LS14: 0 | LT14: 0 | LU14: 0 | LV14: 0 | LW14: 0 | LX14: 0 | LY14: 0 | LZ14: 0 | MB14: 0 | MC14: 0 | MD14: 0 | ME14: 0 | MF14: 0 | MG14: 0 | MH14: 0 | MI14: 0 | MJ14: 0 | MK14: 0 | ML14: 0 | MN14: 1.355519494 | MO14: 0 | MP14: 0 | MQ14: 0 | MR14: 0 | MS14: 0 | MT14: 0 | MU14: 0 | MV14: 0 | MW14: 0 | MX14: 0 | ND14: 0 | NE14: 0 | NF14: 0 | NG14: 0 | NH14: 0 | NI14: 0 | NJ14: 0 | NK14: 0 | NL14: 0 | NN14: 0 | NO14: 0 | NP14: 0 | NQ14: 0 | NR14: 0 | NS14: 0 | NT14: 0 | NU14: 0 | NV14: 0 | NY14: 0 | NZ14: 0 | OA14: 0 | OB14: 0 | OC14: 0 | OD14: 0 | OE14: 0 | OH14: 0 | OI14: 0 | OL14: 0 | OM14: 0 | ON14: 0 | OQ14: 0 | OR14: 0 | OS14: 0 | OT14: 0 | OU14: 0 | OV14: 0 | OW14: 0 | OY14: 0 | OZ14: 0 | PA14: 0 | PB14: 0 | PC14: 0 | PD14: 309.6 | PF14: 1.053799341 | PG14: 0 | PH14: 0 | PI14: 0 | PJ14: 0 | PK14: 0 | PL14: 0 | PM14: 0 | PN14: 0 | PO14: 0 | PP14: 0 | PQ14: 0 | PR14: 0 | PS14: 0 | PT14: 0 | PU14: 0 | PV14: 0 | PW14: 0 | PX14: 0 | PY14: 0 | PZ14: 1.053799341 | QB14: 0 | QC14: 0 | QE14: =VLOOKUP(A14,'Control Sheet'!$G$9:$H$20,2) -> 30
A15: Apr | B15: 2015-04-07 | C15: Evans #2 Ditch | D15: 1909-06-09 | E15: Western | F15: 21709 | K15: Free River | N15: 99999.99999 | S15: 0 | T15: 0 | U15: 0 | V15: 0 | X15: 0 | Y15: =('NFC Well Pumping'!$L13+'NFC Well Pumping'!$L50+'NFC Well Pumping'!$L86+'NFC Well Pumping'!$L122)/1.9835 -> 0 | Z15: ='88CW264(B) Pumping'!$E13/1.9835+'88CW264(B) Pumping'!$E49/1.9835+'88CW264(B) Pumping'!E89/1.9835+'88CW264(B) Pumping'!E125/1.9835+'88CW264(B) Pumping'!F165/1.9835+'88CW264(B) Pumping'!E201/1.9835 -> 0.009639106611 | AA15: 0 | AB15: =('United No. 2 Well Pumping'!G14+'United No. 2 Well Pumping'!G50+'United No. 2 Well Pumping'!G86)/1.9835 -> 0 | AC15: =('United No. 2 Well Pumping'!F14+'United No. 2 Well Pumping'!F50+'United No. 2 Well Pumping'!F86)/1.9835 -> 0 | AD15: 0 | AF15: 0.009639106611 | AG15: =AC15+U15+'United Res'!AA14+'United Res'!AQ14+'Gilcrest Res'!D14 -> 0 | AH15: 100 | AI15: =-(IF($N15=99999.99999,0,VLOOKUP($B15,'NFC Well Dplns-URF'!B$7:$AB$306,27))/$QE15/1.9835) -> 0 | AJ15: 0 | AL15: =(VLOOKUP($B15,'ECCV 70R Pond Acrtns'!$B$7:$AI$1206,34)+VLOOKUP($B15,'2003 70R Pond Acrtns'!$B$7:$AI$1206,34)+VLOOKUP($B15,'ECCV 70R Canal Acrtns'!$B$7:$AI$1206,27)+VLOOKUP($B15,'2003 70R Canal Acrtns'!$B$7:$AI$1206,27))/$QE15/1.9835 -> 0 | AM15: 0 | AN15: =-(IF($N15=99999.99999,0,VLOOKUP($B15,'NFC Well Dplns-SDF'!$B$7:$Z$306,25)+VLOOKUP($B15,'NFC Well Dplns-URF'!B$7:$AB$306,20))/$QE15/1.9835) -> 0 | AO15: 0 | AP15: =-(AN15+AO15) -> 0 | AR15: =-AV15*'Weldon Credit'!$Z$36 -> 0 | AS15: =0.4*(INDEX('Riverside Pond Accrtns'!$B$6:$M$36,MATCH($B$2,'Riverside Pond Accrtns'!$A$6:$A$36,0),MATCH('ECCV Daily Replacement Summary'!A15,'Riverside Pond Accrtns'!$B$5:$M$5,0))/QE15)/1.9835 -> 0.9942021679 | AT15: =(44/640)*(INDEX('Weldon Valley Accrtns (02CW377)'!$B$6:$M$30,MATCH($B$2,'Weldon Valley Accrtns (02CW377)'!$A$6:$A$30,0),MATCH(A15,'Weldon Valley Accrtns (02CW377)'!$B$5:$M$5,0))/QE15)/1.9835 -> 0.3613173263 | AU15: =(VLOOKUP($B15,'ECCV 70R Pond Acrtns'!$B$7:$AI$1206,25)+VLOOKUP($B15,'ECCV 70R Canal Acrtns'!$B$7:$AI$1206,20)+VLOOKUP($B15,'2003 70R Pond Acrtns'!$B$7:$AI$1206,25)+VLOOKUP($B15,'2003 70R Canal Acrtns'!$B$7:$AI$1206,20))/$QE15/1.9835 -> 0 | AV15: ='Joint Aug Station Deliveries'!G15 -> 0 | AW15: 0 | AX15: 0 | AY15: =MIN(-($AR15+AX15),AS15-AS15*0.5/100*'Distances for Transit Losses'!$C$51) -> 0 | AZ15: 0 | BA15: =MIN(-($AR15+AX15+AY15+AZ15),AU15-AU15*0.5/100*'Distances for Transit Losses'!$C$51) -> 0 | BB15: =-((AY15+BA15)/(1-0.5/100*'Distances for Transit Losses'!$C$51)-(AY15+BA15)) -> 0 | BC15: =IF(AND(IF15-IG15-FI15-DI15>0,IA15="no"),MIN(-(AR15+AX15+AY15+AZ15+BA15+BB15)/(1-0.5/100*'Distances for Transit Losses'!$C$65),IF15-IG15-FI15-DI15),0) -> 0 | BD15: =--BC15*0.5/100*'Distances for Transit Losses'!C$65 -> 0 | BE15: =IF(AND(GM15-GN15-IA15-FC15-JO15-DC15>0,ET15="no"),MIN(-(AR15+SUM(AX15:BD15))/(1-0.5/100*'Distances for Transit Losses'!$C$71),GM15-GN15-IA15-FC15-JO15-DC15),0) -> 0 | BF15: =--BE15*0.5/100*'Distances for Transit Losses'!$C$67 -> 0 | BG15: 0 | BI15: no | BJ15: no | BK15: 0 | BL15: 0 | BM15: 0 | BO15: =IF($BJ15="No",MIN(-CV15,AS15-AY15/(1-0.5/100*'Distances for Transit Losses'!$C$51)),0) -> 0 | BP15: =IF($BJ15="No",MIN(-CV15+BO15,AU15-BA15/(1-0.5/100*'Distances for Transit Losses'!$C$51)),0) -> 0 | BQ15: 0 | BR15: 0 | BS15: 0 | BT15: 1.355519494 | BU15: 1.355519494 | BV15: =-(IF($N15=99999.99999,0,VLOOKUP($B15,'NFC Well Dplns-SDF'!$B$7:$Z$306,16)+VLOOKUP($B15,'NFC Well Dplns-URF'!$B$7:$AB$306,13))/$QE15/1.9835) -> 0 | BW15: =-(IF($N15>=99999,0,'88CW264(B) Pumping'!$E13/1.9835)+IF($N15>=99999,0,'88CW264(B) Pumping'!$E49/1.9835)+IF($N15>=99999,0,'88CW264(B) Pumping'!$E89/1.9835)+IF($N15>=99999,0,'88CW264(B) Pumping'!$E125/1.9835)+IF($N15>=51134.50919,0,'88CW264(B) Pumping'!$F165/1.9835)+IF($N15>=53406,0,'88CW264(B) Pumping'!$E201/1.9835)) -> 0 | BX15: 0 | BY15: 0 | BZ15: 0 | CB15: =-(IF($N15=99999.99999,0,VLOOKUP($B15,'United No. 2 Dplns'!$B$7:$X$676,13)/1.9835)) -> 0 | CC15: =CB15+(-(INDEX('Pre 1995 Net Accretions'!$B$6:$M$105,MATCH($B$2,'Pre 1995 Net Accretions'!$A$6:$A$105,0),MATCH($A15,'Pre 1995 Net Accretions'!$B$5:$M$5,0))/$QE15/1.9835)) -> 0.02919695922 | CD15: =-(IF(N15<99999.99999,(INDEX('70 Ranch RF Obligation'!$B$6:$M$30,MATCH($B$2,'70 Ranch RF Obligation'!$A$6:$A$30,0),MATCH('ECCV Daily Replacement Summary'!A15,'70 Ranch RF Obligation'!$B$5:$M$5,0))/QE15)/1.9835,0))-CG15*(1-'L. Latham Credit'!$E$35) -> 0 | CE15: 0.02919695922 | CF15: =(VLOOKUP($B15,'ECCV 70R Pond Acrtns'!$B$7:$AI$1206,16)+VLOOKUP($B15,'ECCV 70R Canal Acrtns'!$B$7:$AI$1206,13)+VLOOKUP($B15,'2003 70R Pond Acrtns'!$B$7:$AI$1206,16)+VLOOKUP($B15,'2003 70R Canal Acrtns'!$B$7:$AI$1206,13))/$QE15/1.9835 -> 0 | CG15: 0 | CH15: 0 | CI15: -0.02919695922 | CJ15: 0 | CK15: 0 | CL15: 0 | CM15: 0 | CO15: 0 | CP15: 0 | CQ15: 0 | CR15: =-CQ15*0.5/100*'Distances for Transit Losses'!$C$44 -> 0 | CS15: 0 | CT15: 0 | CU15: 0 | CV15: 0 | CW15: 0 | CX15: 0 | CY15: 0 | CZ15: =('NFC Well Pumping'!I13+'NFC Well Pumping'!I50+'NFC Well Pumping'!I86)/1.9835 -> 0 | DA15: =IF(AND(HX15-HY15-FA15>0,HS15="no"),MIN(-SUM(CV15:CZ15)/(1-0.5/100*'Distances for Transit Losses'!$C$69),HX15-HY15-FA15),0) -> 0 | DB15: =-DA15*0.5/100*'Distances for Transit Losses'!C$69 -> 0 | DC15: =IF(AND(GM15-GN15-IA15-FC15-JO15>0,ET15="no"),MIN(-SUM(CV15:DB15)/(1-0.5/100*'Distances for Transit Losses'!$C$71),GM15-GN15-IA15-FC15-JO15),0) -> 0 | DD15: =--DC15*0.5/100*'Distances for Transit Losses'!$C$71 -> 0 | DE15: 0 | DF15: =-(IF(DK15="Yes",((0.107*(INDEX('New Cache Credit'!$AR$70:$BC$95,MATCH($B$2,'New Cache Credit'!$AQ$70:$AQ$95,0),MATCH($A15,'New Cache Credit'!$AR$70:$BC$70,0))/$QE15))+(0.333*(INDEX('New Cache Credit'!$BG$70:$BR$95,MATCH($B$2,'New Cache Credit'!$BF$70:$BF$95,0),MATCH($A15,'New Cache Credit'!$BG$70:$BR$70,0))/$QE15)))/1.9835,0)) -> 0 | DG15: ='Joint Aug Station Deliveries'!J15 -> 0 | DH15: =-(DG15*0.5/100*'Distances for Transit Losses'!$C$154) -> 0 | DI15: 0 | DK15: no | DM15: 0 | DN15: 0 | DO15: =-(DN15*0.5/100*'Distances for Transit Losses'!$C$156) -> 0 | DP15: =-(IF(DZ15="Yes",((0.75*(INDEX('New Cache Credit'!$AR$70:$BC$95,MATCH($B$2,'New Cache Credit'!$AQ$70:$AQ$95,0),MATCH($A15,'New Cache Credit'!$AR$70:$BC$70,0))/$QE15))+(0.222*(INDEX('New Cache Credit'!$BG$70:$BR$95,MATCH($B$2,'New Cache Credit'!$BF$70:$BF$95,0),MATCH($A15,'New Cache Credit'!$BG$70:$BR$70,0))/$QE15)))/1.9835,0)) -> 0 | DQ15: =-(IF(DZ15="yes",(0.25*INDEX('GIC Credit'!$B$71:$M$96,MATCH($B$2,'GIC Credit'!$A$71:$A$96,0),MATCH($A15,'GIC Credit'!$B$71:$M$71,0))/$QE15)/1.9835,0)) -> 0 | DR15: 0 | DS15: 0 | DT15: 0 | DU15: =-(DT15*0.5/100*'Distances for Transit Losses'!$C$158) -> 0 | DV15: 0 | DW15: =-(DV15*0.5/100*('Distances for Transit Losses'!$C$160+'Distances for Transit Losses'!$C$170)) -> 0 | DX15: 0 | DZ15: no | EA15: 0 | EB15: =-(IF($N15<99999.99999,(INDEX('New Cache Credit'!$W$70:$AH$95,MATCH($B$2,'New Cache Credit'!$V$70:$V$95,0),MATCH($A15,'New Cache Credit'!$W$70:$AH$70,0))/$QE15)/1.9835,0))-DF15-DP15 -> 0 | EC15: =-(IF($N15<99999.99999,(INDEX('GIC Credit'!$B$71:$M$96,MATCH($B$2,'GIC Credit'!$A$71:$A$96,0),MATCH($A15,'GIC Credit'!$B$71:$M$71,0))/$QE15)/1.9835,0))-DQ15 -> 0 | ED15: 0 | EE15: =-(ED15*0.5/100*('Distances for Transit Losses'!$C$162+'Distances for Transit Losses'!$C$168)) -> 0 | EG15: =IF(EF15="yes",'Joint Aug Station Deliveries'!Q15,0) -> 0 | EH15: =-(EG15*0.5/100*('Distances for Transit Losses'!$C$164+'Distances for Transit Losses'!$C$166+'Distances for Transit Losses'!$C$168)) -> 0 | EI15: =IF(EF15="Yes",'Joint Aug Station Deliveries'!T15,0) -> 0 | EJ15: =-(EI15*0.5/100*('Distances for Transit Losses'!$C$166+'Distances for Transit Losses'!$C$168)) -> 0 | EK15: 0 | EL15: =-(EK15*0.5/100*'Distances for Transit Losses'!$C$172) -> 0 | EM15: 0 | EN15: 0 | EO15: 0 | EP15: 0 | EQ15: =-(IF(N15<99999.99999,INDEX('Hist RF to SPR'!$AF$6:$AQ$30,MATCH($B$2,'Hist RF to SPR'!$AE$6:$AE$30,0),MATCH($A15,'Hist RF to SPR'!$AF$5:$AQ$5,0))/QE15/1.9835,0)) -> 0 | ER15: 0 | ES15: 0 | ET15: no | EU15: 0 | EV15: 0 | EW15: 0 | EY15: 0 | EZ15: 0 | FA15: =IF(AND(HX15-HY15-GK15>0,HS15="no"),MIN(-(ES15+EY15+EZ15)/(1-0.5/100*'Distances for Transit Losses'!$C$73),HX15-HY15-GK15),0) -> 0 | FB15: =-FA15*0.5/100*'Distances for Transit Losses'!$C$73 -> 0 | FC15: =IF(AND(GM15-GN15-IA15>0,GB15="no"),MIN(-(ES15+EY15+EZ15+FA15+FB15)/(1-0.5/100*'Distances for Transit Losses'!$C$75),GM15-GN15-IA15),0) -> 0 | FD15: =-FC15*0.5/100*'Distances for Transit Losses'!$C$79 -> 0 | FE15: 0 | FG15: 0 | FI15: =IF(AND(FH14="no",(SUM('Joint Aug Station Deliveries'!$AA$9:'Joint Aug Station Deliveries'!$AA14)+'Joint Aug Station Deliveries'!$AA15)*1.9835>'New Cache Credit'!$BY$33,(SUM('Joint Aug Station Deliveries'!$AA$9:'Joint Aug Station Deliveries'!$AA14)+'Joint Aug Station Deliveries'!$AA15)*1.9835>'New Cache Credit'!$CH$33),0,'Joint Aug Station Deliveries'!S15) -> 0 | FJ15: =-(FI15*0.5/100*'Distances for Transit Losses'!$C$150) -> 0 | FL15: =IF(AND(FK14="no",(SUM('Joint Aug Station Deliveries'!$AA$9:'Joint Aug Station Deliveries'!$AA14)+'Joint Aug Station Deliveries'!$AA15)*1.9835>'New Cache Credit'!$BY$33,(SUM('Joint Aug Station Deliveries'!$AA$9:'Joint Aug Station Deliveries'!$AA14)+'Joint Aug Station Deliveries'!$AA15)*1.9835>'New Cache Credit'!$CH$33),0,'Joint Aug Station Deliveries'!V15) -> 0 | FM15: =-(FL15*0.5/100*'Distances for Transit Losses'!$C$142) -> 0 | FN15: =IF(AND(FK14="no",(SUM('Joint Aug Station Deliveries'!$AA$9:'Joint Aug Station Deliveries'!$AA14)+'Joint Aug Station Deliveries'!$AA15)*1.9835>'New Cache Credit'!$BY$33,(SUM('Joint Aug Station Deliveries'!$AA$9:'Joint Aug Station Deliveries'!$AA14)+'Joint Aug Station Deliveries'!$AA15)*1.9835>'New Cache Credit'!$CH$33),0,'Joint Aug Station Deliveries'!Y15) -> 0 | FO15: =-(FN15*0.5/100*'Distances for Transit Losses'!$C$148) -> 0 | FP15: 0 | FQ15: 0 | FR15: 0 | FS15: 1.355519494 | FT15: =-(IF(N15<99999.99999,INDEX('Hist RF to SPR'!$Q$6:$AB$30,MATCH($B$2,'Hist RF to SPR'!$P$6:$P$30,0),MATCH($A15,'Hist RF to SPR'!$Q$5:$AB$5,0))/QE15/1.9835,0)) -> 0 | FU15: =-(IF($N15<99999.99999,(INDEX('FIDCO Credit'!$X$42:$AI$66,MATCH($B$2,'FIDCO Credit'!$W$42:$W$66,0),MATCH($A15,'FIDCO Credit'!$X$41:$AI$41,0))/$QE15)/1.9835,0)) -> 0 | FV15: =-(IF($N15<99999.99999,(INDEX('Western Credit'!$W$72:$AH$96,MATCH($B$2,'Western Credit'!$V$72:$V$96,0),MATCH($A15,'Western Credit'!$W$71:$AH$71,0))/$QE15)/1.9835,0)) -> 0 | FW15: 0 | FX15: 0 | FY15: =VLOOKUP($B15,'ECCV Haren Pond S.P. Acrtns'!$B$7:$G$306,6)/$QE15/1.9835 -> 1.341957985 | FZ15: 0 | GA15: 0 | GB15: no | GC15: yes | GD15: 0 | GE15: 0 | GF15: 0 | GH15: 0 | GI15: 0 | GJ15: 0 | GK15: =IF(AND(HX15-HY15>0,HS15="no"),MIN(-GJ15/(1-0.5/100*'Distances for Transit Losses'!$C$77),HX15-HY15),0) -> 0 | GL15: =-GK15*0.5/100*'Distances for Transit Losses'!$C$77 -> 0 | GM15: 0 | GN15: =IF(GM15>0,MIN(-(GJ15+GK15+GL15)/(1-0.5/100*'Distances for Transit Losses'!$C$79),GM15),0) -> 0 | GO15: =-GN15*0.5/100*'Distances for Transit Losses'!$C$79 -> 0 | GP15: 0 | GR15: 0 | GS15: ='Joint Aug Station Deliveries'!AJ15 -> 0 | GT15: =GS15*'Western Credit'!$Z$36 -> 0 | GU15: ='Joint Aug Station Deliveries'!AD15 -> 0 | GV15: 0 | GW15: =MAX(0,(JJ15+JK15))/(1-0.5/100*'Distances for Transit Losses'!$C$55) -> 0 | GX15: =MAX(0,(JL15+JM15)/(1-0.5/100*'Distances for Transit Losses'!$C$53)) -> 0 | GY15: 0 | GZ15: 0 | HA15: 0 | HB15: =-HA15*0.5/100*'Distances for Transit Losses'!$C$34 -> 0 | HC15: 0 | HD15: 0 | HE15: 0 | HF15: 0 | HG15: 0 | HH15: 0 | HI15: 1.355519494 | HJ15: 0 | HK15: 0 | HL15: 0 | HM15: 0 | HN15: 0 | HO15: 1.341957985 | HP15: 0 | HQ15: 1.355519494 | HR15: =-(IF(F15<99999.99999,INDEX('Hist RF to SPR'!$B$6:$M$30,MATCH($B$2,'Hist RF to SPR'!$A$6:$A$30,0),MATCH($A15,'Hist RF to SPR'!$B$5:$M$5,0))/QE15/1.9835,0)) -> -0.01871053104 | HS15: yes | HT15: 0 | HU15: 0 | HV15: 0 | HW15: -0.01871053104 | HX15: =-HW15 -> 0.01871053104 | HY15: =IF(HX15>0,MIN(-HW15/(1-0.5/100*'Distances for Transit Losses'!$C$81),HX15),0) -> 0.01871053104 | HZ15: =-HY15*0.5/100*'Distances for Transit Losses'!$C$81 -> -0.001141342393 | IA15: 0 | IB15: 0 | ID15: -0.001141342393 | IE15: 0 | IF15: 0 | IG15: 0 | IH15: 0 | II15: 0 | IJ15: 0 | IK15: 0 | IL15: 0 | IM15: 1.355519494 | IN15: =-(IF(N15<99999.99999,(VLOOKUP(B15,'ECCV Upper Dpln'!$B$7:$BD$306,55))/QE15/1.9835,0)) -> 0 | IO15: =-(IF(N15<99999.99999,INDEX('Hist RF abv Milton'!$B$6:$M$30,MATCH($B$2,'Hist RF abv Milton'!$A$6:$A$30,0),MATCH($A15,'Hist RF abv Milton'!$B$5:$M$5,0))/QE15/1.9835,0)) -> 0 | IP15: =-(VLOOKUP(B15,'Unlagged Hist RF'!$A$9:$AN$308,36)/QE15/1.9835) -> 0 | IQ15: =(VLOOKUP($B15,'ECCV Beebe Pond Acrtns'!$B$7:$BI$1206,41)+VLOOKUP($B15,'ECCV Canal Acrtns'!$B$7:$AL$1206,22)+VLOOKUP($B15,'2003 Beebe Pond Acrtns'!$B$7:$BI$1206,41)+VLOOKUP($B15,'2003 Canal Acrtns'!$B$7:$AL$1206,22))/$QE15/1.9835 -> 1.053799341 | IR15: 0 | IS15: 0 | IT15: 0 | IU15: 0 | IV15: 0 | IW15: no | IX15: 0 | IY15: 0 | IZ15: 0 | JA15: 0 | JB15: 0 | JC15: 0 | JD15: 0 | JE15: 0 | JF15: =-(JE15*0.5/100*'Distances for Transit Losses'!$C$6) -> 0 | JG15: 0 | JH15: 0 | JI15: 0 | JJ15: =MIN(-(JD15+JG15),GV15-GV15*0.5/100*'Distances for Transit Losses'!$C$55) -> 0 | JK15: =MAX(0,MIN(-(JC15+JE15+JF15+JI15),GV15-GV15*0.5/100*'Distances for Transit Losses'!$C$55-JJ15/(1-0.5/100*'Distances for Transit Losses'!$C$55))) -> 0 | JL15: =MIN(-(JD15+JJ15),GT15-GT15*0.5/100*'Distances for Transit Losses'!$C$53) -> 0 | JM15: =MAX(0,MIN(-(JC15+JE15+JF15+JK15),GT15-GT15*0.5/100*'Distances for Transit Losses'!$C$53-JL15/(1-0.5/100*'Distances for Transit Losses'!$C$53))) -> 0 | JN15: =IF(ET15="no",MIN(-(MIN(0,JC15+JE15+JF15+JK15+JM15)),(FY15-FZ15)-(FY15-FZ15)*0.5/100*'Distances for Transit Losses'!$C$53),0) -> 0 | JO15: =IF(AND(GM15-GN15-IA15-FC15>0,ET15="no"),MIN(-(JC15+JE15+JF15+JI15+JK15+JM15+JN15)/(1-0.5/100*'Distances for Transit Losses'!$C$59),GM15-GN15-IA15-FC15),0) -> 0 | JP15: =JO15*0.5/100*'Distances for Transit Losses'!$D$59 -> 0 | JQ15: 0 | JS15: 0 | JT15: 1.053799341 | JU15: 0 | JV15: 0 | JW15: 1.355519494 | JX15: =-(IF(N15<99999.99999,INDEX('Hist RF blw Milton'!$B$6:$M$30,MATCH($B$2,'Hist RF blw Milton'!$A$6:$A$30,0),MATCH($A15,'Hist RF blw Milton'!$B$5:$M$5,0))/QE15/1.9835,0)) -> 0 | JY15: no | JZ15: 0 | KA15: 0 | KB15: 0 | KC15: 0 | KD15: 0 | KE15: 0 | KG15: 0 | KH15: 1.355519494 | KI15: =-(IF(N15<99999.99999,INDEX('Hist RF to Box Elder'!$B$6:$M$30,MATCH($B$2,'Hist RF to Box Elder'!$A$6:$A$30,0),MATCH($A15,'Hist RF to Box Elder'!$B$5:$M$5,0))/QE15/1.9835,0)) -> 0 | KJ15: =(VLOOKUP($B15,'ECCV Beebe Pond Acrtns'!$B$7:$BI$1206,54)+VLOOKUP($B15,'ECCV Canal Acrtns'!$B$7:$AL$1206,34)+VLOOKUP($B15,'2003 Beebe Pond Acrtns'!$B$7:$AL$1206,34)+VLOOKUP($B15,'2003 Canal Acrtns'!$B$7:$AL$1206,34)+VLOOKUP($B15,'84CW090 Beebe Pond Acrtns'!$B$7:$AL$1206,34)+VLOOKUP($B15,'84CW090 Canal Acrtns'!$B$7:$AL$1206,34))/$QE15/1.9835 -> 0.06977267982 | KK15: 0 | KL15: 0 | KM15: 0 | KN15: 0 | KP15: 0.01048642818 | KQ15: 0 | KR15: 0 | KS15: 0 | KT15: 0.01756918864 | KU15: 0 | KV15: 0 | KW15: 0 | KX15: -0.02919695922 | KY15: 0 | KZ15: -0.01162777057 | LA15: -0.001141342393 | LB15: 1.053799341 | LC15: 0 | LD15: 0 | LK15: 0 | LL15: 0 | LM15: 0 | LO15: 0 | LP15: 0 | LQ15: 0 | LR15: 0 | LS15: 0 | LT15: 0 | LU15: 0 | LV15: 0 | LW15: 0 | LX15: 0 | LY15: 0 | LZ15: 0 | MB15: 0 | MC15: 0 | MD15: 0 | ME15: 0 | MF15: 0 | MG15: 0 | MH15: 0 | MI15: 0 | MJ15: 0 | MK15: 0 | ML15: 0 | MN15: 0 | MO15: 0 | MP15: 0 | MQ15: 0 | MR15: 0 | MS15: 0 | MT15: 0 | MU15: 0 | MV15: 0 | MW15: 0 | MX15: 0 | ND15: 0 | NE15: 0 | NF15: 0 | NG15: 0 | NH15: 0 | NI15: 0 | NJ15: 0 | NK15: 0 | NL15: 0 | NN15: 0 | NO15: 0 | NP15: 0 | NQ15: 0 | NR15: 0 | NS15: 0 | NT15: 0 | NU15: 0 | NV15: 0 | NY15: 0 | NZ15: 0 | OA15: 0 | OB15: 0 | OC15: 0 | OD15: 0 | OE15: 0 | OH15: 0 | OI15: 0 | OL15: 0 | OM15: 0 | ON15: 0 | OQ15: 0 | OR15: 0 | OS15: 0 | OT15: 0 | OU15: 0 | OV15: 0 | OW15: 0 | OY15: 0 | OZ15: 0 | PA15: 0 | PB15: 0 | PC15: 0 | PD15: 309.6 | PF15: 1.053799341 | PG15: 0 | PH15: 0 | PI15: 0 | PJ15: 0 | PK15: 0 | PL15: 0 | PM15: 0 | PN15: 0 | PO15: 0 | PP15: 0 | PQ15: 0 | PR15: 0 | PS15: 0 | PT15: 0 | PU15: 0 | PV15: 0 | PW15: 0 | PX15: 0 | PY15: 0 | PZ15: 1.053799341 | QB15: 0 | QC15: 0 | QE15: =VLOOKUP(A15,'Control Sheet'!$G$9:$H$20,2) -> 30
A16: Apr | B16: 2015-04-08 | C16: Evans #2 Ditch | D16: 1909-06-09 | E16: Western | F16: 21709 | K16: Free River | N16: 99999.99999 | S16: 0 | T16: 0 | U16: 0 | V16: 0 | X16: 0 | Y16: =('NFC Well Pumping'!$L14+'NFC Well Pumping'!$L51+'NFC Well Pumping'!$L87+'NFC Well Pumping'!$L123)/1.9835 -> 0 | Z16: ='88CW264(B) Pumping'!$E14/1.9835+'88CW264(B) Pumping'!$E50/1.9835+'88CW264(B) Pumping'!E90/1.9835+'88CW264(B) Pumping'!E126/1.9835+'88CW264(B) Pumping'!F166/1.9835+'88CW264(B) Pumping'!E202/1.9835 -> 0.009639106611 | AA16: 0 | AB16: =('United No. 2 Well Pumping'!G15+'United No. 2 Well Pumping'!G51+'United No. 2 Well Pumping'!G87)/1.9835 -> 0 | AC16: =('United No. 2 Well Pumping'!F15+'United No. 2 Well Pumping'!F51+'United No. 2 Well Pumping'!F87)/1.9835 -> 0 | AD16: 0 | AF16: 0.009639106611 | AG16: =AC16+U16+'United Res'!AA15+'United Res'!AQ15+'Gilcrest Res'!D15 -> 0 | AH16: 100 | AI16: =-(IF($N16=99999.99999,0,VLOOKUP($B16,'NFC Well Dplns-URF'!B$7:$AB$306,27))/$QE16/1.9835) -> 0 | AJ16: 0 | AL16: =(VLOOKUP($B16,'ECCV 70R Pond Acrtns'!$B$7:$AI$1206,34)+VLOOKUP($B16,'2003 70R Pond Acrtns'!$B$7:$AI$1206,34)+VLOOKUP($B16,'ECCV 70R Canal Acrtns'!$B$7:$AI$1206,27)+VLOOKUP($B16,'2003 70R Canal Acrtns'!$B$7:$AI$1206,27))/$QE16/1.9835 -> 0 | AM16: 0 | AN16: =-(IF($N16=99999.99999,0,VLOOKUP($B16,'NFC Well Dplns-SDF'!$B$7:$Z$306,25)+VLOOKUP($B16,'NFC Well Dplns-URF'!B$7:$AB$306,20))/$QE16/1.9835) -> 0 | AO16: 0 | AP16: =-(AN16+AO16) -> 0 | AR16: =-AV16*'Weldon Credit'!$Z$36 -> 0 | AS16: =0.4*(INDEX('Riverside Pond Accrtns'!$B$6:$M$36,MATCH($B$2,'Riverside Pond Accrtns'!$A$6:$A$36,0),MATCH('ECCV Daily Replacement Summary'!A16,'Riverside Pond Accrtns'!$B$5:$M$5,0))/QE16)/1.9835 -> 0.9942021679 | AT16: =(44/640)*(INDEX('Weldon Valley Accrtns (02CW377)'!$B$6:$M$30,MATCH($B$2,'Weldon Valley Accrtns (02CW377)'!$A$6:$A$30,0),MATCH(A16,'Weldon Valley Accrtns (02CW377)'!$B$5:$M$5,0))/QE16)/1.9835 -> 0.3613173263 | AU16: =(VLOOKUP($B16,'ECCV 70R Pond Acrtns'!$B$7:$AI$1206,25)+VLOOKUP($B16,'ECCV 70R Canal Acrtns'!$B$7:$AI$1206,20)+VLOOKUP($B16,'2003 70R Pond Acrtns'!$B$7:$AI$1206,25)+VLOOKUP($B16,'2003 70R Canal Acrtns'!$B$7:$AI$1206,20))/$QE16/1.9835 -> 0 | AV16: ='Joint Aug Station Deliveries'!G16 -> 0 | AW16: 0 | AX16: 0 | AY16: =MIN(-($AR16+AX16),AS16-AS16*0.5/100*'Distances for Transit Losses'!$C$51) -> 0 | AZ16: 0 | BA16: =MIN(-($AR16+AX16+AY16+AZ16),AU16-AU16*0.5/100*'Distances for Transit Losses'!$C$51) -> 0 | BB16: =-((AY16+BA16)/(1-0.5/100*'Distances for Transit Losses'!$C$51)-(AY16+BA16)) -> 0 | BC16: =IF(AND(IF16-IG16-FI16-DI16>0,IA16="no"),MIN(-(AR16+AX16+AY16+AZ16+BA16+BB16)/(1-0.5/100*'Distances for Transit Losses'!$C$65),IF16-IG16-FI16-DI16),0) -> 0 | BD16: =--BC16*0.5/100*'Distances for Transit Losses'!C$65 -> 0 | BE16: =IF(AND(GM16-GN16-IA16-FC16-JO16-DC16>0,ET16="no"),MIN(-(AR16+SUM(AX16:BD16))/(1-0.5/100*'Distances for Transit Losses'!$C$71),GM16-GN16-IA16-FC16-JO16-DC16),0) -> 0 | BF16: =--BE16*0.5/100*'Distances for Transit Losses'!$C$67 -> 0 | BG16: 0 | BI16: no | BJ16: no | BK16: 0 | BL16: 0 | BM16: 0 | BO16: =IF($BJ16="No",MIN(-CV16,AS16-AY16/(1-0.5/100*'Distances for Transit Losses'!$C$51)),0) -> 0 | BP16: =IF($BJ16="No",MIN(-CV16+BO16,AU16-BA16/(1-0.5/100*'Distances for Transit Losses'!$C$51)),0) -> 0 | BQ16: 0 | BR16: 0 | BS16: 0 | BT16: 1.355519494 | BU16: 1.355519494 | BV16: =-(IF($N16=99999.99999,0,VLOOKUP($B16,'NFC Well Dplns-SDF'!$B$7:$Z$306,16)+VLOOKUP($B16,'NFC Well Dplns-URF'!$B$7:$AB$306,13))/$QE16/1.9835) -> 0 | BW16: =-(IF($N16>=99999,0,'88CW264(B) Pumping'!$E14/1.9835)+IF($N16>=99999,0,'88CW264(B) Pumping'!$E50/1.9835)+IF($N16>=99999,0,'88CW264(B) Pumping'!$E90/1.9835)+IF($N16>=99999,0,'88CW264(B) Pumping'!$E126/1.9835)+IF($N16>=51134.50919,0,'88CW264(B) Pumping'!$F166/1.9835)+IF($N16>=53406,0,'88CW264(B) Pumping'!$E202/1.9835)) -> 0 | BX16: 0 | BY16: 0 | BZ16: 0 | CB16: =-(IF($N16=99999.99999,0,VLOOKUP($B16,'United No. 2 Dplns'!$B$7:$X$676,13)/1.9835)) -> 0 | CC16: =CB16+(-(INDEX('Pre 1995 Net Accretions'!$B$6:$M$105,MATCH($B$2,'Pre 1995 Net Accretions'!$A$6:$A$105,0),MATCH($A16,'Pre 1995 Net Accretions'!$B$5:$M$5,0))/$QE16/1.9835)) -> 0.02919695922 | CD16: =-(IF(N16<99999.99999,(INDEX('70 Ranch RF Obligation'!$B$6:$M$30,MATCH($B$2,'70 Ranch RF Obligation'!$A$6:$A$30,0),MATCH('ECCV Daily Replacement Summary'!A16,'70 Ranch RF Obligation'!$B$5:$M$5,0))/QE16)/1.9835,0))-CG16*(1-'L. Latham Credit'!$E$35) -> 0 | CE16: 0.02919695922 | CF16: =(VLOOKUP($B16,'ECCV 70R Pond Acrtns'!$B$7:$AI$1206,16)+VLOOKUP($B16,'ECCV 70R Canal Acrtns'!$B$7:$AI$1206,13)+VLOOKUP($B16,'2003 70R Pond Acrtns'!$B$7:$AI$1206,16)+VLOOKUP($B16,'2003 70R Canal Acrtns'!$B$7:$AI$1206,13))/$QE16/1.9835 -> 0 | CG16: 0 | CH16: 0 | CI16: -0.02919695922 | CJ16: 0 | CK16: 0 | CL16: 0 | CM16: 0 | CO16: 0 | CP16: 0 | CQ16: 0 | CR16: =-CQ16*0.5/100*'Distances for Transit Losses'!$C$44 -> 0 | CS16: 0 | CT16: 0 | CU16: 0 | CV16: 0 | CW16: 0 | CX16: 0 | CY16: 0 | CZ16: =('NFC Well Pumping'!I14+'NFC Well Pumping'!I51+'NFC Well Pumping'!I87)/1.9835 -> 0 | DA16: =IF(AND(HX16-HY16-FA16>0,HS16="no"),MIN(-SUM(CV16:CZ16)/(1-0.5/100*'Distances for Transit Losses'!$C$69),HX16-HY16-FA16),0) -> 0 | DB16: =-DA16*0.5/100*'Distances for Transit Losses'!C$69 -> 0 | DC16: =IF(AND(GM16-GN16-IA16-FC16-JO16>0,ET16="no"),MIN(-SUM(CV16:DB16)/(1-0.5/100*'Distances for Transit Losses'!$C$71),GM16-GN16-IA16-FC16-JO16),0) -> 0 | DD16: =--DC16*0.5/100*'Distances for Transit Losses'!$C$71 -> 0 | DE16: 0 | DF16: =-(IF(DK16="Yes",((0.107*(INDEX('New Cache Credit'!$AR$70:$BC$95,MATCH($B$2,'New Cache Credit'!$AQ$70:$AQ$95,0),MATCH($A16,'New Cache Credit'!$AR$70:$BC$70,0))/$QE16))+(0.333*(INDEX('New Cache Credit'!$BG$70:$BR$95,MATCH($B$2,'New Cache Credit'!$BF$70:$BF$95,0),MATCH($A16,'New Cache Credit'!$BG$70:$BR$70,0))/$QE16)))/1.9835,0)) -> 0 | DG16: ='Joint Aug Station Deliveries'!J16 -> 0 | DH16: =-(DG16*0.5/100*'Distances for Transit Losses'!$C$154) -> 0 | DI16: 0 | DK16: no | DM16: 0 | DN16: 0 | DO16: =-(DN16*0.5/100*'Distances for Transit Losses'!$C$156) -> 0 | DP16: =-(IF(DZ16="Yes",((0.75*(INDEX('New Cache Credit'!$AR$70:$BC$95,MATCH($B$2,'New Cache Credit'!$AQ$70:$AQ$95,0),MATCH($A16,'New Cache Credit'!$AR$70:$BC$70,0))/$QE16))+(0.222*(INDEX('New Cache Credit'!$BG$70:$BR$95,MATCH($B$2,'New Cache Credit'!$BF$70:$BF$95,0),MATCH($A16,'New Cache Credit'!$BG$70:$BR$70,0))/$QE16)))/1.9835,0)) -> 0 | DQ16: =-(IF(DZ16="yes",(0.25*INDEX('GIC Credit'!$B$71:$M$96,MATCH($B$2,'GIC Credit'!$A$71:$A$96,0),MATCH($A16,'GIC Credit'!$B$71:$M$71,0))/$QE16)/1.9835,0)) -> 0 | DR16: 0 | DS16: 0 | DT16: 0 | DU16: =-(DT16*0.5/100*'Distances for Transit Losses'!$C$158) -> 0 | DV16: 0 | DW16: =-(DV16*0.5/100*('Distances for Transit Losses'!$C$160+'Distances for Transit Losses'!$C$170)) -> 0 | DX16: 0 | DZ16: no | EA16: 0 | EB16: =-(IF($N16<99999.99999,(INDEX('New Cache Credit'!$W$70:$AH$95,MATCH($B$2,'New Cache Credit'!$V$70:$V$95,0),MATCH($A16,'New Cache Credit'!$W$70:$AH$70,0))/$QE16)/1.9835,0))-DF16-DP16 -> 0 | EC16: =-(IF($N16<99999.99999,(INDEX('GIC Credit'!$B$71:$M$96,MATCH($B$2,'GIC Credit'!$A$71:$A$96,0),MATCH($A16,'GIC Credit'!$B$71:$M$71,0))/$QE16)/1.9835,0))-DQ16 -> 0 | ED16: 0 | EE16: =-(ED16*0.5/100*('Distances for Transit Losses'!$C$162+'Distances for Transit Losses'!$C$168)) -> 0 | EG16: =IF(EF16="yes",'Joint Aug Station Deliveries'!Q16,0) -> 0 | EH16: =-(EG16*0.5/100*('Distances for Transit Losses'!$C$164+'Distances for Transit Losses'!$C$166+'Distances for Transit Losses'!$C$168)) -> 0 | EI16: =IF(EF16="Yes",'Joint Aug Station Deliveries'!T16,0) -> 0 | EJ16: =-(EI16*0.5/100*('Distances for Transit Losses'!$C$166+'Distances for Transit Losses'!$C$168)) -> 0 | EK16: 0 | EL16: =-(EK16*0.5/100*'Distances for Transit Losses'!$C$172) -> 0 | EM16: 0 | EN16: 0 | EO16: 0 | EP16: 0 | EQ16: =-(IF(N16<99999.99999,INDEX('Hist RF to SPR'!$AF$6:$AQ$30,MATCH($B$2,'Hist RF to SPR'!$AE$6:$AE$30,0),MATCH($A16,'Hist RF to SPR'!$AF$5:$AQ$5,0))/QE16/1.9835,0)) -> 0 | ER16: 0 | ES16: 0 | ET16: no | EU16: 0 | EV16: 0 | EW16: 0 | EY16: 0 | EZ16: 0 | FA16: =IF(AND(HX16-HY16-GK16>0,HS16="no"),MIN(-(ES16+EY16+EZ16)/(1-0.5/100*'Distances for Transit Losses'!$C$73),HX16-HY16-GK16),0) -> 0 | FB16: =-FA16*0.5/100*'Distances for Transit Losses'!$C$73 -> 0 | FC16: =IF(AND(GM16-GN16-IA16>0,GB16="no"),MIN(-(ES16+EY16+EZ16+FA16+FB16)/(1-0.5/100*'Distances for Transit Losses'!$C$75),GM16-GN16-IA16),0) -> 0 | FD16: =-FC16*0.5/100*'Distances for Transit Losses'!$C$79 -> 0 | FE16: 0 | FG16: 0 | FI16: =IF(AND(FH15="no",(SUM('Joint Aug Station Deliveries'!$AA$9:'Joint Aug Station Deliveries'!$AA15)+'Joint Aug Station Deliveries'!$AA16)*1.9835>'New Cache Credit'!$BY$33,(SUM('Joint Aug Station Deliveries'!$AA$9:'Joint Aug Station Deliveries'!$AA15)+'Joint Aug Station Deliveries'!$AA16)*1.9835>'New Cache Credit'!$CH$33),0,'Joint Aug Station Deliveries'!S16) -> 0 | FJ16: =-(FI16*0.5/100*'Distances for Transit Losses'!$C$150) -> 0 | FL16: =IF(AND(FK15="no",(SUM('Joint Aug Station Deliveries'!$AA$9:'Joint Aug Station Deliveries'!$AA15)+'Joint Aug Station Deliveries'!$AA16)*1.9835>'New Cache Credit'!$BY$33,(SUM('Joint Aug Station Deliveries'!$AA$9:'Joint Aug Station Deliveries'!$AA15)+'Joint Aug Station Deliveries'!$AA16)*1.9835>'New Cache Credit'!$CH$33),0,'Joint Aug Station Deliveries'!V16) -> 0 | FM16: =-(FL16*0.5/100*'Distances for Transit Losses'!$C$142) -> 0 | FN16: =IF(AND(FK15="no",(SUM('Joint Aug Station Deliveries'!$AA$9:'Joint Aug Station Deliveries'!$AA15)+'Joint Aug Station Deliveries'!$AA16)*1.9835>'New Cache Credit'!$BY$33,(SUM('Joint Aug Station Deliveries'!$AA$9:'Joint Aug Station Deliveries'!$AA15)+'Joint Aug Station Deliveries'!$AA16)*1.9835>'New Cache Credit'!$CH$33),0,'Joint Aug Station Deliveries'!Y16) -> 0 | FO16: =-(FN16*0.5/100*'Distances for Transit Losses'!$C$148) -> 0 | FP16: 0 | FQ16: 0 | FR16: 0 | FS16: 1.355519494 | FT16: =-(IF(N16<99999.99999,INDEX('Hist RF to SPR'!$Q$6:$AB$30,MATCH($B$2,'Hist RF to SPR'!$P$6:$P$30,0),MATCH($A16,'Hist RF to SPR'!$Q$5:$AB$5,0))/QE16/1.9835,0)) -> 0 | FU16: =-(IF($N16<99999.99999,(INDEX('FIDCO Credit'!$X$42:$AI$66,MATCH($B$2,'FIDCO Credit'!$W$42:$W$66,0),MATCH($A16,'FIDCO Credit'!$X$41:$AI$41,0))/$QE16)/1.9835,0)) -> 0 | FV16: =-(IF($N16<99999.99999,(INDEX('Western Credit'!$W$72:$AH$96,MATCH($B$2,'Western Credit'!$V$72:$V$96,0),MATCH($A16,'Western Credit'!$W$71:$AH$71,0))/$QE16)/1.9835,0)) -> 0 | FW16: 0 | FX16: 0 | FY16: =VLOOKUP($B16,'ECCV Haren Pond S.P. Acrtns'!$B$7:$G$306,6)/$QE16/1.9835 -> 1.341957985 | FZ16: 0 | GA16: 0 | GB16: no | GC16: yes | GD16: 0 | GE16: 0 | GF16: 0 | GH16: 0 | GI16: 0 | GJ16: 0 | GK16: =IF(AND(HX16-HY16>0,HS16="no"),MIN(-GJ16/(1-0.5/100*'Distances for Transit Losses'!$C$77),HX16-HY16),0) -> 0 | GL16: =-GK16*0.5/100*'Distances for Transit Losses'!$C$77 -> 0 | GM16: 0 | GN16: =IF(GM16>0,MIN(-(GJ16+GK16+GL16)/(1-0.5/100*'Distances for Transit Losses'!$C$79),GM16),0) -> 0 | GO16: =-GN16*0.5/100*'Distances for Transit Losses'!$C$79 -> 0 | GP16: 0 | GR16: 0 | GS16: ='Joint Aug Station Deliveries'!AJ16 -> 0 | GT16: =GS16*'Western Credit'!$Z$36 -> 0 | GU16: ='Joint Aug Station Deliveries'!AD16 -> 0 | GV16: 0 | GW16: =MAX(0,(JJ16+JK16))/(1-0.5/100*'Distances for Transit Losses'!$C$55) -> 0 | GX16: =MAX(0,(JL16+JM16)/(1-0.5/100*'Distances for Transit Losses'!$C$53)) -> 0 | GY16: 0 | GZ16: 0 | HA16: 0 | HB16: =-HA16*0.5/100*'Distances for Transit Losses'!$C$34 -> 0 | HC16: 0 | HD16: 0 | HE16: 0 | HF16: 0 | HG16: 0 | HH16: 0 | HI16: 1.355519494 | HJ16: 0 | HK16: 0 | HL16: 0 | HM16: 0 | HN16: 0 | HO16: 1.341957985 | HP16: 0 | HQ16: 1.355519494 | HR16: =-(IF(F16<99999.99999,INDEX('Hist RF to SPR'!$B$6:$M$30,MATCH($B$2,'Hist RF to SPR'!$A$6:$A$30,0),MATCH($A16,'Hist RF to SPR'!$B$5:$M$5,0))/QE16/1.9835,0)) -> -0.01871053104 | HS16: yes | HT16: 0 | HU16: 0 | HV16: 0 | HW16: -0.01871053104 | HX16: =-HW16 -> 0.01871053104 | HY16: =IF(HX16>0,MIN(-HW16/(1-0.5/100*'Distances for Transit Losses'!$C$81),HX16),0) -> 0.01871053104 | HZ16: =-HY16*0.5/100*'Distances for Transit Losses'!$C$81 -> -0.001141342393 | IA16: 0 | IB16: 0 | ID16: -0.001141342393 | IE16: 0 | IF16: 0 | IG16: 0 | IH16: 0 | II16: 0 | IJ16: 0 | IK16: 0 | IL16: 0 | IM16: 1.355519494 | IN16: =-(IF(N16<99999.99999,(VLOOKUP(B16,'ECCV Upper Dpln'!$B$7:$BD$306,55))/QE16/1.9835,0)) -> 0 | IO16: =-(IF(N16<99999.99999,INDEX('Hist RF abv Milton'!$B$6:$M$30,MATCH($B$2,'Hist RF abv Milton'!$A$6:$A$30,0),MATCH($A16,'Hist RF abv Milton'!$B$5:$M$5,0))/QE16/1.9835,0)) -> 0 | IP16: =-(VLOOKUP(B16,'Unlagged Hist RF'!$A$9:$AN$308,36)/QE16/1.9835) -> 0 | IQ16: =(VLOOKUP($B16,'ECCV Beebe Pond Acrtns'!$B$7:$BI$1206,41)+VLOOKUP($B16,'ECCV Canal Acrtns'!$B$7:$AL$1206,22)+VLOOKUP($B16,'2003 Beebe Pond Acrtns'!$B$7:$BI$1206,41)+VLOOKUP($B16,'2003 Canal Acrtns'!$B$7:$AL$1206,22))/$QE16/1.9835 -> 1.053799341 | IR16: 0 | IS16: 0 | IT16: 0 | IU16: 0 | IV16: 0 | IW16: no | IX16: 0 | IY16: 0 | IZ16: 0 | JA16: 0 | JB16: 0 | JC16: 0 | JD16: 0 | JE16: 0 | JF16: =-(JE16*0.5/100*'Distances for Transit Losses'!$C$6) -> 0 | JG16: 0 | JH16: 0 | JI16: 0 | JJ16: =MIN(-(JD16+JG16),GV16-GV16*0.5/100*'Distances for Transit Losses'!$C$55) -> 0 | JK16: =MAX(0,MIN(-(JC16+JE16+JF16+JI16),GV16-GV16*0.5/100*'Distances for Transit Losses'!$C$55-JJ16/(1-0.5/100*'Distances for Transit Losses'!$C$55))) -> 0 | JL16: =MIN(-(JD16+JJ16),GT16-GT16*0.5/100*'Distances for Transit Losses'!$C$53) -> 0 | JM16: =MAX(0,MIN(-(JC16+JE16+JF16+JK16),GT16-GT16*0.5/100*'Distances for Transit Losses'!$C$53-JL16/(1-0.5/100*'Distances for Transit Losses'!$C$53))) -> 0 | JN16: =IF(ET16="no",MIN(-(MIN(0,JC16+JE16+JF16+JK16+JM16)),(FY16-FZ16)-(FY16-FZ16)*0.5/100*'Distances for Transit Losses'!$C$53),0) -> 0 | JO16: =IF(AND(GM16-GN16-IA16-FC16>0,ET16="no"),MIN(-(JC16+JE16+JF16+JI16+JK16+JM16+JN16)/(1-0.5/100*'Distances for Transit Losses'!$C$59),GM16-GN16-IA16-FC16),0) -> 0 | JP16: =JO16*0.5/100*'Distances for Transit Losses'!$D$59 -> 0 | JQ16: 0 | JS16: 0 | JT16: 1.053799341 | JU16: 0 | JV16: 0 | JW16: 1.355519494 | JX16: =-(IF(N16<99999.99999,INDEX('Hist RF blw Milton'!$B$6:$M$30,MATCH($B$2,'Hist RF blw Milton'!$A$6:$A$30,0),MATCH($A16,'Hist RF blw Milton'!$B$5:$M$5,0))/QE16/1.9835,0)) -> 0 | JY16: no | JZ16: 0 | KA16: 0 | KB16: 0 | KC16: 0 | KD16: 0 | KE16: 0 | KG16: 0 | KH16: 1.355519494 | KI16: =-(IF(N16<99999.99999,INDEX('Hist RF to Box Elder'!$B$6:$M$30,MATCH($B$2,'Hist RF to Box Elder'!$A$6:$A$30,0),MATCH($A16,'Hist RF to Box Elder'!$B$5:$M$5,0))/QE16/1.9835,0)) -> 0 | KJ16: =(VLOOKUP($B16,'ECCV Beebe Pond Acrtns'!$B$7:$BI$1206,54)+VLOOKUP($B16,'ECCV Canal Acrtns'!$B$7:$AL$1206,34)+VLOOKUP($B16,'2003 Beebe Pond Acrtns'!$B$7:$AL$1206,34)+VLOOKUP($B16,'2003 Canal Acrtns'!$B$7:$AL$1206,34)+VLOOKUP($B16,'84CW090 Beebe Pond Acrtns'!$B$7:$AL$1206,34)+VLOOKUP($B16,'84CW090 Canal Acrtns'!$B$7:$AL$1206,34))/$QE16/1.9835 -> 0.06977267982 | KK16: 0 | KL16: 0 | KM16: 0 | KN16: 0 | KP16: 0.01048642818 | KQ16: 0 | KR16: 0 | KS16: 0 | KT16: 0.01756918864 | KU16: 0 | KV16: 0 | KW16: 0 | KX16: -0.02919695922 | KY16: 0 | KZ16: -0.01162777057 | LA16: -0.001141342393 | LB16: 1.053799341 | LC16: 0 | LD16: 0 | LK16: 0 | LL16: 0 | LM16: 0 | LO16: 0 | LP16: 0 | LQ16: 0 | LR16: 0 | LS16: 0 | LT16: 0 | LU16: 0 | LV16: 0 | LW16: 0 | LX16: 0 | LY16: 0 | LZ16: 0 | MB16: 0 | MC16: 0 | MD16: 0 | ME16: 0 | MF16: 0 | MG16: 0 | MH16: 0 | MI16: 0 | MJ16: 0 | MK16: 0 | ML16: 0 | MN16: 0 | MO16: 0 | MP16: 0 | MQ16: 0 | MR16: 0 | MS16: 0 | MT16: 0 | MU16: 0 | MV16: 0 | MW16: 0 | MX16: 0 | ND16: 0 | NE16: 0 | NF16: 0 | NG16: 0 | NH16: 0 | NI16: 0 | NJ16: 0 | NK16: 0 | NL16: 0 | NN16: 0 | NO16: 0 | NP16: 0 | NQ16: 0 | NR16: 0 | NS16: 0 | NT16: 0 | NU16: 0 | NV16: 0 | NY16: 0 | NZ16: 0 | OA16: 0 | OB16: 0 | OC16: 0 | OD16: 0 | OE16: 0 | OH16: 0 | OI16: 0 | OL16: 0 | OM16: 0 | ON16: 0 | OQ16: 0 | OR16: 0 | OS16: 0 | OT16: 0 | OU16: 0 | OV16: 0 | OW16: 0 | OY16: 0 | OZ16: 0 | PA16: 0 | PB16: 0 | PC16: 0 | PD16: 309.6 | PF16: 1.053799341 | PG16: 0 | PH16: 0 | PI16: 0 | PJ16: 0 | PK16: 0 | PL16: 0 | PM16: 0 | PN16: 0 | PO16: 0 | PP16: 0 | PQ16: 0 | PR16: 0 | PS16: 0 | PT16: 0 | PU16: 0 | PV16: 0 | PW16: 0 | PX16: 0 | PY16: 0 | PZ16: 1.053799341 | QB16: 0 | QC16: 0 | QE16: =VLOOKUP(A16,'Control Sheet'!$G$9:$H$20,2) -> 30
A17: Apr | B17: 2015-04-09 | C17: Evans #2 Ditch | D17: 1909-06-09 | E17: Western | F17: 21709 | K17: Bijou Canal | L17: 1972-05-26 | M17: Bijou Canal | N17: 44706 | S17: 0 | T17: 0 | U17: 0 | V17: 0 | X17: 0 | Y17: =('NFC Well Pumping'!$L15+'NFC Well Pumping'!$L52+'NFC Well Pumping'!$L88+'NFC Well Pumping'!$L124)/1.9835 -> 0 | Z17: ='88CW264(B) Pumping'!$E15/1.9835+'88CW264(B) Pumping'!$E51/1.9835+'88CW264(B) Pumping'!E91/1.9835+'88CW264(B) Pumping'!E127/1.9835+'88CW264(B) Pumping'!F167/1.9835+'88CW264(B) Pumping'!E203/1.9835 -> 0.009639106611 | AA17: 0 | AB17: =('United No. 2 Well Pumping'!G16+'United No. 2 Well Pumping'!G52+'United No. 2 Well Pumping'!G88)/1.9835 -> 0 | AC17: =('United No. 2 Well Pumping'!F16+'United No. 2 Well Pumping'!F52+'United No. 2 Well Pumping'!F88)/1.9835 -> 0 | AD17: 0 | AF17: 0.009639106611 | AG17: =AC17+U17+'United Res'!AA16+'United Res'!AQ16+'Gilcrest Res'!D16 -> 0 | AH17: 100 | AI17: =-(IF($N17=99999.99999,0,VLOOKUP($B17,'NFC Well Dplns-URF'!B$7:$AB$306,27))/$QE17/1.9835) -> -5.888111295e-05 | AJ17: 0 | AL17: =(VLOOKUP($B17,'ECCV 70R Pond Acrtns'!$B$7:$AI$1206,34)+VLOOKUP($B17,'2003 70R Pond Acrtns'!$B$7:$AI$1206,34)+VLOOKUP($B17,'ECCV 70R Canal Acrtns'!$B$7:$AI$1206,27)+VLOOKUP($B17,'2003 70R Canal Acrtns'!$B$7:$AI$1206,27))/$QE17/1.9835 -> 0 | AM17: -5.888111295e-05 | AN17: =-(IF($N17=99999.99999,0,VLOOKUP($B17,'NFC Well Dplns-SDF'!$B$7:$Z$306,25)+VLOOKUP($B17,'NFC Well Dplns-URF'!B$7:$AB$306,20))/$QE17/1.9835) -> -0.06918585807 | AO17: 0.002486497969 | AP17: 0.0666993601 | AQ17: ECCV Riverside Credits | AR17: =-AV17*'Weldon Credit'!$Z$36 -> 0 | AS17: =0.4*(INDEX('Riverside Pond Accrtns'!$B$6:$M$36,MATCH($B$2,'Riverside Pond Accrtns'!$A$6:$A$36,0),MATCH('ECCV Daily Replacement Summary'!A17,'Riverside Pond Accrtns'!$B$5:$M$5,0))/QE17)/1.9835 -> 0.9942021679 | AT17: =(44/640)*(INDEX('Weldon Valley Accrtns (02CW377)'!$B$6:$M$30,MATCH($B$2,'Weldon Valley Accrtns (02CW377)'!$A$6:$A$30,0),MATCH(A17,'Weldon Valley Accrtns (02CW377)'!$B$5:$M$5,0))/QE17)/1.9835 -> 0.3613173263 | AU17: =(VLOOKUP($B17,'ECCV 70R Pond Acrtns'!$B$7:$AI$1206,25)+VLOOKUP($B17,'ECCV 70R Canal Acrtns'!$B$7:$AI$1206,20)+VLOOKUP($B17,'2003 70R Pond Acrtns'!$B$7:$AI$1206,25)+VLOOKUP($B17,'2003 70R Canal Acrtns'!$B$7:$AI$1206,20))/$QE17/1.9835 -> 0 | AV17: ='Joint Aug Station Deliveries'!G17 -> 0 | AW17: 0 | AX17: 0 | AY17: =MIN(-($AR17+AX17),AS17-AS17*0.5/100*'Distances for Transit Losses'!$C$51) -> 0 | AZ17: 0 | BA17: =MIN(-($AR17+AX17+AY17+AZ17),AU17-AU17*0.5/100*'Distances for Transit Losses'!$C$51) -> 0 | BB17: =-((AY17+BA17)/(1-0.5/100*'Distances for Transit Losses'!$C$51)-(AY17+BA17)) -> 0 | BC17: =IF(AND(IF17-IG17-FI17-DI17>0,IA17="no"),MIN(-(AR17+AX17+AY17+AZ17+BA17+BB17)/(1-0.5/100*'Distances for Transit Losses'!$C$65),IF17-IG17-FI17-DI17),0) -> 0 | BD17: =--BC17*0.5/100*'Distances for Transit Losses'!C$65 -> 0 | BE17: =IF(AND(GM17-GN17-IA17-FC17-JO17-DC17>0,ET17="no"),MIN(-(AR17+SUM(AX17:BD17))/(1-0.5/100*'Distances for Transit Losses'!$C$71),GM17-GN17-IA17-FC17-JO17-DC17),0) -> 0 | BF17: =--BE17*0.5/100*'Distances for Transit Losses'!$C$67 -> 0 | BG17: 0 | BI17: no | BJ17: yes | BK17: 0 | BL17: 0 | BM17: 0 | BO17: =IF($BJ17="No",MIN(-CV17,AS17-AY17/(1-0.5/100*'Distances for Transit Losses'!$C$51)),0) -> 0 | BP17: =IF($BJ17="No",MIN(-CV17+BO17,AU17-BA17/(1-0.5/100*'Distances for Transit Losses'!$C$51)),0) -> 0 | BQ17: 0 | BR17: 0 | BS17: 0 | BT17: 1.288820134 | BU17: 1.288820134 | BV17: =-(IF($N17=99999.99999,0,VLOOKUP($B17,'NFC Well Dplns-SDF'!$B$7:$Z$306,16)+VLOOKUP($B17,'NFC Well Dplns-URF'!$B$7:$AB$306,13))/$QE17/1.9835) -> -0.334881613 | BW17: =-(IF($N17>=99999,0,'88CW264(B) Pumping'!$E15/1.9835)+IF($N17>=99999,0,'88CW264(B) Pumping'!$E51/1.9835)+IF($N17>=99999,0,'88CW264(B) Pumping'!$E91/1.9835)+IF($N17>=99999,0,'88CW264(B) Pumping'!$E127/1.9835)+IF($N17>=51134.50919,0,'88CW264(B) Pumping'!$F167/1.9835)+IF($N17>=53406,0,'88CW264(B) Pumping'!$E203/1.9835)) -> -0.009639106611 | BX17: -0.3445207196 | BY17: 0.2318448797 | BZ17: =-BX17-BY17 -> 0.1126758398 | CA17: Haren recharge | CB17: =-(IF($N17=99999.99999,0,VLOOKUP($B17,'United No. 2 Dplns'!$B$7:$X$676,13)/1.9835)) -> 0 | CC17: =CB17+(-(INDEX('Pre 1995 Net Accretions'!$B$6:$M$105,MATCH($B$2,'Pre 1995 Net Accretions'!$A$6:$A$105,0),MATCH($A17,'Pre 1995 Net Accretions'!$B$5:$M$5,0))/$QE17/1.9835)) -> 0.02919695922 | CD17: =-(IF(N17<99999.99999,(INDEX('70 Ranch RF Obligation'!$B$6:$M$30,MATCH($B$2,'70 Ranch RF Obligation'!$A$6:$A$30,0),MATCH('ECCV Daily Replacement Summary'!A17,'70 Ranch RF Obligation'!$B$5:$M$5,0))/QE17)/1.9835,0))-CG17*(1-'L. Latham Credit'!$E$35) -> -0.406 | CE17: -0.3768030408 | CF17: =(VLOOKUP($B17,'ECCV 70R Pond Acrtns'!$B$7:$AI$1206,16)+VLOOKUP($B17,'ECCV 70R Canal Acrtns'!$B$7:$AI$1206,13)+VLOOKUP($B17,'2003 70R Pond Acrtns'!$B$7:$AI$1206,16)+VLOOKUP($B17,'2003 70R Canal Acrtns'!$B$7:$AI$1206,13))/$QE17/1.9835 -> 0 | CG17: 0.7 | CH17: 0.3231969592 | CI17: 0.3768030408 | CJ17: 0 | CK17: 0 | CL17: 0 | CM17: 0 | CO17: 0.3231969592 | CP17: 0 | CQ17: 0 | CR17: =-CQ17*0.5/100*'Distances for Transit Losses'!$C$44 -> 0 | CS17: 0 | CT17: 0 | CU17: 0 | CV17: 0 | CW17: 0 | CX17: 0 | CY17: 0 | CZ17: =('NFC Well Pumping'!I15+'NFC Well Pumping'!I52+'NFC Well Pumping'!I88)/1.9835 -> 0 | DA17: =IF(AND(HX17-HY17-FA17>0,HS17="no"),MIN(-SUM(CV17:CZ17)/(1-0.5/100*'Distances for Transit Losses'!$C$69),HX17-HY17-FA17),0) -> 0 | DB17: =-DA17*0.5/100*'Distances for Transit Losses'!C$69 -> 0 | DC17: =IF(AND(GM17-GN17-IA17-FC17-JO17>0,ET17="no"),MIN(-SUM(CV17:DB17)/(1-0.5/100*'Distances for Transit Losses'!$C$71),GM17-GN17-IA17-FC17-JO17),0) -> 0 | DD17: =--DC17*0.5/100*'Distances for Transit Losses'!$C$71 -> 0 | DE17: 0.3231969592 | DF17: =-(IF(DK17="Yes",((0.107*(INDEX('New Cache Credit'!$AR$70:$BC$95,MATCH($B$2,'New Cache Credit'!$AQ$70:$AQ$95,0),MATCH($A17,'New Cache Credit'!$AR$70:$BC$70,0))/$QE17))+(0.333*(INDEX('New Cache Credit'!$BG$70:$BR$95,MATCH($B$2,'New Cache Credit'!$BF$70:$BF$95,0),MATCH($A17,'New Cache Credit'!$BG$70:$BR$70,0))/$QE17)))/1.9835,0)) -> 0 | DG17: ='Joint Aug Station Deliveries'!J17 -> 0 | DH17: =-(DG17*0.5/100*'Distances for Transit Losses'!$C$154) -> 0 | DI17: 0 | DK17: no | DM17: 0 | DN17: 0 | DO17: =-(DN17*0.5/100*'Distances for Transit Losses'!$C$156) -> 0 | DP17: =-(IF(DZ17="Yes",((0.75*(INDEX('New Cache Credit'!$AR$70:$BC$95,MATCH($B$2,'New Cache Credit'!$AQ$70:$AQ$95,0),MATCH($A17,'New Cache Credit'!$AR$70:$BC$70,0))/$QE17))+(0.222*(INDEX('New Cache Credit'!$BG$70:$BR$95,MATCH($B$2,'New Cache Credit'!$BF$70:$BF$95,0),MATCH($A17,'New Cache Credit'!$BG$70:$BR$70,0))/$QE17)))/1.9835,0)) -> 0 | DQ17: =-(IF(DZ17="yes",(0.25*INDEX('GIC Credit'!$B$71:$M$96,MATCH($B$2,'GIC Credit'!$A$71:$A$96,0),MATCH($A17,'GIC Credit'!$B$71:$M$71,0))/$QE17)/1.9835,0)) -> 0 | DR17: 0 | DS17: 0 | DT17: 0 | DU17: =-(DT17*0.5/100*'Distances for Transit Losses'!$C$158) -> 0 | DV17: 0 | DW17: =-(DV17*0.5/100*('Distances for Transit Losses'!$C$160+'Distances for Transit Losses'!$C$170)) -> 0 | DX17: 0 | DZ17: no | EA17: 0 | EB17: =-(IF($N17<99999.99999,(INDEX('New Cache Credit'!$W$70:$AH$95,MATCH($B$2,'New Cache Credit'!$V$70:$V$95,0),MATCH($A17,'New Cache Credit'!$W$70:$AH$70,0))/$QE17)/1.9835,0))-DF17-DP17 -> -0.1432771848 | EC17: =-(IF($N17<99999.99999,(INDEX('GIC Credit'!$B$71:$M$96,MATCH($B$2,'GIC Credit'!$A$71:$A$96,0),MATCH($A17,'GIC Credit'!$B$71:$M$71,0))/$QE17)/1.9835,0))-DQ17 -> -0.000766 | ED17: 0 | EE17: =-(ED17*0.5/100*('Distances for Transit Losses'!$C$162+'Distances for Transit Losses'!$C$168)) -> 0 | EG17: =IF(EF17="yes",'Joint Aug Station Deliveries'!Q17,0) -> 0 | EH17: =-(EG17*0.5/100*('Distances for Transit Losses'!$C$164+'Distances for Transit Losses'!$C$166+'Distances for Transit Losses'!$C$168)) -> 0 | EI17: =IF(EF17="Yes",'Joint Aug Station Deliveries'!T17,0) -> 0 | EJ17: =-(EI17*0.5/100*('Distances for Transit Losses'!$C$166+'Distances for Transit Losses'!$C$168)) -> 0 | EK17: 0 | EL17: =-(EK17*0.5/100*'Distances for Transit Losses'!$C$172) -> 0 | EM17: -0.1440431848 | EN17: 0 | EO17: 0 | EP17: 0 | EQ17: =-(IF(N17<99999.99999,INDEX('Hist RF to SPR'!$AF$6:$AQ$30,MATCH($B$2,'Hist RF to SPR'!$AE$6:$AE$30,0),MATCH($A17,'Hist RF to SPR'!$AF$5:$AQ$5,0))/QE17/1.9835,0)) -> -0.0002698345146 | ER17: -0.1440431848 | ES17: -0.1443130193 | ET17: no | EU17: 0 | EV17: 0 | EW17: 0 | EY17: 0 | EZ17: 0 | FA17: =IF(AND(HX17-HY17-GK17>0,HS17="no"),MIN(-(ES17+EY17+EZ17)/(1-0.5/100*'Distances for Transit Losses'!$C$73),HX17-HY17-GK17),0) -> 0 | FB17: =-FA17*0.5/100*'Distances for Transit Losses'!$C$73 -> 0 | FC17: =IF(AND(GM17-GN17-IA17>0,GB17="no"),MIN(-(ES17+EY17+EZ17+FA17+FB17)/(1-0.5/100*'Distances for Transit Losses'!$C$75),GM17-GN17-IA17),0) -> 0 | FD17: =-FC17*0.5/100*'Distances for Transit Losses'!$C$79 -> 0 | FE17: =-(ES17+EY17+EZ17+FA17-FB17+FC17-FD17) -> 0.1443130193 | FF17: Haren recharge | FG17: 0 | FI17: =IF(AND(FH16="no",(SUM('Joint Aug Station Deliveries'!$AA$9:'Joint Aug Station Deliveries'!$AA16)+'Joint Aug Station Deliveries'!$AA17)*1.9835>'New Cache Credit'!$BY$33,(SUM('Joint Aug Station Deliveries'!$AA$9:'Joint Aug Station Deliveries'!$AA16)+'Joint Aug Station Deliveries'!$AA17)*1.9835>'New Cache Credit'!$CH$33),0,'Joint Aug Station Deliveries'!S17) -> 0 | FJ17: =-(FI17*0.5/100*'Distances for Transit Losses'!$C$150) -> 0 | FL17: =IF(AND(FK16="no",(SUM('Joint Aug Station Deliveries'!$AA$9:'Joint Aug Station Deliveries'!$AA16)+'Joint Aug Station Deliveries'!$AA17)*1.9835>'New Cache Credit'!$BY$33,(SUM('Joint Aug Station Deliveries'!$AA$9:'Joint Aug Station Deliveries'!$AA16)+'Joint Aug Station Deliveries'!$AA17)*1.9835>'New Cache Credit'!$CH$33),0,'Joint Aug Station Deliveries'!V17) -> 0 | FM17: =-(FL17*0.5/100*'Distances for Transit Losses'!$C$142) -> 0 | FN17: =IF(AND(FK16="no",(SUM('Joint Aug Station Deliveries'!$AA$9:'Joint Aug Station Deliveries'!$AA16)+'Joint Aug Station Deliveries'!$AA17)*1.9835>'New Cache Credit'!$BY$33,(SUM('Joint Aug Station Deliveries'!$AA$9:'Joint Aug Station Deliveries'!$AA16)+'Joint Aug Station Deliveries'!$AA17)*1.9835>'New Cache Credit'!$CH$33),0,'Joint Aug Station Deliveries'!Y17) -> 0 | FO17: =-(FN17*0.5/100*'Distances for Transit Losses'!$C$148) -> 0 | FP17: 0 | FQ17: 0 | FR17: 0 | FS17: 1.288820134 | FT17: =-(IF(N17<99999.99999,INDEX('Hist RF to SPR'!$Q$6:$AB$30,MATCH($B$2,'Hist RF to SPR'!$P$6:$P$30,0),MATCH($A17,'Hist RF to SPR'!$Q$5:$AB$5,0))/QE17/1.9835,0)) -> -0.001979416988 | FU17: =-(IF($N17<99999.99999,(INDEX('FIDCO Credit'!$X$42:$AI$66,MATCH($B$2,'FIDCO Credit'!$W$42:$W$66,0),MATCH($A17,'FIDCO Credit'!$X$41:$AI$41,0))/$QE17)/1.9835,0)) -> -0.01755533333 | FV17: =-(IF($N17<99999.99999,(INDEX('Western Credit'!$W$72:$AH$96,MATCH($B$2,'Western Credit'!$V$72:$V$96,0),MATCH($A17,'Western Credit'!$W$71:$AH$71,0))/$QE17)/1.9835,0)) -> 0 | FW17: -0.01953475032 | FX17: 0 | FY17: =VLOOKUP($B17,'ECCV Haren Pond S.P. Acrtns'!$B$7:$G$306,6)/$QE17/1.9835 -> 1.341957985 | FZ17: 0.01953475032 | GA17: 0.3163418498 | GB17: no | GC17: yes | GD17: 0 | GE17: 0 | GF17: 0 | GH17: 0 | GI17: 0 | GJ17: 0 | GK17: =IF(AND(HX17-HY17>0,HS17="no"),MIN(-GJ17/(1-0.5/100*'Distances for Transit Losses'!$C$77),HX17-HY17),0) -> 0 | GL17: =-GK17*0.5/100*'Distances for Transit Losses'!$C$77 -> 0 | GM17: 0 | GN17: =IF(GM17>0,MIN(-(GJ17+GK17+GL17)/(1-0.5/100*'Distances for Transit Losses'!$C$79),GM17),0) -> 0 | GO17: =-GN17*0.5/100*'Distances for Transit Losses'!$C$79 -> 0 | GP17: 0 | GR17: 0 | GS17: ='Joint Aug Station Deliveries'!AJ17 -> 0 | GT17: =GS17*'Western Credit'!$Z$36 -> 0 | GU17: ='Joint Aug Station Deliveries'!AD17 -> 0 | GV17: 0 | GW17: =MAX(0,(JJ17+JK17))/(1-0.5/100*'Distances for Transit Losses'!$C$55) -> 0 | GX17: =MAX(0,(JL17+JM17)/(1-0.5/100*'Distances for Transit Losses'!$C$53)) -> 0 | GY17: 0 | GZ17: 0 | HA17: 0 | HB17: =-HA17*0.5/100*'Distances for Transit Losses'!$C$34 -> 0 | HC17: 0 | HD17: 0 | HE17: 0 | HF17: 0 | HG17: 0 | HH17: 0 | HI17: 0 | HJ17: 0 | HK17: 0 | HL17: 0 | HM17: 0 | HN17: 0 | HO17: =FY17-FZ17-GA17+GT17+GV17-SUM(GW17:GZ17)-HD17-HE17-HG17-HH17-(BZ17/(1-0.5/100*'Distances for Transit Losses'!$C$71)) -> 0.8727371962 | HP17: 0 | HQ17: 1.288820134 | HR17: =-(IF(F17<99999.99999,INDEX('Hist RF to SPR'!$B$6:$M$30,MATCH($B$2,'Hist RF to SPR'!$A$6:$A$30,0),MATCH($A17,'Hist RF to SPR'!$B$5:$M$5,0))/QE17/1.9835,0)) -> -0.01871053104 | HS17: yes | HT17: 0 | HU17: 0 | HV17: 0 | HW17: -0.01871053104 | HX17: =-HW17 -> 0.01871053104 | HY17: =IF(HX17>0,MIN(-HW17/(1-0.5/100*'Distances for Transit Losses'!$C$81),HX17),0) -> 0.01871053104 | HZ17: =-HY17*0.5/100*'Distances for Transit Losses'!$C$81 -> -0.001141342393 | IA17: 0 | IB17: 0 | ID17: -0.001141342393 | IE17: 0 | IF17: 0 | IG17: 0 | IH17: 0 | II17: 0 | IJ17: 0 | IK17: 0 | IL17: 0 | IM17: 1.288820134 | IN17: =-(IF(N17<99999.99999,(VLOOKUP(B17,'ECCV Upper Dpln'!$B$7:$BD$306,55))/QE17/1.9835,0))*2/3 -> -2.720171508 | IO17: =-(IF(N17<99999.99999,INDEX('Hist RF abv Milton'!$B$6:$M$30,MATCH($B$2,'Hist RF abv Milton'!$A$6:$A$30,0),MATCH($A17,'Hist RF abv Milton'!$B$5:$M$5,0))/QE17/1.9835,0))*2/3 -> -0.04482831945 | IP17: =-(VLOOKUP(B17,'Unlagged Hist RF'!$A$9:$AN$308,36)/QE17/1.9835) -> 0 | IQ17: =(VLOOKUP($B17,'ECCV Beebe Pond Acrtns'!$B$7:$BI$1206,41)+VLOOKUP($B17,'ECCV Canal Acrtns'!$B$7:$AL$1206,22)+VLOOKUP($B17,'2003 Beebe Pond Acrtns'!$B$7:$BI$1206,41)+VLOOKUP($B17,'2003 Canal Acrtns'!$B$7:$AL$1206,22))/$QE17/1.9835 -> 1.053799341 | IR17: 0 | IS17: 0 | IT17: 0 | IU17: 1.053799341 | IV17: 0 | IW17: no | IX17: 0 | IY17: 0.04482831945 | IZ17: 0.2783686398 | JA17: 0 | JB17: 0 | JC17: -1.388003528 | JD17: 0 | JE17: 1.725 | JF17: =-(JE17*0.5/100*'Distances for Transit Losses'!$C$6) -> -0.0232875 | JG17: =-JD17 -> 0 | JH17: 0 | JI17: 0 | JJ17: =MIN(-(JD17+JG17),GV17-GV17*0.5/100*'Distances for Transit Losses'!$C$55) -> 0 | JK17: =MAX(0,MIN(-(JC17+JE17+JF17+JI17),GV17-GV17*0.5/100*'Distances for Transit Losses'!$C$55-JJ17/(1-0.5/100*'Distances for Transit Losses'!$C$55))) -> 0 | JL17: =MIN(-(JD17+JJ17),GT17-GT17*0.5/100*'Distances for Transit Losses'!$C$53) -> 0 | JM17: =MAX(0,MIN(-(JC17+JE17+JF17+JK17),GT17-GT17*0.5/100*'Distances for Transit Losses'!$C$53-JL17/(1-0.5/100*'Distances for Transit Losses'!$C$53))) -> 0 | JN17: =IF(ET17="no",MIN(-(MIN(0,JC17+JE17+JF17+JK17+JM17))+BZ17/(1-0.5/100*'Distances for Transit Losses'!$C$38)+FE17/(1-0.5/100*'Distances for Transit Losses'!$C$42)+KE17/(1-0.5/100*'Distances for Transit Losses'!$C$36),(FY17-FZ17)-(FY17-FZ17)*0.5/100*'Distances for Transit Losses'!$C$53),0) -> 0.3163418498 | JO17: =IF(AND(GM17-GN17-IA17-FC17>0,ET17="no"),MIN(-(JC17+JE17+JF17+JI17+JK17+JM17+JN17)/(1-0.5/100*'Distances for Transit Losses'!$C$59),GM17-GN17-IA17-FC17),0) -> 0 | JP17: =JO17*0.5/100*'Distances for Transit Losses'!$D$59 -> 0 | JQ17: 0 | JS17: 0.6300508222 | JT17: 0 | JU17: 0 | JV17: 0 | JW17: 1.288820134 | JX17: =-(IF(N17<99999.99999,INDEX('Hist RF blw Milton'!$B$6:$M$30,MATCH($B$2,'Hist RF blw Milton'!$A$6:$A$30,0),MATCH($A17,'Hist RF blw Milton'!$B$5:$M$5,0))/QE17/1.9835,0)) -> -0.03247642669 | JY17: no | JZ17: 0 | KA17: 0 | KB17: -0.03247642669 | KC17: 0 | KD17: 0 | KE17: =-KB17 -> 0.03247642669 | KF17: Haren | KG17: 0 | KH17: 1.288820134 | KI17: =-(IF(N17<99999.99999,INDEX('Hist RF to Box Elder'!$B$6:$M$30,MATCH($B$2,'Hist RF to Box Elder'!$A$6:$A$30,0),MATCH($A17,'Hist RF to Box Elder'!$B$5:$M$5,0))/QE17/1.9835,0)) -> -0.01513304456 | KJ17: =(VLOOKUP($B17,'ECCV Beebe Pond Acrtns'!$B$7:$BI$1206,54)+VLOOKUP($B17,'ECCV Canal Acrtns'!$B$7:$AL$1206,34)+VLOOKUP($B17,'2003 Beebe Pond Acrtns'!$B$7:$AL$1206,34)+VLOOKUP($B17,'2003 Canal Acrtns'!$B$7:$AL$1206,34)+VLOOKUP($B17,'84CW090 Beebe Pond Acrtns'!$B$7:$AL$1206,34)+VLOOKUP($B17,'84CW090 Canal Acrtns'!$B$7:$AL$1206,34))/$QE17/1.9835 -> 0.06977267982 | KK17: 0.01513304456 | KL17: 0 | KM17: 0 | KN17: 0 | KP17: -3.785677218 | KQ17: 3.39505065 | KR17: 0.03247642669 | KS17: 0.01513304456 | KT17: 0.01756918864 | KU17: 0.01953475032 | KV17: 0.1443130193 | KW17: 0 | KX17: 0.7213237603 | KY17: 0.06918585807 | KZ17: 4.414586698 | LA17: 0.6289094798 | LB17: 0 | LC17: 0 | LD17: 0 | LK17: 0 | LL17: 0 | LM17: 0 | LO17: 0 | LP17: 0 | LQ17: 0 | LR17: 0 | LS17: 0 | LT17: 0 | LU17: 0 | LV17: 0 | LW17: 0 | LX17: 0 | LY17: 0 | LZ17: 0 | MB17: 0 | MC17: 0 | MD17: 0 | ME17: 0 | MF17: 0 | MG17: 0 | MH17: 0 | MI17: 0 | MJ17: 0 | MK17: 0 | ML17: 0 | MN17: 0 | MO17: 0 | MP17: 0 | MQ17: 0 | MR17: 0 | MS17: 0 | MT17: 0 | MU17: 0 | MV17: 0 | MW17: 0 | MX17: 0 | ND17: 0 | NE17: 0 | NF17: 0 | NG17: 0 | NH17: 0 | NI17: 0 | NJ17: 0 | NK17: 0 | NL17: 0 | NN17: 0 | NO17: 0 | NP17: 0 | NQ17: 0 | NR17: 0 | NS17: 0 | NT17: 0 | NU17: 0 | NV17: 0 | NY17: 0 | NZ17: 0 | OA17: 0 | OB17: 0 | OC17: 0 | OD17: 0 | OE17: 0 | OH17: 0 | OI17: 0 | OL17: 0 | OM17: 0 | ON17: 0 | OQ17: 0 | OR17: 0 | OS17: 0 | OT17: 0 | OU17: 0 | OV17: 0 | OW17: 0 | OY17: 0 | OZ17: 0 | PA17: 0 | PB17: 0 | PC17: 0 | PD17: 309.6 | PF17: 0 | PG17: 0 | PH17: 0 | PI17: 0 | PJ17: 0 | PK17: 0 | PL17: 0 | PM17: 0 | PN17: 0 | PO17: 0 | PP17: 0 | PQ17: 0 | PR17: 0 | PS17: 0 | PT17: 0 | PU17: 0 | PV17: 0 | PW17: 0 | PX17: 0 | PY17: 0 | PZ17: 0 | QB17: 1.725 | QC17: 0 | QE17: =VLOOKUP(A17,'Control Sheet'!$G$9:$H$20,2) -> 30
A18: Apr | B18: 2015-04-10 | C18: Evans #2 Ditch | D18: 1909-06-09 | E18: Western | F18: 21709 | K18: Bijou Canal | L18: 1972-05-26 | M18: Bijou Canal | N18: 44706 | S18: 0 | T18: 0 | U18: 0 | V18: 0 | X18: 0 | Y18: =('NFC Well Pumping'!$L16+'NFC Well Pumping'!$L53+'NFC Well Pumping'!$L89+'NFC Well Pumping'!$L125)/1.9835 -> 0 | Z18: ='88CW264(B) Pumping'!$E16/1.9835+'88CW264(B) Pumping'!$E52/1.9835+'88CW264(B) Pumping'!E92/1.9835+'88CW264(B) Pumping'!E128/1.9835+'88CW264(B) Pumping'!F168/1.9835+'88CW264(B) Pumping'!E204/1.9835 -> 0.009639106611 | AA18: 0 | AB18: =('United No. 2 Well Pumping'!G17+'United No. 2 Well Pumping'!G53+'United No. 2 Well Pumping'!G89)/1.9835 -> 0 | AC18: =('United No. 2 Well Pumping'!F17+'United No. 2 Well Pumping'!F53+'United No. 2 Well Pumping'!F89)/1.9835 -> 0 | AD18: 0 | AF18: 0.009639106611 | AG18: =AC18+U18+'United Res'!AA17+'United Res'!AQ17+'Gilcrest Res'!D17 -> 0 | AH18: 100 | AI18: =-(IF($N18=99999.99999,0,VLOOKUP($B18,'NFC Well Dplns-URF'!B$7:$AB$306,27))/$QE18/1.9835) -> -5.888111295e-05 | AJ18: 0 | AL18: =(VLOOKUP($B18,'ECCV 70R Pond Acrtns'!$B$7:$AI$1206,34)+VLOOKUP($B18,'2003 70R Pond Acrtns'!$B$7:$AI$1206,34)+VLOOKUP($B18,'ECCV 70R Canal Acrtns'!$B$7:$AI$1206,27)+VLOOKUP($B18,'2003 70R Canal Acrtns'!$B$7:$AI$1206,27))/$QE18/1.9835 -> 0 | AM18: -5.888111295e-05 | AN18: =-(IF($N18=99999.99999,0,VLOOKUP($B18,'NFC Well Dplns-SDF'!$B$7:$Z$306,25)+VLOOKUP($B18,'NFC Well Dplns-URF'!B$7:$AB$306,20))/$QE18/1.9835) -> -0.06918585807 | AO18: 0.002486497969 | AP18: 0.0666993601 | AQ18: ECCV Riverside Credits | AR18: =-AV18*'Weldon Credit'!$Z$36 -> 0 | AS18: =0.4*(INDEX('Riverside Pond Accrtns'!$B$6:$M$36,MATCH($B$2,'Riverside Pond Accrtns'!$A$6:$A$36,0),MATCH('ECCV Daily Replacement Summary'!A18,'Riverside Pond Accrtns'!$B$5:$M$5,0))/QE18)/1.9835 -> 0.9942021679 | AT18: =(44/640)*(INDEX('Weldon Valley Accrtns (02CW377)'!$B$6:$M$30,MATCH($B$2,'Weldon Valley Accrtns (02CW377)'!$A$6:$A$30,0),MATCH(A18,'Weldon Valley Accrtns (02CW377)'!$B$5:$M$5,0))/QE18)/1.9835 -> 0.3613173263 | AU18: =(VLOOKUP($B18,'ECCV 70R Pond Acrtns'!$B$7:$AI$1206,25)+VLOOKUP($B18,'ECCV 70R Canal Acrtns'!$B$7:$AI$1206,20)+VLOOKUP($B18,'2003 70R Pond Acrtns'!$B$7:$AI$1206,25)+VLOOKUP($B18,'2003 70R Canal Acrtns'!$B$7:$AI$1206,20))/$QE18/1.9835 -> 0 | AV18: ='Joint Aug Station Deliveries'!G18 -> 0 | AW18: 0 | AX18: 0 | AY18: =MIN(-($AR18+AX18),AS18-AS18*0.5/100*'Distances for Transit Losses'!$C$51) -> 0 | AZ18: 0 | BA18: =MIN(-($AR18+AX18+AY18+AZ18),AU18-AU18*0.5/100*'Distances for Transit Losses'!$C$51) -> 0 | BB18: =-((AY18+BA18)/(1-0.5/100*'Distances for Transit Losses'!$C$51)-(AY18+BA18)) -> 0 | BC18: =IF(AND(IF18-IG18-FI18-DI18>0,IA18="no"),MIN(-(AR18+AX18+AY18+AZ18+BA18+BB18)/(1-0.5/100*'Distances for Transit Losses'!$C$65),IF18-IG18-FI18-DI18),0) -> 0 | BD18: =--BC18*0.5/100*'Distances for Transit Losses'!C$65 -> 0 | BE18: =IF(AND(GM18-GN18-IA18-FC18-JO18-DC18>0,ET18="no"),MIN(-(AR18+SUM(AX18:BD18))/(1-0.5/100*'Distances for Transit Losses'!$C$71),GM18-GN18-IA18-FC18-JO18-DC18),0) -> 0 | BF18: =--BE18*0.5/100*'Distances for Transit Losses'!$C$67 -> 0 | BG18: 0 | BI18: no | BJ18: yes | BK18: 0 | BL18: 0 | BM18: 0 | BO18: =IF($BJ18="No",MIN(-CV18,AS18-AY18/(1-0.5/100*'Distances for Transit Losses'!$C$51)),0) -> 0 | BP18: =IF($BJ18="No",MIN(-CV18+BO18,AU18-BA18/(1-0.5/100*'Distances for Transit Losses'!$C$51)),0) -> 0 | BQ18: 0 | BR18: 0 | BS18: 0 | BT18: 1.288820134 | BU18: 1.288820134 | BV18: =-(IF($N18=99999.99999,0,VLOOKUP($B18,'NFC Well Dplns-SDF'!$B$7:$Z$306,16)+VLOOKUP($B18,'NFC Well Dplns-URF'!$B$7:$AB$306,13))/$QE18/1.9835) -> -0.334881613 | BW18: =-(IF($N18>=99999,0,'88CW264(B) Pumping'!$E16/1.9835)+IF($N18>=99999,0,'88CW264(B) Pumping'!$E52/1.9835)+IF($N18>=99999,0,'88CW264(B) Pumping'!$E92/1.9835)+IF($N18>=99999,0,'88CW264(B) Pumping'!$E128/1.9835)+IF($N18>=51134.50919,0,'88CW264(B) Pumping'!$F168/1.9835)+IF($N18>=53406,0,'88CW264(B) Pumping'!$E204/1.9835)) -> -0.009639106611 | BX18: -0.3445207196 | BY18: 0.2318448797 | BZ18: 0.1126758398 | CA18: Haren recharge | CB18: =-(IF($N18=99999.99999,0,VLOOKUP($B18,'United No. 2 Dplns'!$B$7:$X$676,13)/1.9835)) -> 0 | CC18: =CB18+(-(INDEX('Pre 1995 Net Accretions'!$B$6:$M$105,MATCH($B$2,'Pre 1995 Net Accretions'!$A$6:$A$105,0),MATCH($A18,'Pre 1995 Net Accretions'!$B$5:$M$5,0))/$QE18/1.9835)) -> 0.02919695922 | CD18: =-(IF(N18<99999.99999,(INDEX('70 Ranch RF Obligation'!$B$6:$M$30,MATCH($B$2,'70 Ranch RF Obligation'!$A$6:$A$30,0),MATCH('ECCV Daily Replacement Summary'!A18,'70 Ranch RF Obligation'!$B$5:$M$5,0))/QE18)/1.9835,0))-CG18*(1-'L. Latham Credit'!$E$35) -> -1.624 | CE18: -1.594803041 | CF18: =(VLOOKUP($B18,'ECCV 70R Pond Acrtns'!$B$7:$AI$1206,16)+VLOOKUP($B18,'ECCV 70R Canal Acrtns'!$B$7:$AI$1206,13)+VLOOKUP($B18,'2003 70R Pond Acrtns'!$B$7:$AI$1206,16)+VLOOKUP($B18,'2003 70R Canal Acrtns'!$B$7:$AI$1206,13))/$QE18/1.9835 -> 0 | CG18: 2.8 | CH18: 1.205196959 | CI18: 1.594803041 | CJ18: 0 | CK18: 0 | CL18: 0 | CM18: 0 | CO18: 1.205196959 | CP18: 0 | CQ18: 0 | CR18: =-CQ18*0.5/100*'Distances for Transit Losses'!$C$44 -> 0 | CS18: 0 | CT18: 0 | CU18: 0 | CV18: 0 | CW18: 0 | CX18: 0 | CY18: 0 | CZ18: =('NFC Well Pumping'!I16+'NFC Well Pumping'!I53+'NFC Well Pumping'!I89)/1.9835 -> 0 | DA18: =IF(AND(HX18-HY18-FA18>0,HS18="no"),MIN(-SUM(CV18:CZ18)/(1-0.5/100*'Distances for Transit Losses'!$C$69),HX18-HY18-FA18),0) -> 0 | DB18: =-DA18*0.5/100*'Distances for Transit Losses'!C$69 -> 0 | DC18: =IF(AND(GM18-GN18-IA18-FC18-JO18>0,ET18="no"),MIN(-SUM(CV18:DB18)/(1-0.5/100*'Distances for Transit Losses'!$C$71),GM18-GN18-IA18-FC18-JO18),0) -> 0 | DD18: =--DC18*0.5/100*'Distances for Transit Losses'!$C$71 -> 0 | DE18: 1.205196959 | DF18: =-(IF(DK18="Yes",((0.107*(INDEX('New Cache Credit'!$AR$70:$BC$95,MATCH($B$2,'New Cache Credit'!$AQ$70:$AQ$95,0),MATCH($A18,'New Cache Credit'!$AR$70:$BC$70,0))/$QE18))+(0.333*(INDEX('New Cache Credit'!$BG$70:$BR$95,MATCH($B$2,'New Cache Credit'!$BF$70:$BF$95,0),MATCH($A18,'New Cache Credit'!$BG$70:$BR$70,0))/$QE18)))/1.9835,0)) -> 0 | DG18: ='Joint Aug Station Deliveries'!J18 -> 0 | DH18: =-(DG18*0.5/100*'Distances for Transit Losses'!$C$154) -> 0 | DI18: 0 | DK18: no | DM18: 0 | DN18: 0 | DO18: =-(DN18*0.5/100*'Distances for Transit Losses'!$C$156) -> 0 | DP18: =-(IF(DZ18="Yes",((0.75*(INDEX('New Cache Credit'!$AR$70:$BC$95,MATCH($B$2,'New Cache Credit'!$AQ$70:$AQ$95,0),MATCH($A18,'New Cache Credit'!$AR$70:$BC$70,0))/$QE18))+(0.222*(INDEX('New Cache Credit'!$BG$70:$BR$95,MATCH($B$2,'New Cache Credit'!$BF$70:$BF$95,0),MATCH($A18,'New Cache Credit'!$BG$70:$BR$70,0))/$QE18)))/1.9835,0)) -> 0 | DQ18: =-(IF(DZ18="yes",(0.25*INDEX('GIC Credit'!$B$71:$M$96,MATCH($B$2,'GIC Credit'!$A$71:$A$96,0),MATCH($A18,'GIC Credit'!$B$71:$M$71,0))/$QE18)/1.9835,0)) -> 0 | DR18: 0 | DS18: 0 | DT18: 0 | DU18: =-(DT18*0.5/100*'Distances for Transit Losses'!$C$158) -> 0 | DV18: 0 | DW18: =-(DV18*0.5/100*('Distances for Transit Losses'!$C$160+'Distances for Transit Losses'!$C$170)) -> 0 | DX18: 0 | DZ18: no | EA18: 0 | EB18: =-(IF($N18<99999.99999,(INDEX('New Cache Credit'!$W$70:$AH$95,MATCH($B$2,'New Cache Credit'!$V$70:$V$95,0),MATCH($A18,'New Cache Credit'!$W$70:$AH$70,0))/$QE18)/1.9835,0))-DF18-DP18 -> -0.1432771848 | EC18: =-(IF($N18<99999.99999,(INDEX('GIC Credit'!$B$71:$M$96,MATCH($B$2,'GIC Credit'!$A$71:$A$96,0),MATCH($A18,'GIC Credit'!$B$71:$M$71,0))/$QE18)/1.9835,0))-DQ18 -> -0.000766 | ED18: 0 | EE18: =-(ED18*0.5/100*('Distances for Transit Losses'!$C$162+'Distances for Transit Losses'!$C$168)) -> 0 | EG18: =IF(EF18="yes",'Joint Aug Station Deliveries'!Q18,0) -> 0 | EH18: =-(EG18*0.5/100*('Distances for Transit Losses'!$C$164+'Distances for Transit Losses'!$C$166+'Distances for Transit Losses'!$C$168)) -> 0 | EI18: =IF(EF18="Yes",'Joint Aug Station Deliveries'!T18,0) -> 0 | EJ18: =-(EI18*0.5/100*('Distances for Transit Losses'!$C$166+'Distances for Transit Losses'!$C$168)) -> 0 | EK18: 0 | EL18: =-(EK18*0.5/100*'Distances for Transit Losses'!$C$172) -> 0 | EM18: -0.1440431848 | EN18: 0 | EO18: 0 | EP18: 0 | EQ18: =-(IF(N18<99999.99999,INDEX('Hist RF to SPR'!$AF$6:$AQ$30,MATCH($B$2,'Hist RF to SPR'!$AE$6:$AE$30,0),MATCH($A18,'Hist RF to SPR'!$AF$5:$AQ$5,0))/QE18/1.9835,0)) -> -0.0002698345146 | ER18: -0.1440431848 | ES18: -0.1443130193 | ET18: no | EU18: 0 | EV18: 0 | EW18: 0 | EY18: 0 | EZ18: 0 | FA18: =IF(AND(HX18-HY18-GK18>0,HS18="no"),MIN(-(ES18+EY18+EZ18)/(1-0.5/100*'Distances for Transit Losses'!$C$73),HX18-HY18-GK18),0) -> 0 | FB18: =-FA18*0.5/100*'Distances for Transit Losses'!$C$73 -> 0 | FC18: =IF(AND(GM18-GN18-IA18>0,GB18="no"),MIN(-(ES18+EY18+EZ18+FA18+FB18)/(1-0.5/100*'Distances for Transit Losses'!$C$75),GM18-GN18-IA18),0) -> 0 | FD18: =-FC18*0.5/100*'Distances for Transit Losses'!$C$79 -> 0 | FE18: =-(ES18+EY18+EZ18+FA18-FB18+FC18-FD18) -> 0.1443130193 | FF18: Haren recharge | FG18: 0 | FI18: =IF(AND(FH17="no",(SUM('Joint Aug Station Deliveries'!$AA$9:'Joint Aug Station Deliveries'!$AA17)+'Joint Aug Station Deliveries'!$AA18)*1.9835>'New Cache Credit'!$BY$33,(SUM('Joint Aug Station Deliveries'!$AA$9:'Joint Aug Station Deliveries'!$AA17)+'Joint Aug Station Deliveries'!$AA18)*1.9835>'New Cache Credit'!$CH$33),0,'Joint Aug Station Deliveries'!S18) -> 0 | FJ18: =-(FI18*0.5/100*'Distances for Transit Losses'!$C$150) -> 0 | FL18: =IF(AND(FK17="no",(SUM('Joint Aug Station Deliveries'!$AA$9:'Joint Aug Station Deliveries'!$AA17)+'Joint Aug Station Deliveries'!$AA18)*1.9835>'New Cache Credit'!$BY$33,(SUM('Joint Aug Station Deliveries'!$AA$9:'Joint Aug Station Deliveries'!$AA17)+'Joint Aug Station Deliveries'!$AA18)*1.9835>'New Cache Credit'!$CH$33),0,'Joint Aug Station Deliveries'!V18) -> 0 | FM18: =-(FL18*0.5/100*'Distances for Transit Losses'!$C$142) -> 0 | FN18: =IF(AND(FK17="no",(SUM('Joint Aug Station Deliveries'!$AA$9:'Joint Aug Station Deliveries'!$AA17)+'Joint Aug Station Deliveries'!$AA18)*1.9835>'New Cache Credit'!$BY$33,(SUM('Joint Aug Station Deliveries'!$AA$9:'Joint Aug Station Deliveries'!$AA17)+'Joint Aug Station Deliveries'!$AA18)*1.9835>'New Cache Credit'!$CH$33),0,'Joint Aug Station Deliveries'!Y18) -> 0 | FO18: =-(FN18*0.5/100*'Distances for Transit Losses'!$C$148) -> 0 | FP18: 0 | FQ18: 0 | FR18: 0 | FS18: 1.288820134 | FT18: =-(IF(N18<99999.99999,INDEX('Hist RF to SPR'!$Q$6:$AB$30,MATCH($B$2,'Hist RF to SPR'!$P$6:$P$30,0),MATCH($A18,'Hist RF to SPR'!$Q$5:$AB$5,0))/QE18/1.9835,0)) -> -0.001979416988 | FU18: =-(IF($N18<99999.99999,(INDEX('FIDCO Credit'!$X$42:$AI$66,MATCH($B$2,'FIDCO Credit'!$W$42:$W$66,0),MATCH($A18,'FIDCO Credit'!$X$41:$AI$41,0))/$QE18)/1.9835,0)) -> -0.01755533333 | FV18: =-(IF($N18<99999.99999,(INDEX('Western Credit'!$W$72:$AH$96,MATCH($B$2,'Western Credit'!$V$72:$V$96,0),MATCH($A18,'Western Credit'!$W$71:$AH$71,0))/$QE18)/1.9835,0)) -> 0 | FW18: -0.01953475032 | FX18: 0 | FY18: =VLOOKUP($B18,'ECCV Haren Pond S.P. Acrtns'!$B$7:$G$306,6)/$QE18/1.9835 -> 1.341957985 | FZ18: 0.01953475032 | GA18: 0.3163418498 | GB18: no | GC18: yes | GD18: 0 | GE18: 0 | GF18: 0 | GH18: 0 | GI18: 0 | GJ18: 0 | GK18: =IF(AND(HX18-HY18>0,HS18="no"),MIN(-GJ18/(1-0.5/100*'Distances for Transit Losses'!$C$77),HX18-HY18),0) -> 0 | GL18: =-GK18*0.5/100*'Distances for Transit Losses'!$C$77 -> 0 | GM18: 0 | GN18: =IF(GM18>0,MIN(-(GJ18+GK18+GL18)/(1-0.5/100*'Distances for Transit Losses'!$C$79),GM18),0) -> 0 | GO18: =-GN18*0.5/100*'Distances for Transit Losses'!$C$79 -> 0 | GP18: 0 | GR18: 0 | GS18: ='Joint Aug Station Deliveries'!AJ18 -> 0 | GT18: =GS18*'Western Credit'!$Z$36 -> 0 | GU18: ='Joint Aug Station Deliveries'!AD18 -> 0 | GV18: 0 | GW18: =MAX(0,(JJ18+JK18))/(1-0.5/100*'Distances for Transit Losses'!$C$55) -> 0 | GX18: =MAX(0,(JL18+JM18)/(1-0.5/100*'Distances for Transit Losses'!$C$53)) -> 0 | GY18: 0 | GZ18: 0 | HA18: 0 | HB18: =-HA18*0.5/100*'Distances for Transit Losses'!$C$34 -> 0 | HC18: 0 | HD18: 0 | HE18: 0 | HF18: 0 | HG18: 0 | HH18: 0 | HI18: 0 | HJ18: 0 | HK18: 0 | HL18: 0 | HM18: 0 | HN18: 0 | HO18: =FY18-FZ18-GA18+GT18+GV18-SUM(GW18:GZ18)-HD18-HE18-HG18-HH18-(BZ18/(1-0.5/100*'Distances for Transit Losses'!$C$71)) -> 0.8727371962 | HP18: 0 | HQ18: 1.288820134 | HR18: =-(IF(F18<99999.99999,INDEX('Hist RF to SPR'!$B$6:$M$30,MATCH($B$2,'Hist RF to SPR'!$A$6:$A$30,0),MATCH($A18,'Hist RF to SPR'!$B$5:$M$5,0))/QE18/1.9835,0)) -> -0.01871053104 | HS18: yes | HT18: 0 | HU18: 0 | HV18: =IF(AND(HS18="No",$BJ18="No"),MIN(-(HR18+HT18+HU18),HO18),0) -> 0 | HW18: -0.01871053104 | HX18: 0 | HY18: =IF(HX18>0,MIN(-HW18/(1-0.5/100*'Distances for Transit Losses'!$C$81),HX18),0) -> 0 | HZ18: =-HY18*0.5/100*'Distances for Transit Losses'!$C$81 -> 0 | IA18: 0 | IB18: =-HW18 -> 0.01871053104 | IC18: United No. 3 Bypass | ID18: 0 | IE18: 0 | IF18: 0 | IG18: 0 | IH18: 0 | II18: 0 | IJ18: 0 | IK18: 0 | IL18: 0 | IM18: 1.288820134 | IN18: =-(IF(N18<99999.99999,(VLOOKUP(B18,'ECCV Upper Dpln'!$B$7:$BD$306,55))/QE18/1.9835,0)) -> -4.080257262 | IO18: =-(IF(N18<99999.99999,INDEX('Hist RF abv Milton'!$B$6:$M$30,MATCH($B$2,'Hist RF abv Milton'!$A$6:$A$30,0),MATCH($A18,'Hist RF abv Milton'!$B$5:$M$5,0))/QE18/1.9835,0)) -> -0.06724247917 | IP18: =-(VLOOKUP(B18,'Unlagged Hist RF'!$A$9:$AN$308,36)/QE18/1.9835) -> 0 | IQ18: =(VLOOKUP($B18,'ECCV Beebe Pond Acrtns'!$B$7:$BI$1206,41)+VLOOKUP($B18,'ECCV Canal Acrtns'!$B$7:$AL$1206,22)+VLOOKUP($B18,'2003 Beebe Pond Acrtns'!$B$7:$BI$1206,41)+VLOOKUP($B18,'2003 Canal Acrtns'!$B$7:$AL$1206,22))/$QE18/1.9835 -> 1.053799341 | IR18: 0 | IS18: 0 | IT18: 0 | IU18: 1.053799341 | IV18: 0 | IW18: no | IX18: 0 | IY18: 0.06724247917 | IZ18: 1.13795448 | JA18: 0 | JB18: 0 | JC18: -1.888503441 | JD18: 0 | JE18: 4.73875 | JF18: =-(JE18*0.5/100*'Distances for Transit Losses'!$C$6) -> -0.063973125 | JG18: =-JD18 -> 0 | JH18: 0 | JI18: 0 | JJ18: =MIN(-(JD18+JG18),GV18-GV18*0.5/100*'Distances for Transit Losses'!$C$55) -> 0 | JK18: =MAX(0,MIN(-(JC18+JE18+JF18+JI18),GV18-GV18*0.5/100*'Distances for Transit Losses'!$C$55-JJ18/(1-0.5/100*'Distances for Transit Losses'!$C$55))) -> 0 | JL18: =MIN(-(JD18+JJ18),GT18-GT18*0.5/100*'Distances for Transit Losses'!$C$53) -> 0 | JM18: =MAX(0,MIN(-(JC18+JE18+JF18+JK18),GT18-GT18*0.5/100*'Distances for Transit Losses'!$C$53-JL18/(1-0.5/100*'Distances for Transit Losses'!$C$53))) -> 0 | JN18: =IF(ET18="no",MIN(-(MIN(0,JC18+JE18+JF18+JK18+JM18))+BZ18/(1-0.5/100*'Distances for Transit Losses'!$C$38)+FE18/(1-0.5/100*'Distances for Transit Losses'!$C$42)+KE18/(1-0.5/100*'Distances for Transit Losses'!$C$36),(FY18-FZ18)-(FY18-FZ18)*0.5/100*'Distances for Transit Losses'!$C$53),0) -> 0.3163418498 | JO18: =IF(AND(GM18-GN18-IA18-FC18>0,ET18="no"),MIN(-(JC18+JE18+JF18+JI18+JK18+JM18+JN18)/(1-0.5/100*'Distances for Transit Losses'!$C$59),GM18-GN18-IA18-FC18),0) -> 0 | JP18: =JO18*0.5/100*'Distances for Transit Losses'!$D$59 -> 0 | JQ18: 0 | JS18: 3.102615283 | JT18: 0 | JU18: 0 | JV18: 0 | JW18: 1.288820134 | JX18: =-(IF(N18<99999.99999,INDEX('Hist RF blw Milton'!$B$6:$M$30,MATCH($B$2,'Hist RF blw Milton'!$A$6:$A$30,0),MATCH($A18,'Hist RF blw Milton'!$B$5:$M$5,0))/QE18/1.9835,0)) -> -0.03247642669 | JY18: no | JZ18: 0 | KA18: 0 | KB18: -0.03247642669 | KC18: 0 | KD18: 0 | KE18: =-KB18 -> 0.03247642669 | KF18: Haren | KG18: 0 | KH18: 1.288820134 | KI18: =-(IF(N18<99999.99999,INDEX('Hist RF to Box Elder'!$B$6:$M$30,MATCH($B$2,'Hist RF to Box Elder'!$A$6:$A$30,0),MATCH($A18,'Hist RF to Box Elder'!$B$5:$M$5,0))/QE18/1.9835,0)) -> -0.01513304456 | KJ18: =(VLOOKUP($B18,'ECCV Beebe Pond Acrtns'!$B$7:$BI$1206,54)+VLOOKUP($B18,'ECCV Canal Acrtns'!$B$7:$AL$1206,34)+VLOOKUP($B18,'2003 Beebe Pond Acrtns'!$B$7:$AL$1206,34)+VLOOKUP($B18,'2003 Canal Acrtns'!$B$7:$AL$1206,34)+VLOOKUP($B18,'84CW090 Beebe Pond Acrtns'!$B$7:$AL$1206,34)+VLOOKUP($B18,'84CW090 Canal Acrtns'!$B$7:$AL$1206,34))/$QE18/1.9835 -> 0.06977267982 | KK18: 0.01513304456 | KL18: 0 | KM18: 0 | KN18: 0 | KP18: -6.386177132 | KQ18: 7.250115025 | KR18: 0.03247642669 | KS18: 0.01513304456 | KT18: 0.01871053104 | KU18: 0.01953475032 | KV18: 0.1443130193 | KW18: 0 | KX18: 1.93932376 | KY18: 0.06918585807 | KZ18: =SUM(KQ18:KY18) -> 9.488792415 | LA18: 3.102615283 | LB18: 0 | LC18: 0 | LD18: 0 | LK18: 0 | LL18: 0 | LM18: 0 | LO18: 0 | LP18: 0 | LQ18: 0 | LR18: 0 | LS18: 0 | LT18: 0 | LU18: 0 | LV18: 0 | LW18: 0 | LX18: 0 | LY18: 0 | LZ18: 0 | MB18: 0 | MC18: 0 | MD18: 0 | ME18: 0 | MF18: 0 | MG18: 0 | MH18: 0 | MI18: 0 | MJ18: 0 | MK18: 0 | ML18: 0 | MN18: 0 | MO18: 0 | MP18: 0 | MQ18: 0 | MR18: 0 | MS18: 0 | MT18: 0 | MU18: 0 | MV18: 0 | MW18: 0 | MX18: 0 | ND18: 0 | NE18: 0 | NF18: 0 | NG18: 0 | NH18: 0 | NI18: 0 | NJ18: 0 | NK18: 0 | NL18: 0 | NN18: 0 | NO18: 0 | NP18: 0 | NQ18: 0 | NR18: 0 | NS18: 0 | NT18: 0 | NU18: 0 | NV18: 0 | NY18: 0 | NZ18: 0 | OA18: 0 | OB18: 0 | OC18: 0 | OD18: 0 | OE18: 0 | OH18: 0 | OI18: 0 | OL18: 0 | OM18: 0 | ON18: 0 | OQ18: 0 | OR18: 0 | OS18: 0 | OT18: 0 | OU18: 0 | OV18: 0 | OW18: 0 | OY18: 0 | OZ18: 0 | PA18: 0 | PB18: 0 | PC18: 0 | PD18: 309.6 | PF18: 0 | PG18: 0 | PH18: 0 | PI18: 0 | PJ18: 0 | PK18: 0 | PL18: 0 | PM18: 0 | PN18: 0 | PO18: 0 | PP18: 0 | PQ18: 0 | PR18: 0 | PS18: 0 | PT18: 0 | PU18: 0 | PV18: 0 | PW18: 0 | PX18: 0 | PY18: 0 | PZ18: 0 | QB18: 4.73875 | QC18: 0 | QE18: =VLOOKUP(A18,'Control Sheet'!$G$9:$H$20,2) -> 30
A19: Apr | B19: 2015-04-11 | C19: Burlington | D19: 1909-01-13 | E19: Western | F19: 21562 | K19: Bijou Canal | L19: 1972-05-26 | M19: Bijou Canal | N19: 44706 | S19: 0 | T19: 0 | U19: 0 | V19: 0 | X19: 0 | Y19: =('NFC Well Pumping'!$L17+'NFC Well Pumping'!$L54+'NFC Well Pumping'!$L90+'NFC Well Pumping'!$L126)/1.9835 -> 0 | Z19: ='88CW264(B) Pumping'!$E17/1.9835+'88CW264(B) Pumping'!$E53/1.9835+'88CW264(B) Pumping'!E93/1.9835+'88CW264(B) Pumping'!E129/1.9835+'88CW264(B) Pumping'!F169/1.9835+'88CW264(B) Pumping'!E205/1.9835 -> 0.009639106611 | AA19: 0 | AB19: =('United No. 2 Well Pumping'!G18+'United No. 2 Well Pumping'!G54+'United No. 2 Well Pumping'!G90)/1.9835 -> 0 | AC19: =('United No. 2 Well Pumping'!F18+'United No. 2 Well Pumping'!F54+'United No. 2 Well Pumping'!F90)/1.9835 -> 0 | AD19: 0 | AF19: 0.009639106611 | AG19: =AC19+U19+'United Res'!AA18+'United Res'!AQ18+'Gilcrest Res'!D18 -> 0 | AH19: 100 | AI19: =-(IF($N19=99999.99999,0,VLOOKUP($B19,'NFC Well Dplns-URF'!B$7:$AB$306,27))/$QE19/1.9835) -> -5.888111295e-05 | AJ19: 0 | AL19: =(VLOOKUP($B19,'ECCV 70R Pond Acrtns'!$B$7:$AI$1206,34)+VLOOKUP($B19,'2003 70R Pond Acrtns'!$B$7:$AI$1206,34)+VLOOKUP($B19,'ECCV 70R Canal Acrtns'!$B$7:$AI$1206,27)+VLOOKUP($B19,'2003 70R Canal Acrtns'!$B$7:$AI$1206,27))/$QE19/1.9835 -> 0 | AM19: -5.888111295e-05 | AN19: =-(IF($N19=99999.99999,0,VLOOKUP($B19,'NFC Well Dplns-SDF'!$B$7:$Z$306,25)+VLOOKUP($B19,'NFC Well Dplns-URF'!B$7:$AB$306,20))/$QE19/1.9835) -> -0.06918585807 | AO19: 0.002486497969 | AP19: 0.0666993601 | AQ19: ECCV Riverside Credits | AR19: =-AV19*'Weldon Credit'!$Z$36 -> 0 | AS19: =0.4*(INDEX('Riverside Pond Accrtns'!$B$6:$M$36,MATCH($B$2,'Riverside Pond Accrtns'!$A$6:$A$36,0),MATCH('ECCV Daily Replacement Summary'!A19,'Riverside Pond Accrtns'!$B$5:$M$5,0))/QE19)/1.9835 -> 0.9942021679 | AT19: =(44/640)*(INDEX('Weldon Valley Accrtns (02CW377)'!$B$6:$M$30,MATCH($B$2,'Weldon Valley Accrtns (02CW377)'!$A$6:$A$30,0),MATCH(A19,'Weldon Valley Accrtns (02CW377)'!$B$5:$M$5,0))/QE19)/1.9835 -> 0.3613173263 | AU19: =(VLOOKUP($B19,'ECCV 70R Pond Acrtns'!$B$7:$AI$1206,25)+VLOOKUP($B19,'ECCV 70R Canal Acrtns'!$B$7:$AI$1206,20)+VLOOKUP($B19,'2003 70R Pond Acrtns'!$B$7:$AI$1206,25)+VLOOKUP($B19,'2003 70R Canal Acrtns'!$B$7:$AI$1206,20))/$QE19/1.9835 -> 0 | AV19: ='Joint Aug Station Deliveries'!G19 -> 0 | AW19: 0 | AX19: 0 | AY19: =MIN(-($AR19+AX19),AS19-AS19*0.5/100*'Distances for Transit Losses'!$C$51) -> 0 | AZ19: 0 | BA19: =MIN(-($AR19+AX19+AY19+AZ19),AU19-AU19*0.5/100*'Distances for Transit Losses'!$C$51) -> 0 | BB19: =-((AY19+BA19)/(1-0.5/100*'Distances for Transit Losses'!$C$51)-(AY19+BA19)) -> 0 | BC19: =IF(AND(IF19-IG19-FI19-DI19>0,IA19="no"),MIN(-(AR19+AX19+AY19+AZ19+BA19+BB19)/(1-0.5/100*'Distances for Transit Losses'!$C$65),IF19-IG19-FI19-DI19),0) -> 0 | BD19: =--BC19*0.5/100*'Distances for Transit Losses'!C$65 -> 0 | BE19: =IF(AND(GM19-GN19-IA19-FC19-JO19-DC19>0,ET19="no"),MIN(-(AR19+SUM(AX19:BD19))/(1-0.5/100*'Distances for Transit Losses'!$C$71),GM19-GN19-IA19-FC19-JO19-DC19),0) -> 0 | BF19: =--BE19*0.5/100*'Distances for Transit Losses'!$C$67 -> 0 | BG19: 0 | BI19: no | BJ19: yes | BK19: 0 | BL19: 0 | BM19: 0 | BO19: =IF($BJ19="No",MIN(-CV19,AS19-AY19/(1-0.5/100*'Distances for Transit Losses'!$C$51)),0) -> 0 | BP19: =IF($BJ19="No",MIN(-CV19+BO19,AU19-BA19/(1-0.5/100*'Distances for Transit Losses'!$C$51)),0) -> 0 | BQ19: 0 | BR19: 0 | BS19: 0 | BT19: 1.288820134 | BU19: 1.288820134 | BV19: =-(IF($N19=99999.99999,0,VLOOKUP($B19,'NFC Well Dplns-SDF'!$B$7:$Z$306,16)+VLOOKUP($B19,'NFC Well Dplns-URF'!$B$7:$AB$306,13))/$QE19/1.9835) -> -0.334881613 | BW19: =-(IF($N19>=99999,0,'88CW264(B) Pumping'!$E17/1.9835)+IF($N19>=99999,0,'88CW264(B) Pumping'!$E53/1.9835)+IF($N19>=99999,0,'88CW264(B) Pumping'!$E93/1.9835)+IF($N19>=99999,0,'88CW264(B) Pumping'!$E129/1.9835)+IF($N19>=51134.50919,0,'88CW264(B) Pumping'!$F169/1.9835)+IF($N19>=53406,0,'88CW264(B) Pumping'!$E205/1.9835)) -> -0.009639106611 | BX19: -0.3445207196 | BY19: 0.2318448797 | BZ19: 0.1126758398 | CA19: Haren recharge | CB19: =-(IF($N19=99999.99999,0,VLOOKUP($B19,'United No. 2 Dplns'!$B$7:$X$676,13)/1.9835)) -> 0 | CC19: =CB19+(-(INDEX('Pre 1995 Net Accretions'!$B$6:$M$105,MATCH($B$2,'Pre 1995 Net Accretions'!$A$6:$A$105,0),MATCH($A19,'Pre 1995 Net Accretions'!$B$5:$M$5,0))/$QE19/1.9835)) -> 0.02919695922 | CD19: =-(IF(N19<99999.99999,(INDEX('70 Ranch RF Obligation'!$B$6:$M$30,MATCH($B$2,'70 Ranch RF Obligation'!$A$6:$A$30,0),MATCH('ECCV Daily Replacement Summary'!A19,'70 Ranch RF Obligation'!$B$5:$M$5,0))/QE19)/1.9835,0))-CG19*(1-'L. Latham Credit'!$E$35) -> -2.262 | CE19: -2.232803041 | CF19: =(VLOOKUP($B19,'ECCV 70R Pond Acrtns'!$B$7:$AI$1206,16)+VLOOKUP($B19,'ECCV 70R Canal Acrtns'!$B$7:$AI$1206,13)+VLOOKUP($B19,'2003 70R Pond Acrtns'!$B$7:$AI$1206,16)+VLOOKUP($B19,'2003 70R Canal Acrtns'!$B$7:$AI$1206,13))/$QE19/1.9835 -> 0 | CG19: 3.9 | CH19: 1.667196959 | CI19: 2.232803041 | CJ19: 0 | CK19: 0 | CL19: 0 | CM19: 0 | CO19: 1.667196959 | CP19: 0 | CQ19: 0 | CR19: =-CQ19*0.5/100*'Distances for Transit Losses'!$C$44 -> 0 | CS19: 0 | CT19: 0 | CU19: 0 | CV19: 0 | CW19: 0 | CX19: 0 | CY19: 0 | CZ19: =('NFC Well Pumping'!I17+'NFC Well Pumping'!I54+'NFC Well Pumping'!I90)/1.9835 -> 0 | DA19: =IF(AND(HX19-HY19-FA19>0,HS19="no"),MIN(-SUM(CV19:CZ19)/(1-0.5/100*'Distances for Transit Losses'!$C$69),HX19-HY19-FA19),0) -> 0 | DB19: =-DA19*0.5/100*'Distances for Transit Losses'!C$69 -> 0 | DC19: =IF(AND(GM19-GN19-IA19-FC19-JO19>0,ET19="no"),MIN(-SUM(CV19:DB19)/(1-0.5/100*'Distances for Transit Losses'!$C$71),GM19-GN19-IA19-FC19-JO19),0) -> 0 | DD19: =--DC19*0.5/100*'Distances for Transit Losses'!$C$71 -> 0 | DE19: 1.667196959 | DF19: =-(IF(DK19="Yes",((0.107*(INDEX('New Cache Credit'!$AR$70:$BC$95,MATCH($B$2,'New Cache Credit'!$AQ$70:$AQ$95,0),MATCH($A19,'New Cache Credit'!$AR$70:$BC$70,0))/$QE19))+(0.333*(INDEX('New Cache Credit'!$BG$70:$BR$95,MATCH($B$2,'New Cache Credit'!$BF$70:$BF$95,0),MATCH($A19,'New Cache Credit'!$BG$70:$BR$70,0))/$QE19)))/1.9835,0)) -> 0 | DG19: ='Joint Aug Station Deliveries'!J19 -> 0 | DH19: =-(DG19*0.5/100*'Distances for Transit Losses'!$C$154) -> 0 | DI19: 0 | DK19: no | DM19: 0 | DN19: 0 | DO19: =-(DN19*0.5/100*'Distances for Transit Losses'!$C$156) -> 0 | DP19: =-(IF(DZ19="Yes",((0.75*(INDEX('New Cache Credit'!$AR$70:$BC$95,MATCH($B$2,'New Cache Credit'!$AQ$70:$AQ$95,0),MATCH($A19,'New Cache Credit'!$AR$70:$BC$70,0))/$QE19))+(0.222*(INDEX('New Cache Credit'!$BG$70:$BR$95,MATCH($B$2,'New Cache Credit'!$BF$70:$BF$95,0),MATCH($A19,'New Cache Credit'!$BG$70:$BR$70,0))/$QE19)))/1.9835,0)) -> 0 | DQ19: =-(IF(DZ19="yes",(0.25*INDEX('GIC Credit'!$B$71:$M$96,MATCH($B$2,'GIC Credit'!$A$71:$A$96,0),MATCH($A19,'GIC Credit'!$B$71:$M$71,0))/$QE19)/1.9835,0)) -> 0 | DR19: 0 | DS19: 0 | DT19: 0 | DU19: =-(DT19*0.5/100*'Distances for Transit Losses'!$C$158) -> 0 | DV19: 0 | DW19: =-(DV19*0.5/100*('Distances for Transit Losses'!$C$160+'Distances for Transit Losses'!$C$170)) -> 0 | DX19: 0 | DZ19: no | EA19: 0 | EB19: =-(IF($N19<99999.99999,(INDEX('New Cache Credit'!$W$70:$AH$95,MATCH($B$2,'New Cache Credit'!$V$70:$V$95,0),MATCH($A19,'New Cache Credit'!$W$70:$AH$70,0))/$QE19)/1.9835,0))-DF19-DP19 -> -0.1432771848 | EC19: =-(IF($N19<99999.99999,(INDEX('GIC Credit'!$B$71:$M$96,MATCH($B$2,'GIC Credit'!$A$71:$A$96,0),MATCH($A19,'GIC Credit'!$B$71:$M$71,0))/$QE19)/1.9835,0))-DQ19 -> -0.000766 | ED19: 0 | EE19: =-(ED19*0.5/100*('Distances for Transit Losses'!$C$162+'Distances for Transit Losses'!$C$168)) -> 0 | EG19: =IF(EF19="yes",'Joint Aug Station Deliveries'!Q19,0) -> 0 | EH19: =-(EG19*0.5/100*('Distances for Transit Losses'!$C$164+'Distances for Transit Losses'!$C$166+'Distances for Transit Losses'!$C$168)) -> 0 | EI19: =IF(EF19="Yes",'Joint Aug Station Deliveries'!T19,0) -> 0 | EJ19: =-(EI19*0.5/100*('Distances for Transit Losses'!$C$166+'Distances for Transit Losses'!$C$168)) -> 0 | EK19: 0 | EL19: =-(EK19*0.5/100*'Distances for Transit Losses'!$C$172) -> 0 | EM19: -0.1440431848 | EN19: 0 | EO19: 0 | EP19: 0 | EQ19: =-(IF(N19<99999.99999,INDEX('Hist RF to SPR'!$AF$6:$AQ$30,MATCH($B$2,'Hist RF to SPR'!$AE$6:$AE$30,0),MATCH($A19,'Hist RF to SPR'!$AF$5:$AQ$5,0))/QE19/1.9835,0)) -> -0.0002698345146 | ER19: -0.1440431848 | ES19: -0.1443130193 | ET19: no | EU19: 0 | EV19: 0 | EW19: 0 | EY19: 0 | EZ19: 0 | FA19: =IF(AND(HX19-HY19-GK19>0,HS19="no"),MIN(-(ES19+EY19+EZ19)/(1-0.5/100*'Distances for Transit Losses'!$C$73),HX19-HY19-GK19),0) -> 0 | FB19: =-FA19*0.5/100*'Distances for Transit Losses'!$C$73 -> 0 | FC19: =IF(AND(GM19-GN19-IA19>0,GB19="no"),MIN(-(ES19+EY19+EZ19+FA19+FB19)/(1-0.5/100*'Distances for Transit Losses'!$C$75),GM19-GN19-IA19),0) -> 0 | FD19: =-FC19*0.5/100*'Distances for Transit Losses'!$C$79 -> 0 | FE19: 0.1443130193 | FF19: Haren recharge | FG19: 0 | FI19: =IF(AND(FH18="no",(SUM('Joint Aug Station Deliveries'!$AA$9:'Joint Aug Station Deliveries'!$AA18)+'Joint Aug Station Deliveries'!$AA19)*1.9835>'New Cache Credit'!$BY$33,(SUM('Joint Aug Station Deliveries'!$AA$9:'Joint Aug Station Deliveries'!$AA18)+'Joint Aug Station Deliveries'!$AA19)*1.9835>'New Cache Credit'!$CH$33),0,'Joint Aug Station Deliveries'!S19) -> 0 | FJ19: =-(FI19*0.5/100*'Distances for Transit Losses'!$C$150) -> 0 | FL19: =IF(AND(FK18="no",(SUM('Joint Aug Station Deliveries'!$AA$9:'Joint Aug Station Deliveries'!$AA18)+'Joint Aug Station Deliveries'!$AA19)*1.9835>'New Cache Credit'!$BY$33,(SUM('Joint Aug Station Deliveries'!$AA$9:'Joint Aug Station Deliveries'!$AA18)+'Joint Aug Station Deliveries'!$AA19)*1.9835>'New Cache Credit'!$CH$33),0,'Joint Aug Station Deliveries'!V19) -> 0 | FM19: =-(FL19*0.5/100*'Distances for Transit Losses'!$C$142) -> 0 | FN19: =IF(AND(FK18="no",(SUM('Joint Aug Station Deliveries'!$AA$9:'Joint Aug Station Deliveries'!$AA18)+'Joint Aug Station Deliveries'!$AA19)*1.9835>'New Cache Credit'!$BY$33,(SUM('Joint Aug Station Deliveries'!$AA$9:'Joint Aug Station Deliveries'!$AA18)+'Joint Aug Station Deliveries'!$AA19)*1.9835>'New Cache Credit'!$CH$33),0,'Joint Aug Station Deliveries'!Y19) -> 0 | FO19: =-(FN19*0.5/100*'Distances for Transit Losses'!$C$148) -> 0 | FP19: 0 | FQ19: 0 | FR19: 0 | FS19: 1.288820134 | FT19: =-(IF(N19<99999.99999,INDEX('Hist RF to SPR'!$Q$6:$AB$30,MATCH($B$2,'Hist RF to SPR'!$P$6:$P$30,0),MATCH($A19,'Hist RF to SPR'!$Q$5:$AB$5,0))/QE19/1.9835,0)) -> -0.001979416988 | FU19: =-(IF($N19<99999.99999,(INDEX('FIDCO Credit'!$X$42:$AI$66,MATCH($B$2,'FIDCO Credit'!$W$42:$W$66,0),MATCH($A19,'FIDCO Credit'!$X$41:$AI$41,0))/$QE19)/1.9835,0)) -> -0.01755533333 | FV19: =-(IF($N19<99999.99999,(INDEX('Western Credit'!$W$72:$AH$96,MATCH($B$2,'Western Credit'!$V$72:$V$96,0),MATCH($A19,'Western Credit'!$W$71:$AH$71,0))/$QE19)/1.9835,0)) -> 0 | FW19: -0.01953475032 | FX19: 0 | FY19: =VLOOKUP($B19,'ECCV Haren Pond S.P. Acrtns'!$B$7:$G$306,6)/$QE19/1.9835 -> 1.341957985 | FZ19: 0.01953475032 | GA19: 0.3163418498 | GB19: no | GC19: yes | GD19: 0 | GE19: 0 | GF19: 0 | GH19: 0 | GI19: 0 | GJ19: 0 | GK19: =IF(AND(HX19-HY19>0,HS19="no"),MIN(-GJ19/(1-0.5/100*'Distances for Transit Losses'!$C$77),HX19-HY19),0) -> 0 | GL19: =-GK19*0.5/100*'Distances for Transit Losses'!$C$77 -> 0 | GM19: 0 | GN19: =IF(GM19>0,MIN(-(GJ19+GK19+GL19)/(1-0.5/100*'Distances for Transit Losses'!$C$79),GM19),0) -> 0 | GO19: =-GN19*0.5/100*'Distances for Transit Losses'!$C$79 -> 0 | GP19: 0 | GR19: 0 | GS19: ='Joint Aug Station Deliveries'!AJ19 -> 0 | GT19: =GS19*'Western Credit'!$Z$36 -> 0 | GU19: ='Joint Aug Station Deliveries'!AD19 -> 0 | GV19: 0 | GW19: =MAX(0,(JJ19+JK19))/(1-0.5/100*'Distances for Transit Losses'!$C$55) -> 0 | GX19: =MAX(0,(JL19+JM19)/(1-0.5/100*'Distances for Transit Losses'!$C$53)) -> 0 | GY19: 0 | GZ19: 0 | HA19: 0 | HB19: =-HA19*0.5/100*'Distances for Transit Losses'!$C$34 -> 0 | HC19: 0 | HD19: 0 | HE19: 0 | HF19: 0 | HG19: 0 | HH19: 0 | HI19: 0 | HJ19: 0 | HK19: 0 | HL19: 0 | HM19: 0 | HN19: 0 | HO19: =FY19-FZ19-GA19+GT19+GV19-SUM(GW19:GZ19)-HD19-HE19-HG19-HH19-(BZ19/(1-0.5/100*'Distances for Transit Losses'!$C$71)) -> 0.8727371962 | HP19: 0 | HQ19: 1.288820134 | HR19: =-(IF(F19<99999.99999,INDEX('Hist RF to SPR'!$B$6:$M$30,MATCH($B$2,'Hist RF to SPR'!$A$6:$A$30,0),MATCH($A19,'Hist RF to SPR'!$B$5:$M$5,0))/QE19/1.9835,0)) -> -0.01871053104 | HS19: yes | HT19: 0 | HU19: 0 | HV19: =IF(AND(HS19="No",$BJ19="No"),MIN(-(HR19+HT19+HU19),HO19),0) -> 0 | HW19: -0.01871053104 | HX19: 0 | HY19: =IF(HX19>0,MIN(-HW19/(1-0.5/100*'Distances for Transit Losses'!$C$81),HX19),0) -> 0 | HZ19: =-HY19*0.5/100*'Distances for Transit Losses'!$C$81 -> 0 | IA19: 0 | IB19: =-HW19 -> 0.01871053104 | IC19: United No. 3 Bypass | ID19: 0 | IE19: 0 | IF19: 0 | IG19: 0 | IH19: 0 | II19: 0 | IJ19: 0 | IK19: 0 | IL19: 0 | IM19: 1.288820134 | IN19: =-(IF(N19<99999.99999,(VLOOKUP(B19,'ECCV Upper Dpln'!$B$7:$BD$306,55))/QE19/1.9835,0)) -> -4.080257262 | IO19: =-(IF(N19<99999.99999,INDEX('Hist RF abv Milton'!$B$6:$M$30,MATCH($B$2,'Hist RF abv Milton'!$A$6:$A$30,0),MATCH($A19,'Hist RF abv Milton'!$B$5:$M$5,0))/QE19/1.9835,0)) -> -0.06724247917 | IP19: =-(VLOOKUP(B19,'Unlagged Hist RF'!$A$9:$AN$308,36)/QE19/1.9835) -> 0 | IQ19: =(VLOOKUP($B19,'ECCV Beebe Pond Acrtns'!$B$7:$BI$1206,41)+VLOOKUP($B19,'ECCV Canal Acrtns'!$B$7:$AL$1206,22)+VLOOKUP($B19,'2003 Beebe Pond Acrtns'!$B$7:$BI$1206,41)+VLOOKUP($B19,'2003 Canal Acrtns'!$B$7:$AL$1206,22))/$QE19/1.9835 -> 1.053799341 | IR19: 0 | IS19: 0 | IT19: 0 | IU19: 1.053799341 | IV19: 0 | IW19: no | IX19: 0 | IY19: 0.06724247917 | IZ19: 1.59995448 | JA19: 0 | JB19: 0 | JC19: -1.426503441 | JD19: 0 | JE19: 2.6 | JF19: =-(JE19*0.5/100*'Distances for Transit Losses'!$C$6) -> -0.0351 | JG19: =-JD19 -> 0 | JH19: 0 | JI19: 0 | JJ19: =MIN(-(JD19+JG19),GV19-GV19*0.5/100*'Distances for Transit Losses'!$C$55) -> 0 | JK19: =MAX(0,MIN(-(JC19+JE19+JF19+JI19),GV19-GV19*0.5/100*'Distances for Transit Losses'!$C$55-JJ19/(1-0.5/100*'Distances for Transit Losses'!$C$55))) -> 0 | JL19: =MIN(-(JD19+JJ19),GT19-GT19*0.5/100*'Distances for Transit Losses'!$C$53) -> 0 | JM19: =MAX(0,MIN(-(JC19+JE19+JF19+JK19),GT19-GT19*0.5/100*'Distances for Transit Losses'!$C$53-JL19/(1-0.5/100*'Distances for Transit Losses'!$C$53))) -> 0 | JN19: =IF(ET19="no",MIN(-(MIN(0,JC19+JE19+JF19+JK19+JM19))+BZ19/(1-0.5/100*'Distances for Transit Losses'!$C$38)+FE19/(1-0.5/100*'Distances for Transit Losses'!$C$42)+KE19/(1-0.5/100*'Distances for Transit Losses'!$C$36),(FY19-FZ19)-(FY19-FZ19)*0.5/100*'Distances for Transit Losses'!$C$53),0) -> 0.3163418498 | JO19: =IF(AND(GM19-GN19-IA19-FC19>0,ET19="no"),MIN(-(JC19+JE19+JF19+JI19+JK19+JM19+JN19)/(1-0.5/100*'Distances for Transit Losses'!$C$59),GM19-GN19-IA19-FC19),0) -> 0 | JP19: =JO19*0.5/100*'Distances for Transit Losses'!$D$59 -> 0 | JQ19: 0 | JS19: 1.454738408 | JT19: 0 | JU19: 0 | JV19: 0 | JW19: 1.288820134 | JX19: =-(IF(N19<99999.99999,INDEX('Hist RF blw Milton'!$B$6:$M$30,MATCH($B$2,'Hist RF blw Milton'!$A$6:$A$30,0),MATCH($A19,'Hist RF blw Milton'!$B$5:$M$5,0))/QE19/1.9835,0)) -> -0.03247642669 | JY19: no | JZ19: 0 | KA19: 0 | KB19: -0.03247642669 | KC19: 0 | KD19: 0 | KE19: 0.03247642669 | KF19: Haren | KG19: 0 | KH19: 1.288820134 | KI19: =-(IF(N19<99999.99999,INDEX('Hist RF to Box Elder'!$B$6:$M$30,MATCH($B$2,'Hist RF to Box Elder'!$A$6:$A$30,0),MATCH($A19,'Hist RF to Box Elder'!$B$5:$M$5,0))/QE19/1.9835,0)) -> -0.01513304456 | KJ19: =(VLOOKUP($B19,'ECCV Beebe Pond Acrtns'!$B$7:$BI$1206,54)+VLOOKUP($B19,'ECCV Canal Acrtns'!$B$7:$AL$1206,34)+VLOOKUP($B19,'2003 Beebe Pond Acrtns'!$B$7:$AL$1206,34)+VLOOKUP($B19,'2003 Canal Acrtns'!$B$7:$AL$1206,34)+VLOOKUP($B19,'84CW090 Beebe Pond Acrtns'!$B$7:$AL$1206,34)+VLOOKUP($B19,'84CW090 Canal Acrtns'!$B$7:$AL$1206,34))/$QE19/1.9835 -> 0.06977267982 | KK19: 0.01513304456 | KL19: 0 | KM19: 0 | KN19: 0 | KP19: -7.024177132 | KQ19: 5.60223815 | KR19: 0.03247642669 | KS19: 0.01513304456 | KT19: 0.01871053104 | KU19: 0.01953475032 | KV19: 0.1443130193 | KW19: 0 | KX19: 2.57732376 | KY19: 0.06918585807 | KZ19: 8.47891554 | LA19: 1.454738408 | LB19: 0 | LC19: 0 | LD19: 0 | LK19: 0 | LL19: 0 | LM19: 0 | LO19: 0 | LP19: 0 | LQ19: 0 | LR19: 0 | LS19: 0 | LT19: 0 | LU19: 0 | LV19: 0 | LW19: 0 | LX19: 0 | LY19: 0 | LZ19: 0 | MB19: 0 | MC19: 0 | MD19: 0 | ME19: 0 | MF19: 0 | MG19: 0 | MH19: 0 | MI19: 0 | MJ19: 0 | MK19: 0 | ML19: 0 | MN19: 0 | MO19: 0 | MP19: 0 | MQ19: 0 | MR19: 0 | MS19: 0 | MT19: 0 | MU19: 0 | MV19: 0 | MW19: 0 | MX19: 0 | ND19: 0 | NE19: 0 | NF19: 0 | NG19: 0 | NH19: 0 | NI19: 0 | NJ19: 0 | NK19: 0 | NL19: 0 | NN19: 0 | NO19: 0 | NP19: 0 | NQ19: 0 | NR19: 0 | NS19: 0 | NT19: 0 | NU19: 0 | NV19: 0 | NY19: 0 | NZ19: 0 | OA19: 0 | OB19: 0 | OC19: 0 | OD19: 0 | OE19: 0 | OH19: 0 | OI19: 0 | OL19: 0 | OM19: 0 | ON19: 0 | OQ19: 0 | OR19: 0 | OS19: 0 | OT19: 0 | OU19: 0 | OV19: 0 | OW19: 0 | OY19: 0 | OZ19: 0 | PA19: 0 | PB19: 0 | PC19: 0 | PD19: 309.6 | PF19: 0 | PG19: 0 | PH19: 0 | PI19: 0 | PJ19: 0 | PK19: 0 | PL19: 0 | PM19: 0 | PN19: 0 | PO19: 0 | PP19: 0 | PQ19: 0 | PR19: 0 | PS19: 0 | PT19: 0 | PU19: 0 | PV19: 0 | PW19: 0 | PX19: 0 | PY19: 0 | PZ19: 0 | QB19: 2.6 | QC19: 0 | QE19: =VLOOKUP(A19,'Control Sheet'!$G$9:$H$20,2) -> 30
A20: Apr | B20: 2015-04-12 | C20: Burlington | D20: 1909-01-13 | E20: Western | F20: 21562 | K20: Bijou Canal | L20: 1972-05-26 | M20: Bijou Canal | N20: 44706 | S20: 0 | T20: 0 | U20: 0 | V20: 0 | X20: 0 | Y20: =('NFC Well Pumping'!$L18+'NFC Well Pumping'!$L55+'NFC Well Pumping'!$L91+'NFC Well Pumping'!$L127)/1.9835 -> 0 | Z20: ='88CW264(B) Pumping'!$E18/1.9835+'88CW264(B) Pumping'!$E54/1.9835+'88CW264(B) Pumping'!E94/1.9835+'88CW264(B) Pumping'!E130/1.9835+'88CW264(B) Pumping'!F170/1.9835+'88CW264(B) Pumping'!E206/1.9835 -> 0.009639106611 | AA20: 0 | AB20: =('United No. 2 Well Pumping'!G19+'United No. 2 Well Pumping'!G55+'United No. 2 Well Pumping'!G91)/1.9835 -> 0 | AC20: =('United No. 2 Well Pumping'!F19+'United No. 2 Well Pumping'!F55+'United No. 2 Well Pumping'!F91)/1.9835 -> 0 | AD20: 0 | AF20: 0.009639106611 | AG20: =AC20+U20+'United Res'!AA19+'United Res'!AQ19+'Gilcrest Res'!D19 -> 0 | AH20: 100 | AI20: =-(IF($N20=99999.99999,0,VLOOKUP($B20,'NFC Well Dplns-URF'!B$7:$AB$306,27))/$QE20/1.9835) -> -5.888111295e-05 | AJ20: 0 | AL20: =(VLOOKUP($B20,'ECCV 70R Pond Acrtns'!$B$7:$AI$1206,34)+VLOOKUP($B20,'2003 70R Pond Acrtns'!$B$7:$AI$1206,34)+VLOOKUP($B20,'ECCV 70R Canal Acrtns'!$B$7:$AI$1206,27)+VLOOKUP($B20,'2003 70R Canal Acrtns'!$B$7:$AI$1206,27))/$QE20/1.9835 -> 0 | AM20: -5.888111295e-05 | AN20: =-(IF($N20=99999.99999,0,VLOOKUP($B20,'NFC Well Dplns-SDF'!$B$7:$Z$306,25)+VLOOKUP($B20,'NFC Well Dplns-URF'!B$7:$AB$306,20))/$QE20/1.9835) -> -0.06918585807 | AO20: 0.002486497969 | AP20: 0.0666993601 | AQ20: ECCV Riverside Credits | AR20: =-AV20*'Weldon Credit'!$Z$36 -> 0 | AS20: =0.4*(INDEX('Riverside Pond Accrtns'!$B$6:$M$36,MATCH($B$2,'Riverside Pond Accrtns'!$A$6:$A$36,0),MATCH('ECCV Daily Replacement Summary'!A20,'Riverside Pond Accrtns'!$B$5:$M$5,0))/QE20)/1.9835 -> 0.9942021679 | AT20: =(44/640)*(INDEX('Weldon Valley Accrtns (02CW377)'!$B$6:$M$30,MATCH($B$2,'Weldon Valley Accrtns (02CW377)'!$A$6:$A$30,0),MATCH(A20,'Weldon Valley Accrtns (02CW377)'!$B$5:$M$5,0))/QE20)/1.9835 -> 0.3613173263 | AU20: =(VLOOKUP($B20,'ECCV 70R Pond Acrtns'!$B$7:$AI$1206,25)+VLOOKUP($B20,'ECCV 70R Canal Acrtns'!$B$7:$AI$1206,20)+VLOOKUP($B20,'2003 70R Pond Acrtns'!$B$7:$AI$1206,25)+VLOOKUP($B20,'2003 70R Canal Acrtns'!$B$7:$AI$1206,20))/$QE20/1.9835 -> 0 | AV20: ='Joint Aug Station Deliveries'!G20 -> 0 | AW20: 0 | AX20: 0 | AY20: =MIN(-($AR20+AX20),AS20-AS20*0.5/100*'Distances for Transit Losses'!$C$51) -> 0 | AZ20: 0 | BA20: =MIN(-($AR20+AX20+AY20+AZ20),AU20-AU20*0.5/100*'Distances for Transit Losses'!$C$51) -> 0 | BB20: =-((AY20+BA20)/(1-0.5/100*'Distances for Transit Losses'!$C$51)-(AY20+BA20)) -> 0 | BC20: =IF(AND(IF20-IG20-FI20-DI20>0,IA20="no"),MIN(-(AR20+AX20+AY20+AZ20+BA20+BB20)/(1-0.5/100*'Distances for Transit Losses'!$C$65),IF20-IG20-FI20-DI20),0) -> 0 | BD20: =--BC20*0.5/100*'Distances for Transit Losses'!C$65 -> 0 | BE20: =IF(AND(GM20-GN20-IA20-FC20-JO20-DC20>0,ET20="no"),MIN(-(AR20+SUM(AX20:BD20))/(1-0.5/100*'Distances for Transit Losses'!$C$71),GM20-GN20-IA20-FC20-JO20-DC20),0) -> 0 | BF20: =--BE20*0.5/100*'Distances for Transit Losses'!$C$67 -> 0 | BG20: 0 | BI20: no | BJ20: yes | BK20: 0 | BL20: 0 | BM20: 0 | BO20: =IF($BJ20="No",MIN(-CV20,AS20-AY20/(1-0.5/100*'Distances for Transit Losses'!$C$51)),0) -> 0 | BP20: =IF($BJ20="No",MIN(-CV20+BO20,AU20-BA20/(1-0.5/100*'Distances for Transit Losses'!$C$51)),0) -> 0 | BQ20: 0 | BR20: 0 | BS20: 0 | BT20: 1.288820134 | BU20: 1.288820134 | BV20: =-(IF($N20=99999.99999,0,VLOOKUP($B20,'NFC Well Dplns-SDF'!$B$7:$Z$306,16)+VLOOKUP($B20,'NFC Well Dplns-URF'!$B$7:$AB$306,13))/$QE20/1.9835) -> -0.334881613 | BW20: =-(IF($N20>=99999,0,'88CW264(B) Pumping'!$E18/1.9835)+IF($N20>=99999,0,'88CW264(B) Pumping'!$E54/1.9835)+IF($N20>=99999,0,'88CW264(B) Pumping'!$E94/1.9835)+IF($N20>=99999,0,'88CW264(B) Pumping'!$E130/1.9835)+IF($N20>=51134.50919,0,'88CW264(B) Pumping'!$F170/1.9835)+IF($N20>=53406,0,'88CW264(B) Pumping'!$E206/1.9835)) -> -0.009639106611 | BX20: -0.3445207196 | BY20: 0.2318448797 | BZ20: 0.1126758398 | CA20: Haren recharge | CB20: =-(IF($N20=99999.99999,0,VLOOKUP($B20,'United No. 2 Dplns'!$B$7:$X$676,13)/1.9835)) -> 0 | CC20: =CB20+(-(INDEX('Pre 1995 Net Accretions'!$B$6:$M$105,MATCH($B$2,'Pre 1995 Net Accretions'!$A$6:$A$105,0),MATCH($A20,'Pre 1995 Net Accretions'!$B$5:$M$5,0))/$QE20/1.9835)) -> 0.02919695922 | CD20: =-(IF(N20<99999.99999,(INDEX('70 Ranch RF Obligation'!$B$6:$M$30,MATCH($B$2,'70 Ranch RF Obligation'!$A$6:$A$30,0),MATCH('ECCV Daily Replacement Summary'!A20,'70 Ranch RF Obligation'!$B$5:$M$5,0))/QE20)/1.9835,0))-CG20*(1-'L. Latham Credit'!$E$35) -> -2.262 | CE20: -2.232803041 | CF20: =(VLOOKUP($B20,'ECCV 70R Pond Acrtns'!$B$7:$AI$1206,16)+VLOOKUP($B20,'ECCV 70R Canal Acrtns'!$B$7:$AI$1206,13)+VLOOKUP($B20,'2003 70R Pond Acrtns'!$B$7:$AI$1206,16)+VLOOKUP($B20,'2003 70R Canal Acrtns'!$B$7:$AI$1206,13))/$QE20/1.9835 -> 0 | CG20: 3.9 | CH20: 1.667196959 | CI20: 2.232803041 | CJ20: 0 | CK20: 0 | CL20: 0 | CM20: 0 | CO20: 1.667196959 | CP20: 0 | CQ20: 0 | CR20: =-CQ20*0.5/100*'Distances for Transit Losses'!$C$44 -> 0 | CS20: 0 | CT20: 0 | CU20: 0 | CV20: 0 | CW20: 0 | CX20: 0 | CY20: 0 | CZ20: =('NFC Well Pumping'!I18+'NFC Well Pumping'!I55+'NFC Well Pumping'!I91)/1.9835 -> 0 | DA20: =IF(AND(HX20-HY20-FA20>0,HS20="no"),MIN(-SUM(CV20:CZ20)/(1-0.5/100*'Distances for Transit Losses'!$C$69),HX20-HY20-FA20),0) -> 0 | DB20: =-DA20*0.5/100*'Distances for Transit Losses'!C$69 -> 0 | DC20: =IF(AND(GM20-GN20-IA20-FC20-JO20>0,ET20="no"),MIN(-SUM(CV20:DB20)/(1-0.5/100*'Distances for Transit Losses'!$C$71),GM20-GN20-IA20-FC20-JO20),0) -> 0 | DD20: =--DC20*0.5/100*'Distances for Transit Losses'!$C$71 -> 0 | DE20: 1.667196959 | DF20: =-(IF(DK20="Yes",((0.107*(INDEX('New Cache Credit'!$AR$70:$BC$95,MATCH($B$2,'New Cache Credit'!$AQ$70:$AQ$95,0),MATCH($A20,'New Cache Credit'!$AR$70:$BC$70,0))/$QE20))+(0.333*(INDEX('New Cache Credit'!$BG$70:$BR$95,MATCH($B$2,'New Cache Credit'!$BF$70:$BF$95,0),MATCH($A20,'New Cache Credit'!$BG$70:$BR$70,0))/$QE20)))/1.9835,0)) -> 0 | DG20: ='Joint Aug Station Deliveries'!J20 -> 0 | DH20: =-(DG20*0.5/100*'Distances for Transit Losses'!$C$154) -> 0 | DI20: 0 | DK20: no | DM20: 0 | DN20: 0 | DO20: =-(DN20*0.5/100*'Distances for Transit Losses'!$C$156) -> 0 | DP20: =-(IF(DZ20="Yes",((0.75*(INDEX('New Cache Credit'!$AR$70:$BC$95,MATCH($B$2,'New Cache Credit'!$AQ$70:$AQ$95,0),MATCH($A20,'New Cache Credit'!$AR$70:$BC$70,0))/$QE20))+(0.222*(INDEX('New Cache Credit'!$BG$70:$BR$95,MATCH($B$2,'New Cache Credit'!$BF$70:$BF$95,0),MATCH($A20,'New Cache Credit'!$BG$70:$BR$70,0))/$QE20)))/1.9835,0)) -> 0 | DQ20: =-(IF(DZ20="yes",(0.25*INDEX('GIC Credit'!$B$71:$M$96,MATCH($B$2,'GIC Credit'!$A$71:$A$96,0),MATCH($A20,'GIC Credit'!$B$71:$M$71,0))/$QE20)/1.9835,0)) -> 0 | DR20: 0 | DS20: 0 | DT20: 0 | DU20: =-(DT20*0.5/100*'Distances for Transit Losses'!$C$158) -> 0 | DV20: 0 | DW20: =-(DV20*0.5/100*('Distances for Transit Losses'!$C$160+'Distances for Transit Losses'!$C$170)) -> 0 | DX20: 0 | DZ20: no | EA20: 0 | EB20: =-(IF($N20<99999.99999,(INDEX('New Cache Credit'!$W$70:$AH$95,MATCH($B$2,'New Cache Credit'!$V$70:$V$95,0),MATCH($A20,'New Cache Credit'!$W$70:$AH$70,0))/$QE20)/1.9835,0))-DF20-DP20 -> -0.1432771848 | EC20: =-(IF($N20<99999.99999,(INDEX('GIC Credit'!$B$71:$M$96,MATCH($B$2,'GIC Credit'!$A$71:$A$96,0),MATCH($A20,'GIC Credit'!$B$71:$M$71,0))/$QE20)/1.9835,0))-DQ20 -> -0.000766 | ED20: 0 | EE20: =-(ED20*0.5/100*('Distances for Transit Losses'!$C$162+'Distances for Transit Losses'!$C$168)) -> 0 | EG20: =IF(EF20="yes",'Joint Aug Station Deliveries'!Q20,0) -> 0 | EH20: =-(EG20*0.5/100*('Distances for Transit Losses'!$C$164+'Distances for Transit Losses'!$C$166+'Distances for Transit Losses'!$C$168)) -> 0 | EI20: =IF(EF20="Yes",'Joint Aug Station Deliveries'!T20,0) -> 0 | EJ20: =-(EI20*0.5/100*('Distances for Transit Losses'!$C$166+'Distances for Transit Losses'!$C$168)) -> 0 | EK20: 0 | EL20: =-(EK20*0.5/100*'Distances for Transit Losses'!$C$172) -> 0 | EM20: -0.1440431848 | EN20: 0 | EO20: 0 | EP20: 0 | EQ20: =-(IF(N20<99999.99999,INDEX('Hist RF to SPR'!$AF$6:$AQ$30,MATCH($B$2,'Hist RF to SPR'!$AE$6:$AE$30,0),MATCH($A20,'Hist RF to SPR'!$AF$5:$AQ$5,0))/QE20/1.9835,0)) -> -0.0002698345146 | ER20: -0.1440431848 | ES20: -0.1443130193 | ET20: no | EU20: 0 | EV20: 0 | EW20: 0 | EY20: 0 | EZ20: 0 | FA20: =IF(AND(HX20-HY20-GK20>0,HS20="no"),MIN(-(ES20+EY20+EZ20)/(1-0.5/100*'Distances for Transit Losses'!$C$73),HX20-HY20-GK20),0) -> 0 | FB20: =-FA20*0.5/100*'Distances for Transit Losses'!$C$73 -> 0 | FC20: =IF(AND(GM20-GN20-IA20>0,GB20="no"),MIN(-(ES20+EY20+EZ20+FA20+FB20)/(1-0.5/100*'Distances for Transit Losses'!$C$75),GM20-GN20-IA20),0) -> 0 | FD20: =-FC20*0.5/100*'Distances for Transit Losses'!$C$79 -> 0 | FE20: 0.1443130193 | FF20: Haren recharge | FG20: 0 | FI20: =IF(AND(FH19="no",(SUM('Joint Aug Station Deliveries'!$AA$9:'Joint Aug Station Deliveries'!$AA19)+'Joint Aug Station Deliveries'!$AA20)*1.9835>'New Cache Credit'!$BY$33,(SUM('Joint Aug Station Deliveries'!$AA$9:'Joint Aug Station Deliveries'!$AA19)+'Joint Aug Station Deliveries'!$AA20)*1.9835>'New Cache Credit'!$CH$33),0,'Joint Aug Station Deliveries'!S20) -> 0 | FJ20: =-(FI20*0.5/100*'Distances for Transit Losses'!$C$150) -> 0 | FL20: =IF(AND(FK19="no",(SUM('Joint Aug Station Deliveries'!$AA$9:'Joint Aug Station Deliveries'!$AA19)+'Joint Aug Station Deliveries'!$AA20)*1.9835>'New Cache Credit'!$BY$33,(SUM('Joint Aug Station Deliveries'!$AA$9:'Joint Aug Station Deliveries'!$AA19)+'Joint Aug Station Deliveries'!$AA20)*1.9835>'New Cache Credit'!$CH$33),0,'Joint Aug Station Deliveries'!V20) -> 0 | FM20: =-(FL20*0.5/100*'Distances for Transit Losses'!$C$142) -> 0 | FN20: =IF(AND(FK19="no",(SUM('Joint Aug Station Deliveries'!$AA$9:'Joint Aug Station Deliveries'!$AA19)+'Joint Aug Station Deliveries'!$AA20)*1.9835>'New Cache Credit'!$BY$33,(SUM('Joint Aug Station Deliveries'!$AA$9:'Joint Aug Station Deliveries'!$AA19)+'Joint Aug Station Deliveries'!$AA20)*1.9835>'New Cache Credit'!$CH$33),0,'Joint Aug Station Deliveries'!Y20) -> 0 | FO20: =-(FN20*0.5/100*'Distances for Transit Losses'!$C$148) -> 0 | FP20: 0 | FQ20: 0 | FR20: 0 | FS20: 1.288820134 | FT20: =-(IF(N20<99999.99999,INDEX('Hist RF to SPR'!$Q$6:$AB$30,MATCH($B$2,'Hist RF to SPR'!$P$6:$P$30,0),MATCH($A20,'Hist RF to SPR'!$Q$5:$AB$5,0))/QE20/1.9835,0)) -> -0.001979416988 | FU20: =-(IF($N20<99999.99999,(INDEX('FIDCO Credit'!$X$42:$AI$66,MATCH($B$2,'FIDCO Credit'!$W$42:$W$66,0),MATCH($A20,'FIDCO Credit'!$X$41:$AI$41,0))/$QE20)/1.9835,0)) -> -0.01755533333 | FV20: =-(IF($N20<99999.99999,(INDEX('Western Credit'!$W$72:$AH$96,MATCH($B$2,'Western Credit'!$V$72:$V$96,0),MATCH($A20,'Western Credit'!$W$71:$AH$71,0))/$QE20)/1.9835,0)) -> 0 | FW20: -0.01953475032 | FX20: 0 | FY20: =VLOOKUP($B20,'ECCV Haren Pond S.P. Acrtns'!$B$7:$G$306,6)/$QE20/1.9835 -> 1.341957985 | FZ20: 0.01953475032 | GA20: 0.3163418498 | GB20: no | GC20: yes | GD20: 0 | GE20: 0 | GF20: 0 | GH20: 0 | GI20: 0 | GJ20: 0 | GK20: =IF(AND(HX20-HY20>0,HS20="no"),MIN(-GJ20/(1-0.5/100*'Distances for Transit Losses'!$C$77),HX20-HY20),0) -> 0 | GL20: =-GK20*0.5/100*'Distances for Transit Losses'!$C$77 -> 0 | GM20: 0 | GN20: =IF(GM20>0,MIN(-(GJ20+GK20+GL20)/(1-0.5/100*'Distances for Transit Losses'!$C$79),GM20),0) -> 0 | GO20: =-GN20*0.5/100*'Distances for Transit Losses'!$C$79 -> 0 | GP20: 0 | GR20: 0 | GS20: ='Joint Aug Station Deliveries'!AJ20 -> 0 | GT20: =GS20*'Western Credit'!$Z$36 -> 0 | GU20: ='Joint Aug Station Deliveries'!AD20 -> 0 | GV20: 0 | GW20: =MAX(0,(JJ20+JK20))/(1-0.5/100*'Distances for Transit Losses'!$C$55) -> 0 | GX20: =MAX(0,(JL20+JM20)/(1-0.5/100*'Distances for Transit Losses'!$C$53)) -> 0 | GY20: 0 | GZ20: 0 | HA20: 0 | HB20: =-HA20*0.5/100*'Distances for Transit Losses'!$C$34 -> 0 | HC20: 0 | HD20: 0 | HE20: 0 | HF20: 0 | HG20: 0 | HH20: 0 | HI20: 0 | HJ20: 0 | HK20: 0 | HL20: 0 | HM20: 0 | HN20: 0 | HO20: =FY20-FZ20-GA20+GT20+GV20-SUM(GW20:GZ20)-HD20-HE20-HG20-HH20-(BZ20/(1-0.5/100*'Distances for Transit Losses'!$C$71)) -> 0.8727371962 | HP20: 0 | HQ20: 1.288820134 | HR20: =-(IF(F20<99999.99999,INDEX('Hist RF to SPR'!$B$6:$M$30,MATCH($B$2,'Hist RF to SPR'!$A$6:$A$30,0),MATCH($A20,'Hist RF to SPR'!$B$5:$M$5,0))/QE20/1.9835,0)) -> -0.01871053104 | HS20: yes | HT20: 0 | HU20: 0 | HV20: 0 | HW20: -0.01871053104 | HX20: 0 | HY20: =IF(HX20>0,MIN(-HW20/(1-0.5/100*'Distances for Transit Losses'!$C$81),HX20),0) -> 0 | HZ20: =-HY20*0.5/100*'Distances for Transit Losses'!$C$81 -> 0 | IA20: 0 | IB20: =-HW20 -> 0.01871053104 | IC20: United No. 3 Bypass | ID20: 0 | IE20: 0 | IF20: 0 | IG20: 0 | IH20: 0 | II20: 0 | IJ20: 0 | IK20: 0 | IL20: 0 | IM20: 1.288820134 | IN20: =-(IF(N20<99999.99999,(VLOOKUP(B20,'ECCV Upper Dpln'!$B$7:$BD$306,55))/QE20/1.9835,0)) -> -4.080257262 | IO20: =-(IF(N20<99999.99999,INDEX('Hist RF abv Milton'!$B$6:$M$30,MATCH($B$2,'Hist RF abv Milton'!$A$6:$A$30,0),MATCH($A20,'Hist RF abv Milton'!$B$5:$M$5,0))/QE20/1.9835,0)) -> -0.06724247917 | IP20: =-(VLOOKUP(B20,'Unlagged Hist RF'!$A$9:$AN$308,36)/QE20/1.9835) -> 0 | IQ20: =(VLOOKUP($B20,'ECCV Beebe Pond Acrtns'!$B$7:$BI$1206,41)+VLOOKUP($B20,'ECCV Canal Acrtns'!$B$7:$AL$1206,22)+VLOOKUP($B20,'2003 Beebe Pond Acrtns'!$B$7:$BI$1206,41)+VLOOKUP($B20,'2003 Canal Acrtns'!$B$7:$AL$1206,22))/$QE20/1.9835 -> 1.053799341 | IR20: 0 | IS20: 0 | IT20: 0 | IU20: 1.053799341 | IV20: 0 | IW20: no | IX20: 0 | IY20: 0.06724247917 | IZ20: 1.59995448 | JA20: 0 | JB20: 0 | JC20: -1.426503441 | JD20: 0 | JE20: 2.6 | JF20: =-(JE20*0.5/100*'Distances for Transit Losses'!$C$6) -> -0.0351 | JG20: =-JD20 -> 0 | JH20: 0 | JI20: 0 | JJ20: =MIN(-(JD20+JG20),GV20-GV20*0.5/100*'Distances for Transit Losses'!$C$55) -> 0 | JK20: =MAX(0,MIN(-(JC20+JE20+JF20+JI20),GV20-GV20*0.5/100*'Distances for Transit Losses'!$C$55-JJ20/(1-0.5/100*'Distances for Transit Losses'!$C$55))) -> 0 | JL20: =MIN(-(JD20+JJ20),GT20-GT20*0.5/100*'Distances for Transit Losses'!$C$53) -> 0 | JM20: =MAX(0,MIN(-(JC20+JE20+JF20+JK20),GT20-GT20*0.5/100*'Distances for Transit Losses'!$C$53-JL20/(1-0.5/100*'Distances for Transit Losses'!$C$53))) -> 0 | JN20: =IF(ET20="no",MIN(-(MIN(0,JC20+JE20+JF20+JK20+JM20))+BZ20/(1-0.5/100*'Distances for Transit Losses'!$C$38)+FE20/(1-0.5/100*'Distances for Transit Losses'!$C$42)+KE20/(1-0.5/100*'Distances for Transit Losses'!$C$36),(FY20-FZ20)-(FY20-FZ20)*0.5/100*'Distances for Transit Losses'!$C$53),0) -> 0.3163418498 | JO20: =IF(AND(GM20-GN20-IA20-FC20>0,ET20="no"),MIN(-(JC20+JE20+JF20+JI20+JK20+JM20+JN20)/(1-0.5/100*'Distances for Transit Losses'!$C$59),GM20-GN20-IA20-FC20),0) -> 0 | JP20: =JO20*0.5/100*'Distances for Transit Losses'!$D$59 -> 0 | JQ20: 0 | JS20: 1.454738408 | JT20: 0 | JU20: 0 | JV20: 0 | JW20: 1.288820134 | JX20: =-(IF(N20<99999.99999,INDEX('Hist RF blw Milton'!$B$6:$M$30,MATCH($B$2,'Hist RF blw Milton'!$A$6:$A$30,0),MATCH($A20,'Hist RF blw Milton'!$B$5:$M$5,0))/QE20/1.9835,0)) -> -0.03247642669 | JY20: no | JZ20: 0 | KA20: 0 | KB20: -0.03247642669 | KC20: 0 | KD20: 0 | KE20: 0.03247642669 | KF20: Haren | KG20: 0 | KH20: 1.288820134 | KI20: =-(IF(N20<99999.99999,INDEX('Hist RF to Box Elder'!$B$6:$M$30,MATCH($B$2,'Hist RF to Box Elder'!$A$6:$A$30,0),MATCH($A20,'Hist RF to Box Elder'!$B$5:$M$5,0))/QE20/1.9835,0)) -> -0.01513304456 | KJ20: =(VLOOKUP($B20,'ECCV Beebe Pond Acrtns'!$B$7:$BI$1206,54)+VLOOKUP($B20,'ECCV Canal Acrtns'!$B$7:$AL$1206,34)+VLOOKUP($B20,'2003 Beebe Pond Acrtns'!$B$7:$AL$1206,34)+VLOOKUP($B20,'2003 Canal Acrtns'!$B$7:$AL$1206,34)+VLOOKUP($B20,'84CW090 Beebe Pond Acrtns'!$B$7:$AL$1206,34)+VLOOKUP($B20,'84CW090 Canal Acrtns'!$B$7:$AL$1206,34))/$QE20/1.9835 -> 0.06977267982 | KK20: 0.01513304456 | KL20: 0 | KM20: 0 | KN20: 0 | KP20: -7.024177132 | KQ20: 5.60223815 | KR20: 0.03247642669 | KS20: 0.01513304456 | KT20: 0.01871053104 | KU20: 0.01953475032 | KV20: 0.1443130193 | KW20: 0 | KX20: 2.57732376 | KY20: 0.06918585807 | KZ20: 8.47891554 | LA20: 1.454738408 | LB20: 0 | LC20: 0 | LD20: 0 | LK20: 0 | LL20: 0 | LM20: 0 | LO20: 0 | LP20: 0 | LQ20: 0 | LR20: 0 | LS20: 0 | LT20: 0 | LU20: 0 | LV20: 0 | LW20: 0 | LX20: 0 | LY20: 0 | LZ20: 0 | MB20: 0 | MC20: 0 | MD20: 0 | ME20: 0 | MF20: 0 | MG20: 0 | MH20: 0 | MI20: 0 | MJ20: 0 | MK20: 0 | ML20: 0 | MN20: 0 | MO20: 0 | MP20: 0 | MQ20: 0 | MR20: 0 | MS20: 0 | MT20: 0 | MU20: 0 | MV20: 0 | MW20: 0 | MX20: 0 | ND20: 0 | NE20: 0 | NF20: 0 | NG20: 0 | NH20: 0 | NI20: 0 | NJ20: 0 | NK20: 0 | NL20: 0 | NN20: 0 | NO20: 0 | NP20: 0 | NQ20: 0 | NR20: 0 | NS20: 0 | NT20: 0 | NU20: 0 | NV20: 0 | NY20: 0 | NZ20: 0 | OA20: 0 | OB20: 0 | OC20: 0 | OD20: 0 | OE20: 0 | OH20: 0 | OI20: 0 | OL20: 0 | OM20: 0 | ON20: 0 | OQ20: 0 | OR20: 0 | OS20: 0 | OT20: 0 | OU20: 0 | OV20: 0 | OW20: 0 | OY20: 0 | OZ20: 0 | PA20: 0 | PB20: 0 | PC20: 0 | PD20: 309.6 | PF20: 0 | PG20: 0 | PH20: 0 | PI20: 0 | PJ20: 0 | PK20: 0 | PL20: 0 | PM20: 0 | PN20: 0 | PO20: 0 | PP20: 0 | PQ20: 0 | PR20: 0 | PS20: 0 | PT20: 0 | PU20: 0 | PV20: 0 | PW20: 0 | PX20: 0 | PY20: 0 | PZ20: 0 | QB20: 2.6 | QC20: 0 | QE20: =VLOOKUP(A20,'Control Sheet'!$G$9:$H$20,2) -> 30
A21: Apr | B21: 2015-04-13 | C21: Riverside | D21: 1907-05-31 | E21: Upper Platte and Beaver | F21: 20969 | K21: Riverside | L21: 1907-05-31 | M21: Upper Platte and Beaver | N21: 20969 | S21: 0 | T21: 0 | U21: 0 | V21: 0 | X21: 0 | Y21: =('NFC Well Pumping'!$L19+'NFC Well Pumping'!$L56+'NFC Well Pumping'!$L92+'NFC Well Pumping'!$L128)/1.9835 -> 0 | Z21: ='88CW264(B) Pumping'!$E19/1.9835+'88CW264(B) Pumping'!$E55/1.9835+'88CW264(B) Pumping'!E95/1.9835+'88CW264(B) Pumping'!E131/1.9835+'88CW264(B) Pumping'!F171/1.9835+'88CW264(B) Pumping'!E207/1.9835 -> 0.009639106611 | AA21: 0 | AB21: =('United No. 2 Well Pumping'!G20+'United No. 2 Well Pumping'!G56+'United No. 2 Well Pumping'!G92)/1.9835 -> 0 | AC21: =('United No. 2 Well Pumping'!F20+'United No. 2 Well Pumping'!F56+'United No. 2 Well Pumping'!F92)/1.9835 -> 0 | AD21: 0 | AF21: 0.009639106611 | AG21: =AC21+U21+'United Res'!AA20+'United Res'!AQ20+'Gilcrest Res'!D20 -> 0 | AH21: 100 | AI21: =-(IF($N21=99999.99999,0,VLOOKUP($B21,'NFC Well Dplns-URF'!B$7:$AB$306,27))/$QE21/1.9835) -> -5.888111295e-05 | AJ21: 0 | AL21: =(VLOOKUP($B21,'ECCV 70R Pond Acrtns'!$B$7:$AI$1206,34)+VLOOKUP($B21,'2003 70R Pond Acrtns'!$B$7:$AI$1206,34)+VLOOKUP($B21,'ECCV 70R Canal Acrtns'!$B$7:$AI$1206,27)+VLOOKUP($B21,'2003 70R Canal Acrtns'!$B$7:$AI$1206,27))/$QE21/1.9835 -> 0 | AM21: -5.888111295e-05 | AN21: =-(IF($N21=99999.99999,0,VLOOKUP($B21,'NFC Well Dplns-SDF'!$B$7:$Z$306,25)+VLOOKUP($B21,'NFC Well Dplns-URF'!B$7:$AB$306,20))/$QE21/1.9835) -> -0.06918585807 | AO21: 0.002486497969 | AP21: 0.0666993601 | AQ21: ECCV Riverside Credits | AR21: =-AV21*'Weldon Credit'!$Z$36 -> 0 | AS21: =0.4*(INDEX('Riverside Pond Accrtns'!$B$6:$M$36,MATCH($B$2,'Riverside Pond Accrtns'!$A$6:$A$36,0),MATCH('ECCV Daily Replacement Summary'!A21,'Riverside Pond Accrtns'!$B$5:$M$5,0))/QE21)/1.9835 -> 0.9942021679 | AT21: =(44/640)*(INDEX('Weldon Valley Accrtns (02CW377)'!$B$6:$M$30,MATCH($B$2,'Weldon Valley Accrtns (02CW377)'!$A$6:$A$30,0),MATCH(A21,'Weldon Valley Accrtns (02CW377)'!$B$5:$M$5,0))/QE21)/1.9835 -> 0.3613173263 | AU21: =(VLOOKUP($B21,'ECCV 70R Pond Acrtns'!$B$7:$AI$1206,25)+VLOOKUP($B21,'ECCV 70R Canal Acrtns'!$B$7:$AI$1206,20)+VLOOKUP($B21,'2003 70R Pond Acrtns'!$B$7:$AI$1206,25)+VLOOKUP($B21,'2003 70R Canal Acrtns'!$B$7:$AI$1206,20))/$QE21/1.9835 -> 0 | AV21: ='Joint Aug Station Deliveries'!G21 -> 0 | AW21: 0 | AX21: 0 | AY21: =MIN(-($AR21+AX21),AS21-AS21*0.5/100*'Distances for Transit Losses'!$C$51) -> 0 | AZ21: 0 | BA21: =MIN(-($AR21+AX21+AY21+AZ21),AU21-AU21*0.5/100*'Distances for Transit Losses'!$C$51) -> 0 | BB21: =-((AY21+BA21)/(1-0.5/100*'Distances for Transit Losses'!$C$51)-(AY21+BA21)) -> 0 | BC21: =IF(AND(IF21-IG21-FI21-DI21>0,IA21="no"),MIN(-(AR21+AX21+AY21+AZ21+BA21+BB21)/(1-0.5/100*'Distances for Transit Losses'!$C$65),IF21-IG21-FI21-DI21),0) -> 0 | BD21: =--BC21*0.5/100*'Distances for Transit Losses'!C$65 -> 0 | BE21: =IF(AND(GM21-GN21-IA21-FC21-JO21-DC21>0,ET21="no"),MIN(-(AR21+SUM(AX21:BD21))/(1-0.5/100*'Distances for Transit Losses'!$C$71),GM21-GN21-IA21-FC21-JO21-DC21),0) -> 0 | BF21: =--BE21*0.5/100*'Distances for Transit Losses'!$C$67 -> 0 | BG21: 0 | BI21: no | BJ21: no | BK21: 0 | BL21: 0 | BM21: 0 | BO21: =IF($BJ21="No",MIN(-CV21,AS21-AY21/(1-0.5/100*'Distances for Transit Losses'!$C$51)),0) -> 0 | BP21: =IF($BJ21="No",MIN(-CV21+BO21,AU21-BA21/(1-0.5/100*'Distances for Transit Losses'!$C$51)),0) -> 0 | BQ21: 0 | BR21: 0 | BS21: 0 | BT21: 1.288820134 | BU21: 1.288820134 | BV21: =-(IF($N21=99999.99999,0,VLOOKUP($B21,'NFC Well Dplns-SDF'!$B$7:$Z$306,16)+VLOOKUP($B21,'NFC Well Dplns-URF'!$B$7:$AB$306,13))/$QE21/1.9835) -> -0.334881613 | BW21: =-(IF($N21>=99999,0,'88CW264(B) Pumping'!$E19/1.9835)+IF($N21>=99999,0,'88CW264(B) Pumping'!$E55/1.9835)+IF($N21>=99999,0,'88CW264(B) Pumping'!$E95/1.9835)+IF($N21>=99999,0,'88CW264(B) Pumping'!$E131/1.9835)+IF($N21>=51134.50919,0,'88CW264(B) Pumping'!$F171/1.9835)+IF($N21>=53406,0,'88CW264(B) Pumping'!$E207/1.9835)) -> -0.009639106611 | BX21: -0.3445207196 | BY21: 0.2318448797 | BZ21: 0.1126758398 | CA21: Haren recharge | CB21: =-(IF($N21=99999.99999,0,VLOOKUP($B21,'United No. 2 Dplns'!$B$7:$X$676,13)/1.9835)) -> 0 | CC21: =CB21+(-(INDEX('Pre 1995 Net Accretions'!$B$6:$M$105,MATCH($B$2,'Pre 1995 Net Accretions'!$A$6:$A$105,0),MATCH($A21,'Pre 1995 Net Accretions'!$B$5:$M$5,0))/$QE21/1.9835)) -> 0.02919695922 | CD21: =-(IF(N21<99999.99999,(INDEX('70 Ranch RF Obligation'!$B$6:$M$30,MATCH($B$2,'70 Ranch RF Obligation'!$A$6:$A$30,0),MATCH('ECCV Daily Replacement Summary'!A21,'70 Ranch RF Obligation'!$B$5:$M$5,0))/QE21)/1.9835,0))-CG21*(1-'L. Latham Credit'!$E$35) -> -2.262 | CE21: -2.232803041 | CF21: =(VLOOKUP($B21,'ECCV 70R Pond Acrtns'!$B$7:$AI$1206,16)+VLOOKUP($B21,'ECCV 70R Canal Acrtns'!$B$7:$AI$1206,13)+VLOOKUP($B21,'2003 70R Pond Acrtns'!$B$7:$AI$1206,16)+VLOOKUP($B21,'2003 70R Canal Acrtns'!$B$7:$AI$1206,13))/$QE21/1.9835 -> 0 | CG21: 3.9 | CH21: 1.667196959 | CI21: 2.232803041 | CJ21: 0 | CK21: 0 | CL21: 0 | CM21: 0 | CO21: 1.667196959 | CP21: 0 | CQ21: 0 | CR21: =-CQ21*0.5/100*'Distances for Transit Losses'!$C$44 -> 0 | CS21: 0 | CT21: 0 | CU21: 0 | CV21: 0 | CW21: 0 | CX21: 0 | CY21: 0 | CZ21: =('NFC Well Pumping'!I19+'NFC Well Pumping'!I56+'NFC Well Pumping'!I92)/1.9835 -> 0 | DA21: =IF(AND(HX21-HY21-FA21>0,HS21="no"),MIN(-SUM(CV21:CZ21)/(1-0.5/100*'Distances for Transit Losses'!$C$69),HX21-HY21-FA21),0) -> 0 | DB21: =-DA21*0.5/100*'Distances for Transit Losses'!C$69 -> 0 | DC21: =IF(AND(GM21-GN21-IA21-FC21-JO21>0,ET21="no"),MIN(-SUM(CV21:DB21)/(1-0.5/100*'Distances for Transit Losses'!$C$71),GM21-GN21-IA21-FC21-JO21),0) -> 0 | DD21: =--DC21*0.5/100*'Distances for Transit Losses'!$C$71 -> 0 | DE21: 1.667196959 | DF21: =-(IF(DK21="Yes",((0.107*(INDEX('New Cache Credit'!$AR$70:$BC$95,MATCH($B$2,'New Cache Credit'!$AQ$70:$AQ$95,0),MATCH($A21,'New Cache Credit'!$AR$70:$BC$70,0))/$QE21))+(0.333*(INDEX('New Cache Credit'!$BG$70:$BR$95,MATCH($B$2,'New Cache Credit'!$BF$70:$BF$95,0),MATCH($A21,'New Cache Credit'!$BG$70:$BR$70,0))/$QE21)))/1.9835,0)) -> 0 | DG21: ='Joint Aug Station Deliveries'!J21 -> 0 | DH21: =-(DG21*0.5/100*'Distances for Transit Losses'!$C$154) -> 0 | DI21: 0 | DK21: no | DM21: 0 | DN21: 0 | DO21: =-(DN21*0.5/100*'Distances for Transit Losses'!$C$156) -> 0 | DP21: =-(IF(DZ21="Yes",((0.75*(INDEX('New Cache Credit'!$AR$70:$BC$95,MATCH($B$2,'New Cache Credit'!$AQ$70:$AQ$95,0),MATCH($A21,'New Cache Credit'!$AR$70:$BC$70,0))/$QE21))+(0.222*(INDEX('New Cache Credit'!$BG$70:$BR$95,MATCH($B$2,'New Cache Credit'!$BF$70:$BF$95,0),MATCH($A21,'New Cache Credit'!$BG$70:$BR$70,0))/$QE21)))/1.9835,0)) -> 0 | DQ21: =-(IF(DZ21="yes",(0.25*INDEX('GIC Credit'!$B$71:$M$96,MATCH($B$2,'GIC Credit'!$A$71:$A$96,0),MATCH($A21,'GIC Credit'!$B$71:$M$71,0))/$QE21)/1.9835,0)) -> 0 | DR21: 0 | DS21: 0 | DT21: 0 | DU21: =-(DT21*0.5/100*'Distances for Transit Losses'!$C$158) -> 0 | DV21: 0 | DW21: =-(DV21*0.5/100*('Distances for Transit Losses'!$C$160+'Distances for Transit Losses'!$C$170)) -> 0 | DX21: 0 | DZ21: no | EA21: 0 | EB21: =-(IF($N21<99999.99999,(INDEX('New Cache Credit'!$W$70:$AH$95,MATCH($B$2,'New Cache Credit'!$V$70:$V$95,0),MATCH($A21,'New Cache Credit'!$W$70:$AH$70,0))/$QE21)/1.9835,0))-DF21-DP21 -> -0.1432771848 | EC21: =-(IF($N21<99999.99999,(INDEX('GIC Credit'!$B$71:$M$96,MATCH($B$2,'GIC Credit'!$A$71:$A$96,0),MATCH($A21,'GIC Credit'!$B$71:$M$71,0))/$QE21)/1.9835,0))-DQ21 -> -0.000766 | ED21: 0 | EE21: =-(ED21*0.5/100*('Distances for Transit Losses'!$C$162+'Distances for Transit Losses'!$C$168)) -> 0 | EG21: =IF(EF21="yes",'Joint Aug Station Deliveries'!Q21,0) -> 0 | EH21: =-(EG21*0.5/100*('Distances for Transit Losses'!$C$164+'Distances for Transit Losses'!$C$166+'Distances for Transit Losses'!$C$168)) -> 0 | EI21: =IF(EF21="Yes",'Joint Aug Station Deliveries'!T21,0) -> 0 | EJ21: =-(EI21*0.5/100*('Distances for Transit Losses'!$C$166+'Distances for Transit Losses'!$C$168)) -> 0 | EK21: 0 | EL21: =-(EK21*0.5/100*'Distances for Transit Losses'!$C$172) -> 0 | EM21: -0.1440431848 | EN21: 0 | EO21: 0 | EP21: 0 | EQ21: =-(IF(N21<99999.99999,INDEX('Hist RF to SPR'!$AF$6:$AQ$30,MATCH($B$2,'Hist RF to SPR'!$AE$6:$AE$30,0),MATCH($A21,'Hist RF to SPR'!$AF$5:$AQ$5,0))/QE21/1.9835,0)) -> -0.0002698345146 | ER21: -0.1440431848 | ES21: -0.1443130193 | ET21: no | EU21: 0 | EV21: 0 | EW21: 0 | EY21: 0 | EZ21: 0 | FA21: =IF(AND(HX21-HY21-GK21>0,HS21="no"),MIN(-(ES21+EY21+EZ21)/(1-0.5/100*'Distances for Transit Losses'!$C$73),HX21-HY21-GK21),0) -> 0 | FB21: =-FA21*0.5/100*'Distances for Transit Losses'!$C$73 -> 0 | FC21: =IF(AND(GM21-GN21-IA21>0,GB21="no"),MIN(-(ES21+EY21+EZ21+FA21+FB21)/(1-0.5/100*'Distances for Transit Losses'!$C$75),GM21-GN21-IA21),0) -> 0 | FD21: =-FC21*0.5/100*'Distances for Transit Losses'!$C$79 -> 0 | FE21: 0.1443130193 | FF21: Haren recharge | FG21: 0 | FI21: =IF(AND(FH20="no",(SUM('Joint Aug Station Deliveries'!$AA$9:'Joint Aug Station Deliveries'!$AA20)+'Joint Aug Station Deliveries'!$AA21)*1.9835>'New Cache Credit'!$BY$33,(SUM('Joint Aug Station Deliveries'!$AA$9:'Joint Aug Station Deliveries'!$AA20)+'Joint Aug Station Deliveries'!$AA21)*1.9835>'New Cache Credit'!$CH$33),0,'Joint Aug Station Deliveries'!S21) -> 0 | FJ21: =-(FI21*0.5/100*'Distances for Transit Losses'!$C$150) -> 0 | FL21: =IF(AND(FK20="no",(SUM('Joint Aug Station Deliveries'!$AA$9:'Joint Aug Station Deliveries'!$AA20)+'Joint Aug Station Deliveries'!$AA21)*1.9835>'New Cache Credit'!$BY$33,(SUM('Joint Aug Station Deliveries'!$AA$9:'Joint Aug Station Deliveries'!$AA20)+'Joint Aug Station Deliveries'!$AA21)*1.9835>'New Cache Credit'!$CH$33),0,'Joint Aug Station Deliveries'!V21) -> 0 | FM21: =-(FL21*0.5/100*'Distances for Transit Losses'!$C$142) -> 0 | FN21: =IF(AND(FK20="no",(SUM('Joint Aug Station Deliveries'!$AA$9:'Joint Aug Station Deliveries'!$AA20)+'Joint Aug Station Deliveries'!$AA21)*1.9835>'New Cache Credit'!$BY$33,(SUM('Joint Aug Station Deliveries'!$AA$9:'Joint Aug Station Deliveries'!$AA20)+'Joint Aug Station Deliveries'!$AA21)*1.9835>'New Cache Credit'!$CH$33),0,'Joint Aug Station Deliveries'!Y21) -> 0 | FO21: =-(FN21*0.5/100*'Distances for Transit Losses'!$C$148) -> 0 | FP21: 0 | FQ21: 0 | FR21: 0 | FS21: 0 | FT21: =-(IF(N21<99999.99999,INDEX('Hist RF to SPR'!$Q$6:$AB$30,MATCH($B$2,'Hist RF to SPR'!$P$6:$P$30,0),MATCH($A21,'Hist RF to SPR'!$Q$5:$AB$5,0))/QE21/1.9835,0)) -> -0.001979416988 | FU21: =-(IF($N21<99999.99999,(INDEX('FIDCO Credit'!$X$42:$AI$66,MATCH($B$2,'FIDCO Credit'!$W$42:$W$66,0),MATCH($A21,'FIDCO Credit'!$X$41:$AI$41,0))/$QE21)/1.9835,0)) -> -0.01755533333 | FV21: =-(IF($N21<99999.99999,(INDEX('Western Credit'!$W$72:$AH$96,MATCH($B$2,'Western Credit'!$V$72:$V$96,0),MATCH($A21,'Western Credit'!$W$71:$AH$71,0))/$QE21)/1.9835,0)) -> 0 | FW21: -0.01953475032 | FX21: 0 | FY21: =VLOOKUP($B21,'ECCV Haren Pond S.P. Acrtns'!$B$7:$G$306,6)/$QE21/1.9835 -> 1.341957985 | FZ21: 0.01953475032 | GA21: 0.3163418498 | GB21: no | GC21: no | GD21: 0 | GE21: 0 | GF21: 0 | GH21: 0 | GI21: 0 | GJ21: 0 | GK21: =IF(AND(HX21-HY21>0,HS21="no"),MIN(-GJ21/(1-0.5/100*'Distances for Transit Losses'!$C$77),HX21-HY21),0) -> 0 | GL21: =-GK21*0.5/100*'Distances for Transit Losses'!$C$77 -> 0 | GM21: 0 | GN21: =IF(GM21>0,MIN(-(GJ21+GK21+GL21)/(1-0.5/100*'Distances for Transit Losses'!$C$79),GM21),0) -> 0 | GO21: =-GN21*0.5/100*'Distances for Transit Losses'!$C$79 -> 0 | GP21: 0 | GR21: 0 | GS21: ='Joint Aug Station Deliveries'!AJ21 -> 0 | GT21: =GS21*'Western Credit'!$Z$36 -> 0 | GU21: ='Joint Aug Station Deliveries'!AD21 -> 0 | GV21: 0 | GW21: =MAX(0,(JJ21+JK21))/(1-0.5/100*'Distances for Transit Losses'!$C$55) -> 0 | GX21: =MAX(0,(JL21+JM21)/(1-0.5/100*'Distances for Transit Losses'!$C$53)) -> 0 | GY21: 0 | GZ21: 0 | HA21: 0 | HB21: =-HA21*0.5/100*'Distances for Transit Losses'!$C$34 -> 0 | HC21: 0 | HD21: 0 | HE21: 0 | HF21: 0 | HG21: 0 | HH21: 0 | HI21: 0 | HJ21: 0 | HK21: 0 | HL21: 0 | HM21: 0 | HN21: 0 | HO21: =FY21-FZ21-GA21+GT21+GV21-SUM(GW21:GZ21)-HD21-HE21-HG21-HH21-(BZ21/(1-0.5/100*'Distances for Transit Losses'!$C$71)) -> 0.8727371962 | HP21: 0 | HQ21: 0 | HR21: =-(IF(F21<99999.99999,INDEX('Hist RF to SPR'!$B$6:$M$30,MATCH($B$2,'Hist RF to SPR'!$A$6:$A$30,0),MATCH($A21,'Hist RF to SPR'!$B$5:$M$5,0))/QE21/1.9835,0)) -> -0.01871053104 | HS21: no | HT21: 0 | HU21: 0 | HV21: 0.01871053104 | HW21: 0 | HX21: 0 | HY21: =IF(HX21>0,MIN(-HW21/(1-0.5/100*'Distances for Transit Losses'!$C$81),HX21),0) -> 0 | HZ21: =-HY21*0.5/100*'Distances for Transit Losses'!$C$81 -> 0 | IA21: 0 | IB21: 0 | ID21: 0 | IE21: 0 | IF21: 0 | IG21: 0 | IH21: 0 | II21: 0 | IJ21: 0 | IK21: 0 | IL21: 0 | IM21: 0 | IN21: =-(IF(N21<99999.99999,(VLOOKUP(B21,'ECCV Upper Dpln'!$B$7:$BD$306,55))/QE21/1.9835,0)) -> -4.080257262 | IO21: =-(IF(N21<99999.99999,INDEX('Hist RF abv Milton'!$B$6:$M$30,MATCH($B$2,'Hist RF abv Milton'!$A$6:$A$30,0),MATCH($A21,'Hist RF abv Milton'!$B$5:$M$5,0))/QE21/1.9835,0)) -> -0.06724247917 | IP21: =-(VLOOKUP(B21,'Unlagged Hist RF'!$A$9:$AN$308,36)/QE21/1.9835) -> 0 | IQ21: =(VLOOKUP($B21,'ECCV Beebe Pond Acrtns'!$B$7:$BI$1206,41)+VLOOKUP($B21,'ECCV Canal Acrtns'!$B$7:$AL$1206,22)+VLOOKUP($B21,'2003 Beebe Pond Acrtns'!$B$7:$BI$1206,41)+VLOOKUP($B21,'2003 Canal Acrtns'!$B$7:$AL$1206,22))/$QE21/1.9835 -> 1.053799341 | IR21: 0 | IS21: 0 | IT21: 0 | IU21: 1.053799341 | IV21: 0 | IW21: no | IX21: 0 | IY21: 0.06724247917 | IZ21: 1.59995448 | JA21: 0 | JB21: 1.288820134 | JC21: -0.1376833073 | JD21: 0 | JE21: 1.6625 | JF21: =-(JE21*0.5/100*'Distances for Transit Losses'!$C$6) -> -0.02244375 | JG21: 0 | JH21: 0 | JI21: 0 | JJ21: =MIN(-(JD21+JG21),GV21-GV21*0.5/100*'Distances for Transit Losses'!$C$55) -> 0 | JK21: =MAX(0,MIN(-(JC21+JE21+JF21+JI21),GV21-GV21*0.5/100*'Distances for Transit Losses'!$C$55-JJ21/(1-0.5/100*'Distances for Transit Losses'!$C$55))) -> 0 | JL21: =MIN(-(JD21+JJ21),GT21-GT21*0.5/100*'Distances for Transit Losses'!$C$53) -> 0 | JM21: =MAX(0,MIN(-(JC21+JE21+JF21+JK21),GT21-GT21*0.5/100*'Distances for Transit Losses'!$C$53-JL21/(1-0.5/100*'Distances for Transit Losses'!$C$53))) -> 0 | JN21: =IF(ET21="no",MIN(-(MIN(0,JC21+JE21+JF21+JK21+JM21))+BZ21/(1-0.5/100*'Distances for Transit Losses'!$C$38)+FE21/(1-0.5/100*'Distances for Transit Losses'!$C$42)+KE21/(1-0.5/100*'Distances for Transit Losses'!$C$36),(FY21-FZ21)-(FY21-FZ21)*0.5/100*'Distances for Transit Losses'!$C$53),0) -> 0.3163418498 | JO21: =IF(AND(GM21-GN21-IA21-FC21>0,ET21="no"),MIN(-(JC21+JE21+JF21+JI21+JK21+JM21+JN21)/(1-0.5/100*'Distances for Transit Losses'!$C$59),GM21-GN21-IA21-FC21),0) -> 0 | JP21: =JO21*0.5/100*'Distances for Transit Losses'!$D$59 -> 0 | JQ21: 0 | JS21: 1.818714792 | JT21: 0 | JU21: 0 | JV21: 0 | JW21: 0 | JX21: =-(IF(N21<99999.99999,INDEX('Hist RF blw Milton'!$B$6:$M$30,MATCH($B$2,'Hist RF blw Milton'!$A$6:$A$30,0),MATCH($A21,'Hist RF blw Milton'!$B$5:$M$5,0))/QE21/1.9835,0)) -> -0.03247642669 | JY21: no | JZ21: 0 | KA21: 0 | KB21: -0.03247642669 | KC21: 0 | KD21: 0 | KE21: 0.03247642669 | KF21: Haren | KG21: 0 | KH21: 0 | KI21: =-(IF(N21<99999.99999,INDEX('Hist RF to Box Elder'!$B$6:$M$30,MATCH($B$2,'Hist RF to Box Elder'!$A$6:$A$30,0),MATCH($A21,'Hist RF to Box Elder'!$B$5:$M$5,0))/QE21/1.9835,0)) -> -0.01513304456 | KJ21: =(VLOOKUP($B21,'ECCV Beebe Pond Acrtns'!$B$7:$BI$1206,54)+VLOOKUP($B21,'ECCV Canal Acrtns'!$B$7:$AL$1206,34)+VLOOKUP($B21,'2003 Beebe Pond Acrtns'!$B$7:$AL$1206,34)+VLOOKUP($B21,'2003 Canal Acrtns'!$B$7:$AL$1206,34)+VLOOKUP($B21,'84CW090 Beebe Pond Acrtns'!$B$7:$AL$1206,34)+VLOOKUP($B21,'84CW090 Canal Acrtns'!$B$7:$AL$1206,34))/$QE21/1.9835 -> 0.06977267982 | KK21: 0.01513304456 | KL21: 0 | KM21: 0 | KN21: 0 | KP21: -7.024177132 | KQ21: 5.966214534 | KR21: 0.03247642669 | KS21: 0.01513304456 | KT21: 0.01871053104 | KU21: 0.01953475032 | KV21: 0.1443130193 | KW21: 0 | KX21: 2.57732376 | KY21: 0.06918585807 | KZ21: 8.842891924 | LA21: 1.818714792 | LB21: 0 | LC21: 0 | LD21: 0 | LK21: 0 | LL21: 0 | LM21: 0 | LO21: 0 | LP21: 0 | LQ21: 0 | LR21: 0 | LS21: 0 | LT21: 0 | LU21: 0 | LV21: 0 | LW21: 0 | LX21: 0 | LY21: 0 | LZ21: 0 | MB21: 0 | MC21: 0 | MD21: 0 | ME21: 0 | MF21: 0 | MG21: 0 | MH21: 0 | MI21: 0 | MJ21: 0 | MK21: 0 | ML21: 0 | MN21: 0 | MO21: 0 | MP21: 0 | MQ21: 0 | MR21: 0 | MS21: 0 | MT21: 0 | MU21: 0 | MV21: 0 | MW21: 0 | MX21: 0 | ND21: 0 | NE21: 0 | NF21: 0 | NG21: 0 | NH21: 0 | NI21: 0 | NJ21: 0 | NK21: 0 | NL21: 0 | NN21: 0 | NO21: 0 | NP21: 0 | NQ21: 0 | NR21: 0 | NS21: 0 | NT21: 0 | NU21: 0 | NV21: 0 | NY21: 0 | NZ21: 0 | OA21: 0 | OB21: 0 | OC21: 0 | OD21: 0 | OE21: 0 | OH21: 0 | OI21: 0 | OL21: 0 | OM21: 0 | ON21: 0 | OQ21: 0 | OR21: 0 | OS21: 0 | OT21: 0 | OU21: 0 | OV21: 0 | OW21: 0 | OY21: 0 | OZ21: 0 | PA21: 0 | PB21: 0 | PC21: 0 | PD21: 309.6 | PF21: 0 | PG21: 0 | PH21: 0 | PI21: 0 | PJ21: 0 | PK21: 0 | PL21: 0 | PM21: 0 | PN21: 0 | PO21: 0 | PP21: 0 | PQ21: 0 | PR21: 0 | PS21: 0 | PT21: 0 | PU21: 0 | PV21: 0 | PW21: 0 | PX21: 0 | PY21: 0 | PZ21: 0 | QB21: 1.6625 | QC21: 0 | QE21: =VLOOKUP(A21,'Control Sheet'!$G$9:$H$20,2) -> 30
A22: Apr | B22: 2015-04-14 | C22: Burlington | D22: 1885-11-20 | E22: Western | F22: 13108 | K22: Riverside | L22: 1907-05-31 | M22: Upper Platte and Beaver | N22: 20969 | S22: 0 | T22: 0 | U22: 0 | V22: 0 | X22: 0 | Y22: =('NFC Well Pumping'!$L20+'NFC Well Pumping'!$L57+'NFC Well Pumping'!$L93+'NFC Well Pumping'!$L129)/1.9835 -> 3.180903634 | Z22: ='88CW264(B) Pumping'!$E20/1.9835+'88CW264(B) Pumping'!$E56/1.9835+'88CW264(B) Pumping'!E96/1.9835+'88CW264(B) Pumping'!E132/1.9835+'88CW264(B) Pumping'!F172/1.9835+'88CW264(B) Pumping'!E208/1.9835 -> 0.009639106611 | AA22: 0 | AB22: =('United No. 2 Well Pumping'!G21+'United No. 2 Well Pumping'!G57+'United No. 2 Well Pumping'!G93)/1.9835 -> 0 | AC22: =('United No. 2 Well Pumping'!F21+'United No. 2 Well Pumping'!F57+'United No. 2 Well Pumping'!F93)/1.9835 -> 0 | AD22: 0 | AF22: 3.190542741 | AG22: =AC22+U22+'United Res'!AA21+'United Res'!AQ21+'Gilcrest Res'!D21 -> 0 | AH22: 100 | AI22: =-(IF($N22=99999.99999,0,VLOOKUP($B22,'NFC Well Dplns-URF'!B$7:$AB$306,27))/$QE22/1.9835) -> -5.888111295e-05 | AJ22: 0 | AL22: =(VLOOKUP($B22,'ECCV 70R Pond Acrtns'!$B$7:$AI$1206,34)+VLOOKUP($B22,'2003 70R Pond Acrtns'!$B$7:$AI$1206,34)+VLOOKUP($B22,'ECCV 70R Canal Acrtns'!$B$7:$AI$1206,27)+VLOOKUP($B22,'2003 70R Canal Acrtns'!$B$7:$AI$1206,27))/$QE22/1.9835 -> 0 | AM22: -5.888111295e-05 | AN22: =-(IF($N22=99999.99999,0,VLOOKUP($B22,'NFC Well Dplns-SDF'!$B$7:$Z$306,25)+VLOOKUP($B22,'NFC Well Dplns-URF'!B$7:$AB$306,20))/$QE22/1.9835) -> -0.06918585807 | AO22: 0.002486497969 | AP22: 0.0666993601 | AQ22: ECCV Riverside Credits | AR22: =-AV22*'Weldon Credit'!$Z$36 -> -1.0642 | AS22: =0.4*(INDEX('Riverside Pond Accrtns'!$B$6:$M$36,MATCH($B$2,'Riverside Pond Accrtns'!$A$6:$A$36,0),MATCH('ECCV Daily Replacement Summary'!A22,'Riverside Pond Accrtns'!$B$5:$M$5,0))/QE22)/1.9835 -> 0.9942021679 | AT22: =(44/640)*(INDEX('Weldon Valley Accrtns (02CW377)'!$B$6:$M$30,MATCH($B$2,'Weldon Valley Accrtns (02CW377)'!$A$6:$A$30,0),MATCH(A22,'Weldon Valley Accrtns (02CW377)'!$B$5:$M$5,0))/QE22)/1.9835 -> 0.3613173263 | AU22: =(VLOOKUP($B22,'ECCV 70R Pond Acrtns'!$B$7:$AI$1206,25)+VLOOKUP($B22,'ECCV 70R Canal Acrtns'!$B$7:$AI$1206,20)+VLOOKUP($B22,'2003 70R Pond Acrtns'!$B$7:$AI$1206,25)+VLOOKUP($B22,'2003 70R Canal Acrtns'!$B$7:$AI$1206,20))/$QE22/1.9835 -> 0 | AV22: ='Joint Aug Station Deliveries'!G22 -> 1.7 | AW22: 0.6358 | AX22: 1.0642 | AY22: =MIN(-($AR22+AX22),AS22-AS22*0.5/100*'Distances for Transit Losses'!$C$51) -> 0 | AZ22: 0 | BA22: =MIN(-($AR22+AX22+AY22+AZ22),AU22-AU22*0.5/100*'Distances for Transit Losses'!$C$51) -> 0 | BB22: =-((AY22+BA22)/(1-0.5/100*'Distances for Transit Losses'!$C$51)-(AY22+BA22)) -> 0 | BC22: =IF(AND(IF22-IG22-FI22-DI22>0,IA22="no"),MIN(-(AR22+AX22+AY22+AZ22+BA22+BB22)/(1-0.5/100*'Distances for Transit Losses'!$C$65),IF22-IG22-FI22-DI22),0) -> 0 | BD22: =--BC22*0.5/100*'Distances for Transit Losses'!C$65 -> 0 | BE22: =IF(AND(GM22-GN22-IA22-FC22-JO22-DC22>0,ET22="no"),MIN(-(AR22+SUM(AX22:BD22))/(1-0.5/100*'Distances for Transit Losses'!$C$71),GM22-GN22-IA22-FC22-JO22-DC22),0) -> 0 | BF22: =--BE22*0.5/100*'Distances for Transit Losses'!$C$67 -> 0 | BG22: 0 | BI22: no | BJ22: no | BK22: 0 | BL22: 0 | BM22: 0 | BO22: =IF($BJ22="No",MIN(-CV22,AS22-AY22/(1-0.5/100*'Distances for Transit Losses'!$C$51)),0) -> 0 | BP22: =IF($BJ22="No",MIN(-CV22+BO22,AU22-BA22/(1-0.5/100*'Distances for Transit Losses'!$C$51)),0) -> 0 | BQ22: 0 | BR22: 0 | BS22: 0 | BT22: 1.924620134 | BU22: 1.924620134 | BV22: =-(IF($N22=99999.99999,0,VLOOKUP($B22,'NFC Well Dplns-SDF'!$B$7:$Z$306,16)+VLOOKUP($B22,'NFC Well Dplns-URF'!$B$7:$AB$306,13))/$QE22/1.9835) -> -0.334881613 | BW22: =-(IF($N22>=99999,0,'88CW264(B) Pumping'!$E20/1.9835)+IF($N22>=99999,0,'88CW264(B) Pumping'!$E56/1.9835)+IF($N22>=99999,0,'88CW264(B) Pumping'!$E96/1.9835)+IF($N22>=99999,0,'88CW264(B) Pumping'!$E132/1.9835)+IF($N22>=51134.50919,0,'88CW264(B) Pumping'!$F172/1.9835)+IF($N22>=53406,0,'88CW264(B) Pumping'!$E208/1.9835)) -> -0.009639106611 | BX22: -0.3445207196 | BY22: 0.2318448797 | BZ22: 0.1126758398 | CA22: Haren recharge | CB22: =-(IF($N22=99999.99999,0,VLOOKUP($B22,'United No. 2 Dplns'!$B$7:$X$676,13)/1.9835)) -> 0 | CC22: =CB22+(-(INDEX('Pre 1995 Net Accretions'!$B$6:$M$105,MATCH($B$2,'Pre 1995 Net Accretions'!$A$6:$A$105,0),MATCH($A22,'Pre 1995 Net Accretions'!$B$5:$M$5,0))/$QE22/1.9835)) -> 0.02919695922 | CD22: =-(IF(N22<99999.99999,(INDEX('70 Ranch RF Obligation'!$B$6:$M$30,MATCH($B$2,'70 Ranch RF Obligation'!$A$6:$A$30,0),MATCH('ECCV Daily Replacement Summary'!A22,'70 Ranch RF Obligation'!$B$5:$M$5,0))/QE22)/1.9835,0))-CG22*(1-'L. Latham Credit'!$E$35) -> -2.088 | CE22: -2.058803041 | CF22: =(VLOOKUP($B22,'ECCV 70R Pond Acrtns'!$B$7:$AI$1206,16)+VLOOKUP($B22,'ECCV 70R Canal Acrtns'!$B$7:$AI$1206,13)+VLOOKUP($B22,'2003 70R Pond Acrtns'!$B$7:$AI$1206,16)+VLOOKUP($B22,'2003 70R Canal Acrtns'!$B$7:$AI$1206,13))/$QE22/1.9835 -> 0 | CG22: 3.6 | CH22: 1.541196959 | CI22: 2.058803041 | CJ22: 0 | CK22: 0 | CL22: 0 | CM22: 0 | CO22: 1.541196959 | CP22: 0 | CQ22: 0 | CR22: =-CQ22*0.5/100*'Distances for Transit Losses'!$C$44 -> 0 | CS22: 0 | CT22: 0 | CU22: 0 | CV22: 0 | CW22: 0 | CX22: 0 | CY22: 0 | CZ22: =('NFC Well Pumping'!I20+'NFC Well Pumping'!I57+'NFC Well Pumping'!I93)/1.9835 -> 0 | DA22: =IF(AND(HX22-HY22-FA22>0,HS22="no"),MIN(-SUM(CV22:CZ22)/(1-0.5/100*'Distances for Transit Losses'!$C$69),HX22-HY22-FA22),0) -> 0 | DB22: =-DA22*0.5/100*'Distances for Transit Losses'!C$69 -> 0 | DC22: =IF(AND(GM22-GN22-IA22-FC22-JO22>0,ET22="no"),MIN(-SUM(CV22:DB22)/(1-0.5/100*'Distances for Transit Losses'!$C$71),GM22-GN22-IA22-FC22-JO22),0) -> 0 | DD22: =--DC22*0.5/100*'Distances for Transit Losses'!$C$71 -> 0 | DE22: 1.541196959 | DF22: =-(IF(DK22="Yes",((0.107*(INDEX('New Cache Credit'!$AR$70:$BC$95,MATCH($B$2,'New Cache Credit'!$AQ$70:$AQ$95,0),MATCH($A22,'New Cache Credit'!$AR$70:$BC$70,0))/$QE22))+(0.333*(INDEX('New Cache Credit'!$BG$70:$BR$95,MATCH($B$2,'New Cache Credit'!$BF$70:$BF$95,0),MATCH($A22,'New Cache Credit'!$BG$70:$BR$70,0))/$QE22)))/1.9835,0)) -> 0 | DG22: ='Joint Aug Station Deliveries'!J22 -> 0 | DH22: =-(DG22*0.5/100*'Distances for Transit Losses'!$C$154) -> 0 | DI22: 0 | DK22: no | DM22: 0 | DN22: 0 | DO22: =-(DN22*0.5/100*'Distances for Transit Losses'!$C$156) -> 0 | DP22: =-(IF(DZ22="Yes",((0.75*(INDEX('New Cache Credit'!$AR$70:$BC$95,MATCH($B$2,'New Cache Credit'!$AQ$70:$AQ$95,0),MATCH($A22,'New Cache Credit'!$AR$70:$BC$70,0))/$QE22))+(0.222*(INDEX('New Cache Credit'!$BG$70:$BR$95,MATCH($B$2,'New Cache Credit'!$BF$70:$BF$95,0),MATCH($A22,'New Cache Credit'!$BG$70:$BR$70,0))/$QE22)))/1.9835,0)) -> 0 | DQ22: =-(IF(DZ22="yes",(0.25*INDEX('GIC Credit'!$B$71:$M$96,MATCH($B$2,'GIC Credit'!$A$71:$A$96,0),MATCH($A22,'GIC Credit'!$B$71:$M$71,0))/$QE22)/1.9835,0)) -> 0 | DR22: 0 | DS22: 0 | DT22: 0 | DU22: =-(DT22*0.5/100*'Distances for Transit Losses'!$C$158) -> 0 | DV22: 0 | DW22: =-(DV22*0.5/100*('Distances for Transit Losses'!$C$160+'Distances for Transit Losses'!$C$170)) -> 0 | DX22: 0 | DZ22: no | EA22: 0 | EB22: =-(IF($N22<99999.99999,(INDEX('New Cache Credit'!$W$70:$AH$95,MATCH($B$2,'New Cache Credit'!$V$70:$V$95,0),MATCH($A22,'New Cache Credit'!$W$70:$AH$70,0))/$QE22)/1.9835,0))-DF22-DP22 -> -0.1432771848 | EC22: =-(IF($N22<99999.99999,(INDEX('GIC Credit'!$B$71:$M$96,MATCH($B$2,'GIC Credit'!$A$71:$A$96,0),MATCH($A22,'GIC Credit'!$B$71:$M$71,0))/$QE22)/1.9835,0))-DQ22 -> -0.000766 | ED22: 0 | EE22: =-(ED22*0.5/100*('Distances for Transit Losses'!$C$162+'Distances for Transit Losses'!$C$168)) -> 0 | EG22: =IF(EF22="yes",'Joint Aug Station Deliveries'!Q22,0) -> 0 | EH22: =-(EG22*0.5/100*('Distances for Transit Losses'!$C$164+'Distances for Transit Losses'!$C$166+'Distances for Transit Losses'!$C$168)) -> 0 | EI22: =IF(EF22="Yes",'Joint Aug Station Deliveries'!T22,0) -> 0 | EJ22: =-(EI22*0.5/100*('Distances for Transit Losses'!$C$166+'Distances for Transit Losses'!$C$168)) -> 0 | EK22: 0 | EL22: =-(EK22*0.5/100*'Distances for Transit Losses'!$C$172) -> 0 | EM22: -0.1440431848 | EN22: 0 | EO22: 0 | EP22: 0 | EQ22: =-(IF(N22<99999.99999,INDEX('Hist RF to SPR'!$AF$6:$AQ$30,MATCH($B$2,'Hist RF to SPR'!$AE$6:$AE$30,0),MATCH($A22,'Hist RF to SPR'!$AF$5:$AQ$5,0))/QE22/1.9835,0)) -> -0.0002698345146 | ER22: -0.1440431848 | ES22: -0.1443130193 | ET22: no | EU22: 0 | EV22: 0 | EW22: 0 | EY22: 0 | EZ22: 0.1443130193 | FA22: =IF(AND(HX22-HY22-GK22>0,HS22="no"),MIN(-(ES22+EY22+EZ22)/(1-0.5/100*'Distances for Transit Losses'!$C$73),HX22-HY22-GK22),0) -> 0 | FB22: =-FA22*0.5/100*'Distances for Transit Losses'!$C$73 -> 0 | FC22: =IF(AND(GM22-GN22-IA22>0,GB22="no"),MIN(-(ES22+EY22+EZ22+FA22+FB22)/(1-0.5/100*'Distances for Transit Losses'!$C$75),GM22-GN22-IA22),0) -> 0 | FD22: =-FC22*0.5/100*'Distances for Transit Losses'!$C$79 -> 0 | FE22: 0 | FF22: Haren recharge | FG22: 0 | FI22: =IF(AND(FH21="no",(SUM('Joint Aug Station Deliveries'!$AA$9:'Joint Aug Station Deliveries'!$AA21)+'Joint Aug Station Deliveries'!$AA22)*1.9835>'New Cache Credit'!$BY$33,(SUM('Joint Aug Station Deliveries'!$AA$9:'Joint Aug Station Deliveries'!$AA21)+'Joint Aug Station Deliveries'!$AA22)*1.9835>'New Cache Credit'!$CH$33),0,'Joint Aug Station Deliveries'!S22) -> 0 | FJ22: =-(FI22*0.5/100*'Distances for Transit Losses'!$C$150) -> 0 | FL22: =IF(AND(FK21="no",(SUM('Joint Aug Station Deliveries'!$AA$9:'Joint Aug Station Deliveries'!$AA21)+'Joint Aug Station Deliveries'!$AA22)*1.9835>'New Cache Credit'!$BY$33,(SUM('Joint Aug Station Deliveries'!$AA$9:'Joint Aug Station Deliveries'!$AA21)+'Joint Aug Station Deliveries'!$AA22)*1.9835>'New Cache Credit'!$CH$33),0,'Joint Aug Station Deliveries'!V22) -> 0 | FM22: =-(FL22*0.5/100*'Distances for Transit Losses'!$C$142) -> 0 | FN22: =IF(AND(FK21="no",(SUM('Joint Aug Station Deliveries'!$AA$9:'Joint Aug Station Deliveries'!$AA21)+'Joint Aug Station Deliveries'!$AA22)*1.9835>'New Cache Credit'!$BY$33,(SUM('Joint Aug Station Deliveries'!$AA$9:'Joint Aug Station Deliveries'!$AA21)+'Joint Aug Station Deliveries'!$AA22)*1.9835>'New Cache Credit'!$CH$33),0,'Joint Aug Station Deliveries'!Y22) -> 0 | FO22: =-(FN22*0.5/100*'Distances for Transit Losses'!$C$148) -> 0 | FP22: 0 | FQ22: 0 | FR22: 0 | FS22: 0.1953272467 | FT22: =-(IF(N22<99999.99999,INDEX('Hist RF to SPR'!$Q$6:$AB$30,MATCH($B$2,'Hist RF to SPR'!$P$6:$P$30,0),MATCH($A22,'Hist RF to SPR'!$Q$5:$AB$5,0))/QE22/1.9835,0)) -> -0.001979416988 | FU22: =-(IF($N22<99999.99999,(INDEX('FIDCO Credit'!$X$42:$AI$66,MATCH($B$2,'FIDCO Credit'!$W$42:$W$66,0),MATCH($A22,'FIDCO Credit'!$X$41:$AI$41,0))/$QE22)/1.9835,0)) -> -0.01755533333 | FV22: =-(IF($N22<99999.99999,(INDEX('Western Credit'!$W$72:$AH$96,MATCH($B$2,'Western Credit'!$V$72:$V$96,0),MATCH($A22,'Western Credit'!$W$71:$AH$71,0))/$QE22)/1.9835,0)) -> 0 | FW22: -0.01953475032 | FX22: 0 | FY22: =VLOOKUP($B22,'ECCV Haren Pond S.P. Acrtns'!$B$7:$G$306,6)/$QE22/1.9835 -> 1.341957985 | FZ22: 0.01953475032 | GA22: 0.1269586928 | GB22: no | GC22: yes | GD22: 0 | GE22: 0 | GF22: 0 | GH22: 0 | GI22: 0 | GJ22: 0 | GK22: =IF(AND(HX22-HY22>0,HS22="no"),MIN(-GJ22/(1-0.5/100*'Distances for Transit Losses'!$C$77),HX22-HY22),0) -> 0 | GL22: =-GK22*0.5/100*'Distances for Transit Losses'!$C$77 -> 0 | GM22: 0 | GN22: =IF(GM22>0,MIN(-(GJ22+GK22+GL22)/(1-0.5/100*'Distances for Transit Losses'!$C$79),GM22),0) -> 0 | GO22: =-GN22*0.5/100*'Distances for Transit Losses'!$C$79 -> 0 | GP22: 0 | GR22: 0 | GS22: ='Joint Aug Station Deliveries'!AJ22 -> 0 | GT22: =GS22*'Western Credit'!$Z$36 -> 0 | GU22: ='Joint Aug Station Deliveries'!AD22 -> 0 | GV22: 0 | GW22: =MAX(0,(JJ22+JK22))/(1-0.5/100*'Distances for Transit Losses'!$C$55) -> 0 | GX22: =MAX(0,(JL22+JM22)/(1-0.5/100*'Distances for Transit Losses'!$C$53)) -> 0 | GY22: 0 | GZ22: 0 | HA22: 0 | HB22: =-HA22*0.5/100*'Distances for Transit Losses'!$C$34 -> 0 | HC22: 0 | HD22: 0 | HE22: 0 | HF22: 0 | HG22: 0 | HH22: 0 | HI22: 0.1953272467 | HJ22: 0 | HK22: 0 | HL22: 0 | HM22: 0 | HN22: 0 | HO22: =FY22-FZ22-GA22+GT22+GV22-SUM(GW22:GZ22)-HD22-HE22-HG22-HH22 -> 1.195464542 | HP22: 0 | HQ22: 0.1953272467 | HR22: =-(IF(F22<99999.99999,INDEX('Hist RF to SPR'!$B$6:$M$30,MATCH($B$2,'Hist RF to SPR'!$A$6:$A$30,0),MATCH($A22,'Hist RF to SPR'!$B$5:$M$5,0))/QE22/1.9835,0)) -> -0.01871053104 | HS22: yes | HT22: 0 | HU22: 0 | HV22: 0 | HW22: -0.01871053104 | HX22: =-HW22 -> 0.01871053104 | HY22: =IF(HX22>0,MIN(-HW22/(1-0.5/100*'Distances for Transit Losses'!$C$81),HX22),0) -> 0.01871053104 | HZ22: =-HY22*0.5/100*'Distances for Transit Losses'!$C$81 -> -0.001141342393 | IA22: 0 | IB22: 0 | ID22: -0.001141342393 | IE22: 0 | IF22: 0 | IG22: 0 | IH22: 0 | II22: 0 | IJ22: 0 | IK22: 0 | IL22: 0 | IM22: 0.1953272467 | IN22: =-(IF(N22<99999.99999,(VLOOKUP(B22,'ECCV Upper Dpln'!$B$7:$BD$306,55))/QE22/1.9835,0)) -> -4.080257262 | IO22: =-(IF(N22<99999.99999,INDEX('Hist RF abv Milton'!$B$6:$M$30,MATCH($B$2,'Hist RF abv Milton'!$A$6:$A$30,0),MATCH($A22,'Hist RF abv Milton'!$B$5:$M$5,0))/QE22/1.9835,0)) -> -0.06724247917 | IP22: =-(VLOOKUP(B22,'Unlagged Hist RF'!$A$9:$AN$308,36)/QE22/1.9835) -> 0 | IQ22: =(VLOOKUP($B22,'ECCV Beebe Pond Acrtns'!$B$7:$BI$1206,41)+VLOOKUP($B22,'ECCV Canal Acrtns'!$B$7:$AL$1206,22)+VLOOKUP($B22,'2003 Beebe Pond Acrtns'!$B$7:$BI$1206,41)+VLOOKUP($B22,'2003 Canal Acrtns'!$B$7:$AL$1206,22))/$QE22/1.9835 -> 1.053799341 | IR22: 0 | IS22: 0 | IT22: 0 | IU22: 1.053799341 | IV22: 0 | IW22: no | IX22: 0 | IY22: 0.06724247917 | IZ22: 1.47395448 | JA22: 0 | JB22: 1.552503441 | JC22: 0 | JD22: 0 | JE22: 1.175 | JF22: =-(JE22*0.5/100*'Distances for Transit Losses'!$C$6) -> -0.0158625 | JG22: 0 | JH22: 0 | JI22: 0 | JJ22: =MIN(-(JD22+JG22),GV22-GV22*0.5/100*'Distances for Transit Losses'!$C$55) -> 0 | JK22: =MAX(0,MIN(-(JC22+JE22+JF22+JI22),GV22-GV22*0.5/100*'Distances for Transit Losses'!$C$55-JJ22/(1-0.5/100*'Distances for Transit Losses'!$C$55))) -> 0 | JL22: =MIN(-(JD22+JJ22),GT22-GT22*0.5/100*'Distances for Transit Losses'!$C$53) -> 0 | JM22: =MAX(0,MIN(-(JC22+JE22+JF22+JK22),GT22-GT22*0.5/100*'Distances for Transit Losses'!$C$53-JL22/(1-0.5/100*'Distances for Transit Losses'!$C$53))) -> 0 | JN22: =IF(ET22="no",MIN(-(MIN(0,JC22+JE22+JF22+JK22+JM22))+BZ22/(1-0.5/100*'Distances for Transit Losses'!$C$38)+FE22/(1-0.5/100*'Distances for Transit Losses'!$C$42)+KE22/(1-0.5/100*'Distances for Transit Losses'!$C$36),(FY22-FZ22)-(FY22-FZ22)*0.5/100*'Distances for Transit Losses'!$C$53),0) -> 0.1269586928 | JO22: =IF(AND(GM22-GN22-IA22-FC22>0,ET22="no"),MIN(-(JC22+JE22+JF22+JI22+JK22+JM22+JN22)/(1-0.5/100*'Distances for Transit Losses'!$C$59),GM22-GN22-IA22-FC22),0) -> 0 | JP22: =JO22*0.5/100*'Distances for Transit Losses'!$D$59 -> 0 | JQ22: 0 | JS22: 1.286096193 | JT22: 0 | JU22: 0 | JV22: 0 | JW22: 0.3721166927 | JX22: =-(IF(N22<99999.99999,INDEX('Hist RF blw Milton'!$B$6:$M$30,MATCH($B$2,'Hist RF blw Milton'!$A$6:$A$30,0),MATCH($A22,'Hist RF blw Milton'!$B$5:$M$5,0))/QE22/1.9835,0)) -> -0.03247642669 | JY22: no | JZ22: 0 | KA22: 0.03247642669 | KB22: 0 | KC22: 0 | KD22: 0 | KE22: 0 | KG22: 0 | KH22: 0.339640266 | KI22: =-(IF(N22<99999.99999,INDEX('Hist RF to Box Elder'!$B$6:$M$30,MATCH($B$2,'Hist RF to Box Elder'!$A$6:$A$30,0),MATCH($A22,'Hist RF to Box Elder'!$B$5:$M$5,0))/QE22/1.9835,0)) -> -0.01513304456 | KJ22: =(VLOOKUP($B22,'ECCV Beebe Pond Acrtns'!$B$7:$BI$1206,54)+VLOOKUP($B22,'ECCV Canal Acrtns'!$B$7:$AL$1206,34)+VLOOKUP($B22,'2003 Beebe Pond Acrtns'!$B$7:$AL$1206,34)+VLOOKUP($B22,'2003 Canal Acrtns'!$B$7:$AL$1206,34)+VLOOKUP($B22,'84CW090 Beebe Pond Acrtns'!$B$7:$AL$1206,34)+VLOOKUP($B22,'84CW090 Canal Acrtns'!$B$7:$AL$1206,34))/$QE22/1.9835 -> 0.06977267982 | KK22: 0.01513304456 | KL22: 0 | KM22: 0 | KN22: 0 | KP22: -7.914377132 | KQ22: 5.433595934 | KR22: 0.03247642669 | KS22: 0.01513304456 | KT22: 0.01756918864 | KU22: 0.01953475032 | KV22: 0.1443130193 | KW22: 0 | KX22: 2.40332376 | KY22: 1.133385858 | KZ22: 9.199331982 | LA22: 1.28495485 | LB22: 0 | LC22: 0 | LD22: 0 | LK22: 0 | LL22: 0 | LM22: 0 | LO22: 0 | LP22: 0 | LQ22: 0 | LR22: 0 | LS22: 0 | LT22: 0 | LU22: 0 | LV22: 0 | LW22: 0 | LX22: 0 | LY22: 0 | LZ22: 0 | MB22: 1.7 | MC22: 0 | MD22: 0 | ME22: 0 | MF22: 0 | MG22: 0 | MH22: 0 | MI22: 0 | MJ22: 0 | MK22: 0 | ML22: 0 | MN22: 0 | MO22: 0 | MP22: 0 | MQ22: 0 | MR22: 0 | MS22: 0 | MT22: 0 | MU22: 0 | MV22: 0 | MW22: 0 | MX22: 0 | ND22: 0 | NE22: 0 | NF22: 0 | NG22: 0 | NH22: 0 | NI22: 0 | NJ22: 0 | NK22: 0 | NL22: 0 | NN22: 0 | NO22: 0 | NP22: 0 | NQ22: 0 | NR22: 0 | NS22: 0 | NT22: 0 | NU22: 0 | NV22: 0 | NY22: 0 | NZ22: 0 | OA22: 0 | OB22: 0 | OC22: 0 | OD22: 0 | OE22: 0 | OH22: 0 | OI22: 0 | OL22: 0 | OM22: 0 | ON22: 0 | OQ22: 0 | OR22: 0 | OS22: 0 | OT22: 0 | OU22: 0 | OV22: 0 | OW22: 0 | OY22: 0 | OZ22: 0 | PA22: 0 | PB22: 0 | PC22: 0 | PD22: 309.6 | PF22: 0 | PG22: 0 | PH22: 0 | PI22: 0 | PJ22: 0 | PK22: 0 | PL22: 0 | PM22: 0 | PN22: 0 | PO22: 0 | PP22: 0 | PQ22: 0 | PR22: 0 | PS22: 0 | PT22: 0 | PU22: 0 | PV22: 0 | PW22: 0 | PX22: 0 | PY22: 0 | PZ22: 0 | QB22: 1.175 | QC22: 0 | QE22: =VLOOKUP(A22,'Control Sheet'!$G$9:$H$20,2) -> 30
